Workbook

Sheet DAX Data
A1: Date | B1: Open | C1: High | D1: Low | E1: Close | F1: Volume | G1: Adj Close | H1: VBA-ret | I1: Excel-ret | J1: I-H | L1: bins | M1: Frequency
A2: 1990-11-26 | B2: 1466.30005 | C2: 1466.30005 | D2: 1443.19995 | E2: 1443.19995 | F2: 0 | G2: 1443.19995 | L2: -0.1 | M2: =FREQUENCY(H2:H6201,L2:L202) -> 0
A3: 1990-11-27 | B3: 1438.30005 | C3: 1438.30005 | D3: 1415.30005 | E3: 1415.30005 | F3: 0 | G3: 1415.30005 | H3: -0.01933197129 | I3: =(G3-G2)/G2 -> -0.01933197129 | J3: =I3-H3 -> 0 | L3: -0.099 | M3: 0
A4: 1990-11-28 | B4: 1410 | C4: 1431.90002 | D4: 1402.80005 | E4: 1420.59998 | F4: 0 | G4: 1420.59998 | H4: 0.003744739499 | I4: =(G4-G3)/G3 -> 0.003744739499 | J4: =I4-H4 -> 0 | L4: -0.098 | M4: 0
A5: 1990-11-29 | B5: 1420.40002 | C5: 1424.59998 | D5: 1415.80005 | E5: 1418.90002 | F5: 0 | G5: 1418.90002 | H5: -0.00119664932 | I5: -0.00119664932 | J5: 0 | L5: -0.097 | M5: 0
A6: 1990-11-30 | B6: 1421.5 | C6: 1443.90002 | D6: 1421.5 | E6: 1441.19995 | F6: 0 | G6: 1441.19995 | H6: 0.01571635047 | I6: 0.01571635047 | J6: 0 | L6: -0.096 | M6: 0
A7: 1990-12-03 | B7: 1470.09998 | C7: 1476.59998 | D7: 1458.69995 | E7: 1462.59998 | F7: 0 | G7: 1462.59998 | H7: 0.01484875849 | I7: 0.01484875849 | J7: 0 | L7: -0.095 | M7: 0
A8: 1990-12-04 | B8: 1450.09998 | C8: 1450.09998 | D8: 1436.80005 | E8: 1446.30005 | F8: 0 | G8: 1446.30005 | H8: -0.01114448942 | I8: -0.01114448942 | J8: 0 | L8: -0.094 | M8: 0
A9: 1990-12-05 | B9: 1462.90002 | C9: 1473 | D9: 1457.09998 | E9: 1471 | F9: 0 | G9: 1471 | H9: 0.0170780261 | I9: 0.0170780261 | J9: 0 | L9: -0.093 | M9: 1
A10: 1990-12-06 | B10: 1492 | C10: 1504.69995 | D10: 1483.80005 | E10: 1504.69995 | F10: 0 | G10: 1504.69995 | H10: 0.02290955133 | I10: 0.02290955133 | J10: 0 | L10: -0.092 | M10: 0
A11: 1990-12-07 | B11: 1505.09998 | C11: 1515.90002 | D11: 1504.69995 | E11: 1512.80005 | F11: 0 | G11: 1512.80005 | H11: 0.005383199488 | I11: 0.005383199488 | J11: 0 | L11: -0.091 | M11: 0
A12: 1990-12-10 | B12: 1510 | C12: 1521.09998 | D12: 1504.80005 | E12: 1504.80005 | F12: 0 | G12: 1504.80005 | H12: -0.005288207123 | I12: -0.005288207123 | J12: 0 | L12: -0.09 | M12: 0
A13: 1990-12-11 | B13: 1492.80005 | C13: 1493 | D13: 1486.30005 | E13: 1492.69995 | F13: 0 | G13: 1492.69995 | H13: -0.008041001859 | I13: -0.008041001859 | J13: 0 | L13: -0.089 | M13: 0
A14: 1990-12-12 | B14: 1510 | C14: 1520.59998 | D14: 1510 | E14: 1517.19995 | F14: 0 | G14: 1517.19995 | H14: 0.01641321151 | I14: 0.01641321151 | J14: 0 | L14: -0.088 | M14: 0
A15: 1990-12-13 | B15: 1532 | C15: 1534.80005 | D15: 1516.80005 | E15: 1517.80005 | F15: 0 | G15: 1517.80005 | H15: 0.0003955312548 | I15: 0.0003955312548 | J15: 0 | L15: -0.087 | M15: 0
A16: 1990-12-14 | B16: 1508.09998 | C16: 1523 | D16: 1505.09998 | E16: 1522.40002 | F16: 0 | G16: 1522.40002 | H16: 0.003030682467 | I16: 0.003030682467 | J16: 0 | L16: -0.086 | M16: 0
A17: 1990-12-17 | B17: 1512.40002 | C17: 1512.40002 | D17: 1475.90002 | E17: 1475.90002 | F17: 0 | G17: 1475.90002 | H17: -0.03054387769 | I17: -0.03054387769 | J17: 0 | L17: -0.085 | M17: 0
A18: 1990-12-18 | B18: 1472.59998 | C18: 1483.5 | D18: 1472.59998 | E18: 1477.40002 | F18: 0 | G18: 1477.40002 | H18: 0.001016329006 | I18: 0.001016329006 | J18: 0 | L18: -0.084 | M18: 0
A19: 1990-12-19 | B19: 1478.5 | C19: 1478.5 | D19: 1452.09998 | E19: 1457.19995 | F19: 0 | G19: 1457.19995 | H19: -0.0136727154 | I19: -0.0136727154 | J19: 0 | L19: -0.083 | M19: 0
A20: 1990-12-20 | B20: 1422.09998 | C20: 1426 | D20: 1409.30005 | E20: 1409.30005 | F20: 0 | G20: 1409.30005 | H20: -0.03287119245 | I20: -0.03287119245 | J20: 0 | L20: -0.082 | M20: 0
A21: 1990-12-21 | B21: 1404.90002 | C21: 1421.5 | D21: 1404.90002 | E21: 1414.90002 | F21: 0 | G21: 1414.90002 | H21: 0.003973582489 | I21: 0.003973582489 | J21: 0 | L21: -0.081 | M21: 0
A22: 1990-12-27 | B22: 1414.69995 | C22: 1419.09998 | D22: 1409.19995 | E22: 1410.90002 | F22: 0 | G22: 1410.90002 | H22: -0.002827054876 | I22: -0.002827054876 | J22: 0 | L22: -0.08 | M22: 0
A23: 1990-12-28 | B23: 1403.30005 | C23: 1403.30005 | D23: 1389 | E23: 1398.19995 | F23: 0 | G23: 1398.19995 | H23: -0.009001396144 | I23: -0.009001396144 | J23: 0 | L23: -0.079 | M23: 0
A24: 1991-01-02 | B24: 1375.40002 | C24: 1375.40002 | D24: 1359.09998 | E24: 1366.09998 | F24: 0 | G24: 1366.09998 | H24: -0.02295806834 | I24: -0.02295806834 | J24: 0 | L24: -0.078 | M24: 0
A25: 1991-01-03 | B25: 1371.69995 | C25: 1374.69995 | D25: 1365.19995 | E25: 1366.69995 | F25: 0 | G25: 1366.69995 | H25: 0.0004391845464 | I25: 0.0004391845464 | J25: 0 | L25: -0.077 | M25: 0
A26: 1991-01-04 | B26: 1375.40002 | C26: 1398 | D26: 1375.40002 | E26: 1396.09998 | F26: 0 | G26: 1396.09998 | H26: 0.02151169318 | I26: 0.02151169318 | J26: 0 | L26: -0.076 | M26: 0
A27: 1991-01-07 | B27: 1373.59998 | C27: 1373.59998 | D27: 1352.5 | E27: 1358.19995 | F27: 0 | G27: 1358.19995 | H27: -0.02714707438 | I27: -0.02714707438 | J27: 0 | L27: -0.075 | M27: 0
A28: 1991-01-08 | B28: 1350.40002 | C28: 1357.09998 | D28: 1345.5 | E28: 1354 | F28: 0 | G28: 1354 | H28: -0.003092291382 | I28: -0.003092291382 | J28: 0 | L28: -0.074 | M28: 0
A29: 1991-01-09 | B29: 1358.59998 | C29: 1380.80005 | D29: 1358 | E29: 1375.19995 | F29: 0 | G29: 1375.19995 | H29: 0.01565727474 | I29: 0.01565727474 | J29: 0 | L29: -0.073 | M29: 0
A30: 1991-01-10 | B30: 1367.90002 | C30: 1383.69995 | D30: 1363.09998 | E30: 1383.40002 | F30: 0 | G30: 1383.40002 | H30: 0.00596282017 | I30: 0.00596282017 | J30: 0 | L30: -0.072 | M30: 0
A31: 1991-01-11 | B31: 1401.30005 | C31: 1406.40002 | D31: 1376.90002 | E31: 1382.30005 | F31: 0 | G31: 1382.30005 | H31: -0.0007951207056 | I31: -0.0007951207056 | J31: 0 | L31: -0.071 | M31: 1
A32: 1991-01-14 | B32: 1354.5 | C32: 1354.5 | D32: 1327.80005 | E32: 1327.80005 | F32: 0 | G32: 1327.80005 | H32: -0.03942704046 | I32: -0.03942704046 | J32: 0 | L32: -0.07 | M32: 2
A33: 1991-01-15 | B33: 1327 | C33: 1330.30005 | D33: 1312.40002 | E33: 1325.59998 | F33: 0 | G33: 1325.59998 | H33: -0.001656928692 | I33: -0.001656928692 | J33: 0 | L33: -0.069 | M33: 0
A34: 1991-01-16 | B34: 1316.09998 | C34: 1329.40002 | D34: 1311.80005 | E34: 1322.69995 | F34: 0 | G34: 1322.69995 | H34: -0.002187711258 | I34: -0.002187711258 | J34: 0 | L34: -0.068 | M34: 1
A35: 1991-01-17 | B35: 1380.30005 | C35: 1422.69995 | D35: 1380.30005 | E35: 1422.69995 | F35: 0 | G35: 1422.69995 | H35: 0.07560293625 | I35: 0.07560293625 | J35: 0 | L35: -0.067 | M35: 0
A36: 1991-01-18 | B36: 1403.59998 | C36: 1407.30005 | D36: 1394.69995 | E36: 1405.09998 | F36: 0 | G36: 1405.09998 | H36: -0.01237082352 | I36: -0.01237082352 | J36: 0 | L36: -0.066 | M36: 0
A37: 1991-01-21 | B37: 1393.30005 | C37: 1396.5 | D37: 1390 | E37: 1390.19995 | F37: 0 | G37: 1390.19995 | H37: -0.01060424896 | I37: -0.01060424896 | J37: 0 | L37: -0.065 | M37: 0
A38: 1991-01-22 | B38: 1374.19995 | C38: 1380.09998 | D38: 1367 | E38: 1375.09998 | F38: 0 | G38: 1375.09998 | H38: -0.01086172532 | I38: -0.01086172532 | J38: 0 | L38: -0.064 | M38: 2
A39: 1991-01-23 | B39: 1365.09998 | C39: 1371 | D39: 1355.90002 | E39: 1358.80005 | F39: 0 | G39: 1358.80005 | H39: -0.01185363264 | I39: -0.01185363264 | J39: 0 | L39: -0.063 | M39: 0
A40: 1991-01-24 | B40: 1372.90002 | C40: 1380.40002 | D40: 1372.90002 | E40: 1375.19995 | F40: 0 | G40: 1375.19995 | H40: 0.01206939903 | I40: 0.01206939903 | J40: 0 | L40: -0.062 | M40: 2
A41: 1991-01-25 | B41: 1382.19995 | C41: 1384 | D41: 1379.30005 | E41: 1382.09998 | F41: 0 | G41: 1382.09998 | H41: 0.005017474004 | I41: 0.005017474004 | J41: 0 | L41: -0.061 | M41: 1
A42: 1991-01-28 | B42: 1377.5 | C42: 1385.30005 | D42: 1372.09998 | E42: 1382.69995 | F42: 0 | G42: 1382.69995 | H42: 0.0004341002885 | I42: 0.0004341002885 | J42: 0 | L42: -0.06 | M42: 0
A43: 1991-01-29 | B43: 1390.59998 | C43: 1393.19995 | D43: 1379.80005 | E43: 1380.30005 | F43: 0 | G43: 1380.30005 | H43: -0.001735662173 | I43: -0.001735662173 | J43: 0 | L43: -0.059 | M43: 1
A44: 1991-01-30 | B44: 1383.80005 | C44: 1402.19995 | D44: 1383.80005 | E44: 1400.69995 | F44: 0 | G44: 1400.69995 | H44: 0.0147793228 | I44: 0.0147793228 | J44: 0 | L44: -0.058 | M44: 6
A45: 1991-01-31 | B45: 1411.59998 | C45: 1428.5 | D45: 1411.19995 | E45: 1420.09998 | F45: 0 | G45: 1420.09998 | H45: 0.01385023966 | I45: 0.01385023966 | J45: 0 | L45: -0.057 | M45: 1
A46: 1991-02-01 | B46: 1413.19995 | C46: 1428.40002 | D46: 1411 | E46: 1426.5 | F46: 0 | G46: 1426.5 | H46: 0.004506739026 | I46: 0.004506739026 | J46: 0 | L46: -0.056 | M46: 1
A47: 1991-02-04 | B47: 1434.19995 | C47: 1449.30005 | D47: 1434.19995 | E47: 1435 | F47: 0 | G47: 1435 | H47: 0.005958640028 | I47: 0.005958640028 | J47: 0 | L47: -0.055 | M47: 2
A48: 1991-02-05 | B48: 1451.09998 | C48: 1454.69995 | D48: 1435.90002 | E48: 1438.90002 | F48: 0 | G48: 1438.90002 | H48: 0.002717783972 | I48: 0.002717783972 | J48: 0 | L48: -0.054 | M48: 0
A49: 1991-02-06 | B49: 1428.80005 | C49: 1428.80005 | D49: 1420.40002 | E49: 1428.69995 | F49: 0 | G49: 1428.69995 | H49: -0.007088796899 | I49: -0.007088796899 | J49: 0 | L49: -0.053 | M49: 1
A50: 1991-02-07 | B50: 1441.59998 | C50: 1445.30005 | D50: 1435.80005 | E50: 1436.30005 | F50: 0 | G50: 1436.30005 | H50: 0.005319591423 | I50: 0.005319591423 | J50: 0 | L50: -0.052 | M50: 3
A51: 1991-02-08 | B51: 1445.40002 | C51: 1467.90002 | D51: 1441.09998 | E51: 1467.80005 | F51: 0 | G51: 1467.80005 | H51: 0.02193135063 | I51: 0.02193135063 | J51: 0 | L51: -0.051 | M51: 4
A52: 1991-02-11 | B52: 1488 | C52: 1495.19995 | D52: 1486.09998 | E52: 1488.69995 | F52: 0 | G52: 1488.69995 | H52: 0.01423892852 | I52: 0.01423892852 | J52: 0 | L52: -0.05 | M52: 4
A53: 1991-02-12 | B53: 1484.19995 | C53: 1486.40002 | D53: 1463.09998 | E53: 1468.90002 | F53: 0 | G53: 1468.90002 | H53: -0.01330014823 | I53: -0.01330014823 | J53: 0 | L53: -0.049 | M53: 7
A54: 1991-02-13 | B54: 1471.69995 | C54: 1491.19995 | D54: 1471.69995 | E54: 1489.40002 | F54: 0 | G54: 1489.40002 | H54: 0.01395602132 | I54: 0.01395602132 | J54: 0 | L54: -0.048 | M54: 1
A55: 1991-02-14 | B55: 1498.19995 | C55: 1505.5 | D55: 1486.5 | E55: 1486.5 | F55: 0 | G55: 1486.5 | H55: -0.001947106191 | I55: -0.001947106191 | J55: 0 | L55: -0.047 | M55: 3
A56: 1991-02-15 | B56: 1498.69995 | C56: 1540.69995 | D56: 1495.19995 | E56: 1531.19995 | F56: 0 | G56: 1531.19995 | H56: 0.03007060209 | I56: 0.03007060209 | J56: 0 | L56: -0.046 | M56: 4
A57: 1991-02-18 | B57: 1535 | C57: 1574.40002 | D57: 1528.69995 | E57: 1572.59998 | F57: 0 | G57: 1572.59998 | H57: 0.02703763803 | I57: 0.02703763803 | J57: 0 | L57: -0.045 | M57: 1
A58: 1991-02-19 | B58: 1597.19995 | C58: 1604.19995 | D58: 1580.59998 | E58: 1587.09998 | F58: 0 | G58: 1587.09998 | H58: 0.009220399456 | I58: 0.009220399456 | J58: 0 | L58: -0.044 | M58: 6
A59: 1991-02-20 | B59: 1567 | C59: 1576 | D59: 1558.80005 | E59: 1567.30005 | F59: 0 | G59: 1567.30005 | H59: -0.01247554045 | I59: -0.01247554045 | J59: 0 | L59: -0.043 | M59: 3
A60: 1991-02-21 | B60: 1568.59998 | C60: 1570.69995 | D60: 1562.40002 | E60: 1566.30005 | F60: 0 | G60: 1566.30005 | H60: -0.0006380399209 | I60: -0.0006380399209 | J60: 0 | L60: -0.042 | M60: 3
A61: 1991-02-22 | B61: 1566.30005 | C61: 1583.09998 | D61: 1566 | E61: 1582.5 | F61: 0 | G61: 1582.5 | H61: 0.01034281395 | I61: 0.01034281395 | J61: 0 | L61: -0.041 | M61: 3
A62: 1991-02-25 | B62: 1605.19995 | C62: 1612.80005 | D62: 1601.09998 | E62: 1601.19995 | F62: 0 | G62: 1601.19995 | H62: 0.01181671406 | I62: 0.01181671406 | J62: 0 | L62: -0.04 | M62: 4
A63: 1991-02-26 | B63: 1569.09998 | C63: 1569.09998 | D63: 1558.19995 | E63: 1558.19995 | F63: 0 | G63: 1558.19995 | H63: -0.02685485969 | I63: -0.02685485969 | J63: 0 | L63: -0.039 | M63: 4
A64: 1991-02-27 | B64: 1546.40002 | C64: 1567.80005 | D64: 1541.90002 | E64: 1565.5 | F64: 0 | G64: 1565.5 | H64: 0.004684925064 | I64: 0.004684925064 | J64: 0 | L64: -0.038 | M64: 7
A65: 1991-02-28 | B65: 1569.80005 | C65: 1577.80005 | D65: 1541.09998 | E65: 1542.09998 | F65: 0 | G65: 1542.09998 | H65: -0.01494731396 | I65: -0.01494731396 | J65: 0 | L65: -0.037 | M65: 4
A66: 1991-03-01 | B66: 1524 | C66: 1527.30005 | D66: 1516.30005 | E66: 1516.69995 | F66: 0 | G66: 1516.69995 | H66: -0.01647106564 | I66: -0.01647106564 | J66: 0 | L66: -0.036 | M66: 3
A67: 1991-03-04 | B67: 1515.30005 | C67: 1536.09998 | D67: 1515.30005 | E67: 1530.90002 | F67: 0 | G67: 1530.90002 | H67: 0.009362478056 | I67: 0.009362478056 | J67: 0 | L67: -0.035 | M67: 6
A68: 1991-03-05 | B68: 1540.59998 | C68: 1549.19995 | D68: 1536.90002 | E68: 1540.30005 | F68: 0 | G68: 1540.30005 | H68: 0.006140198496 | I68: =(G68-G67)/G67 -> 0.006140198496 | J68: =I68-H68 -> 0 | L68: -0.034 | M68: 11
A69: 1991-03-06 | B69: 1579.5 | C69: 1596.90002 | D69: 1579.5 | E69: 1594.30005 | F69: 0 | G69: 1594.30005 | H69: 0.03505810443 | I69: 0.03505810443 | J69: 0 | L69: -0.033 | M69: 13
A70: 1991-03-07 | B70: 1587 | C70: 1595.40002 | D70: 1580.30005 | E70: 1580.5 | F70: 0 | G70: 1580.5 | H70: -0.008655867507 | I70: -0.008655867507 | J70: 0 | L70: -0.032 | M70: 14
A71: 1991-03-08 | B71: 1587 | C71: 1595.40002 | D71: 1580.30005 | E71: 1580.5 | F71: 0 | G71: 1580.5 | H71: 0 | I71: 0 | J71: 0 | L71: -0.031 | M71: 9
A72: 1991-03-11 | B72: 1590.69995 | C72: 1590.69995 | D72: 1563.69995 | E72: 1565.80005 | F72: 0 | G72: 1565.80005 | H72: -0.009300822525 | I72: -0.009300822525 | J72: 0 | L72: -0.03 | M72: 10
A73: 1991-03-12 | B73: 1575.59998 | C73: 1578 | D73: 1563.40002 | E73: 1571.59998 | F73: 0 | G73: 1571.59998 | H73: 0.003704131955 | I73: 0.003704131955 | J73: 0 | L73: -0.029 | M73: 10
A74: 1991-03-13 | B74: 1558.69995 | C74: 1562.40002 | D74: 1542.09998 | E74: 1542.19995 | F74: 0 | G74: 1542.19995 | H74: -0.01870706947 | I74: -0.01870706947 | J74: 0 | L74: -0.028 | M74: 13
A75: 1991-03-14 | B75: 1552.59998 | C75: 1576.59998 | D75: 1552.59998 | E75: 1576.59998 | F75: 0 | G75: 1576.59998 | H75: 0.02230581709 | I75: 0.02230581709 | J75: 0 | L75: -0.027 | M75: 25
A76: 1991-03-15 | B76: 1577.40002 | C76: 1578.09998 | D76: 1565.90002 | E76: 1570.59998 | F76: 0 | G76: 1570.59998 | H76: -0.003805657793 | I76: -0.003805657793 | J76: 0 | L76: -0.026 | M76: 15
A77: 1991-03-18 | B77: 1573.19995 | C77: 1573.5 | D77: 1551 | E77: 1552.90002 | F77: 0 | G77: 1552.90002 | H77: -0.01126955318 | I77: -0.01126955318 | J77: 0 | L77: -0.025 | M77: 22
A78: 1991-03-19 | B78: 1537.90002 | C78: 1548.30005 | D78: 1531.80005 | E78: 1546.5 | F78: 0 | G78: 1546.5 | H78: -0.004121334225 | I78: -0.004121334225 | J78: 0 | L78: -0.024 | M78: 33
A79: 1991-03-20 | B79: 1528.30005 | C79: 1532.5 | D79: 1517.90002 | E79: 1517.90002 | F79: 0 | G79: 1517.90002 | H79: -0.0184933592 | I79: -0.0184933592 | J79: 0 | L79: -0.023 | M79: 26
A80: 1991-03-21 | B80: 1531.30005 | C80: 1533.40002 | D80: 1517 | E80: 1519.59998 | F80: 0 | G80: 1519.59998 | H80: 0.00111994201 | I80: 0.00111994201 | J80: 0 | L80: -0.022 | M80: 36
A81: 1991-03-22 | B81: 1507.90002 | C81: 1520.40002 | D81: 1501.40002 | E81: 1520.30005 | F81: 0 | G81: 1520.30005 | H81: 0.0004606936096 | I81: 0.0004606936096 | J81: 0 | L81: -0.021 | M81: 27
A82: 1991-03-25 | B82: 1513.90002 | C82: 1517.5 | D82: 1506.19995 | E82: 1515.5 | F82: 0 | G82: 1515.5 | H82: -0.003157304376 | I82: -0.003157304376 | J82: 0 | L82: -0.02 | M82: 38
A83: 1991-03-26 | B83: 1504.90002 | C83: 1507.19995 | D83: 1496.5 | E83: 1498.40002 | F83: 0 | G83: 1498.40002 | H83: -0.01128339162 | I83: -0.01128339162 | J83: 0 | L83: -0.019 | M83: 47
A84: 1991-03-27 | B84: 1508.5 | C84: 1516.5 | D84: 1508.09998 | E84: 1508.80005 | F84: 0 | G84: 1508.80005 | H84: 0.006940756715 | I84: 0.006940756715 | J84: 0 | L84: -0.018 | M84: 38
A85: 1991-03-28 | B85: 1506.5 | C85: 1526.90002 | D85: 1506.5 | E85: 1522.80005 | F85: 0 | G85: 1522.80005 | H85: 0.009278896829 | I85: 0.009278896829 | J85: 0 | L85: -0.017 | M85: 62
A86: 1991-04-02 | B86: 1522.59998 | C86: 1542.30005 | D86: 1521.90002 | E86: 1538.59998 | F86: 0 | G86: 1538.59998 | H86: 0.01037557754 | I86: 0.01037557754 | J86: 0 | L86: -0.016 | M86: 56
A87: 1991-04-03 | B87: 1556.69995 | C87: 1579.90002 | D87: 1556.69995 | E87: 1577.5 | F87: 0 | G87: 1577.5 | H87: 0.02528273788 | I87: 0.02528273788 | J87: 0 | L87: -0.015 | M87: 57
A88: 1991-04-04 | B88: 1576 | C88: 1588.5 | D88: 1564.90002 | E88: 1572 | F88: 0 | G88: 1572 | H88: -0.003486529319 | I88: -0.003486529319 | J88: 0 | L88: -0.014 | M88: 76
A89: 1991-04-05 | B89: 1586.80005 | C89: 1588 | D89: 1573.59998 | E89: 1586.90002 | F89: 0 | G89: 1586.90002 | H89: 0.009478384224 | I89: 0.009478384224 | J89: 0 | L89: -0.013 | M89: 76
A90: 1991-04-08 | B90: 1579.90002 | C90: 1582.19995 | D90: 1576.09998 | E90: 1580 | F90: 0 | G90: 1580 | H90: -0.004348112618 | I90: -0.004348112618 | J90: 0 | L90: -0.012 | M90: 96
A91: 1991-04-09 | B91: 1590.80005 | C91: 1592 | D91: 1582.09998 | E91: 1582.09998 | F91: 0 | G91: 1582.09998 | H91: 0.001329101266 | I91: 0.001329101266 | J91: 0 | L91: -0.011 | M91: 97
A92: 1991-04-10 | B92: 1567.19995 | C92: 1568 | D92: 1558.40002 | E92: 1561.90002 | F92: 0 | G92: 1561.90002 | H92: -0.01276781509 | I92: -0.01276781509 | J92: 0 | L92: -0.01 | M92: 95
A93: 1991-04-11 | B93: 1571.40002 | C93: 1573.59998 | D93: 1558.5 | E93: 1565.40002 | F93: 0 | G93: 1565.40002 | H93: 0.002240860462 | I93: 0.002240860462 | J93: 0 | L93: -0.009 | M93: 92
A94: 1991-04-12 | B94: 1568.5 | C94: 1585.19995 | D94: 1568.5 | E94: 1583.09998 | F94: 0 | G94: 1583.09998 | H94: 0.01130698848 | I94: 0.01130698848 | J94: 0 | L94: -0.008 | M94: 128
A95: 1991-04-15 | B95: 1590.30005 | C95: 1607.09998 | D95: 1590.30005 | E95: 1601.40002 | F95: 0 | G95: 1601.40002 | H95: 0.01155962367 | I95: 0.01155962367 | J95: 0 | L95: -0.007 | M95: 150
A96: 1991-04-16 | B96: 1599.09998 | C96: 1606.80005 | D96: 1593.09998 | E96: 1603.40002 | F96: 0 | G96: 1603.40002 | H96: 0.001248907191 | I96: 0.001248907191 | J96: 0 | L96: -0.006 | M96: 139
A97: 1991-04-17 | B97: 1615.59998 | C97: 1625.40002 | D97: 1612.09998 | E97: 1623.80005 | F97: 0 | G97: 1623.80005 | H97: 0.01272298225 | I97: 0.01272298225 | J97: 0 | L97: -0.005 | M97: 155
A98: 1991-04-18 | B98: 1627.5 | C98: 1627.5 | D98: 1607.19995 | E98: 1613.80005 | F98: 0 | G98: 1613.80005 | H98: -0.006158393701 | I98: -0.006158393701 | J98: 0 | L98: -0.004 | M98: 210
A99: 1991-04-19 | B99: 1599 | C99: 1607.69995 | D99: 1594 | E99: 1599.40002 | F99: 0 | G99: 1599.40002 | H99: -0.008923057104 | I99: -0.008923057104 | J99: 0 | L99: -0.003 | M99: 207
A100: 1991-04-22 | B100: 1585.19995 | C100: 1585.19995 | D100: 1571.90002 | E100: 1571.90002 | F100: 0 | G100: 1571.90002 | H100: -0.01719394752 | I100: -0.01719394752 | J100: 0 | L100: -0.002 | M100: 241
A101: 1991-04-23 | B101: 1581.69995 | C101: 1597.09998 | D101: 1581.69995 | E101: 1597.09998 | F101: 0 | G101: 1597.09998 | H101: 0.01603152852 | I101: 0.01603152852 | J101: 0 | L101: -0.001 | M101: 232
A102: 1991-04-24 | B102: 1606.80005 | C102: 1611.90002 | D102: 1597.19995 | E102: 1603.69995 | F102: 0 | G102: 1603.69995 | H102: 0.004132471406 | I102: 0.004132471406 | J102: 0 | L102: 0 | M102: 249
A103: 1991-04-25 | B103: 1609.40002 | C103: 1627 | D103: 1609.40002 | E103: 1620.5 | F103: 0 | G103: 1620.5 | H103: 0.01047580628 | I103: 0.01047580628 | J103: 0 | L103: 0.001 | M103: 246
A104: 1991-04-26 | B104: 1626.19995 | C104: 1632.5 | D104: 1619.5 | E104: 1623.80005 | F104: 0 | G104: 1623.80005 | H104: 0.002036439371 | I104: 0.002036439371 | J104: 0 | L104: 0.002 | M104: 299
A105: 1991-04-29 | B105: 1635 | C105: 1638.19995 | D105: 1620.30005 | E105: 1620.30005 | F105: 0 | G105: 1620.30005 | H105: -0.002155437795 | I105: -0.002155437795 | J105: 0 | L105: 0.003 | M105: 262
A106: 1991-04-30 | B106: 1611.59998 | C106: 1612.5 | D106: 1601.90002 | E106: 1605.80005 | F106: 0 | G106: 1605.80005 | H106: -0.008948959793 | I106: -0.008948959793 | J106: 0 | L106: 0.004 | M106: 232
A107: 1991-05-02 | B107: 1611.59998 | C107: 1631.30005 | D107: 1611.59998 | E107: 1630 | F107: 0 | G107: 1630 | H107: 0.0150703383 | I107: 0.0150703383 | J107: 0 | L107: 0.005 | M107: 231
A108: 1991-05-03 | B108: 1634.09998 | C108: 1636.80005 | D108: 1628.59998 | E108: 1631.80005 | F108: 0 | G108: 1631.80005 | H108: 0.001104325153 | I108: 0.001104325153 | J108: 0 | L108: 0.006 | M108: 194
A109: 1991-05-06 | B109: 1622.80005 | C109: 1627.19995 | D109: 1620.30005 | E109: 1624 | F109: 0 | G109: 1624 | H109: -0.004780028043 | I109: -0.004780028043 | J109: 0 | L109: 0.007 | M109: 183
A110: 1991-05-07 | B110: 1632.19995 | C110: 1634 | D110: 1624.69995 | E110: 1627.5 | F110: 0 | G110: 1627.5 | H110: 0.002155172414 | I110: 0.002155172414 | J110: 0 | L110: 0.008 | M110: 156
A111: 1991-05-08 | B111: 1618.69995 | C111: 1619.5 | D111: 1606.09998 | E111: 1607.30005 | F111: 0 | G111: 1607.30005 | H111: -0.01241164363 | I111: -0.01241164363 | J111: 0 | L111: 0.009 | M111: 152
A112: 1991-05-10 | B112: 1616.90002 | C112: 1623 | D112: 1616.90002 | E112: 1620.59998 | F112: 0 | G112: 1620.59998 | H112: 0.008274702661 | I112: 0.008274702661 | J112: 0 | L112: 0.01 | M112: 141
A113: 1991-05-13 | B113: 1609.19995 | C113: 1611.19995 | D113: 1606 | E113: 1610.90002 | F113: 0 | G113: 1610.90002 | H113: -0.005985412884 | I113: -0.005985412884 | J113: 0 | L113: 0.011 | M113: 126
A114: 1991-05-14 | B114: 1612.09998 | C114: 1612.09998 | D114: 1597 | E114: 1598.5 | F114: 0 | G114: 1598.5 | H114: -0.00769757269 | I114: -0.00769757269 | J114: 0 | L114: 0.012 | M114: 120
A115: 1991-05-15 | B115: 1587.80005 | C115: 1591.19995 | D115: 1585 | E115: 1590.40002 | F115: 0 | G115: 1590.40002 | H115: -0.005067238036 | I115: -0.005067238036 | J115: 0 | L115: 0.013 | M115: 100
A116: 1991-05-16 | B116: 1595.09998 | C116: 1598.19995 | D116: 1592.19995 | E116: 1598.09998 | F116: 0 | G116: 1598.09998 | H116: 0.004841524084 | I116: 0.004841524084 | J116: 0 | L116: 0.014 | M116: 92
A117: 1991-05-17 | B117: 1599.80005 | C117: 1605.09998 | D117: 1598.5 | E117: 1598.90002 | F117: 0 | G117: 1598.90002 | H117: 0.0005006194919 | I117: 0.0005006194919 | J117: 0 | L117: 0.015 | M117: 95
A118: 1991-05-21 | B118: 1607.80005 | C118: 1618.5 | D118: 1605.80005 | E118: 1617.40002 | F118: 0 | G118: 1617.40002 | H118: 0.01157045454 | I118: 0.01157045454 | J118: 0 | L118: 0.016 | M118: 75
A119: 1991-05-22 | B119: 1631.40002 | C119: 1648.30005 | D119: 1631.40002 | E119: 1647.69995 | F119: 0 | G119: 1647.69995 | H119: 0.01873372674 | I119: 0.01873372674 | J119: 0 | L119: 0.017 | M119: 63
A120: 1991-05-23 | B120: 1649.80005 | C120: 1653.5 | D120: 1638.19995 | E120: 1652.69995 | F120: 0 | G120: 1652.69995 | H120: 0.003034533077 | I120: 0.003034533077 | J120: 0 | L120: 0.018 | M120: 60
A121: 1991-05-24 | B121: 1652.59998 | C121: 1673.40002 | D121: 1650.19995 | E121: 1671.90002 | F121: 0 | G121: 1671.90002 | H121: 0.01161739613 | I121: 0.01161739613 | J121: 0 | L121: 0.019 | M121: 46
A122: 1991-05-27 | B122: 1668.19995 | C122: 1688 | D122: 1668 | E122: 1681.5 | F122: 0 | G122: 1681.5 | H122: 0.005741958182 | I122: 0.005741958182 | J122: 0 | L122: 0.02 | M122: 39
A123: 1991-05-28 | B123: 1676.80005 | C123: 1684.09998 | D123: 1668.5 | E123: 1682.09998 | F123: 0 | G123: 1682.09998 | H123: 0.0003568123699 | I123: 0.0003568123699 | J123: 0 | L123: 0.021 | M123: 35
A124: 1991-05-29 | B124: 1693.80005 | C124: 1695 | D124: 1681.19995 | E124: 1681.5 | F124: 0 | G124: 1681.5 | H124: -0.0003566851003 | I124: -0.0003566851003 | J124: 0 | L124: 0.022 | M124: 44
A125: 1991-05-31 | B125: 1695.19995 | C125: 1710.09998 | D125: 1695.19995 | E125: 1704.09998 | F125: 0 | G125: 1704.09998 | H125: 0.01344036872 | I125: 0.01344036872 | J125: 0 | L125: 0.023 | M125: 38
A126: 1991-06-03 | B126: 1702 | C126: 1710 | D126: 1694.09998 | E126: 1694.09998 | F126: 0 | G126: 1694.09998 | H126: -0.005868200292 | I126: -0.005868200292 | J126: 0 | L126: 0.024 | M126: 30
A127: 1991-06-04 | B127: 1686 | C127: 1692.40002 | D127: 1681.69995 | E127: 1685.40002 | F127: 0 | G127: 1685.40002 | H127: -0.00513544661 | I127: -0.00513544661 | J127: 0 | L127: 0.025 | M127: 28
A128: 1991-06-05 | B128: 1694.09998 | C128: 1713.90002 | D128: 1694.09998 | E128: 1712.80005 | F128: 0 | G128: 1712.80005 | H128: 0.01625728591 | I128: 0.01625728591 | J128: 0 | L128: 0.026 | M128: 16
A129: 1991-06-06 | B129: 1721.40002 | C129: 1728.30005 | D129: 1703.40002 | E129: 1704.19995 | F129: 0 | G129: 1704.19995 | H129: -0.005021076453 | I129: -0.005021076453 | J129: 0 | L129: 0.027 | M129: 24
A130: 1991-06-07 | B130: 1712.69995 | C130: 1717.69995 | D130: 1705.80005 | E130: 1709.59998 | F130: 0 | G130: 1709.59998 | H130: 0.003168659875 | I130: 0.003168659875 | J130: 0 | L130: 0.028 | M130: 14
A131: 1991-06-10 | B131: 1701.30005 | C131: 1705 | D131: 1693.19995 | E131: 1704.90002 | F131: 0 | G131: 1704.90002 | H131: -0.00274915773 | I131: -0.00274915773 | J131: 0 | L131: 0.029 | M131: 15
A132: 1991-06-11 | B132: 1716 | C132: 1718.90002 | D132: 1709.30005 | E132: 1715.19995 | F132: 0 | G132: 1715.19995 | H132: 0.006041368924 | I132: =(G132-G131)/G131 -> 0.006041368924 | J132: =I132-H132 -> 0 | L132: 0.03 | M132: 11
A133: 1991-06-12 | B133: 1709.40002 | C133: 1709.40002 | D133: 1698.30005 | E133: 1700.80005 | F133: 0 | G133: 1700.80005 | H133: -0.008395464331 | I133: -0.008395464331 | J133: 0 | L133: 0.031 | M133: 14
A134: 1991-06-13 | B134: 1700 | C134: 1700 | D134: 1689.09998 | E134: 1692.59998 | F134: 0 | G134: 1692.59998 | H134: -0.004821301599 | I134: -0.004821301599 | J134: 0 | L134: 0.032 | M134: 17
A135: 1991-06-14 | B135: 1700.30005 | C135: 1707.5 | D135: 1698 | E135: 1699.80005 | F135: 0 | G135: 1699.80005 | H135: 0.004253852112 | I135: 0.004253852112 | J135: 0 | L135: 0.033 | M135: 12
A136: 1991-06-17 | B136: 1707.59998 | C136: 1718.19995 | D136: 1700.19995 | E136: 1701.09998 | F136: 0 | G136: 1701.09998 | H136: 0.0007647546545 | I136: 0.0007647546545 | J136: 0 | L136: 0.034 | M136: 9
A137: 1991-06-18 | B137: 1692.19995 | C137: 1696 | D137: 1688 | E137: 1695.40002 | F137: 0 | G137: 1695.40002 | H137: -0.003350749554 | I137: -0.003350749554 | J137: 0 | L137: 0.035 | M137: 8
A138: 1991-06-19 | B138: 1688.5 | C138: 1690.40002 | D138: 1682.5 | E138: 1683 | F138: 0 | G138: 1683 | H138: -0.007313919933 | I138: -0.007313919933 | J138: 0 | L138: 0.036 | M138: 5
A139: 1991-06-20 | B139: 1688.80005 | C139: 1694.19995 | D139: 1685.40002 | E139: 1687 | F139: 0 | G139: 1687 | H139: 0.002376708259 | I139: 0.002376708259 | J139: 0 | L139: 0.037 | M139: 3
A140: 1991-06-21 | B140: 1699 | C140: 1713.40002 | D140: 1695.40002 | E140: 1711.90002 | F140: 0 | G140: 1711.90002 | H140: 0.01475994072 | I140: 0.01475994072 | J140: 0 | L140: 0.038 | M140: 4
A141: 1991-06-24 | B141: 1703.40002 | C141: 1703.40002 | D141: 1689.90002 | E141: 1691.59998 | F141: 0 | G141: 1691.59998 | H141: -0.01185819251 | I141: -0.01185819251 | J141: 0 | L141: 0.039 | M141: 5
A142: 1991-06-25 | B142: 1687.80005 | C142: 1696.5 | D142: 1685 | E142: 1691.5 | F142: 0 | G142: 1691.5 | H142: -5.910380775e-05 | I142: -5.910380775e-05 | J142: 0 | L142: 0.04 | M142: 6
A143: 1991-06-26 | B143: 1695.59998 | C143: 1700.40002 | D143: 1668.80005 | E143: 1672.09998 | F143: 0 | G143: 1672.09998 | H143: -0.01146912208 | I143: -0.01146912208 | J143: 0 | L143: 0.041 | M143: 4
A144: 1991-06-27 | B144: 1664.69995 | C144: 1672.69995 | D144: 1659.40002 | E144: 1666.09998 | F144: 0 | G144: 1666.09998 | H144: -0.003588302178 | I144: -0.003588302178 | J144: 0 | L144: 0.042 | M144: 2
A145: 1991-06-28 | B145: 1638.59998 | C145: 1638.59998 | D145: 1614.09998 | E145: 1622.19995 | F145: 0 | G145: 1622.19995 | H145: -0.02634897697 | I145: -0.02634897697 | J145: 0 | L145: 0.043 | M145: 1
A146: 1991-07-01 | B146: 1624 | C146: 1630.19995 | D146: 1624 | E146: 1625.19995 | F146: 0 | G146: 1625.19995 | H146: 0.001849340459 | I146: 0.001849340459 | J146: 0 | L146: 0.044 | M146: 3
A147: 1991-07-02 | B147: 1618.19995 | C147: 1618.19995 | D147: 1602.40002 | E147: 1610.5 | F147: 0 | G147: 1610.5 | H147: -0.009045010123 | I147: -0.009045010123 | J147: 0 | L147: 0.045 | M147: 2
A148: 1991-07-03 | B148: 1605.80005 | C148: 1617.30005 | D148: 1603 | E148: 1614.40002 | F148: 0 | G148: 1614.40002 | H148: 0.002421620615 | I148: 0.002421620615 | J148: 0 | L148: 0.046 | M148: 3
A149: 1991-07-04 | B149: 1618.19995 | C149: 1623.69995 | D149: 1615.09998 | E149: 1616.09998 | F149: 0 | G149: 1616.09998 | H149: 0.001052998005 | I149: 0.001052998005 | J149: 0 | L149: 0.047 | M149: 1
A150: 1991-07-05 | B150: 1615.90002 | C150: 1627.5 | D150: 1615.90002 | E150: 1618.90002 | F150: 0 | G150: 1618.90002 | H150: 0.001732590826 | I150: 0.001732590826 | J150: 0 | L150: 0.048 | M150: 2
A151: 1991-07-08 | B151: 1606.40002 | C151: 1610.69995 | D151: 1605 | E151: 1605 | F151: 0 | G151: 1605 | H151: -0.008586089214 | I151: -0.008586089214 | J151: 0 | L151: 0.049 | M151: 1
A152: 1991-07-09 | B152: 1619.59998 | C152: 1627.59998 | D152: 1619.59998 | E152: 1627.59998 | F152: 0 | G152: 1627.59998 | H152: 0.01408098442 | I152: 0.01408098442 | J152: 0 | L152: 0.05 | M152: 5
A153: 1991-07-10 | B153: 1636.90002 | C153: 1639.5 | D153: 1630.69995 | E153: 1634.69995 | F153: 0 | G153: 1634.69995 | H153: 0.004362232789 | I153: 0.004362232789 | J153: 0 | L153: 0.051 | M153: 0
A154: 1991-07-11 | B154: 1635.40002 | C154: 1639.90002 | D154: 1631.80005 | E154: 1637.90002 | F154: 0 | G154: 1637.90002 | H154: 0.001957588608 | I154: 0.001957588608 | J154: 0 | L154: 0.052 | M154: 1
A155: 1991-07-12 | B155: 1644.69995 | C155: 1650.09998 | D155: 1642.19995 | E155: 1644.80005 | F155: 0 | G155: 1644.80005 | H155: 0.004212729663 | I155: 0.004212729663 | J155: 0 | L155: 0.053 | M155: 5
A156: 1991-07-15 | B156: 1649.69995 | C156: 1650.80005 | D156: 1641.19995 | E156: 1646.59998 | F156: 0 | G156: 1646.59998 | H156: 0.001094315385 | I156: 0.001094315385 | J156: 0 | L156: 0.054 | M156: 2
A157: 1991-07-16 | B157: 1645.30005 | C157: 1647.69995 | D157: 1642.40002 | E157: 1643.90002 | F157: 0 | G157: 1643.90002 | H157: -0.001639718227 | I157: -0.001639718227 | J157: 0 | L157: 0.055 | M157: 2
A158: 1991-07-17 | B158: 1629.80005 | C158: 1631 | D158: 1622.30005 | E158: 1625.5 | F158: 0 | G158: 1625.5 | H158: -0.01119290697 | I158: -0.01119290697 | J158: 0 | L158: 0.056 | M158: 0
A159: 1991-07-18 | B159: 1620.80005 | C159: 1625.30005 | D159: 1618.30005 | E159: 1618.30005 | F159: 0 | G159: 1618.30005 | H159: -0.004429375577 | I159: -0.004429375577 | J159: 0 | L159: 0.057 | M159: 1
A160: 1991-07-19 | B160: 1623.69995 | C160: 1627.30005 | D160: 1623.69995 | E160: 1624 | F160: 0 | G160: 1624 | H160: 0.003522183664 | I160: 0.003522183664 | J160: 0 | L160: 0.058 | M160: 0
A161: 1991-07-22 | B161: 1621 | C161: 1623 | D161: 1614.19995 | E161: 1623 | F161: 0 | G161: 1623 | H161: -0.0006157635468 | I161: -0.0006157635468 | J161: 0 | L161: 0.059 | M161: 1
A162: 1991-07-23 | B162: 1624.80005 | C162: 1634.59998 | D162: 1624.80005 | E162: 1632.90002 | F162: 0 | G162: 1632.90002 | H162: 0.00609982748 | I162: 0.00609982748 | J162: 0 | L162: 0.06 | M162: 1
A163: 1991-07-24 | B163: 1626.19995 | C163: 1626.19995 | D163: 1618.40002 | E163: 1621.69995 | F163: 0 | G163: 1621.69995 | H163: -0.006859005366 | I163: -0.006859005366 | J163: 0 | L163: 0.061 | M163: 2
A164: 1991-07-25 | B164: 1615.69995 | C164: 1616 | D164: 1609.90002 | E164: 1615.40002 | F164: 0 | G164: 1615.40002 | H164: -0.003884769189 | I164: -0.003884769189 | J164: 0 | L164: 0.062 | M164: 1
A165: 1991-07-26 | B165: 1614.19995 | C165: 1614.19995 | D165: 1601 | E165: 1605.59998 | F165: 0 | G165: 1605.59998 | H165: -0.006066633576 | I165: -0.006066633576 | J165: 0 | L165: 0.063 | M165: 0
A166: 1991-07-29 | B166: 1595.80005 | C166: 1605.59998 | D166: 1591 | E166: 1605.59998 | F166: 0 | G166: 1605.59998 | H166: 0 | I166: 0 | J166: 0 | L166: 0.064 | M166: 0
A167: 1991-07-30 | B167: 1612.90002 | C167: 1617.30005 | D167: 1607.19995 | E167: 1614.90002 | F167: 0 | G167: 1614.90002 | H167: 0.00579225219 | I167: 0.00579225219 | J167: 0 | L167: 0.065 | M167: 0
A168: 1991-07-31 | B168: 1620.19995 | C168: 1625.69995 | D168: 1619.80005 | E168: 1622.30005 | F168: 0 | G168: 1622.30005 | H168: 0.004582345599 | I168: 0.004582345599 | J168: 0 | L168: 0.066 | M168: 0
A169: 1991-08-01 | B169: 1627.40002 | C169: 1630.19995 | D169: 1617.30005 | E169: 1622.59998 | F169: 0 | G169: 1622.59998 | H169: 0.0001848794864 | I169: 0.0001848794864 | J169: 0 | L169: 0.067 | M169: 1
A170: 1991-08-02 | B170: 1615.30005 | C170: 1616.5 | D170: 1605.90002 | E170: 1615.40002 | F170: 0 | G170: 1615.40002 | H170: -0.004437298218 | I170: -0.004437298218 | J170: 0 | L170: 0.068 | M170: 0
A171: 1991-08-05 | B171: 1621.5 | C171: 1623.69995 | D171: 1619.19995 | E171: 1622 | F171: 0 | G171: 1622 | H171: 0.004085662943 | I171: 0.004085662943 | J171: 0 | L171: 0.069 | M171: 1
A172: 1991-08-06 | B172: 1623.59998 | C172: 1625.19995 | D172: 1611.90002 | E172: 1611.90002 | F172: 0 | G172: 1611.90002 | H172: -0.006226868064 | I172: -0.006226868064 | J172: 0 | L172: 0.07 | M172: 1
A173: 1991-08-07 | B173: 1622.5 | C173: 1631.80005 | D173: 1622.40002 | E173: 1631.40002 | F173: 0 | G173: 1631.40002 | H173: 0.01209752451 | I173: 0.01209752451 | J173: 0 | L173: 0.071 | M173: 1
A174: 1991-08-08 | B174: 1626.90002 | C174: 1637.69995 | D174: 1625.09998 | E174: 1630.19995 | F174: 0 | G174: 1630.19995 | H174: -0.0007356074447 | I174: -0.0007356074447 | J174: 0 | L174: 0.072 | M174: 0
A175: 1991-08-09 | B175: 1630.69995 | C175: 1637 | D175: 1630.69995 | E175: 1632.19995 | F175: 0 | G175: 1632.19995 | H175: 0.00122684337 | I175: 0.00122684337 | J175: 0 | L175: 0.073 | M175: 1
A176: 1991-08-12 | B176: 1625.40002 | C176: 1631.5 | D176: 1624.40002 | E176: 1626.09998 | F176: 0 | G176: 1626.09998 | H176: -0.003737268832 | I176: -0.003737268832 | J176: 0 | L176: 0.074 | M176: 1
A177: 1991-08-13 | B177: 1636.90002 | C177: 1645.5 | D177: 1636.90002 | E177: 1644.69995 | F177: 0 | G177: 1644.69995 | H177: 0.01143839261 | I177: 0.01143839261 | J177: 0 | L177: 0.075 | M177: 0
A178: 1991-08-14 | B178: 1647.30005 | C178: 1650.19995 | D178: 1641.5 | E178: 1650.19995 | F178: 0 | G178: 1650.19995 | H178: 0.003344075009 | I178: 0.003344075009 | J178: 0 | L178: 0.076 | M178: 1
A179: 1991-08-15 | B179: 1654.59998 | C179: 1658.40002 | D179: 1651.69995 | E179: 1654.30005 | F179: 0 | G179: 1654.30005 | H179: 0.002484608002 | I179: 0.002484608002 | J179: 0 | L179: 0.077 | M179: 1
A180: 1991-08-16 | B180: 1647.59998 | C180: 1654.90002 | D180: 1646.5 | E180: 1653.30005 | F180: 0 | G180: 1653.30005 | H180: -0.0006044852625 | I180: -0.0006044852625 | J180: 0 | L180: 0.078 | M180: 0
A181: 1991-08-19 | B181: 1541.19995 | C181: 1541.19995 | D181: 1476.80005 | E181: 1497.90002 | F181: 0 | G181: 1497.90002 | H181: -0.09399384582 | I181: -0.09399384582 | J181: 0 | L181: 0.079 | M181: 1
A182: 1991-08-20 | B182: 1514.90002 | C182: 1530.30005 | D182: 1507.69995 | E182: 1526.90002 | F182: 0 | G182: 1526.90002 | H182: 0.01936043769 | I182: 0.01936043769 | J182: 0 | L182: 0.08 | M182: 0
A183: 1991-08-21 | B183: 1543.59998 | C183: 1572.30005 | D183: 1543.59998 | E183: 1570.80005 | F183: 0 | G183: 1570.80005 | H183: 0.02875108352 | I183: 0.02875108352 | J183: 0 | L183: 0.081 | M183: 0
A184: 1991-08-22 | B184: 1612.80005 | C184: 1631.19995 | D184: 1612.80005 | E184: 1630.80005 | F184: 0 | G184: 1630.80005 | H184: 0.0381970958 | I184: 0.0381970958 | J184: 0 | L184: 0.082 | M184: 0
A185: 1991-08-23 | B185: 1619.5 | C185: 1629.80005 | D185: 1617.59998 | E185: 1627.19995 | F185: 0 | G185: 1627.19995 | H185: -0.002207566771 | I185: -0.002207566771 | J185: 0 | L185: 0.083 | M185: 0
A186: 1991-08-26 | B186: 1644.90002 | C186: 1658.59998 | D186: 1644.80005 | E186: 1654.19995 | F186: 0 | G186: 1654.19995 | H186: 0.01659292086 | I186: 0.01659292086 | J186: 0 | L186: 0.084 | M186: 0
A187: 1991-08-27 | B187: 1663.80005 | C187: 1665.80005 | D187: 1645 | E187: 1647.09998 | F187: 0 | G187: 1647.09998 | H187: -0.004292086939 | I187: -0.004292086939 | J187: 0 | L187: 0.085 | M187: 0
A188: 1991-08-28 | B188: 1643.80005 | C188: 1652.59998 | D188: 1642.80005 | E188: 1647.5 | F188: 0 | G188: 1647.5 | H188: 0.0002428632171 | I188: 0.0002428632171 | J188: 0 | L188: 0.086 | M188: 0
A189: 1991-08-29 | B189: 1660.69995 | C189: 1663.59998 | D189: 1654.90002 | E189: 1655.5 | F189: 0 | G189: 1655.5 | H189: 0.004855842185 | I189: 0.004855842185 | J189: 0 | L189: 0.087 | M189: 0
A190: 1991-08-30 | B190: 1654.80005 | C190: 1655.69995 | D190: 1647.30005 | E190: 1650.5 | F190: 0 | G190: 1650.5 | H190: -0.003020235578 | I190: -0.003020235578 | J190: 0 | L190: 0.088 | M190: 0
A191: 1991-09-02 | B191: 1658 | C191: 1658.90002 | D191: 1650.5 | E191: 1650.5 | F191: 0 | G191: 1650.5 | H191: 0 | I191: 0 | J191: 0 | L191: 0.089 | M191: 0
A192: 1991-09-03 | B192: 1656.40002 | C192: 1658.30005 | D192: 1655.40002 | E192: 1655.59998 | F192: 0 | G192: 1655.59998 | H192: 0.003089960618 | I192: 0.003089960618 | J192: 0 | L192: 0.09 | M192: 0
A193: 1991-09-04 | B193: 1649.59998 | C193: 1650.5 | D193: 1645 | E193: 1647.90002 | F193: 0 | G193: 1647.90002 | H193: -0.004650857751 | I193: -0.004650857751 | J193: 0 | L193: 0.091 | M193: 0
A194: 1991-09-05 | B194: 1641.40002 | C194: 1647.19995 | D194: 1639.90002 | E194: 1647.19995 | F194: 0 | G194: 1647.19995 | H194: -0.0004248255304 | I194: -0.0004248255304 | J194: 0 | L194: 0.092 | M194: 0
A195: 1991-09-06 | B195: 1647.5 | C195: 1651.5 | D195: 1644.59998 | E195: 1646.19995 | F195: 0 | G195: 1646.19995 | H195: -0.0006070908392 | I195: -0.0006070908392 | J195: 0 | L195: 0.093 | M195: 0
A196: 1991-09-09 | B196: 1643.90002 | C196: 1649.69995 | D196: 1633.09998 | E196: 1633.09998 | F196: 0 | G196: 1633.09998 | H196: -0.007957702829 | I196: =(G196-G195)/G195 -> -0.007957702829 | J196: =I196-H196 -> 0 | L196: 0.094 | M196: 0
A197: 1991-09-10 | B197: 1622.40002 | C197: 1629.09998 | D197: 1621.80005 | E197: 1629.09998 | F197: 0 | G197: 1629.09998 | H197: -0.002449329526 | I197: -0.002449329526 | J197: 0 | L197: 0.095 | M197: 0
A198: 1991-09-11 | B198: 1630.59998 | C198: 1635.5 | D198: 1626.5 | E198: 1628.19995 | F198: 0 | G198: 1628.19995 | H198: -0.0005524706961 | I198: -0.0005524706961 | J198: 0 | L198: 0.096 | M198: 0
A199: 1991-09-12 | B199: 1631.59998 | C199: 1631.90002 | D199: 1625.90002 | E199: 1631.30005 | F199: 0 | G199: 1631.30005 | H199: 0.001904004481 | I199: 0.001904004481 | J199: 0 | L199: 0.097 | M199: 0
A200: 1991-09-13 | B200: 1635.80005 | C200: 1640.19995 | D200: 1635.80005 | E200: 1637.59998 | F200: 0 | G200: 1637.59998 | H200: 0.003861907563 | I200: 0.003861907563 | J200: 0 | L200: 0.098 | M200: 0
... 6001 more rows

Sheet return analysis
A1: underlying: | B1: DAX | C1: <- standard combo box | D1: ActiveX combo box -> | F1: ThyssenKrupp AG | Z1: DAX
A2: d-day window for mean and stddev: | B2: 20 | Z2: Adidas AG
A3: q-day returns, value of q (1 for daily): | B3: 1 | Z3: Allianz SE
Z4: BASF SE
A5: Histogramm inputs: | Z5: Bayer AG
A6: [ -x0 , x0 ], value of x0: | B6: 5 | Z6: Beiersdorf AG
A7: Delta_x | B7: 0.1 | Z7: Bayerische Motoren Werke Aktiengesellschaft
Z8: Commerzbank AG
Z9: Continental Aktiengesellschaft
Z10: Daimler AG
Z11: Deutsche Boerse AG
Z12: Deutsche Bank AG
Z13: Deutsche Post AG
A14: Date | B14: Adj Close | C14: ret | D14: d-day mean | E14: d-day stddev | F14: norm_ret | I14: x_forplot | J14: n_rel | K14: normal_dist | Z14: Deutsche Telekom AG
A15: 2000-01-03 | B15: 17.131 | I15: -5.05 | J15: 0.001250312578 | K15: 1.156411913e-07 | Z15: E.ON SE
A16: 2000-01-04 | B16: 17.431 | C16: 0.01751211254 | D16: 0.01751211254 | E16: 0 | F16: 0 | I16: -4.95 | J16: 0 | K16: 1.906600919e-07 | Z16: Fresenius Medical Care AG & Co. KGAA
A17: 2000-01-05 | B17: 18.36 | C17: 0.05329585222 | D17: 0.03540398238 | E17: 0.01265146249 | F17: 0 | I17: -4.85 | J17: 0 | K17: 3.112175606e-07 | Z17: Fresenius SE & Co KGaA
A18: 2000-01-06 | B18: 18.306 | C18: -0.002941176471 | D18: 0.02262226276 | E18: 0.01801488673 | F18: -3.030887447 | I18: -4.75 | J18: 0 | K18: 5.029507331e-07 | Z18: HeidelbergCement AG
A19: 2000-01-07 | B19: 18.333 | C19: 0.001474926254 | D19: 0.01733542864 | E19: 0.01750117116 | F19: -1.173881181 | I19: -4.65 | J19: 0 | K19: 8.047182525e-07 | Z19: Henkel AG & Co. KGaA
A20: 2000-01-10 | B20: 17.486 | C20: -0.04620084002 | D20: 0.004628174906 | E20: 0.02759982871 | F20: -3.630400965 | I20: -4.55 | J20: 0.0002500625156 | K20: 1.274733249e-06 | Z20: Infineon Technologies AG
A21: 2000-01-11 | B21: 16.94 | C21: -0.03122497998 | D21: -0.001347350909 | E21: 0.02799233658 | F21: -1.299035413 | I21: -4.45 | J21: 0 | K21: 1.999179688e-06 | Z21: Deutsche Lufthansa Aktiengesellschaft
A22: 2000-01-12 | B22: 16.612 | C22: -0.01936245573 | D22: -0.003920937311 | E22: 0.02656492299 | F22: -0.6435727422 | I22: -4.35 | J22: 0.0002500625156 | K22: 3.104140732e-06 | Z22: Linde Aktiengesellschaft
A23: 2000-01-13 | B23: 16.612 | C23: 0 | D23: -0.003430820148 | E23: 0.02487879735 | F23: 0.1475982939 | I23: -4.25 | J23: 0.0005001250313 | K23: 4.771863695e-06 | Z23: Lanxess AG
A24: 2000-01-14 | B24: 16.83 | C24: 0.01312304358 | D24: -0.001591501955 | E24: 0.0239632921 | F24: 0.6653803837 | I24: -4.15 | J24: 0.0005001250313 | K24: 7.262593092e-06 | Z24: Merck KGaA
A25: 2000-01-17 | B25: 16.661 | C25: -0.01004159239 | D25: -0.002436510999 | E25: 0.02286042776 | F25: -0.3526264424 | I25: -4.05 | J25: 0.001000250063 | K25: 1.094340444e-05 | Z25: Münchener Rückversicherungs-Gesellschaft Aktiengesellschaft
A26: 2000-01-18 | B26: 16.705 | C26: 0.002640897905 | D26: -0.001974928372 | E26: 0.02184094867 | F26: 0.2221047199 | I26: -3.95 | J26: 0.0005001250313 | K26: 1.632564102e-05 | Z26: RWE AG
A27: 2000-01-19 | B27: 16.393 | C27: -0.0186770428 | D27: -0.003366771241 | E27: 0.02137307856 | F27: -0.764715612 | I27: -3.85 | J27: 0.0002500625156 | K27: 2.411265823e-05 | Z27: SAP SE
A28: 2000-01-20 | B28: 15.568 | C28: -0.05032635881 | D28: -0.006979047208 | E28: 0.02379510497 | F28: -2.197137275 | I28: -3.75 | J28: 0.0007501875469 | K28: 3.525956854e-05 | Z28: K+S Aktiengesellschaft
A29: 2000-01-21 | B29: 15.847 | C29: 0.01792137718 | D29: -0.005200445465 | E29: 0.02374764642 | F29: 1.046451546 | I29: -3.65 | J29: 0.0005001250313 | K29: 5.104649787e-05 | Z29: Siemens Aktiengesellschaft
A30: 2000-01-24 | B30: 15.934 | C30: 0.005489998107 | D30: -0.004487749227 | E30: 0.02308659841 | F30: 0.4501685507 | I30: -3.55 | J30: 0.0005001250313 | K30: 7.316644691e-05 | Z30: ThyssenKrupp AG
A31: 2000-01-25 | B31: 15.628 | C31: -0.0192042174 | D31: -0.005407528488 | E31: 0.02261804315 | F31: -0.6374463621 | I31: -3.45 | J31: 0.0005001250313 | K31: 0.0001038281305 | Z31: Volkswagen AG
A32: 2000-01-26 | B32: 15.765 | C32: 0.008766316867 | D32: -0.004573772879 | E32: 0.02217997508 | F32: 0.6266609919 | I32: -3.35 | J32: 0.0007501875469 | K32: 0.0001458730817
A33: 2000-01-27 | B33: 15.12 | C33: -0.04091341579 | D33: -0.00659264193 | E33: 0.02302304103 | F33: -1.638398726 | I33: -3.25 | J33: 0.0007501875469 | K33: 0.0002029048075
A34: 2000-01-28 | B34: 14.989 | C34: -0.008664021164 | D34: -0.006701661889 | E34: 0.02241350437 | F34: -0.08996983638 | I34: -3.15 | J34: 0 | K34: 0.0002794258439
A35: 2000-01-31 | B35: 14.202 | C35: -0.05250517046 | D35: -0.008991837318 | E35: 0.02391479515 | F35: -2.043567477 | I35: -3.05 | J35: 0.001500375094 | K35: 0.0003809762131
A36: 2000-02-01 | B36: 14.257 | C36: 0.003872693987 | D36: -0.009673808246 | E36: 0.02410586678 | F36: 0.5379319046 | I36: -2.95 | J36: 0.0007501875469 | K36: 0.0005142640967
A37: 2000-02-02 | B37: 15.136 | C37: 0.06165392439 | D37: -0.009255904637 | E37: 0.0285744126 | F37: 2.958936647 | I37: -2.85 | J37: 0.002000500125 | K37: 0.0006872766749
A38: 2000-02-03 | B38: 15.366 | C38: 0.01519556025 | D38: -0.008349067801 | E38: 0.02848754219 | F38: 0.8557118997 | I38: -2.75 | J38: 0.0002500625156 | K38: 0.0009093562579
A39: 2000-02-04 | B39: 15.3 | C39: -0.004295197189 | D39: -0.008637573973 | E39: 0.0282825935 | F39: 0.1423032772 | I39: -2.65 | J39: 0.003500875219 | K39: 0.001191224371
A40: 2000-02-07 | B40: 14.967 | C40: -0.02176470588 | D40: -0.007415767266 | E40: 0.02609636486 | F40: -0.4641417312 | I40: -2.55 | J40: 0.002000500125 | K40: 0.001544934727
A41: 2000-02-08 | B41: 14.836 | C41: -0.008752589029 | D41: -0.006292147719 | E41: 0.02523270322 | F41: -0.0512263593 | I41: -2.45 | J41: 0.003500875219 | K41: 0.001983735456
A42: 2000-02-09 | B42: 14.617 | C42: -0.01476139121 | D42: -0.006062094493 | E42: 0.0250709229 | F42: -0.3356455081 | I42: -2.35 | J42: 0.003250812703 | K42: 0.002521822013
A43: 2000-02-10 | B43: 15.3 | C43: 0.04672641445 | D43: -0.00372577377 | E43: 0.02748151767 | F43: 2.105567041 | I43: -2.25 | J43: 0.003250812703 | K43: 0.003173965211
A44: 2000-02-11 | B44: 14.617 | C44: -0.04464052288 | D44: -0.006613952093 | E44: 0.0285781197 | F44: -1.488809664 | I44: -2.15 | J44: 0.005751437859 | K44: 0.003955004193
A45: 2000-02-14 | B45: 14.677 | C45: 0.004104809468 | D45: -0.005906632 | E45: 0.02861517972 | F45: 0.3750688175 | I45: -2.05 | J45: 0.005501375344 | K45: 0.0048792019
A46: 2000-02-15 | B46: 13.77 | C46: -0.06179737003 | D46: -0.009128545397 | E46: 0.03092674364 | F46: -1.953184938 | I46: -1.95 | J46: 0.006001500375 | K46: 0.005959470658
A47: 2000-02-16 | B47: 14.262 | C47: 0.03572984749 | D47: -0.006408200882 | E47: 0.0321484682 | F47: 1.450472556 | I47: -1.85 | J47: 0.006501625406 | K47: 0.007206487495
A48: 2000-02-17 | B48: 15.136 | C48: 0.06128172767 | D48: -0.0008277965584 | E48: 0.03365195665 | F48: 2.105541332 | I48: -1.75 | J48: 0.007251812953 | K48: 0.008627731956
A49: 2000-02-18 | B49: 14.59 | C49: -0.03607293869 | D49: -0.003527512352 | E49: 0.03403944023 | F49: -1.047343027 | I49: -1.65 | J49: 0.01100275069 | K49: 0.01022649254
A50: 2000-02-21 | B50: 14.366 | C50: -0.01535298149 | D50: -0.004569661332 | E50: 0.03405172123 | F50: -0.3474049239 | I50: -1.55 | J50: 0.01000250063 | K50: 0.01200090017
A51: 2000-02-22 | B51: 14.809 | C51: 0.03083669776 | D51: -0.002067615574 | E51: 0.03470067692 | F51: 1.039781774 | I51: -1.45 | J51: 0.01400350088 | K51: 0.01394305676
A52: 2000-02-23 | B52: 14.47 | C52: -0.02289148491 | D52: -0.003650505663 | E52: 0.03483891278 | F52: -0.6000998015 | I52: -1.35 | J52: 0.0127531883 | K52: 0.01603833287
A53: 2000-02-24 | B53: 13.847 | C53: -0.04305459572 | D53: -0.003757564659 | E53: 0.03510081053 | F53: -1.131036732 | I53: -1.25 | J53: 0.01900475119 | K53: 0.01826490869
A54: 2000-02-25 | B54: 13.661 | C54: -0.01343251246 | D54: -0.003995989224 | E54: 0.03516143848 | F54: -0.2756331735 | I54: -1.15 | J54: 0.01950487622 | K54: 0.02059362705
A55: 2000-02-28 | B55: 13.388 | C55: -0.01998389576 | D55: -0.002369925489 | E55: 0.03401718456 | F55: -0.4547000131 | I55: -1.05 | J55: 0.02375593898 | K55: 0.02298821426
A56: 2000-02-29 | B56: 13.858 | C56: 0.03510606513 | D56: -0.0008082569317 | E56: 0.03482076084 | F56: 1.101678199 | I56: -0.95 | J56: 0.02150537634 | K56: 0.02540590586
A57: 2000-03-01 | B57: 13.743 | C57: -0.008298455766 | D57: -0.004305875939 | E57: 0.031014065 | F57: -0.2151072709 | I57: -0.85 | J57: 0.02700675169 | K57: 0.02779848885
A58: 2000-03-02 | B58: 13.814 | C58: 0.005166266463 | D58: -0.004807340629 | E58: 0.03064520181 | F58: 0.3054144113 | I58: -0.75 | J58: 0.02650662666 | K58: 0.03011374347
A59: 2000-03-03 | B59: 13.246 | C59: -0.04111770667 | D59: -0.006648466103 | E59: 0.03158467998 | F59: -1.18486301 | I59: -0.65 | J59: 0.02950737684 | K59: 0.03229723624
A60: 2000-03-06 | B60: 12.951 | C60: -0.02227087423 | D60: -0.00667377452 | E60: 0.03161425127 | F60: -0.4946198009 | I60: -0.55 | J60: 0.02900725181 | K60: 0.03429438579
A61: 2000-03-07 | B61: 12.787 | C61: -0.01266311482 | D61: -0.00686930081 | E61: 0.03163600178 | F61: -0.1894506451 | I61: -0.45 | J61: 0.03700925231 | K61: 0.03605269655
A62: 2000-03-08 | B62: 12.787 | C62: 0 | D62: -0.006131231249 | E62: 0.0316058906 | F62: 0.2171355551 | I62: -0.35 | J62: 0.03975993998 | K62: 0.03752403501
A63: 2000-03-09 | B63: 12.956 | C63: 0.01321654806 | D63: -0.007806724569 | E63: 0.02989582003 | F63: 0.6121573839 | I63: -0.25 | J63: 0.03975993998 | K63: 0.03866681201
A64: 2000-03-10 | B64: 12.776 | C64: -0.01389317691 | D64: -0.00626935727 | E64: 0.02871176035 | F64: -0.2035887402 | I64: -0.15 | J64: 0.04451112778 | K64: 0.03944793343
A65: 2000-03-13 | B65: 12.639 | C65: -0.01072323106 | D65: -0.007010759297 | E65: 0.02863639043 | F65: -0.1551236752 | I65: -0.05 | J65: 0.04951237809 | K65: 0.03984439175
A66: 2000-03-14 | B66: 12.688 | C66: 0.003876888994 | D66: -0.003727046345 | E66: 0.02615785912 | F66: 0.3802032354 | I66: 0.05 | J66: 0.04401100275 | K66: 0.03984439175
A67: 2000-03-15 | B67: 13.115 | C67: 0.03365384615 | D67: -0.003830846412 | E67: 0.02580131676 | F67: 1.42905015 | I67: 0.15 | J67: 0.03775943986 | K67: 0.03944793343
A68: 2000-03-16 | B68: 14.699 | C68: 0.1207777354 | D68: -0.0008560460249 | E68: 0.0348219347 | F68: 4.829543506 | I68: 0.25 | J68: 0.04051012753 | K68: 0.03866681201
A69: 2000-03-17 | B69: 14.213 | C69: -0.03306347371 | D69: -0.0007055727757 | E69: 0.03481319556 | F69: -0.9249178129 | I69: 0.35 | J69: 0.03775943986 | K69: 0.03752403501
A70: 2000-03-20 | B70: 14.207 | C70: -0.0004221487371 | D70: 4.096886217e-05 | E70: 0.03472974675 | F70: 0.008141281892 | I70: 0.45 | J70: 0.03475868967 | K70: 0.03605269655
A71: 2000-03-21 | B71: 14.426 | C71: 0.0154149363 | D71: -0.0007301192108 | E71: 0.03413288383 | F71: 0.4426743318 | I71: 0.55 | J71: 0.03600900225 | K71: 0.03429438579
A72: 2000-03-22 | B72: 14.186 | C72: -0.01663662831 | D72: -0.0004173763809 | E72: 0.03405431251 | F72: -0.4660171458 | I72: 0.65 | J72: 0.02775693923 | K72: 0.03229723624
A73: 2000-03-23 | B73: 13.934 | C73: -0.01776399267 | D73: 0.0008471537714 | E73: 0.03316326442 | F73: -0.509380898 | I73: 0.75 | J73: 0.02475618905 | K73: 0.03011374347
A74: 2000-03-24 | B74: 14.142 | C74: 0.01492751543 | D74: 0.002265155166 | E74: 0.03321696068 | F74: 0.4245770706 | I74: 0.85 | J74: 0.02275568892 | K74: 0.02779848885
A75: 2000-03-27 | B75: 13.978 | C75: -0.01159666242 | D75: 0.002684516833 | E75: 0.03313685989 | F75: -0.4173114369 | I75: 0.95 | J75: 0.01950487622 | K75: 0.02540590586
A76: 2000-03-28 | B76: 14.481 | C76: 0.03598511947 | D76: 0.00272846955 | E76: 0.03299787561 | F76: 1.004941408 | I76: 1.05 | J76: 0.0207551888 | K76: 0.02298821426
A77: 2000-03-29 | B77: 14.677 | C77: 0.01353497687 | D77: 0.003820141181 | E77: 0.03305724825 | F77: 0.327491001 | I77: 1.15 | J77: 0.01450362591 | K77: 0.02059362705
A78: 2000-03-30 | B78: 14.453 | C78: -0.01526197452 | D78: 0.002798729132 | E78: 0.03322826313 | F78: -0.5772445291 | I78: 1.25 | J78: 0.01850462616 | K78: 0.01826490869
A79: 2000-03-31 | B79: 14.071 | C79: -0.02643049886 | D79: 0.003533089523 | E79: 0.03300911806 | F79: -0.8796495884 | I79: 1.35 | J79: 0.01475368842 | K79: 0.01603833287
A80: 2000-04-03 | B80: 13.907 | C80: -0.01165517732 | D80: 0.004063874369 | E80: 0.03301201037 | F80: -0.4601233759 | I80: 1.45 | J80: 0.01400350088 | K80: 0.01394305676
A81: 2000-04-04 | B81: 14.399 | C81: 0.03537786726 | D81: 0.006465923473 | E81: 0.03361412559 | F81: 0.9485636453 | I81: 1.55 | J81: 0.01100275069 | K81: 0.01200090017
A82: 2000-04-05 | B82: 13.606 | C82: -0.05507326898 | D82: 0.003712260024 | E82: 0.0360668374 | F82: -1.830753928 | I82: 1.65 | J82: 0.008252063016 | K82: 0.01022649254
A83: 2000-04-06 | B83: 13.169 | C83: -0.03211818315 | D83: 0.001445523463 | E83: 0.03653825366 | F83: -0.9934456625 | I83: 1.75 | J83: 0.008502125531 | K83: 0.008627731956
A84: 2000-04-07 | B84: 13.115 | C84: -0.004100539145 | D84: 0.001935155351 | E84: 0.03652340797 | F84: -0.1517878402 | I84: 1.85 | J84: 0.006001500375 | K84: 0.007206487495
A85: 2000-04-10 | B85: 13.388 | C85: 0.0208158597 | D85: 0.003512109889 | E85: 0.03671840404 | F85: 0.5169480451 | I85: 1.95 | J85: 0.006001500375 | K85: 0.005959470658
A86: 2000-04-11 | B86: 13.251 | C86: -0.01023304452 | D86: 0.002806613214 | E86: 0.03679472567 | F86: -0.374339647 | I86: 2.05 | J86: 0.004751187797 | K86: 0.0048792019
A87: 2000-04-12 | B87: 13.109 | C87: -0.01071617236 | D87: 0.0005881122877 | E87: 0.03591637609 | F87: -0.3675196738 | I87: 2.15 | J87: 0.004501125281 | K87: 0.003955004193
A88: 2000-04-13 | B88: 12.951 | C88: -0.01205278816 | D88: -0.006053413891 | E88: 0.0234956774 | F88: -0.351953672 | I88: 2.25 | J88: 0.00400100025 | K88: 0.003173965211
A89: 2000-04-14 | B89: 12.054 | C89: -0.06926106092 | D89: -0.007863293252 | E89: 0.02623317484 | F89: -2.690181941 | I89: 2.35 | J89: 0.002500625156 | K89: 0.002521822013
A90: 2000-04-17 | B90: 12.508 | C90: 0.03766384603 | D90: -0.005958993514 | E90: 0.02798778921 | F90: 1.735479581 | I90: 2.45 | J90: 0.003500875219 | K90: 0.001983735456
A91: 2000-04-18 | B91: 12.732 | C91: 0.01790853854 | D91: -0.005834313402 | E91: 0.02825720006 | F91: 0.8527837575 | I91: 2.55 | J91: 0.001750437609 | K91: 0.001544934727
A92: 2000-04-19 | B92: 12.677 | C92: -0.004319824065 | D92: -0.00521847319 | E92: 0.02802421323 | F92: 0.05359658188 | I92: 2.65 | J92: 0.002750687672 | K92: 0.001191224371
A93: 2000-04-20 | B93: 12.514 | C93: -0.01285793169 | D93: -0.004973170141 | E93: 0.02776952037 | F93: -0.2726020686 | I93: 2.75 | J93: 0.001750437609 | K93: 0.0009093562579
A94: 2000-04-21 | B94: 12.514 | C94: 0 | D94: -0.005719545912 | E94: 0.0276543876 | F94: 0.1790873618 | I94: 2.85 | J94: 0.001750437609 | K94: 0.0006872766749
A95: 2000-04-24 | B95: 12.514 | C95: 0 | D95: -0.005139712791 | E95: 0.02749342434 | F95: 0.2068223674 | I95: 2.95 | J95: 0.001250312578 | K95: 0.0005142640967
A96: 2000-04-25 | B96: 12.732 | C96: 0.01742048905 | D96: -0.006067944312 | E96: 0.02698468952 | F96: 0.820567186 | I96: 3.05 | J96: 0.002250562641 | K96: 0.0003809762131
A97: 2000-04-26 | B97: 12.732 | C97: 0 | D97: -0.006744693155 | E97: 0.02693935989 | F97: 0.2248661897 | I97: 3.15 | J97: 0.001250312578 | K97: 0.0002794258439
A98: 2000-04-27 | B98: 12.432 | C98: -0.02356267672 | D98: -0.007159728265 | E98: 0.02688628826 | F98: -0.6242903927 | I98: 3.25 | J98: 0.0007501875469 | K98: 0.0002029048075
A99: 2000-04-28 | B99: 12.623 | C99: 0.01536357786 | D99: -0.005070024429 | E99: 0.02643592764 | F99: 0.8377246391 | I99: 3.35 | J99: 0.0007501875469 | K99: 0.0001458730817
A100: 2000-05-01 | B100: 12.623 | C100: 0 | D100: -0.004487265564 | E100: 0.02622042369 | F100: 0.1917853801 | I100: 3.45 | J100: 0.0005001250313 | K100: 0.0001038281305
A101: 2000-05-02 | B101: 12.841 | C101: 0.01727006258 | D101: -0.005392655797 | E101: 0.02591130128 | F101: 0.8297855292 | I101: 3.55 | J101: 0.0005001250313 | K101: 7.316644691e-05
A102: 2000-05-03 | B102: 12.847 | C102: 0.0004672533292 | D102: -0.002615629682 | E102: 0.022340184 | F102: 0.2261526375 | I102: 3.65 | J102: 0.0002500625156 | K102: 5.104649787e-05
A103: 2000-05-04 | B103: 12.891 | C103: 0.003424924107 | D103: -0.0008384743191 | E103: 0.02106339312 | F103: 0.2703896166 | I103: 3.75 | J103: 0.0005001250313 | K103: 3.525956854e-05
A104: 2000-05-05 | B104: 13.115 | C104: 0.0173764642 | D104: 0.0002353758481 | E104: 0.0213667006 | F104: 0.8647675338 | I104: 3.85 | J104: 0 | K104: 2.411265823e-05
A105: 2000-05-08 | B105: 13.415 | C105: 0.0228745711 | D105: 0.0003383114181 | E105: 0.02160923545 | F105: 1.059555037 | I105: 3.95 | J105: 0 | K105: 1.632564102e-05
A106: 2000-05-09 | B106: 13.415 | C106: 0 | D106: 0.000849963644 | E106: 0.02141246238 | F106: -0.01565587171 | I106: 4.05 | J106: 0.0002500625156 | K106: 1.094340444e-05
A107: 2000-05-10 | B107: 13.661 | C107: 0.0183376817 | D107: 0.002302656347 | E107: 0.02156293821 | F107: 0.8167074738 | I107: 4.15 | J107: 0.0007501875469 | K107: 7.262593092e-06
A108: 2000-05-11 | B108: 13.661 | C108: 0 | D108: 0.002905295755 | E108: 0.02153097111 | F108: -0.1067876893 | I108: 4.25 | J108: 0.0005001250313 | K108: 4.771863695e-06
A109: 2000-05-12 | B109: 13.688 | C109: 0.001976429251 | D109: 0.006467170264 | E109: 0.01661646054 | F109: -0.04314094795 | I109: 4.35 | J109: 0.0002500625156 | K109: 3.104140732e-06
A110: 2000-05-15 | B110: 13.814 | C110: 0.009205143191 | D110: 0.005044235122 | E110: 0.01348424311 | F110: 0.1647747377 | I110: 4.45 | J110: 0 | K110: 1.999179688e-06
A111: 2000-05-16 | B111: 13.814 | C111: 0 | D111: 0.004148808195 | E111: 0.01242977441 | F111: -0.3740836679 | I111: 4.55 | J111: 0 | K111: 1.274733249e-06
A112: 2000-05-17 | B112: 13.442 | C112: -0.02692920226 | D112: 0.003018339286 | E112: 0.01411742454 | F112: -2.50028757 | I112: 4.65 | J112: 0 | K112: 8.047182525e-07
A113: 2000-05-18 | B113: 13.328 | C113: -0.008480880821 | D113: 0.003237191829 | E113: 0.01424987241 | F113: -0.8145409297 | I113: 4.75 | J113: 0 | K113: 5.029507331e-07
A114: 2000-05-19 | B114: 12.787 | C114: -0.04059123649 | D114: 0.001207630004 | E114: 0.01699354187 | F114: -3.07570672 | I114: 4.85 | J114: 0.0002500625156 | K114: 3.112175606e-07
A115: 2000-05-22 | B115: 12.907 | C115: 0.009384531164 | D115: 0.001676856562 | E115: 0.01704200826 | F115: 0.4811769801 | I115: 4.95 | J115: 0 | K115: 1.906600919e-07
A116: 2000-05-23 | B116: 12.541 | C116: -0.02835670566 | D116: -0.0006120031733 | E116: 0.01735895003 | F116: -1.762325295 | I116: 5.05 | J116: 0.001500375094 | K116: 1.156411913e-07
A117: 2000-05-24 | B117: 10.519 | C117: -0.1612311618 | D117: -0.008673561263 | E117: 0.03824591058 | F117: -9.252815311
A118: 2000-05-25 | B118: 10.617 | C118: 0.00931647495 | D118: -0.007029603679 | E118: 0.03824469315 | F118: 0.4703780337
A119: 2000-05-26 | B119: 10 | C119: -0.05811434492 | D119: -0.01070349982 | E119: 0.03942295474 | F119: -1.335734112
A120: 2000-05-29 | B120: 10.546 | C120: 0.0546 | D120: -0.007973499818 | E120: 0.04182026694 | F120: 1.656484154
A121: 2000-05-30 | B121: 10.218 | C121: -0.03110183956 | D121: -0.01039209493 | E121: 0.04176959975 | F121: -0.5530414183
A122: 2000-05-31 | B122: 10 | C122: -0.0213348992 | D122: -0.01148220255 | E122: 0.0418219803 | F122: -0.2619801085
A123: 2000-06-01 | B123: 10.082 | C123: 0.0082 | D123: -0.01124344876 | E123: 0.04203655068 | F123: 0.4706186176
A124: 2000-06-02 | B124: 9.836 | C124: -0.02439992065 | D124: -0.013332268 | E124: 0.04193453701 | F124: -0.3129769613
A125: 2000-06-05 | B125: 10.055 | C125: 0.02226514843 | D125: -0.01336273913 | E125: 0.04238606567 | F125: 0.8488806357
A126: 2000-06-06 | B126: 9.732 | C126: -0.03212332173 | D126: -0.01496890522 | E126: 0.04255885503 | F126: -0.4426120307
A127: 2000-06-07 | B127: 9.891 | C127: 0.0163378545 | D127: -0.01506889658 | E127: 0.04298510486 | F127: 0.7356109487
A128: 2000-06-08 | B128: 9.787 | C128: -0.01051460924 | D128: -0.01559462704 | E128: 0.04299520359 | F128: 0.1059503601
A129: 2000-06-09 | B129: 10.191 | C129: 0.04127924798 | D129: -0.01362948611 | E129: 0.04470265818 | F129: 1.322795807
A130: 2000-06-12 | B130: 10.164 | C130: -0.002649396526 | D130: -0.01422221309 | E130: 0.04476782879 | F130: 0.2456249813
A131: 2000-06-13 | B131: 10.355 | C131: 0.01879181425 | D131: -0.01328262238 | E131: 0.04532919962 | F131: 0.7374498213
A132: 2000-06-14 | B132: 10.328 | C132: -0.002607436021 | D132: -0.01206653407 | E132: 0.04488170343 | F132: 0.2355035264
A133: 2000-06-15 | B133: 10.279 | C133: -0.004744384198 | D133: -0.01187970924 | E133: 0.04483355088 | F133: 0.1631433147
A134: 2000-06-16 | B134: 9.399 | C134: -0.0856114408 | D134: -0.01413071945 | E134: 0.04667081206 | F134: -1.644565958
A135: 2000-06-19 | B135: 9.836 | C135: 0.04649430791 | D135: -0.01227523061 | E135: 0.048455002 | F135: 1.29899234
A136: 2000-06-20 | B136: 9.481 | C136: -0.03609190728 | D136: -0.01266199069 | E136: 0.04834094375 | F136: -0.4915215288
A137: 2000-06-21 | B137: 9.388 | C137: -0.009809091868 | D137: -0.005090887199 | E137: 0.0342676063 | F137: 0.05901620046
A138: 2000-06-22 | B138: 9.426 | C138: 0.004047720494 | D138: -0.005354324922 | E138: 0.03413691624 | F138: 0.2666835732
A139: 2000-06-23 | B139: 9.235 | C139: -0.02026310206 | D139: -0.003461762778 | E139: 0.0326657908 | F139: -0.436734737
A140: 2000-06-26 | B140: 9.18 | C140: -0.005955603682 | D140: -0.006489542963 | E140: 0.02951772348 | F140: -0.07634411541
A141: 2000-06-27 | B141: 9.208 | C141: 0.003050108932 | D141: -0.004781945538 | E141: 0.02920476634 | F141: 0.3231838628
A142: 2000-06-28 | B142: 8.989 | C142: -0.02378366638 | D142: -0.004904383897 | E142: 0.02942594027 | F142: -0.6506376602
A143: 2000-06-29 | B143: 8.88 | C143: -0.01212593169 | D143: -0.005920680482 | E143: 0.02913604011 | F143: -0.2454143429
A144: 2000-06-30 | B144: 9.355 | C144: 0.05349099099 | D144: -0.0020261349 | E144: 0.0315735926 | F144: 2.039112771
A145: 2000-07-03 | B145: 9.546 | C145: 0.02041688936 | D145: -0.002118547853 | E145: 0.0309647659 | F145: 0.7108162998
A146: 2000-07-04 | B146: 9.552 | C146: 0.0006285355123 | D146: -0.0004809549909 | E146: 0.03072726112 | F146: 0.08871642608
A147: 2000-07-05 | B147: 9.53 | C147: -0.00230318258 | D147: -0.001413006845 | E147: 0.02991462846 | F147: -0.05930328713
A148: 2000-07-06 | B148: 9.377 | C148: -0.01605456453 | D148: -0.00169000461 | E148: 0.03006512424 | F148: -0.4894447447
A149: 2000-07-07 | B149: 9.377 | C149: 0 | D149: -0.003753967009 | E149: 0.02745665411 | F149: 0.05621146269
A150: 2000-07-10 | B150: 9.3 | C150: -0.008211581529 | D150: -0.004032076259 | E150: 0.02735040702 | F150: -0.1623509734
A151: 2000-07-11 | B151: 9.071 | C151: -0.02462365591 | D151: -0.006202849767 | E151: 0.02671277962 | F151: -0.7528801907
A152: 2000-07-12 | B152: 9.038 | C152: -0.003637967148 | D152: -0.006254376323 | E152: 0.02663533645 | F152: 0.09601706207
A153: 2000-07-13 | B153: 9.038 | C153: 0 | D153: -0.006017157113 | E153: 0.02662152914 | F153: 0.2348149923
A154: 2000-07-14 | B154: 8.907 | C154: -0.01449435716 | D154: -0.002461302931 | E154: 0.0214585847 | F154: -0.3184340013
A155: 2000-07-17 | B155: 9.12 | C155: 0.02391377568 | D155: -0.003590329542 | E155: 0.01804443722 | F155: 1.229115479
A156: 2000-07-18 | B156: 9.371 | C156: 0.02752192982 | D156: -0.0004096376871 | E156: 0.01836197942 | F156: 1.724202256
A157: 2000-07-19 | B157: 9.371 | C157: 0 | D157: 8.081690634e-05 | E157: 0.0183316541 | F157: 0.02230901569
A158: 2000-07-20 | B158: 9.388 | C158: 0.001814107352 | D158: -3.086375075e-05 | E158: 0.01821537304 | F158: 0.09455177567
A159: 2000-07-21 | B159: 9.371 | C159: -0.001810822326 | D159: 0.0008917502358 | E159: 0.01783397768 | F159: -0.09771738254
A160: 2000-07-24 | B160: 9.388 | C160: 0.001814107352 | D160: 0.001280235788 | E160: 0.01783397758 | F160: 0.05171909112
A161: 2000-07-25 | B161: 9.891 | C161: 0.05357903707 | D161: 0.003806682194 | E161: 0.02094870086 | F161: 2.932537122
A162: 2000-07-26 | B162: 10.06 | C162: 0.01708624002 | D162: 0.005850177514 | E162: 0.02067218318 | F162: 0.6339084179
A163: 2000-07-27 | B163: 9.841 | C163: -0.0217693837 | D163: 0.005368004914 | E163: 0.02149966961 | F163: -1.336073745
A164: 2000-07-28 | B164: 9.983 | C164: 0.0144294279 | D164: 0.003414926759 | E164: 0.01772552374 | F164: 0.421468011
A165: 2000-07-31 | B165: 10.06 | C165: 0.007713112291 | D165: 0.002779737906 | E165: 0.01702993848 | F165: 0.2424856717
A166: 2000-08-01 | B166: 10.027 | C166: -0.003280318091 | D166: 0.002584295226 | E166: 0.01707855206 | F166: -0.3558472044
A167: 2000-08-02 | B167: 10.038 | C167: 0.001097037997 | D167: 0.002754306254 | E167: 0.01708141232 | F167: -0.08708333252
A168: 2000-08-03 | B168: 10.164 | C168: 0.01255230126 | D168: 0.004184649544 | E168: 0.01688071377 | F168: 0.5736056725
A169: 2000-08-04 | B169: 9.852 | C169: -0.03069657615 | D169: 0.002649820736 | E169: 0.01843510221 | F169: -2.066335948
A170: 2000-08-07 | B170: 10.109 | C170: 0.02608607389 | D170: 0.004364703507 | E170: 0.01904128348 | F170: 1.271284146
A171: 2000-08-08 | B171: 10 | C171: -0.01078247107 | D171: 0.00505676275 | E171: 0.01892480484 | F171: -0.7954912591
A172: 2000-08-09 | B172: 10.082 | C172: 0.0082 | D172: 0.005648661107 | E172: 0.01892436062 | F172: 0.1660908674
A173: 2000-08-10 | B173: 10.153 | C173: 0.007042253521 | D173: 0.006000773783 | E173: 0.01887790639 | F173: 0.073640132
A174: 2000-08-11 | B174: 10.164 | C174: 0.001083423619 | D174: 0.006779662822 | E174: 0.01872853404 | F174: -0.2604817538
A175: 2000-08-14 | B175: 10.109 | C175: -0.005411255411 | D175: 0.005313411268 | E175: 0.01785175399 | F175: -0.6509275211
A176: 2000-08-15 | B176: 10.027 | C176: -0.008111583737 | D176: 0.003531735589 | E176: 0.01692497686 | F176: -0.7520266641
A177: 2000-08-16 | B177: 9.563 | C177: -0.04627505735 | D177: 0.001217982722 | E177: 0.01998083977 | F177: -2.942798288
A178: 2000-08-17 | B178: 9.393 | C178: -0.01777684827 | D178: 0.0002384349411 | E178: 0.0203786968 | F178: -0.9506522854
A179: 2000-08-18 | B179: 9.18 | C179: -0.02267646119 | D179: -0.0008048470023 | E179: 0.02094861484 | F179: -1.12445346
A180: 2000-08-21 | B180: 9.175 | C180: -0.0005446623094 | D180: -0.0009227854854 | E180: 0.02094844533 | F180: 0.01242013827
A181: 2000-08-22 | B181: 9.268 | C181: 0.01013623978 | D181: -0.00309492535 | E181: 0.01799239236 | F181: 0.5279162769
A182: 2000-08-23 | B182: 9.18 | C182: -0.009495036685 | D182: -0.004423989185 | E182: 0.01785215684 | F182: -0.3557120814
A183: 2000-08-24 | B183: 9.311 | C183: 0.01427015251 | D183: -0.002622012375 | E183: 0.0172088603 | F183: 1.04716432
A184: 2000-08-25 | B184: 9.366 | C184: 0.00590699173 | D184: -0.003048134183 | E184: 0.01714901236 | F184: 0.4956170228
A185: 2000-08-28 | B185: 9.399 | C185: 0.003523382447 | D185: -0.003257620675 | E185: 0.01718053596 | F185: 0.3832008802
A186: 2000-08-29 | B186: 9.355 | C186: -0.00468134908 | D186: -0.003327672225 | E186: 0.01713308943 | F186: -0.08286868392
A187: 2000-08-30 | B187: 9.273 | C187: -0.008765366114 | D187: -0.00382079243 | E187: 0.01716472741 | F187: -0.3173796478
A188: 2000-08-31 | B188: 9.333 | C188: 0.006470397929 | D188: -0.004124887597 | E188: 0.01722614266 | F188: 0.5995545466
A189: 2000-09-01 | B189: 9.317 | C189: -0.001714346941 | D189: -0.002675776136 | E189: 0.01553019958 | F189: 0.1399350222
A190: 2000-09-04 | B190: 9.322 | C190: 0.0005366534292 | D190: -0.003953247159 | E190: 0.01478526844 | F190: 0.2068505011
A191: 2000-09-05 | B191: 9.344 | C191: 0.002360008582 | D191: -0.003296123177 | E191: 0.01441040207 | F191: 0.4269963556
A192: 2000-09-06 | B192: 9.29 | C192: -0.005779109589 | D192: -0.003995078657 | E192: 0.0144046298 | F192: -0.1723051446
A193: 2000-09-07 | B193: 9.453 | C193: 0.01754574812 | D193: -0.003469903927 | E193: 0.01514998374 | F193: 1.495409953
A194: 2000-09-08 | B194: 9.481 | C194: 0.002962022638 | D194: -0.003375973976 | E194: 0.01516272272 | F194: 0.424550064
A195: 2000-09-11 | B195: 9.492 | C195: 0.001160215167 | D195: -0.003047400447 | E195: 0.01500141453 | F195: 0.2991671897
A196: 2000-09-12 | B196: 9.453 | C196: -0.004108723135 | D196: -0.002847257417 | E196: 0.01477645622 | F196: -0.0707481742
A197: 2000-09-13 | B197: 9.453 | C197: 0 | D197: -0.0005335045495 | E197: 0.01027513732 | F197: 0.1926887864
A198: 2000-09-14 | B198: 9.257 | C198: -0.02073415847 | D198: -0.0006813700595 | E198: 0.01046215282 | F198: -1.965974106
A199: 2000-09-15 | B199: 8.836 | C199: -0.0454790969 | D199: -0.001821501845 | E199: 0.01344758516 | F199: -4.281884197
A200: 2000-09-18 | B200: 8.88 | C200: 0.004979628791 | D200: -0.00154528729 | E200: 0.01352623836 | F200: 0.5057510739
... 3814 more rows

Sheet component data
B1: 30 | E1: ^GDAXI | F1: Adj Close | H1: ADS.DE | I1: Adj Close | K1: ALV.DE | L1: Adj Close | N1: BAS.DE | O1: Adj Close | Q1: BAYN.DE | R1: Adj Close | T1: BEI.DE | U1: Adj Close | W1: BMW.DE | X1: Adj Close | Z1: CBK.DE | AA1: Adj Close | AC1: CON.DE | AD1: Adj Close | AF1: DAI.DE | AG1: Adj Close | AI1: DB1.DE | AJ1: Adj Close | AL1: DBK.DE | AM1: Adj Close | AO1: DPW.DE | AP1: Adj Close | AR1: DTE.DE | AS1: Adj Close | AU1: EOAN.DE | AV1: Adj Close | AX1: FME.DE | AY1: Adj Close | BA1: FRE.DE | BB1: Adj Close | BD1: HEI.DE | BE1: Adj Close | BG1: HEN3.DE | BH1: Adj Close | BJ1: IFX.DE | BK1: Adj Close | BM1: LHA.DE | BN1: Adj Close | BP1: LIN.DE | BQ1: Adj Close | BS1: LXS.DE | BT1: Adj Close | BV1: MRK.DE | BW1: Adj Close | BY1: MUV2.DE | BZ1: Adj Close | CB1: RWE.DE | CC1: Adj Close | CE1: SAP.DE | CF1: Adj Close | CH1: SDF.DE | CI1: Adj Close | CK1: SIE.DE | CL1: Adj Close | CN1: TKA.DE | CO1: Adj Close | CQ1: VOW3.DE | CR1: Adj Close
A2: Symbol | B2: Name | E2: 1991-01-02 | F2: 1366.099976 | H2: 2000-01-03 | I2: 9.5648 | K2: 2000-01-03 | L2: 195.42 | N2: 2000-01-03 | O2: 18.779 | Q2: 2000-01-03 | R2: 35.008 | T2: 2000-01-03 | U2: 11.8442 | W2: 2000-01-03 | X2: 16.11 | Z2: 2000-01-03 | AA2: 279.3781 | AC2: 2000-01-03 | AD2: 16.8901 | AF2: 2000-01-03 | AG2: 34.135 | AI2: 2001-02-05 | AJ2: 289.345 | AL2: 2000-01-03 | AM2: 36.4641 | AO2: 2000-11-20 | AP2: 12.122 | AR2: 2000-01-03 | AS2: 41.983 | AU2: 2000-01-03 | AV2: 3.5111 | AX2: 2000-01-03 | AY2: 24.423 | BA2: 2000-01-03 | BB2: 11.81359 | BD2: 2000-01-03 | BE2: 48.3267 | BG2: 2003-01-01 | BH2: 14.44 | BJ2: 2000-03-14 | BK2: 72.811 | BM2: 2000-01-03 | BN2: 19.532 | BP2: 2000-01-03 | BQ2: 33.482 | BS2: 2000-01-03 | BT2: 40.67 | BV2: 2000-01-03 | BW2: 12.15 | BY2: 2000-01-03 | BZ2: 141.86 | CB2: 2000-11-28 | CC2: 23.919 | CE2: 2000-01-03 | CF2: 29.6189 | CH2: 2000-01-03 | CI2: 2.9716 | CK2: 2000-01-03 | CL2: 75.3868 | CN2: 2000-01-03 | CO2: 17.131 | CQ2: 2007-12-28 | CR2: 83.89
A3: ^GDAXI | B3: DAX | C3: 1 | E3: 1991-01-03 | F3: 1366.699951 | H3: 2000-01-04 | I3: 9.338 | K3: 2000-01-04 | L3: 194.5 | N3: 2000-01-04 | O3: 18.062 | Q3: 2000-01-04 | R3: 34.079 | T3: 2000-01-04 | U3: 10.6765 | W3: 2000-01-04 | X3: 15.46 | Z3: 2000-01-04 | AA3: 271.5958 | AC3: 2000-01-04 | AD3: 16.8901 | AF3: 2000-01-04 | AG3: 33.697 | AI3: 2001-02-06 | AJ3: 301.369 | AL3: 2000-01-04 | AM3: 35.9919 | AO3: 2000-11-21 | AP3: 13.033 | AR3: 2000-01-04 | AS3: 40.473 | AU3: 2000-01-04 | AV3: 3.4348 | AX3: 2000-01-04 | AY3: 23.64666 | BA3: 2000-01-04 | BB3: 11.46444 | BD3: 2000-01-04 | BE3: 48.391 | BG3: 2003-01-02 | BH3: 14.598 | BJ3: 2000-03-15 | BK3: 67.404 | BM3: 2000-01-04 | BN3: 19.287 | BP3: 2000-01-04 | BQ3: 32.851 | BS3: 2000-01-04 | BT3: 39.59 | BV3: 2000-01-04 | BW3: 12.011 | BY3: 2000-01-04 | BZ3: 142.15 | CB3: 2000-11-29 | CC3: 24.483 | CE3: 2000-01-04 | CF3: 28.2128 | CH3: 2000-01-04 | CI3: 2.92 | CK3: 2000-01-04 | CL3: 72.3411 | CN3: 2000-01-04 | CO3: 17.431 | CQ3: 2008-01-02 | CR3: 83.18
A4: ADS.DE | B4: Adidas AG | C4: 2 | E4: 1991-01-04 | F4: 1396.099976 | H4: 2000-01-05 | I4: 9.338 | K4: 2000-01-05 | L4: 200.04 | N4: 2000-01-05 | O4: 17.647 | Q4: 2000-01-05 | R4: 33.219 | T4: 2000-01-05 | U4: 10.5097 | W4: 2000-01-05 | X4: 15.154 | Z4: 2000-01-05 | AA4: 272.3736 | AC4: 2000-01-05 | AD4: 17.29432 | AF4: 2000-01-05 | AG4: 33.079 | AI4: 2001-02-07 | AJ4: 291.563 | AL4: 2000-01-05 | AM4: 36.7942 | AO4: 2000-11-22 | AP4: 13.028 | AR4: 2000-01-05 | AS4: 39.416 | AU4: 2000-01-05 | AV4: 3.4857 | AX4: 2000-01-05 | AY4: 22.72506 | BA4: 2000-01-05 | BB4: 11.28578 | BD4: 2000-01-05 | BE4: 46.8467 | BG4: 2003-01-03 | BH4: 14.555 | BJ4: 2000-03-16 | BK4: 64.875 | BM4: 2000-01-05 | BN4: 19.321 | BP4: 2000-01-05 | BQ4: 33.482 | BS4: 2000-01-05 | BT4: 38.591 | BV4: 2000-01-05 | BW4: 11.892 | BY4: 2000-01-05 | BZ4: 152.58 | CB4: 2000-11-30 | CC4: 24.9261 | CE4: 2000-01-05 | CF4: 24.8081 | CH4: 2000-01-05 | CI4: 2.8478 | CK4: 2000-01-05 | CL4: 69.8932 | CN4: 2000-01-05 | CO4: 18.36 | CQ4: 2008-01-03 | CR4: 81
A5: ALV.DE | B5: Allianz SE | C5: 3 | E5: 1991-01-07 | F5: 1358.199951 | H5: 2000-01-06 | I5: 9.7382 | K5: 2000-01-06 | L5: 202.5 | N5: 2000-01-06 | O5: 18.13 | Q5: 2000-01-06 | R5: 34.195 | T5: 2000-01-06 | U5: 10.9434 | W5: 2000-01-06 | X5: 15.105 | Z5: 2000-01-06 | AA5: 275.487 | AC5: 2000-01-06 | AD5: 17.56384 | AF5: 2000-01-06 | AG5: 32.867 | AI5: 2001-02-08 | AJ5: 298.072 | AL5: 2000-01-06 | AM5: 37.8259 | AO5: 2000-11-23 | AP5: 13.045 | AR5: 2000-01-06 | AS5: 36.848 | AU5: 2000-01-06 | AV5: 3.5336 | AX5: 2000-01-06 | AY5: 22.5206 | BA5: 2000-01-06 | BB5: 11.5294 | BD5: 2000-01-06 | BE5: 46.3319 | BG5: 2003-01-06 | BH5: 14.619 | BJ5: 2000-03-17 | BK5: 65.982 | BM5: 2000-01-06 | BN5: 20.149 | BP5: 2000-01-06 | BQ5: 34.43 | BS5: 2000-01-06 | BT5: 39.725 | BV5: 2000-01-06 | BW5: 11.694 | BY5: 2000-01-06 | BZ5: 158.54 | CB5: 2000-12-01 | CC5: 26.0591 | CE5: 2000-01-06 | CF5: 25.6129 | CH5: 2000-01-06 | CI5: 2.8787 | CK5: 2000-01-06 | CL5: 69.0384 | CN5: 2000-01-06 | CO5: 18.306 | CQ5: 2008-01-04 | CR5: 78.94
A6: BAS.DE | B6: BASF SE | C6: 4 | E6: 1991-01-08 | F6: 1354 | H6: 2000-01-07 | I6: 9.6048 | K6: 2000-01-07 | L6: 208.13 | N6: 2000-01-07 | O6: 18.874 | Q6: 2000-01-07 | R6: 35.62 | T6: 2000-01-07 | U6: 11.1753 | W6: 2000-01-07 | X6: 15.077 | Z6: 2000-01-07 | AA6: 284.4356 | AC6: 2000-01-07 | AD6: 17.11465 | AF6: 2000-01-07 | AG6: 33.651 | AI6: 2001-02-09 | AJ6: 290.896 | AL6: 2000-01-07 | AM6: 38.9721 | AO6: 2000-11-24 | AP6: 12.745 | AR6: 2000-01-07 | AS6: 39.108 | AU6: 2000-01-07 | AV6: 3.5583 | AX6: 2000-01-07 | AY6: 22.79618 | BA6: 2000-01-07 | BB6: 11.48878 | BD6: 2000-01-07 | BE6: 46.2032 | BG6: 2003-01-07 | BH6: 14.648 | BJ6: 2000-03-20 | BK6: 68.206 | BM6: 2000-01-07 | BN6: 20.335 | BP6: 2000-01-07 | BQ6: 36.369 | BS6: 2000-01-07 | BT6: 41.38 | BV6: 2000-01-07 | BW6: 11.793 | BY6: 2000-01-07 | BZ6: 165.7 | CB6: 2000-12-04 | CC6: 25.0268 | CE6: 2000-01-07 | CF6: 31.055 | CH6: 2000-01-07 | CI6: 2.9509 | CK6: 2000-01-07 | CL6: 71.8157 | CN6: 2000-01-07 | CO6: 18.333 | CQ6: 2008-01-07 | CR6: 78.52
A7: BAYN.DE | B7: Bayer AG | C7: 5 | E7: 1991-01-09 | F7: 1375.199951 | H7: 2000-01-10 | I7: 9.7502 | K7: 2000-01-10 | L7: 209.33 | N7: 2000-01-10 | O7: 18.957 | Q7: 2000-01-10 | R7: 36.914 | T7: 2000-01-10 | U7: 11.3438 | W7: 2000-01-10 | X7: 15.678 | Z7: 2000-01-10 | AA7: 283.8132 | AC7: 2000-01-10 | AD7: 17.11465 | AF7: 2000-01-10 | AG7: 34.632 | AI7: 2001-02-12 | AJ7: 285.466 | AL7: 2000-01-10 | AM7: 37.968 | AO7: 2000-11-27 | AP7: 12.858 | AR7: 2000-01-10 | AS7: 40.026 | AU7: 2000-01-10 | AV7: 3.6418 | AX7: 2000-01-10 | AY7: 23.40957 | BA7: 2000-01-10 | BB7: 11.6187 | BD7: 2000-01-10 | BE7: 46.6536 | BG7: 2003-01-08 | BH7: 14.584 | BJ7: 2000-03-21 | BK7: 64.875 | BM7: 2000-01-10 | BN7: 19.794 | BP7: 2000-01-10 | BQ7: 35.662 | BS7: 2000-01-10 | BT7: 42.883 | BV7: 2000-01-10 | BW7: 12.011 | BY7: 2000-01-10 | BZ7: 166.89 | CB7: 2000-12-05 | CC7: 24.9161 | CE7: 2000-01-10 | CF7: 32.3235 | CH7: 2000-01-10 | CI7: 2.92 | CK7: 2000-01-10 | CL7: 76.0892 | CN7: 2000-01-10 | CO7: 17.486 | CQ7: 2008-01-08 | CR7: 79.4
A8: BEI.DE | B8: Beiersdorf AG | C8: 6 | E8: 1991-01-10 | F8: 1383.400024 | H8: 2000-01-11 | I8: 9.6595 | K8: 2000-01-11 | L8: 207.42 | N8: 2000-01-11 | O8: 18.115 | Q8: 2000-01-11 | R8: 35.822 | T8: 2000-01-11 | U8: 10.9517 | W8: 2000-01-11 | X8: 15.623 | Z8: 2000-01-11 | AA8: 282.1011 | AC8: 2000-01-11 | AD8: 16.6295 | AF8: 2000-01-11 | AG8: 34.153 | AI8: 2001-02-13 | AJ8: 287.018 | AL8: 2000-01-11 | AM8: 38.101 | AO8: 2000-11-28 | AP8: 12.58 | AR8: 2000-01-11 | AS8: 39.869 | AU8: 2000-01-11 | AV8: 3.7108 | AX8: 2000-01-11 | AY8: 23.11328 | BA8: 2000-01-11 | BB8: 11.69177 | BD8: 2000-01-11 | BE8: 47.7475 | BG8: 2003-01-09 | BH8: 14.684 | BJ8: 2000-03-22 | BK8: 62.66 | BM8: 2000-01-11 | BN8: 19.836 | BP8: 2000-01-11 | BQ8: 35.378 | BS8: 2000-01-11 | BT8: 41.614 | BV8: 2000-01-11 | BW8: 12.078 | BY8: 2000-01-11 | BZ8: 167.48 | CB8: 2000-12-06 | CC8: 23.5615 | CE8: 2000-01-11 | CF8: 33.3587 | CH8: 2000-01-11 | CI8: 2.8684 | CK8: 2000-01-11 | CL8: 76.6139 | CN8: 2000-01-11 | CO8: 16.94 | CQ8: 2008-01-09 | CR8: 78.77
A9: BMW.DE | B9: Bayerische Motoren Werke Aktiengesellschaft | C9: 7 | E9: 1991-01-11 | F9: 1382.300049 | H9: 2000-01-12 | I9: 9.6048 | K9: 2000-01-12 | L9: 208.35 | N9: 2000-01-12 | O9: 18.119 | Q9: 2000-01-12 | R9: 34.273 | T9: 2000-01-12 | U9: 10.8683 | W9: 2000-01-12 | X9: 15.4 | Z9: 2000-01-12 | AA9: 284.4356 | AC9: 2000-01-12 | AD9: 16.44091 | AF9: 2000-01-12 | AG9: 34.158 | AI9: 2001-02-14 | AJ9: 287.793 | AL9: 2000-01-12 | AM9: 36.9547 | AO9: 2000-11-29 | AP9: 12.518 | AR9: 2000-01-12 | AS9: 41.077 | AU9: 2000-01-12 | AV9: 3.7253 | AX9: 2000-01-12 | AY9: 23.32067 | BA9: 2000-01-12 | BB9: 11.57076 | BD9: 2000-01-12 | BE9: 48.2302 | BG9: 2003-01-10 | BH9: 14.476 | BJ9: 2000-03-23 | BK9: 57.391 | BM9: 2000-01-12 | BN9: 19.853 | BP9: 2000-01-12 | BQ9: 34.746 | BS9: 2000-01-12 | BT9: 39.815 | BV9: 2000-01-12 | BW9: 12.169 | BY9: 2000-01-12 | BZ9: 168.08 | CB9: 2000-12-07 | CC9: 23.768 | CE9: 2000-01-12 | CF9: 34.0468 | CH9: 2000-01-12 | CI9: 2.9303 | CK9: 2000-01-12 | CL9: 75.8019 | CN9: 2000-01-12 | CO9: 16.612 | CQ9: 2008-01-10 | CR9: 78.29
A10: CBK.DE | B10: Commerzbank AG | C10: 8 | E10: 1991-01-14 | F10: 1327.800049 | H10: 2000-01-13 | I10: 9.318 | K10: 2000-01-13 | L10: 211.73 | N10: 2000-01-13 | O10: 17.93 | Q10: 2000-01-13 | R10: 34.04 | T10: 2000-01-13 | U10: 11.0918 | W10: 2000-01-13 | X10: 14.968 | Z10: 2000-01-13 | AA10: 280.9339 | AC10: 2000-01-13 | AD10: 16.53065 | AF10: 2000-01-13 | AG10: 34.803 | AI10: 2001-02-16 | AJ10: 290.431 | AL10: 2000-01-13 | AM10: 38.3073 | AO10: 2000-11-30 | AP10: 12.62 | AR10: 2000-01-13 | AS10: 41.077 | AU10: 2000-01-13 | AV10: 3.6876 | AX10: 2000-01-13 | AY10: 23.11328 | BA10: 2000-01-13 | BB10: 11.61059 | BD10: 2000-01-13 | BE10: 47.9405 | BG10: 2003-01-13 | BH10: 14.34 | BJ10: 2000-03-24 | BK10: 59.153 | BM10: 2000-01-13 | BN10: 19.786 | BP10: 2000-01-13 | BQ10: 35.504 | BS10: 2000-01-13 | BT10: 39.545 | BV10: 2000-01-13 | BW10: 12.051 | BY10: 2000-01-13 | BZ10: 169.27 | CB10: 2000-12-08 | CC10: 24.2212 | CE10: 2000-01-13 | CF10: 34.4058 | CH10: 2000-01-13 | CI10: 2.92 | CK10: 2000-01-13 | CL10: 78.7443 | CN10: 2000-01-13 | CO10: 16.612 | CQ10: 2008-01-11 | CR10: 79.71
A11: CON.DE | B11: Continental Aktiengesellschaft | C11: 9 | E11: 1991-01-15 | F11: 1325.599976 | H11: 2000-01-14 | I11: 8.9845 | K11: 2000-01-14 | L11: 228.57 | N11: 2000-01-14 | O11: 17.93 | Q11: 2000-01-14 | R11: 34.854 | T11: 2000-01-14 | U11: 11.302 | W11: 2000-01-14 | X11: 14.859 | Z11: 2000-01-14 | AA11: 283.2684 | AC11: 2000-01-14 | AD11: 16.8901 | AF11: 2000-01-14 | AG11: 34.711 | AI11: 2001-02-19 | AJ11: 288.957 | AL11: 2000-01-14 | AM11: 38.5595 | AO11: 2000-12-01 | AP11: 12.75 | AR11: 2000-01-14 | AS11: 43.07 | AU11: 2000-01-14 | AV11: 3.5946 | AX11: 2000-01-14 | AY11: 23.05701 | BA11: 2000-01-14 | BB11: 11.61059 | BD11: 2000-01-14 | BE11: 47.9727 | BG11: 2003-01-14 | BH11: 14.269 | BJ11: 2000-03-27 | BK11: 57.446 | BM11: 2000-01-14 | BN11: 19.337 | BP11: 2000-01-14 | BQ11: 34.935 | BS11: 2000-01-14 | BT11: 40.49 | BV11: 2000-01-14 | BW11: 11.932 | BY11: 2000-01-14 | BZ11: 183.88 | CB11: 2000-12-11 | CC11: 23.0126 | CE11: 2000-01-14 | CF11: 35.1837 | CH11: 2000-01-14 | CI11: 2.8993 | CK11: 2000-01-14 | CL11: 82.8338 | CN11: 2000-01-14 | CO11: 16.83 | CQ11: 2008-01-14 | CR11: 80.78
A12: DAI.DE | B12: Daimler AG | C12: 10 | E12: 1991-01-16 | F12: 1322.699951 | H12: 2000-01-17 | I12: 9.0712 | K12: 2000-01-17 | L12: 227.37 | N12: 2000-01-17 | O12: 18.07 | Q12: 2000-01-17 | R12: 35.822 | T12: 2000-01-17 | U12: 11.6757 | W12: 2000-01-17 | X12: 14.902 | Z12: 2000-01-17 | AA12: 284.825 | AC12: 2000-01-17 | AD12: 16.77322 | AF12: 2000-01-17 | AG12: 33.577 | AI12: 2001-02-20 | AJ12: 291.672 | AL12: 2000-01-17 | AM12: 39.5819 | AO12: 2000-12-04 | AP12: 12.773 | AR12: 2000-01-17 | AS12: 44.254 | AU12: 2000-01-17 | AV12: 3.4639 | AX12: 2000-01-17 | AY12: 22.75769 | BA12: 2000-01-17 | BB12: 11.61059 | BD12: 2000-01-17 | BE12: 48.8415 | BG12: 2003-01-15 | BH12: 14.376 | BJ12: 2000-03-28 | BK12: 59.024 | BM12: 2000-01-17 | BN12: 18.856 | BP12: 2000-01-17 | BQ12: 34.083 | BS12: 2000-01-17 | BT12: 41.614 | BV12: 2000-01-17 | BW12: 12.209 | BY12: 2000-01-17 | BZ12: 186.56 | CB12: 2000-12-12 | CC12: 22.8112 | CE12: 2000-01-17 | CF12: 34.6452 | CH12: 2000-01-17 | CI12: 2.8581 | CK12: 2000-01-17 | CL12: 84.6713 | CN12: 2000-01-17 | CO12: 16.661 | CQ12: 2008-01-15 | CR12: 78.86
A13: DB1.DE | B13: Deutsche Boerse AG | C13: 11 | E13: 1991-01-17 | F13: 1422.699951 | H13: 2000-01-18 | I13: 9.0712 | K13: 2000-01-18 | L13: 221.11 | N13: 2000-01-18 | O13: 18.1 | Q13: 2000-01-18 | R13: 34.931 | T13: 2000-01-18 | U13: 11.3438 | W13: 2000-01-18 | X13: 14.749 | Z13: 2000-01-18 | AA13: 283.0353 | AC13: 2000-01-18 | AD13: 16.35097 | AF13: 2000-01-18 | AG13: 33.581 | AI13: 2001-02-21 | AJ13: 301.749 | AL13: 2000-01-18 | AM13: 38.995 | AO13: 2000-12-05 | AP13: 13.039 | AR13: 2000-01-18 | AS13: 42.225 | AU13: 2000-01-18 | AV13: 3.4573 | AX13: 2000-01-18 | AY13: 22.96508 | BA13: 2000-01-18 | BB13: 11.61059 | BD13: 2000-01-18 | BE13: 46.9689 | BG13: 2003-01-16 | BH13: 14.641 | BJ13: 2000-03-29 | BK13: 58.508 | BM13: 2000-01-18 | BN13: 19.067 | BP13: 2000-01-18 | BQ13: 32.851 | BS13: 2000-01-18 | BT13: 40.58 | BV13: 2000-01-18 | BW13: 12.07 | BY13: 2000-01-18 | BZ13: 178.15 | CB13: 2000-12-13 | CC13: 23.1183 | CE13: 2000-01-18 | CF13: 33.1493 | CH13: 2000-01-18 | CI13: 2.7858 | CK13: 2000-01-18 | CL13: 81.1859 | CN13: 2000-01-18 | CO13: 16.705 | CQ13: 2008-01-16 | CR13: 79.38
A14: DBK.DE | B14: Deutsche Bank AG | C14: 12 | E14: 1991-01-18 | F14: 1405.099976 | H14: 2000-01-19 | I14: 8.8845 | K14: 2000-01-19 | L14: 221.58 | N14: 2000-01-19 | O14: 18.813 | Q14: 2000-01-19 | R14: 34.931 | T14: 2000-01-19 | U14: 11.6607 | W14: 2000-01-19 | X14: 15.072 | Z14: 2000-01-19 | AA14: 286.7711 | AC14: 2000-01-19 | AD14: 15.40772 | AF14: 2000-01-19 | AG14: 33.535 | AI14: 2001-02-22 | AJ14: 300.593 | AL14: 2000-01-19 | AM14: 38.8804 | AO14: 2000-12-06 | AP14: 13.028 | AR14: 2000-01-19 | AS14: 41.832 | AU14: 2000-01-19 | AV14: 3.4857 | AX14: 2000-01-19 | AY14: 23.11034 | BA14: 2000-01-19 | BB14: 11.69097 | BD14: 2000-01-19 | BE14: 47.4902 | BG14: 2003-01-17 | BH14: 13.167 | BJ14: 2000-03-30 | BK14: 53.986 | BM14: 2000-01-19 | BN14: 18.475 | BP14: 2000-01-19 | BQ14: 32.219 | BS14: 2000-01-19 | BT14: 40.58 | BV14: 2000-01-19 | BW14: 12.09 | BY14: 2000-01-19 | BZ14: 178.81 | CB14: 2000-12-14 | CC14: 22.3832 | CE14: 2000-01-19 | CF14: 32.8501 | CH14: 2000-01-19 | CI14: 2.7343 | CK14: 2000-01-19 | CL14: 80.1176 | CN14: 2000-01-19 | CO14: 16.393 | CQ14: 2008-01-17 | CR14: 78.57
A15: DPW.DE | B15: Deutsche Post AG | C15: 13 | E15: 1991-01-21 | F15: 1390.199951 | H15: 2000-01-20 | I15: 8.7377 | K15: 2000-01-20 | L15: 222.14 | N15: 2000-01-20 | O15: 18.647 | Q15: 2000-01-20 | R15: 34.466 | T15: 2000-01-20 | U15: 11.0702 | W15: 2000-01-20 | X15: 14.312 | Z15: 2000-01-20 | AA15: 280.156 | AC15: 2000-01-20 | AD15: 15.45259 | AF15: 2000-01-20 | AG15: 32.729 | AI15: 2001-02-23 | AJ15: 293.224 | AL15: 2000-01-20 | AM15: 38.5824 | AO15: 2000-12-07 | AP15: 13.158 | AR15: 2000-01-20 | AS15: 41.832 | AU15: 2000-01-20 | AV15: 3.6512 | AX15: 2000-01-20 | AY15: 23.33552 | BA15: 2000-01-20 | BB15: 11.69097 | BD15: 2000-01-20 | BE15: 46.6536 | BG15: 2003-01-20 | BH15: 14.118 | BJ15: 2000-03-31 | BK15: 52.463 | BM15: 2000-01-20 | BN15: 17.959 | BP15: 2000-01-20 | BQ15: 31.871 | BS15: 2000-01-20 | BT15: 40.04 | BV15: 2000-01-20 | BW15: 12.447 | BY15: 2000-01-20 | BZ15: 171.42 | CB15: 2000-12-15 | CC15: 21.3207 | CE15: 2000-01-20 | CF15: 33.6818 | CH15: 2000-01-20 | CI15: 2.7239 | CK15: 2000-01-20 | CL15: 83.8902 | CN15: 2000-01-20 | CO15: 15.568 | CQ15: 2008-01-18 | CR15: 76.74
A16: DTE.DE | B16: Deutsche Telekom AG | C16: 14 | E16: 1991-01-22 | F16: 1375.099976 | H16: 2000-01-21 | I16: 8.7444 | K16: 2000-01-21 | L16: 216.35 | N16: 2000-01-21 | O16: 18.138 | Q16: 2000-01-21 | R16: 33.885 | T16: 2000-01-21 | U16: 10.91 | W16: 2000-01-21 | X16: 14.067 | Z16: 2000-01-21 | AA16: 280.2337 | AC16: 2000-01-21 | AD16: 15.81194 | AF16: 2000-01-21 | AG16: 32.77 | AI16: 2001-02-26 | AJ16: 298.266 | AL16: 2000-01-21 | AM16: 37.8304 | AO16: 2000-12-08 | AP16: 13.373 | AR16: 2000-01-21 | AS16: 40.382 | AU16: 2000-01-21 | AV16: 3.5583 | AX16: 2000-01-21 | AY16: 24.15044 | BA16: 2000-01-21 | BB16: 11.69177 | BD16: 2000-01-21 | BE16: 46.9753 | BG16: 2003-01-21 | BH16: 13.847 | BJ16: 2000-04-03 | BK16: 53.063 | BM16: 2000-01-21 | BN16: 18.179 | BP16: 2000-01-21 | BQ16: 32.251 | BS16: 2000-01-21 | BT16: 39.365 | BV16: 2000-01-21 | BW16: 12.288 | BY16: 2000-01-21 | BZ16: 169.57 | CB16: 2000-12-18 | CC16: 21.9803 | CE16: 2000-01-21 | CF16: 33.5083 | CH16: 2000-01-21 | CI16: 2.6311 | CK16: 2000-01-21 | CL16: 83.6275 | CN16: 2000-01-21 | CO16: 15.847 | CQ16: 2008-01-21 | CR16: 75.5
A17: EOAN.DE | B17: E.ON SE | C17: 15 | E17: 1991-01-23 | F17: 1358.800049 | H17: 2000-01-24 | I17: 8.8044 | K17: 2000-01-24 | L17: 213.58 | N17: 2000-01-24 | O17: 17.809 | Q17: 2000-01-24 | R17: 34.079 | T17: 2000-01-24 | U17: 10.8266 | W17: 2000-01-24 | X17: 13.52 | Z17: 2000-01-24 | AA17: 275.487 | AC17: 2000-01-24 | AD17: 15.54243 | AF17: 2000-01-24 | AG17: 32.222 | AI17: 2001-02-27 | AJ17: 294.814 | AL17: 2000-01-24 | AM17: 36.9547 | AO17: 2000-12-11 | AP17: 13.254 | AR17: 2000-01-24 | AS17: 38.902 | AU17: 2000-01-24 | AV17: 3.5075 | AX17: 2000-01-24 | AY17: 24.48825 | BA17: 2000-01-24 | BB17: 11.69177 | BD17: 2000-01-24 | BE17: 45.8492 | BG17: 2003-01-22 | BH17: 13.224 | BJ17: 2000-04-04 | BK17: 50.774 | BM17: 2000-01-24 | BN17: 17.824 | BP17: 2000-01-24 | BQ17: 33.23 | BS17: 2000-01-24 | BT17: 39.59 | BV17: 2000-01-24 | BW17: 12.368 | BY17: 2000-01-24 | BZ17: 164.8 | CB17: 2000-12-19 | CC17: 22.8615 | CE17: 2000-01-24 | CF17: 34.7649 | CH17: 2000-01-24 | CI17: 2.7446 | CK17: 2000-01-24 | CL17: 85.8556 | CN17: 2000-01-24 | CO17: 15.934 | CQ17: 2008-01-22 | CR17: 76.88
A18: FME.DE | B18: Fresenius Medical Care AG & Co. KGAA | C18: 16 | E18: 1991-01-24 | F18: 1375.199951 | H18: 2000-01-25 | I18: 8.5163 | K18: 2000-01-25 | L18: 205.27 | N18: 2000-01-25 | O18: 17.081 | Q18: 2000-01-25 | R18: 32.298 | T18: 2000-01-25 | U18: 10.6765 | W18: 2000-01-25 | X18: 12.745 | Z18: 2000-01-25 | AA18: 263.424 | AC18: 2000-01-25 | AD18: 15.38969 | AF18: 2000-01-25 | AG18: 31.115 | AI18: 2001-02-28 | AJ18: 292.836 | AL18: 2000-01-25 | AM18: 35.9461 | AO18: 2000-12-12 | AP18: 13.028 | AR18: 2000-01-25 | AS18: 39.875 | AU18: 2000-01-25 | AV18: 3.3767 | AX18: 2000-01-25 | AY18: 23.72071 | BA18: 2000-01-25 | BB18: 11.5294 | BD18: 2000-01-25 | BE18: 46.911 | BG18: 2003-01-23 | BH18: 13.31 | BJ18: 2000-04-05 | BK18: 47.581 | BM18: 2000-01-25 | BN18: 17.401 | BP18: 2000-01-25 | BQ18: 31.777 | BS18: 2000-01-25 | BT18: 37.52 | BV18: 2000-01-25 | BW18: 12.011 | BY18: 2000-01-25 | BZ18: 158.37 | CB18: 2000-12-20 | CC18: 22.2975 | CE18: 2000-01-25 | CF18: 33.8074 | CH18: 2000-01-25 | CI18: 2.6827 | CK18: 2000-01-25 | CL18: 86.6796 | CN18: 2000-01-25 | CO18: 15.628 | CQ18: 2008-01-23 | CR18: 74.83
A19: FRE.DE | B19: Fresenius SE & Co KGaA | C19: 17 | E19: 1991-01-25 | F19: 1382.099976 | H19: 2000-01-26 | I19: 8.2241 | K19: 2000-01-26 | L19: 210.5 | N19: 2000-01-26 | O19: 16.616 | Q19: 2000-01-26 | R19: 32.22 | T19: 2000-01-26 | U19: 11.2603 | W19: 2000-01-26 | X19: 13.356 | Z19: 2000-01-26 | AA19: 261.1672 | AC19: 2000-01-26 | AD19: 15.0034 | AF19: 2000-01-26 | AG19: 30.931 | AI19: 2001-03-01 | AJ19: 292.06 | AL19: 2000-01-26 | AM19: 36.432 | AO19: 2000-12-13 | AP19: 13.175 | AR19: 2000-01-26 | AS19: 42.708 | AU19: 2000-01-26 | AV19: 3.3477 | AX19: 2000-01-26 | AY19: 23.40664 | BA19: 2000-01-26 | BB19: 11.85334 | BD19: 2000-01-26 | BE19: 47.6188 | BG19: 2003-01-24 | BH19: 13.117 | BJ19: 2000-04-06 | BK19: 53.986 | BM19: 2000-01-26 | BN19: 18.137 | BP19: 2000-01-26 | BQ19: 30.955 | BS19: 2000-01-26 | BT19: 37.43 | BV19: 2000-01-26 | BW19: 12.213 | BY19: 2000-01-26 | BZ19: 167.13 | CB19: 2000-12-21 | CC19: 22.4083 | CE19: 2000-01-26 | CF19: 34.4058 | CH19: 2000-01-26 | CI19: 2.6414 | CK19: 2000-01-26 | CL19: 86.6796 | CN19: 2000-01-26 | CO19: 15.765 | CQ19: 2008-01-24 | CR19: 79.79
A20: HEI.DE | B20: HeidelbergCement AG | C20: 18 | E20: 1991-01-28 | F20: 1382.699951 | H20: 2000-01-27 | I20: 8.7177 | K20: 2000-01-27 | L20: 216.6 | N20: 2000-01-27 | O20: 16.817 | Q20: 2000-01-27 | R20: 31.678 | T20: 2000-01-27 | U20: 11.3438 | W20: 2000-01-27 | X20: 13.247 | Z20: 2000-01-27 | AA20: 260.701 | AC20: 2000-01-27 | AD20: 15.09324 | AF20: 2000-01-27 | AG20: 32.198 | AI20: 2001-03-02 | AJ20: 293.224 | AL20: 2000-01-27 | AM20: 36.3128 | AO20: 2000-12-14 | AP20: 13.033 | AR20: 2000-01-27 | AS20: 45.608 | AU20: 2000-01-27 | AV20: 3.2402 | AX20: 2000-01-27 | AY20: 23.82445 | BA20: 2000-01-27 | BB20: 11.48958 | BD20: 2000-01-27 | BE20: 47.297 | BG20: 2003-01-27 | BH20: 12.544 | BJ20: 2000-04-07 | BK20: 55.093 | BM20: 2000-01-27 | BN20: 18.137 | BP20: 2000-01-27 | BQ20: 30.355 | BS20: 2000-01-27 | BT20: 36.801 | BV20: 2000-01-27 | BW20: 12.443 | BY20: 2000-01-27 | BZ20: 162.6 | CB20: 2000-12-22 | CC20: 23.6521 | CE20: 2000-01-27 | CF20: 36.4103 | CH20: 2000-01-27 | CI20: 2.7652 | CK20: 2000-01-27 | CL20: 91.5023 | CN20: 2000-01-27 | CO20: 15.12 | CQ20: 2008-01-25 | CR20: 79.78
A21: HEN3.DE | B21: Henkel AG & Co. KGaA | C21: 19 | E21: 1991-01-29 | F21: 1380.300049 | H21: 2000-01-28 | I21: 8.2708 | K21: 2000-01-28 | L21: 215.07 | N21: 2000-01-28 | O21: 17.081 | Q21: 2000-01-28 | R21: 31.872 | T21: 2000-01-28 | U21: 11.3438 | W21: 2000-01-28 | X21: 13.668 | Z21: 2000-01-28 | AA21: 255.6426 | AC21: 2000-01-28 | AD21: 15.22804 | AF21: 2000-01-28 | AG21: 31.415 | AI21: 2001-03-05 | AJ21: 295.551 | AL21: 2000-01-28 | AM21: 36.0102 | AO21: 2000-12-15 | AP21: 12.631 | AR21: 2000-01-28 | AS21: 43.433 | AU21: 2000-01-28 | AV21: 3.2678 | AX21: 2000-01-28 | AY21: 23.94295 | BA21: 2000-01-28 | BB21: 12.34133 | BD21: 2000-01-28 | BE21: 46.8145 | BG21: 2003-01-28 | BH21: 12.444 | BJ21: 2000-04-10 | BK21: 57.4 | BM21: 2000-01-28 | BN21: 18.264 | BP21: 2000-01-28 | BQ21: 30.589 | BS21: 2000-01-28 | BT21: 37.026 | BV21: 2000-01-28 | BW21: 12.447 | BY21: 2000-01-28 | BZ21: 167.49 | CB21: 2000-12-27 | CC21: 24.0953 | CE21: 2000-01-28 | CF21: 37.0685 | CH21: 2000-01-28 | CI21: 2.7466 | CK21: 2000-01-28 | CL21: 92.2343 | CN21: 2000-01-28 | CO21: 14.989 | CQ21: 2008-01-28 | CR21: 80.83
A22: IFX.DE | B22: Infineon Technologies AG | C22: 20 | E22: 1991-01-30 | F22: 1400.699951 | H22: 2000-01-31 | I22: 7.6452 | K22: 2000-01-31 | L22: 206.69 | N22: 2000-01-31 | O22: 16.628 | Q22: 2000-01-31 | R22: 30.919 | T22: 2000-01-31 | U22: 10.7682 | W22: 2000-01-31 | X22: 12.892 | Z22: 2000-01-31 | AA22: 250.9725 | AC22: 2000-01-31 | AD22: 14.82372 | AF22: 2000-01-31 | AG22: 30.608 | AI22: 2001-03-06 | AJ22: 288.569 | AL22: 2000-01-31 | AM22: 35.3041 | AO22: 2000-12-18 | AP22: 12.858 | AR22: 2000-01-31 | AS22: 41.923 | AU22: 2000-01-31 | AV22: 3.1117 | AX22: 2000-01-31 | AY22: 23.8393 | BA22: 2000-01-31 | BB22: 11.93533 | BD22: 2000-01-31 | BE22: 45.7205 | BG22: 2003-01-29 | BH22: 12.501 | BJ22: 2000-04-11 | BK22: 56.763 | BM22: 2000-01-31 | BN22: 17.9 | BP22: 2000-01-31 | BQ22: 29.692 | BS22: 2000-01-31 | BT22: 35.919 | BV22: 2000-01-31 | BW22: 12.288 | BY22: 2000-01-31 | BZ22: 158.63 | CB22: 2000-12-28 | CC22: 23.9946 | CE22: 2000-01-31 | CF22: 34.5255 | CH22: 2000-01-31 | CI22: 2.889 | CK22: 2000-01-31 | CL22: 84.9157 | CN22: 2000-01-31 | CO22: 14.202 | CQ22: 2008-01-29 | CR22: 80.2
A23: LHA.DE | B23: Deutsche Lufthansa Aktiengesellschaft | C23: 21 | E23: 1991-01-31 | F23: 1420.099976 | H23: 2000-02-01 | I23: 7.884 | K23: 2000-02-01 | L23: 208.16 | N23: 2000-02-01 | O23: 15.862 | Q23: 2000-02-01 | R23: 31.02 | T23: 2000-02-01 | U23: 11.3438 | W23: 2000-02-01 | X23: 13.22 | Z23: 2000-02-01 | AA23: 254.8638 | AC23: 2000-02-01 | AD23: 14.73388 | AF23: 2000-02-01 | AG23: 30.885 | AI23: 2001-03-07 | AJ23: 292.06 | AL23: 2000-02-01 | AM23: 36.1753 | AO23: 2000-12-19 | AP23: 12.835 | AR23: 2000-02-01 | AS23: 45.306 | AU23: 2000-02-01 | AV23: 3.0906 | AX23: 2000-02-01 | AY23: 24.74605 | BA23: 2000-02-01 | BB23: 12.05714 | BD23: 2000-02-01 | BE23: 45.3022 | BG23: 2003-01-30 | BH23: 12.802 | BJ23: 2000-04-12 | BK23: 58.6 | BM23: 2000-02-01 | BN23: 17.57 | BP23: 2000-02-01 | BQ23: 28.744 | BS23: 2000-02-01 | BT23: 36.036 | BV23: 2000-02-01 | BW23: 12.506 | BY23: 2000-02-01 | BZ23: 163.31 | CB23: 2000-12-29 | CC23: 24.07 | CE23: 2000-02-01 | CF23: 36.5001 | CH23: 2000-02-01 | CI23: 2.9406 | CK23: 2000-02-01 | CL23: 87.9923 | CN23: 2000-02-01 | CO23: 14.257 | CQ23: 2008-01-30 | CR23: 78.05
A24: LIN.DE | B24: Linde Aktiengesellschaft | C24: 22 | E24: 1991-02-01 | F24: 1426.5 | H24: 2000-02-02 | I24: 7.6705 | K24: 2000-02-02 | L24: 207.42 | N24: 2000-02-02 | O24: 16.986 | Q24: 2000-02-02 | R24: 32.375 | T24: 2000-02-02 | U24: 11.1769 | W24: 2000-02-02 | X24: 13.264 | Z24: 2000-02-02 | AA24: 256.031 | AC24: 2000-02-02 | AD24: 14.82372 | AF24: 2000-02-02 | AG24: 30.885 | AI24: 2001-03-08 | AJ24: 287.25 | AL24: 2000-02-02 | AM24: 37.7754 | AO24: 2000-12-20 | AP24: 12.796 | AR24: 2000-02-02 | AS24: 44.883 | AU24: 2000-02-02 | AV24: 3.0558 | AX24: 2000-02-02 | AY24: 24.74303 | BA24: 2000-02-02 | BB24: 12.26014 | BD24: 2000-02-02 | BE24: 43.9187 | BG24: 2003-01-31 | BH24: 14.641 | BJ24: 2000-04-13 | BK24: 58.877 | BM24: 2000-02-02 | BN24: 17.224 | BP24: 2000-02-02 | BQ24: 30.071 | BS24: 2000-02-02 | BT24: 37.61 | BV24: 2000-02-02 | BW24: 12.487 | BY24: 2000-02-02 | BZ24: 164.8 | CB24: 2001-01-02 | CC24: 23.9946 | CE24: 2000-02-02 | CF24: 36.9129 | CH24: 2000-02-02 | CI24: 2.9097 | CK24: 2000-02-02 | CL24: 88.0837 | CN24: 2000-02-02 | CO24: 15.136 | CQ24: 2008-01-31 | CR24: 77.93
A25: LXS.DE | B25: Lanxess AG | C25: 23 | E25: 1991-02-04 | F25: 1435 | H25: 2000-02-03 | I25: 7.6572 | K25: 2000-02-03 | L25: 207.42 | N25: 2000-02-03 | O25: 16.477 | Q25: 2000-02-03 | R25: 32.956 | T25: 2000-02-03 | U25: 11.3354 | W25: 2000-02-03 | X25: 14.039 | Z25: 2000-02-03 | AA25: 256.8098 | AC25: 2000-02-03 | AD25: 14.77875 | AF25: 2000-02-03 | AG25: 31.277 | AI25: 2001-03-09 | AJ25: 287.018 | AL25: 2000-02-03 | AM25: 38.0689 | AO25: 2000-12-21 | AP25: 12.745 | AR25: 2000-02-03 | AS25: 50.561 | AU25: 2000-02-03 | AV25: 2.9781 | AX25: 2000-02-03 | AY25: 24.68382 | BA25: 2000-02-03 | BB25: 13.03954 | BD25: 2000-02-03 | BE25: 42.3421 | BG25: 2003-02-03 | BH25: 13.331 | BJ25: 2000-04-14 | BK25: 55.37 | BM25: 2000-02-03 | BN25: 17.249 | BP25: 2000-02-03 | BQ25: 29.502 | BS25: 2000-02-03 | BT25: 38.285 | BV25: 2000-02-03 | BW25: 12.288 | BY25: 2000-02-03 | BZ25: 163.31 | CB25: 2001-01-03 | CC25: 23.7478 | CE25: 2000-02-03 | CF25: 37.5472 | CH25: 2000-02-03 | CI25: 2.8271 | CK25: 2000-02-03 | CL25: 92.9486 | CN25: 2000-02-03 | CO25: 15.366 | CQ25: 2008-02-01 | CR25: 78.52
A26: MRK.DE | B26: Merck KGaA | C26: 24 | E26: 1991-02-05 | F26: 1438.900024 | H26: 2000-02-04 | I26: 7.6572 | K26: 2000-02-04 | L26: 208.66 | N26: 2000-02-04 | O26: 16.258 | Q26: 2000-02-04 | R26: 32.065 | T26: 2000-02-04 | U26: 11.3438 | W26: 2000-02-04 | X26: 13.908 | Z26: 2000-02-04 | AA26: 257.4323 | AC26: 2000-02-04 | AD26: 14.4194 | AF26: 2000-02-04 | AG26: 31.263 | AI26: 2001-03-12 | AJ26: 284.535 | AL26: 2000-02-04 | AM26: 38.0092 | AO26: 2000-12-22 | AP26: 12.835 | AR26: 2000-02-04 | AS26: 51.588 | AU26: 2000-02-04 | AV26: 3.0354 | AX26: 2000-02-04 | AY26: 26.22468 | BA26: 2000-02-04 | BB26: 13.76217 | BD26: 2000-02-04 | BE26: 40.5403 | BG26: 2003-02-04 | BH26: 13.016 | BJ26: 2000-04-17 | BK26: 57.64 | BM26: 2000-02-04 | BN26: 16.699 | BP26: 2000-02-04 | BQ26: 30.64 | BS26: 2000-02-04 | BT26: 37.25 | BV26: 2000-02-04 | BW26: 12.447 | BY26: 2000-02-04 | BZ26: 168.67 | CB26: 2001-01-04 | CC26: 22.1062 | CE26: 2000-02-04 | CF26: 37.8165 | CH26: 2000-02-04 | CI26: 2.8065 | CK26: 2000-02-04 | CL26: 98.5827 | CN26: 2000-02-04 | CO26: 15.3 | CQ26: 2008-02-04 | CR26: 77.39
A27: MUV2.DE | B27: Münchener Rückversicherungs-Gesellschaft Aktiengesellschaft | C27: 25 | E27: 1991-02-06 | F27: 1428.699951 | H27: 2000-02-07 | I27: 8.2308 | K27: 2000-02-07 | L27: 210.44 | N27: 2000-02-07 | O27: 15.76 | Q27: 2000-02-07 | R27: 31.213 | T27: 2000-02-07 | U27: 11.2103 | W27: 2000-02-07 | X27: 13.712 | Z27: 2000-02-07 | AA27: 251.362 | AC27: 2000-02-07 | AD27: 14.53627 | AF27: 2000-02-07 | AG27: 30.908 | AI27: 2001-03-13 | AJ27: 271.891 | AL27: 2000-02-07 | AM27: 37.6883 | AO27: 2000-12-27 | AP27: 12.694 | AR27: 2000-02-07 | AS27: 48.688 | AU27: 2000-02-07 | AV27: 3.0027 | AX27: 2000-02-07 | AY27: 25.75059 | BA27: 2000-02-07 | BB27: 13.68098 | BD27: 2000-02-07 | BE27: 38.9316 | BG27: 2003-02-05 | BH27: 13.324 | BJ27: 2000-04-18 | BK27: 59.061 | BM27: 2000-02-07 | BN27: 16.911 | BP27: 2000-02-07 | BQ27: 29.326 | BS27: 2000-02-07 | BT27: 36.261 | BV27: 2000-02-07 | BW27: 12.011 | BY27: 2000-02-07 | BZ27: 163.37 | CB27: 2001-01-08 | CC27: 21.0991 | CE27: 2000-02-07 | CF27: 37.7955 | CH27: 2000-02-07 | CI27: 2.7962 | CK27: 2000-02-07 | CL27: 99.4986 | CN27: 2000-02-07 | CO27: 14.967 | CQ27: 2008-02-05 | CR27: 75.43
A28: RWE.DE | B28: RWE AG | C28: 26 | E28: 1991-02-07 | F28: 1436.300049 | H28: 2000-02-08 | I28: 7.7652 | K28: 2000-02-08 | L28: 209.39 | N28: 2000-02-08 | O28: 16.25 | Q28: 2000-02-08 | R28: 33.537 | T28: 2000-02-08 | U28: 11.3438 | W28: 2000-02-08 | X28: 13.657 | Z28: 2000-02-08 | AA28: 245.1363 | AC28: 2000-02-08 | AD28: 14.93158 | AF28: 2000-02-08 | AG28: 30.585 | AI28: 2001-03-15 | AJ28: 255.485 | AL28: 2000-02-08 | AM28: 37.9634 | AO28: 2000-12-28 | AP28: 12.943 | AR28: 2000-02-08 | AS28: 53.279 | AU28: 2000-02-08 | AV28: 3.079 | AX28: 2000-02-08 | AY28: 26.96546 | BA28: 2000-02-08 | BB28: 14.04635 | BD28: 2000-02-08 | BE28: 40.8621 | BG28: 2003-02-06 | BH28: 13.067 | BJ28: 2000-04-19 | BK28: 62.651 | BM28: 2000-02-08 | BN28: 16.699 | BP28: 2000-02-08 | BQ28: 30.33 | BS28: 2000-02-08 | BT28: 38.96 | BV28: 2000-02-08 | BW28: 12.011 | BY28: 2000-02-08 | BZ28: 162.24 | CB28: 2001-01-09 | CC28: 21.5271 | CE28: 2000-02-08 | CF28: 40.174 | CH28: 2000-02-08 | CI28: 3.0335 | CK28: 2000-02-08 | CL28: 104.3818 | CN28: 2000-02-08 | CO28: 14.836 | CQ28: 2008-02-06 | CR28: 76.54
A29: SAP.DE | B29: SAP SE | C29: 27 | E29: 1991-02-08 | F29: 1467.800049 | H29: 2000-02-09 | I29: 7.337 | K29: 2000-02-09 | L29: 216.87 | N29: 2000-02-09 | O29: 16.269 | Q29: 2000-02-09 | R29: 33.924 | T29: 2000-02-09 | U29: 11.302 | W29: 2000-02-09 | X29: 13.657 | Z29: 2000-02-09 | AA29: 250.5841 | AC29: 2000-02-09 | AD29: 14.68901 | AF29: 2000-02-09 | AG29: 30.309 | AI29: 2001-03-16 | AJ29: 255.601 | AL29: 2000-02-09 | AM29: 38.1926 | AO29: 2000-12-29 | AP29: 13.056 | AR29: 2000-02-09 | AS29: 55.877 | AU29: 2000-02-09 | AV29: 3.0645 | AX29: 2000-02-09 | AY29: 25.05417 | BA29: 2000-02-09 | BB29: 14.16817 | BD29: 2000-02-09 | BE29: 39.8325 | BG29: 2003-02-07 | BH29: 12.816 | BJ29: 2000-04-20 | BK29: 63.537 | BM29: 2000-02-09 | BN29: 16.446 | BP29: 2000-02-09 | BQ29: 29.521 | BS29: 2000-02-09 | BT29: 39.41 | BV29: 2000-02-09 | BW29: 11.971 | BY29: 2000-02-09 | BZ29: 165.69 | CB29: 2001-01-10 | CC29: 21.5019 | CE29: 2000-02-09 | CF29: 41.269 | CH29: 2000-02-09 | CI29: 2.9922 | CK29: 2000-02-09 | CL29: 109.6317 | CN29: 2000-02-09 | CO29: 14.617 | CQ29: 2008-02-07 | CR29: 75.62
A30: SDF.DE | B30: K+S Aktiengesellschaft | C30: 28 | E30: 1991-02-11 | F30: 1488.699951 | H30: 2000-02-10 | I30: 7.4571 | K30: 2000-02-10 | L30: 224.66 | N30: 2000-02-10 | O30: 16.609 | Q30: 2000-02-10 | R30: 34.466 | T30: 2000-02-10 | U30: 12.6783 | W30: 2000-02-10 | X30: 14.121 | Z30: 2000-02-10 | AA30: 275.0976 | AC30: 2000-02-10 | AD30: 15.23696 | AF30: 2000-02-10 | AG30: 30.839 | AI30: 2001-03-19 | AJ30: 259.782 | AL30: 2000-02-10 | AM30: 39.1784 | AO30: 2001-01-02 | AP30: 13.589 | AR30: 2000-02-10 | AS30: 55.575 | AU30: 2000-02-10 | AV30: 3.1952 | AX30: 2000-02-10 | AY30: 25.43945 | BA30: 2000-02-10 | BB30: 13.07206 | BD30: 2000-02-10 | BE30: 39.3821 | BG30: 2003-02-10 | BH30: 13.038 | BJ30: 2000-04-21 | BK30: 63.537 | BM30: 2000-02-10 | BN30: 17.122 | BP30: 2000-02-10 | BQ30: 30.507 | BS30: 2000-02-10 | BT30: 40.04 | BV30: 2000-02-10 | BW30: 12.09 | BY30: 2000-02-10 | BZ30: 172.25 | CB30: 2001-01-11 | CC30: 22.6098 | CE30: 2000-02-10 | CF30: 40.0902 | CH30: 2000-02-10 | CI30: 3.0232 | CK30: 2000-02-10 | CL30: 105.6026 | CN30: 2000-02-10 | CO30: 15.3 | CQ30: 2008-02-08 | CR30: 75.39
A31: SIE.DE | B31: Siemens Aktiengesellschaft | C31: 29 | E31: 1991-02-12 | F31: 1468.900024 | H31: 2000-02-11 | I31: 7.0769 | K31: 2000-02-11 | L31: 228.97 | N31: 2000-02-11 | O31: 16.658 | Q31: 2000-02-11 | R31: 33.304 | T31: 2000-02-11 | U31: 12.4281 | W31: 2000-02-11 | X31: 14.012 | Z31: 2000-02-11 | AA31: 286.3817 | AC31: 2000-02-11 | AD31: 14.91356 | AF31: 2000-02-11 | AG31: 30.41 | AI31: 2001-03-20 | AJ31: 256.066 | AL31: 2000-02-11 | AM31: 39.316 | AO31: 2001-01-03 | AP31: 13.458 | AR31: 2000-02-11 | AS31: 53.823 | AU31: 2000-02-11 | AV31: 3.238 | AX31: 2000-02-11 | AY31: 24.59493 | BA31: 2000-02-11 | BB31: 13.19387 | BD31: 2000-02-11 | BE31: 39.2533 | BG31: 2003-02-11 | BH31: 13.016 | BJ31: 2000-04-24 | BK31: 63.537 | BM31: 2000-02-11 | BN31: 17.038 | BP31: 2000-02-11 | BQ31: 28.744 | BS31: 2000-02-11 | BT31: 38.69 | BV31: 2000-02-11 | BW31: 12.288 | BY31: 2000-02-11 | BZ31: 175.83 | CB31: 2001-01-12 | CC31: 22.6601 | CE31: 2000-02-11 | CF31: 39.2226 | CH31: 2000-02-11 | CI31: 2.9716 | CK31: 2000-02-11 | CL31: 104.6873 | CN31: 2000-02-11 | CO31: 14.617 | CQ31: 2008-02-11 | CR31: 75.38
A32: TKA.DE | B32: ThyssenKrupp AG | C32: 30 | E32: 1991-02-13 | F32: 1489.400024 | H32: 2000-02-14 | I32: 6.8701 | K32: 2000-02-14 | L32: 230.81 | N32: 2000-02-14 | O32: 16.307 | Q32: 2000-02-14 | R32: 33.847 | T32: 2000-02-14 | U32: 11.8442 | W32: 2000-02-14 | X32: 13.848 | Z32: 2000-02-14 | AA32: 291.0508 | AC32: 2000-02-14 | AD32: 14.73388 | AF32: 2000-02-14 | AG32: 30.862 | AI32: 2001-03-21 | AJ32: 251.8 | AL32: 2000-02-14 | AM32: 38.7887 | AO32: 2001-01-04 | AP32: 13.254 | AR32: 2000-02-14 | AS32: 52.736 | AU32: 2000-02-14 | AV32: 3.2177 | AX32: 2000-02-14 | AY32: 24.85273 | BA32: 2000-02-14 | BB32: 12.68236 | BD32: 2000-02-14 | BE32: 38.6098 | BG32: 2003-02-12 | BH32: 13.016 | BJ32: 2000-04-25 | BK32: 63.029 | BM32: 2000-02-14 | BN32: 16.826 | BP32: 2000-02-14 | BQ32: 29.502 | BS32: 2000-02-14 | BT32: 39.32 | BV32: 2000-02-14 | BW32: 11.892 | BY32: 2000-02-14 | BZ32: 180 | CB32: 2001-01-15 | CC32: 22.1717 | CE32: 2000-02-14 | CF32: 38.9534 | CH32: 2000-02-14 | CI32: 2.9613 | CK32: 2000-02-14 | CL32: 107.6902 | CN32: 2000-02-14 | CO32: 14.677 | CQ32: 2008-02-12 | CR32: 77.43
A33: VOW3.DE | B33: Volkswagen AG | C33: 31 | E33: 1991-02-14 | F33: 1486.5 | H33: 2000-02-15 | I33: 6.63 | K33: 2000-02-15 | L33: 228.35 | N33: 2000-02-15 | O33: 15.473 | Q33: 2000-02-15 | R33: 31.949 | T33: 2000-02-15 | U33: 11.9776 | W33: 2000-02-15 | X33: 13.657 | Z33: 2000-02-15 | AA33: 283.4247 | AC33: 2000-02-15 | AD33: 15.1382 | AF33: 2000-02-15 | AG33: 30.557 | AI33: 2001-03-22 | AJ33: 237.736 | AL33: 2000-02-15 | AM33: 37.1381 | AO33: 2001-01-08 | AP33: 13.084 | AR33: 2000-02-15 | AS33: 50.742 | AU33: 2000-02-15 | AV33: 3.3361 | AX33: 2000-02-15 | AY33: 23.52816 | BA33: 2000-02-15 | BB33: 12.17896 | BD33: 2000-02-15 | BE33: 39.8968 | BG33: 2003-02-13 | BH33: 12.959 | BJ33: 2000-04-26 | BK33: 67.69 | BM33: 2000-02-15 | BN33: 16.657 | BP33: 2000-02-15 | BQ33: 28.776 | BS33: 2000-02-15 | BT33: 37.115 | BV33: 2000-02-15 | BW33: 11.674 | BY33: 2000-02-15 | BZ33: 179.11 | CB33: 2001-01-16 | CC33: 22.1717 | CE33: 2000-02-15 | CF33: 37.2899 | CH33: 2000-02-15 | CI33: 2.8581 | CK33: 2000-02-15 | CL33: 99.1994 | CN33: 2000-02-15 | CO33: 13.77 | CQ33: 2008-02-13 | CR33: 77.36
E34: 1991-02-15 | F34: 1531.199951 | H34: 2000-02-16 | I34: 6.8435 | K34: 2000-02-16 | L34: 227.12 | N34: 2000-02-16 | O34: 16.605 | Q34: 2000-02-16 | R34: 32.995 | T34: 2000-02-16 | U34: 12.0777 | W34: 2000-02-16 | X34: 13.985 | Z34: 2000-02-16 | AA34: 287.1596 | AC34: 2000-02-16 | AD34: 14.98547 | AF34: 2000-02-16 | AG34: 30.309 | AI34: 2001-03-23 | AJ34: 239.916 | AL34: 2000-02-16 | AM34: 37.3124 | AO34: 2001-01-09 | AP34: 13.056 | AR34: 2000-02-16 | AS34: 51.346 | AU34: 2000-02-16 | AV34: 3.4493 | AX34: 2000-02-16 | AY34: 24.49412 | BA34: 2000-02-16 | BB34: 12.74725 | BD34: 2000-02-16 | BE34: 39.2533 | BG34: 2003-02-14 | BH34: 13.489 | BJ34: 2000-04-27 | BK34: 64.183 | BM34: 2000-02-16 | BN34: 17.359 | BP34: 2000-02-16 | BQ34: 28.428 | BS34: 2000-02-16 | BT34: 38.33 | BV34: 2000-02-16 | BW34: 11.646 | BY34: 2000-02-16 | BZ34: 178.81 | CB34: 2001-01-17 | CC34: 21.8544 | CE34: 2000-02-16 | CF34: 39.1927 | CH34: 2000-02-16 | CI34: 2.887 | CK34: 2000-02-16 | CL34: 99.3153 | CN34: 2000-02-16 | CO34: 14.262 | CQ34: 2008-02-14 | CR34: 77.01
E35: 1991-02-18 | F35: 1572.599976 | H35: 2000-02-17 | I35: 7.0035 | K35: 2000-02-17 | L35: 217.89 | N35: 2000-02-17 | O35: 17.553 | Q35: 2000-02-17 | R35: 34.002 | T35: 2000-02-17 | U35: 11.2187 | W35: 2000-02-17 | X35: 13.766 | Z35: 2000-02-17 | AA35: 309.3385 | AC35: 2000-02-17 | AD35: 14.58115 | AF35: 2000-02-17 | AG35: 30.281 | AI35: 2001-03-26 | AJ35: 247.844 | AL35: 2000-02-17 | AM35: 36.863 | AO35: 2001-01-10 | AP35: 12.943 | AR35: 2000-02-17 | AS35: 52.554 | AU35: 2000-02-17 | AV35: 3.5111 | AX35: 2000-02-17 | AY35: 25.64978 | BA35: 2000-02-17 | BB35: 13.07206 | BD35: 2000-02-17 | BE35: 38.8995 | BG35: 2003-02-17 | BH35: 13.424 | BJ35: 2000-04-28 | BK35: 70.135 | BM35: 2000-02-17 | BN35: 18.365 | BP35: 2000-02-17 | BQ35: 30.115 | BS35: 2000-02-17 | BT35: 39.5 | BV35: 2000-02-17 | BW35: 10.98 | BY35: 2000-02-17 | BZ35: 174.04 | CB35: 2001-01-18 | CC35: 21.658 | CE35: 2000-02-17 | CF35: 40.0604 | CH35: 2000-02-17 | CI35: 2.8581 | CK35: 2000-02-17 | CL35: 100.9638 | CN35: 2000-02-17 | CO35: 15.136 | CQ35: 2008-02-15 | CR35: 75.96
E36: 1991-02-19 | F36: 1587.099976 | H36: 2000-02-18 | I36: 7.2703 | K36: 2000-02-18 | L36: 216.72 | N36: 2000-02-18 | O36: 17.892 | Q36: 2000-02-18 | R36: 34.064 | T36: 2000-02-18 | U36: 11.227 | W36: 2000-02-18 | X36: 14.312 | Z36: 2000-02-18 | AA36: 307.7828 | AC36: 2000-02-18 | AD36: 14.73388 | AF36: 2000-02-18 | AG36: 29.963 | AI36: 2001-03-27 | AJ36: 244.353 | AL36: 2000-02-18 | AM36: 36.9318 | AO36: 2001-01-11 | AP36: 12.745 | AR36: 2000-02-18 | AS36: 53.763 | AU36: 2000-02-18 | AV36: 3.4849 | AX36: 2000-02-18 | AY36: 26.07649 | BA36: 2000-02-18 | BB36: 13.19387 | BD36: 2000-02-18 | BE36: 37.3229 | BG36: 2003-02-18 | BH36: 13.453 | BJ36: 2000-05-01 | BK36: 70.135 | BM36: 2000-02-18 | BN36: 18.137 | BP36: 2000-02-18 | BQ36: 29.686 | BS36: 2000-02-18 | BT36: 39.572 | BV36: 2000-02-18 | BW36: 10.782 | BY36: 2000-02-18 | BZ36: 170.77 | CB36: 2001-01-19 | CC36: 21.7688 | CE36: 2000-02-18 | CF36: 40.0304 | CH36: 2000-02-18 | CI36: 2.8478 | CK36: 2000-02-18 | CL36: 97.6857 | CN36: 2000-02-18 | CO36: 14.59 | CQ36: 2008-02-18 | CR36: 77.77
E37: 1991-02-20 | F37: 1567.300049 | H37: 2000-02-21 | I37: 6.8968 | K37: 2000-02-21 | L37: 220.04 | N37: 2000-02-21 | O37: 17.741 | Q37: 2000-02-21 | R37: 33.614 | T37: 2000-02-21 | U37: 11.2937 | W37: 2000-02-21 | X37: 15.05 | Z37: 2000-02-21 | AA37: 301.323 | AC37: 2000-02-21 | AD37: 14.85066 | AF37: 2000-02-21 | AG37: 29.732 | AI37: 2001-03-28 | AJ37: 252.033 | AL37: 2000-02-21 | AM37: 39.073 | AO37: 2001-01-12 | AP37: 12.546 | AR37: 2000-02-21 | AS37: 52.85 | AU37: 2000-02-21 | AV37: 3.4348 | AX37: 2000-02-21 | AY37: 25.4839 | BA37: 2000-02-21 | BB37: 13.05584 | BD37: 2000-02-21 | BE37: 38.449 | BG37: 2003-02-19 | BH37: 13.396 | BJ37: 2000-05-02 | BK37: 70.873 | BM37: 2000-02-21 | BN37: 18.01 | BP37: 2000-02-21 | BQ37: 29.085 | BS37: 2000-02-21 | BT37: 39.05 | BV37: 2000-02-21 | BW37: 10.742 | BY37: 2000-02-21 | BZ37: 172.85 | CB37: 2001-01-22 | CC37: 22.2069 | CE37: 2000-02-21 | CF37: 39.085 | CH37: 2000-02-21 | CI37: 2.7858 | CK37: 2000-02-21 | CL37: 99.4986 | CN37: 2000-02-21 | CO37: 14.366 | CQ37: 2008-02-19 | CR37: 77.48
E38: 1991-02-21 | F38: 1566.300049 | H38: 2000-02-22 | I38: 6.8635 | K38: 2000-02-22 | L38: 218.17 | N38: 2000-02-22 | O38: 17.553 | Q38: 2000-02-22 | R38: 34.002 | T38: 2000-02-22 | U38: 11.4772 | W38: 2000-02-22 | X38: 15.159 | Z38: 2000-02-22 | AA38: 295.7198 | AC38: 2000-02-22 | AD38: 15.0034 | AF38: 2000-02-22 | AG38: 29.709 | AI38: 2001-03-29 | AJ38: 248.232 | AL38: 2000-02-22 | AM38: 40.751 | AO38: 2001-01-15 | AP38: 12.512 | AR38: 2000-02-22 | AS38: 51.703 | AU38: 2000-02-22 | AV38: 3.8124 | AX38: 2000-02-22 | AY38: 24.909 | BA38: 2000-02-22 | BB38: 12.42251 | BD38: 2000-02-22 | BE38: 37.6446 | BG38: 2003-02-20 | BH38: 13.36 | BJ38: 2000-05-03 | BK38: 69.397 | BM38: 2000-02-22 | BN38: 19.101 | BP38: 2000-02-22 | BQ38: 28.435 | BS38: 2000-02-22 | BT38: 39.5 | BV38: 2000-02-22 | BW38: 10.425 | BY38: 2000-02-22 | BZ38: 175.83 | CB38: 2001-01-23 | CC38: 22.2573 | CE38: 2000-02-22 | CF38: 39.2944 | CH38: 2000-02-22 | CI38: 2.8271 | CK38: 2000-02-22 | CL38: 100.7805 | CN38: 2000-02-22 | CO38: 14.809 | CQ38: 2008-02-20 | CR38: 76.54
E39: 1991-02-22 | F39: 1582.5 | H39: 2000-02-23 | I39: 6.6167 | K39: 2000-02-23 | L39: 218.5 | N39: 2000-02-23 | O39: 17.794 | Q39: 2000-02-23 | R39: 33.847 | T39: 2000-02-23 | U39: 11.1769 | W39: 2000-02-23 | X39: 14.695 | Z39: 2000-02-23 | AA39: 303.8916 | AC39: 2000-02-23 | AD39: 15.27291 | AF39: 2000-02-23 | AG39: 29.156 | AI39: 2001-03-30 | AJ39: 246.68 | AL39: 2000-02-23 | AM39: 40.8978 | AO39: 2001-01-16 | AP39: 12.62 | AR39: 2000-02-23 | AS39: 52.856 | AU39: 2000-02-23 | AV39: 3.8488 | AX39: 2000-02-23 | AY39: 24.59493 | BA39: 2000-02-23 | BB39: 12.18707 | BD39: 2000-02-23 | BE39: 38.5777 | BG39: 2003-02-21 | BH39: 13.539 | BJ39: 2000-05-04 | BK39: 67.274 | BM39: 2000-02-23 | BN39: 19.693 | BP39: 2000-02-23 | BQ39: 28.46 | BS39: 2000-02-23 | BT39: 39.32 | BV39: 2000-02-23 | BW39: 10.643 | BY39: 2000-02-23 | BZ39: 178.81 | CB39: 2001-01-24 | CC39: 21.7789 | CE39: 2000-02-23 | CF39: 39.462 | CH39: 2000-02-23 | CI39: 2.8581 | CK39: 2000-02-23 | CL39: 110.2421 | CN39: 2000-02-23 | CO39: 14.47 | CQ39: 2008-02-21 | CR39: 77.22
E40: 1991-02-25 | F40: 1601.199951 | H40: 2000-02-24 | I40: 6.5366 | K40: 2000-02-24 | L40: 217.52 | N40: 2000-02-24 | O40: 17.326 | Q40: 2000-02-24 | R40: 33.072 | T40: 2000-02-24 | U40: 10.9267 | W40: 2000-02-24 | X40: 14.695 | Z40: 2000-02-24 | AA40: 301.1677 | AC40: 2000-02-24 | AD40: 15.27291 | AF40: 2000-02-24 | AG40: 28.626 | AI40: 2001-04-02 | AJ40: 244.353 | AL40: 2000-02-24 | AM40: 40.1183 | AO40: 2001-01-17 | AP40: 12.83 | AR40: 2000-02-24 | AS40: 54.367 | AU40: 2000-02-24 | AV40: 3.6599 | AX40: 2000-02-24 | AY40: 24.20964 | BA40: 2000-02-24 | BB40: 11.89477 | BD40: 2000-02-24 | BE40: 38.1273 | BG40: 2003-02-24 | BH40: 13.467 | BJ40: 2000-05-05 | BK40: 67.782 | BM40: 2000-02-24 | BN40: 19.642 | BP40: 2000-02-24 | BQ40: 28.226 | BS40: 2000-02-24 | BT40: 38.42 | BV40: 2000-02-24 | BW40: 10.505 | BY40: 2000-02-24 | BZ40: 173.34 | CB40: 2001-01-25 | CC40: 22.076 | CE40: 2000-02-24 | CF40: 38.5943 | CH40: 2000-02-24 | CI40: 2.7033 | CK40: 2000-02-24 | CL40: 109.5643 | CN40: 2000-02-24 | CO40: 13.847 | CQ40: 2008-02-22 | CR40: 78.02
E41: 1991-02-26 | F41: 1558.199951 | H41: 2000-02-25 | I41: 6.6967 | K41: 2000-02-25 | L41: 218.81 | N41: 2000-02-25 | O41: 17.047 | Q41: 2000-02-25 | R41: 33.15 | T41: 2000-02-25 | U41: 10.6765 | W41: 2000-02-25 | X41: 14.749 | Z41: 2000-02-25 | AA41: 302.4126 | AC41: 2000-02-25 | AD41: 15.09324 | AF41: 2000-02-25 | AG41: 30.332 | AI41: 2001-04-03 | AJ41: 242.026 | AL41: 2000-02-25 | AM41: 40.9345 | AO41: 2001-01-18 | AP41: 12.813 | AR41: 2000-02-25 | AS41: 54.367 | AU41: 2000-02-25 | AV41: 3.4857 | AX41: 2000-02-25 | AY41: 24.35784 | BA41: 2000-02-25 | BB41: 11.85414 | BD41: 2000-02-25 | BE41: 37.3229 | BG41: 2003-02-25 | BH41: 13.253 | BJ41: 2000-05-08 | BK41: 67.782 | BM41: 2000-02-25 | BN41: 19.726 | BP41: 2000-02-25 | BQ41: 26.217 | BS41: 2000-02-25 | BT41: 38.51 | BV41: 2000-02-25 | BW41: 10.707 | BY41: 2000-02-25 | BZ41: 172.85 | CB41: 2001-01-26 | CC41: 21.7789 | CE41: 2000-02-25 | CF41: 40.8681 | CH41: 2000-02-25 | CI41: 2.693 | CK41: 2000-02-25 | CL41: 114.7593 | CN41: 2000-02-25 | CO41: 13.661 | CQ41: 2008-02-25 | CR41: 77.44
E42: 1991-02-27 | F42: 1565.5 | H42: 2000-02-28 | I42: 7.0676 | K42: 2000-02-28 | L42: 223.27 | N42: 2000-02-28 | O42: 17.704 | Q42: 2000-02-28 | R42: 33.188 | T42: 2000-02-28 | U42: 10.3428 | W42: 2000-02-28 | X42: 14.263 | Z42: 2000-02-28 | AA42: 296.4986 | AC42: 2000-02-28 | AD42: 15.27291 | AF42: 2000-02-28 | AG42: 31.069 | AI42: 2001-04-04 | AJ42: 242.026 | AL42: 2000-02-28 | AM42: 40.3063 | AO42: 2001-01-19 | AP42: 12.614 | AR42: 2000-02-28 | AS42: 51.346 | AU42: 2000-02-28 | AV42: 3.3789 | AX42: 2000-02-28 | AY42: 22.66879 | BA42: 2000-02-28 | BB42: 11.5294 | BD42: 2000-02-28 | BE42: 37.3229 | BG42: 2003-02-26 | BH42: 13.181 | BJ42: 2000-05-09 | BK42: 67.782 | BM42: 2000-02-28 | BN42: 19.194 | BP42: 2000-02-28 | BQ42: 26.312 | BS42: 2000-02-28 | BT42: 38.555 | BV42: 2000-02-28 | BW42: 10.703 | BY42: 2000-02-28 | BZ42: 175.23 | CB42: 2001-01-29 | CC42: 22.0558 | CE42: 2000-02-28 | CF42: 39.3244 | CH42: 2000-02-28 | CI42: 2.6496 | CK42: 2000-02-28 | CL42: 109.3261 | CN42: 2000-02-28 | CO42: 13.388 | CQ42: 2008-02-26 | CR42: 77.18
E43: 1991-02-28 | F43: 1542.099976 | H43: 2000-02-29 | I43: 7.337 | K43: 2000-02-29 | L43: 220.97 | N43: 2000-02-29 | O43: 18.081 | Q43: 2000-02-29 | R43: 33.916 | T43: 2000-02-29 | U43: 10.4846 | W43: 2000-02-29 | X43: 14.564 | Z43: 2000-02-29 | AA43: 292.0626 | AC43: 2000-02-29 | AD43: 15.35374 | AF43: 2000-02-29 | AG43: 32.268 | AI43: 2001-04-05 | AJ43: 246.292 | AL43: 2000-02-29 | AM43: 40.3476 | AO43: 2001-01-22 | AP43: 12.767 | AR43: 2000-02-29 | AS43: 52.011 | AU43: 2000-02-29 | AV43: 3.4058 | AX43: 2000-02-29 | AY43: 21.72052 | BA43: 2000-02-29 | BB43: 11.56996 | BD43: 2000-02-29 | BE43: 37.6446 | BG43: 2003-02-27 | BH43: 13.431 | BJ43: 2000-05-10 | BK43: 63.583 | BM43: 2000-02-29 | BN43: 19.583 | BP43: 2000-02-29 | BQ43: 26.596 | BS43: 2000-02-29 | BT43: 39.401 | BV43: 2000-02-29 | BW43: 10.624 | BY43: 2000-02-29 | BZ43: 169.33 | CB43: 2001-01-30 | CC43: 21.6278 | CE43: 2000-02-29 | CF43: 39.3722 | CH43: 2000-02-29 | CI43: 2.6682 | CK43: 2000-02-29 | CL43: 112.5615 | CN43: 2000-02-29 | CO43: 13.858 | CQ43: 2008-02-27 | CR43: 77.72
E44: 1991-03-01 | F44: 1516.699951 | H44: 2000-03-01 | I44: 7.337 | K44: 2000-03-01 | L44: 215.55 | N44: 2000-03-01 | O44: 17.439 | Q44: 2000-03-01 | R44: 33.072 | T44: 2000-03-01 | U44: 10.0926 | W44: 2000-03-01 | X44: 14.7 | Z44: 2000-03-01 | AA44: 287.6267 | AC44: 2000-03-01 | AD44: 15.09324 | AF44: 2000-03-01 | AG44: 31.438 | AI44: 2001-04-06 | AJ44: 244.741 | AL44: 2000-03-01 | AM44: 39.426 | AO44: 2001-01-23 | AP44: 12.739 | AR44: 2000-03-01 | AS44: 55.569 | AU44: 2000-03-01 | AV44: 3.4486 | AX44: 2000-03-01 | AY44: 21.45383 | BA44: 2000-03-01 | BB44: 11.24522 | BD44: 2000-03-01 | BE44: 37.9663 | BG44: 2003-02-28 | BH44: 13.596 | BJ44: 2000-05-11 | BK44: 65.152 | BM44: 2000-03-01 | BN44: 19.566 | BP44: 2000-03-01 | BQ44: 26.849 | BS44: 2000-03-01 | BT44: 38.42 | BV44: 2000-03-01 | BW44: 10.782 | BY44: 2000-03-01 | BZ44: 168.97 | CB44: 2001-01-31 | CC44: 21.653 | CE44: 2000-03-01 | CF44: 41.5772 | CH44: 2000-03-01 | CI44: 2.6827 | CK44: 2000-03-01 | CL44: 114.3316 | CN44: 2000-03-01 | CO44: 13.743 | CQ44: 2008-02-28 | CR44: 76.99
E45: 1991-03-04 | F45: 1530.900024 | H45: 2000-03-02 | I45: 7.8706 | K45: 2000-03-02 | L45: 220.35 | N45: 2000-03-02 | O45: 17.704 | Q45: 2000-03-02 | R45: 33.188 | T45: 2000-03-02 | U45: 10.0926 | W45: 2000-03-02 | X45: 14.695 | Z45: 2000-03-02 | AA45: 293.7747 | AC45: 2000-03-02 | AD45: 15.21903 | AF45: 2000-03-02 | AG45: 31.005 | AI45: 2001-04-09 | AJ45: 251.334 | AL45: 2000-03-02 | AM45: 40.3247 | AO45: 2001-01-24 | AP45: 12.648 | AR45: 2000-03-02 | AS45: 60.033 | AU45: 2000-03-02 | AV45: 3.5329 | AX45: 2000-03-02 | AY45: 21.92801 | BA45: 2000-03-02 | BB45: 11.08285 | BD45: 2000-03-02 | BE45: 37.0012 | BG45: 2003-03-03 | BH45: 13.754 | BJ45: 2000-05-12 | BK45: 69.766 | BM45: 2000-03-02 | BN45: 19.447 | BP45: 2000-03-02 | BQ45: 26.375 | BS45: 2000-03-02 | BT45: 38.555 | BV45: 2000-03-02 | BW45: 11.852 | BY45: 2000-03-02 | BZ45: 168.08 | CB45: 2001-02-01 | CC45: 21.7034 | CE45: 2000-03-02 | CF45: 41.6041 | CH45: 2000-03-02 | CI45: 2.6146 | CK45: 2000-03-02 | CL45: 116.9017 | CN45: 2000-03-02 | CO45: 13.814 | CQ45: 2008-02-29 | CR45: 77.12
E46: 1991-03-05 | F46: 1540.300049 | H46: 2000-03-03 | I46: 7.2983 | K46: 2000-03-03 | L46: 211.12 | N46: 2000-03-03 | O46: 17.141 | Q46: 2000-03-03 | R46: 32.453 | T46: 2000-03-03 | U46: 10.4262 | W46: 2000-03-03 | X46: 14.203 | Z46: 2000-03-03 | AA46: 294.1641 | AC46: 2000-03-03 | AD46: 15.09324 | AF46: 2000-03-03 | AG46: 30.401 | AI46: 2001-04-10 | AJ46: 261.768 | AL46: 2000-03-03 | AM46: 39.8937 | AO46: 2001-01-25 | AP46: 12.546 | AR46: 2000-03-03 | AS46: 62.159 | AU46: 2000-03-03 | AV46: 3.5147 | AX46: 2000-03-03 | AY46: 21.92801 | BA46: 2000-03-03 | BB46: 11.28578 | BD46: 2000-03-03 | BE46: 36.911 | BG46: 2003-03-04 | BH46: 13.818 | BJ46: 2000-05-15 | BK46: 69.12 | BM46: 2000-03-03 | BN46: 19.617 | BP46: 2000-03-03 | BQ46: 25.914 | BS46: 2000-03-03 | BT46: 37.7 | BV46: 2000-03-03 | BW46: 11.773 | BY46: 2000-03-03 | BZ46: 168.97 | CB46: 2001-02-02 | CC46: 21.5271 | CE46: 2000-03-03 | CF46: 43.7403 | CH46: 2000-03-03 | CI46: 2.6166 | CK46: 2000-03-03 | CL46: 116.3032 | CN46: 2000-03-03 | CO46: 13.246 | CQ46: 2008-03-03 | CR46: 79.34
E47: 1991-03-06 | F47: 1594.300049 | H47: 2000-03-06 | I47: 6.8101 | K47: 2000-03-06 | L47: 208.84 | N47: 2000-03-06 | O47: 17.458 | Q47: 2000-03-06 | R47: 32.538 | T47: 2000-03-06 | U47: 10.5597 | W47: 2000-03-06 | X47: 14.094 | Z47: 2000-03-06 | AA47: 288.4832 | AC47: 2000-03-06 | AD47: 15.04836 | AF47: 2000-03-06 | AG47: 30.309 | AI47: 2001-04-11 | AJ47: 261.419 | AL47: 2000-03-06 | AM47: 39.8524 | AO47: 2001-01-26 | AP47: 12.654 | AR47: 2000-03-06 | AS47: 62.522 | AU47: 2000-03-06 | AV47: 3.4602 | AX47: 2000-03-06 | AY47: 21.58424 | BA47: 2000-03-06 | BB47: 11.28578 | BD47: 2000-03-06 | BE47: 37.3229 | BG47: 2003-03-05 | BH47: 13.424 | BJ47: 2000-05-16 | BK47: 71.012 | BM47: 2000-03-06 | BN47: 19.49 | BP47: 2000-03-06 | BQ47: 25.901 | BS47: 2000-03-06 | BT47: 37.799 | BV47: 2000-03-06 | BW47: 12.606 | BY47: 2000-03-06 | BZ47: 166.89 | CB47: 2001-02-05 | CC47: 21.4012 | CE47: 2000-03-06 | CF47: 49.0597 | CH47: 2000-03-06 | CI47: 2.6104 | CK47: 2000-03-06 | CL47: 113.5385 | CN47: 2000-03-06 | CO47: 12.951 | CQ47: 2008-03-04 | CR47: 77.31
E48: 1991-03-07 | F48: 1580.5 | H48: 2000-03-07 | I48: 6.9368 | K48: 2000-03-07 | L48: 233.89 | N48: 2000-03-07 | O48: 16.911 | Q48: 2000-03-07 | R48: 31.577 | T48: 2000-03-07 | U48: 10.3261 | W48: 2000-03-07 | X48: 13.837 | Z48: 2000-03-07 | AA48: 315.0971 | AC48: 2000-03-07 | AD48: 14.99439 | AF48: 2000-03-07 | AG48: 29.4 | AI48: 2001-04-12 | AJ48: 255.151 | AL48: 2000-03-07 | AM48: 43.5112 | AO48: 2001-01-29 | AP48: 13.056 | AR48: 2000-03-07 | AS48: 60.921 | AU48: 2000-03-07 | AV48: 3.2932 | AX48: 2000-03-07 | AY48: 22.00206 | BA48: 2000-03-07 | BB48: 11.13963 | BD48: 2000-03-07 | BE48: 37.9663 | BG48: 2003-03-06 | BH48: 13.66 | BJ48: 2000-05-17 | BK48: 68.751 | BM48: 2000-03-07 | BN48: 19.617 | BP48: 2000-03-07 | BQ48: 25.901 | BS48: 2000-03-07 | BT48: 36.684 | BV48: 2000-03-07 | BW48: 12.288 | BY48: 2000-03-07 | BZ48: 171.42 | CB48: 2001-02-06 | CC48: 21.0286 | CE48: 2000-03-07 | CF48: 51.3993 | CH48: 2000-03-07 | CI48: 2.6208 | CK48: 2000-03-07 | CL48: 111.7066 | CN48: 2000-03-07 | CO48: 12.787 | CQ48: 2008-03-05 | CR48: 79.6
E49: 1991-03-08 | F49: 1580.5 | H49: 2000-03-08 | I49: 6.9635 | K49: 2000-03-08 | L49: 252.97 | N49: 2000-03-08 | O49: 17.232 | Q49: 2000-03-08 | R49: 31.469 | T49: 2000-03-08 | U49: 10.3095 | W49: 2000-03-08 | X49: 14.083 | Z49: 2000-03-08 | AA49: 326.8483 | AC49: 2000-03-08 | AD49: 14.64404 | AF49: 2000-03-08 | AG49: 29.917 | AI49: 2001-04-17 | AJ49: 259.169 | AL49: 2000-03-08 | AM49: 42.5254 | AO49: 2001-01-30 | AP49: 13.169 | AR49: 2000-03-08 | AS49: 57.689 | AU49: 2000-03-08 | AV49: 3.2141 | AX49: 2000-03-08 | AY49: 22.3725 | BA49: 2000-03-08 | BB49: 11.85414 | BD49: 2000-03-08 | BE49: 37.3229 | BG49: 2003-03-07 | BH49: 13.718 | BJ49: 2000-05-18 | BK49: 68.382 | BM49: 2000-03-08 | BN49: 19.321 | BP49: 2000-03-08 | BQ49: 27.285 | BS49: 2000-03-08 | BT49: 36.558 | BV49: 2000-03-08 | BW49: 13.141 | BY49: 2000-03-08 | BZ49: 177.62 | CB49: 2001-02-07 | CC49: 21.2753 | CE49: 2000-03-08 | CF49: 47.0313 | CH49: 2000-03-08 | CI49: 2.5795 | CK49: 2000-03-08 | CL49: 107.6657 | CN49: 2000-03-08 | CO49: 12.787 | CQ49: 2008-03-06 | CR49: 78.23
E50: 1991-03-11 | F50: 1565.800049 | H50: 2000-03-09 | I50: 6.8835 | K50: 2000-03-09 | L50: 250.51 | N50: 2000-03-09 | O50: 17.285 | Q50: 2000-03-09 | R50: 32.298 | T50: 2000-03-09 | U50: 10.1093 | W50: 2000-03-09 | X50: 14.039 | Z50: 2000-03-09 | AA50: 342.4908 | AC50: 2000-03-09 | AD50: 14.91356 | AF50: 2000-03-09 | AG50: 29.525 | AI50: 2001-04-18 | AJ50: 267.625 | AL50: 2000-03-09 | AM50: 37.051 | AO50: 2001-01-31 | AP50: 13.181 | AR50: 2000-03-09 | AS50: 57.629 | AU50: 2000-03-09 | AV50: 3.2642 | AX50: 2000-03-09 | AY50: 22.5414 | BA50: 2000-03-09 | BB50: 12.26014 | BD50: 2000-03-09 | BE50: 37.0012 | BG50: 2003-03-10 | BH50: 13.41 | BJ50: 2000-05-19 | BK50: 64.967 | BM50: 2000-03-09 | BN50: 18.619 | BP50: 2000-03-09 | BQ50: 26.179 | BS50: 2000-03-09 | BT50: 37.52 | BV50: 2000-03-09 | BW50: 13.323 | BY50: 2000-03-09 | BZ50: 187.75 | CB50: 2001-02-08 | CC50: 21.3005 | CE50: 2000-03-09 | CF50: 47.851 | CH50: 2000-03-09 | CI50: 2.5589 | CK50: 2000-03-09 | CL50: 111.4018 | CN50: 2000-03-09 | CO50: 12.956 | CQ50: 2008-03-07 | CR50: 78.09
E51: 1991-03-12 | F51: 1571.599976 | H51: 2000-03-10 | I51: 6.8034 | K51: 2000-03-10 | L51: 253.09 | N51: 2000-03-10 | O51: 17.439 | Q51: 2000-03-10 | R51: 31.484 | T51: 2000-03-10 | U51: 9.9842 | W51: 2000-03-10 | X51: 14.312 | Z51: 2000-03-10 | AA51: 342.0237 | AC51: 2000-03-10 | AD51: 15.17406 | AF51: 2000-03-10 | AG51: 29.041 | AI51: 2001-04-19 | AJ51: 266.461 | AL51: 2000-03-10 | AM51: 34.2725 | AO51: 2001-02-01 | AP51: 13.481 | AR51: 2000-03-10 | AS51: 59.048 | AU51: 2000-03-10 | AV51: 3.1458 | AX51: 2000-03-10 | AY51: 23.40957 | BA51: 2000-03-10 | BB51: 13.31562 | BD51: 2000-03-10 | BE51: 34.7489 | BG51: 2003-03-11 | BH51: 12.365 | BJ51: 2000-05-22 | BK51: 61.857 | BM51: 2000-03-10 | BN51: 18.856 | BP51: 2000-03-10 | BQ51: 25.459 | BS51: 2000-03-10 | BT51: 36.576 | BV51: 2000-03-10 | BW51: 13.478 | BY51: 2000-03-10 | BZ51: 190.73 | CB51: 2001-02-09 | CC51: 20.948 | CE51: 2000-03-10 | CF51: 47.9288 | CH51: 2000-03-10 | CI51: 2.5279 | CK51: 2000-03-10 | CL51: 113.8434 | CN51: 2000-03-10 | CO51: 12.776 | CQ51: 2008-03-10 | CR51: 78.44
E52: 1991-03-13 | F52: 1542.199951 | H52: 2000-03-13 | I52: 6.7167 | K52: 2000-03-13 | L52: 243 | N52: 2000-03-13 | O52: 17.609 | Q52: 2000-03-13 | R52: 31.996 | T52: 2000-03-13 | U52: 10.6765 | W52: 2000-03-13 | X52: 14.504 | Z52: 2000-03-13 | AA52: 323.3466 | AC52: 2000-03-13 | AD52: 15.04836 | AF52: 2000-03-13 | AG52: 29.041 | AI52: 2001-04-20 | AJ52: 274.606 | AL52: 2000-03-13 | AM52: 34.2725 | AO52: 2001-02-02 | AP52: 13.702 | AR52: 2000-03-13 | AS52: 59.048 | AU52: 2000-03-13 | AV52: 3.1937 | AX52: 2000-03-13 | AY52: 23.40957 | BA52: 2000-03-13 | BB52: 13.88398 | BD52: 2000-03-13 | BE52: 35.0707 | BG52: 2003-03-12 | BH52: 12.394 | BJ52: 2000-05-23 | BK52: 62.992 | BM52: 2000-03-13 | BN52: 18.856 | BP52: 2000-03-13 | BQ52: 25.459 | BS52: 2000-03-13 | BT52: 37.169 | BV52: 2000-03-13 | BW52: 13.557 | BY52: 2000-03-13 | BZ52: 182.98 | CB52: 2001-02-12 | CC52: 21.0991 | CE52: 2000-03-13 | CF52: 45.1764 | CH52: 2000-03-13 | CI52: 2.693 | CK52: 2000-03-13 | CL52: 113.8434 | CN52: 2000-03-13 | CO52: 12.639 | CQ52: 2008-03-11 | CR52: 78.67
E53: 1991-03-14 | F53: 1576.599976 | H53: 2000-03-14 | I53: 6.8034 | K53: 2000-03-14 | L53: 244.35 | N53: 2000-03-14 | O53: 18.062 | Q53: 2000-03-14 | R53: 32.228 | T53: 2000-03-14 | U53: 10.176 | W53: 2000-03-14 | X53: 14.919 | Z53: 2000-03-14 | AA53: 332.841 | AC53: 2000-03-14 | AD53: 15.54243 | AF53: 2000-03-14 | AG53: 30.267 | AI53: 2001-04-23 | AJ53: 275.382 | AL53: 2000-03-14 | AM53: 33.4518 | AO53: 2001-02-05 | AP53: 13.668 | AR53: 2000-03-14 | AS53: 53.219 | AU53: 2000-03-14 | AV53: 3.2715 | AX53: 2000-03-14 | AY53: 23.37997 | BA53: 2000-03-14 | BB53: 14.08698 | BD53: 2000-03-14 | BE53: 35.9072 | BG53: 2003-03-13 | BH53: 12.251 | BJ53: 2000-05-24 | BK53: 58.138 | BM53: 2000-03-14 | BN53: 18.991 | BP53: 2000-03-14 | BQ53: 24.954 | BS53: 2000-03-14 | BT53: 37.439 | BV53: 2000-03-14 | BW53: 12.407 | BY53: 2000-03-14 | BZ53: 175.86 | CB53: 2001-02-13 | CC53: 21.7285 | CE53: 2000-03-14 | CF53: 44.5779 | CH53: 2000-03-14 | CI53: 2.7343 | CK53: 2000-03-14 | CL53: 104.2596 | CN53: 2000-03-14 | CO53: 12.688 | CQ53: 2008-03-12 | CR53: 78.87
E54: 1991-03-15 | F54: 1570.599976 | H54: 2000-03-15 | I54: 6.69 | K54: 2000-03-15 | L54: 241.28 | N54: 2000-03-15 | O54: 17.892 | Q54: 2000-03-15 | R54: 32.545 | T54: 2000-03-15 | U54: 10.1009 | W54: 2000-03-15 | X54: 16.962 | Z54: 2000-03-15 | AA54: 333.8529 | AC54: 2000-03-15 | AD54: 16.39594 | AF54: 2000-03-15 | AG54: 29.825 | AI54: 2001-04-24 | AJ54: 280.812 | AL54: 2000-03-15 | AM54: 33.108 | AO54: 2001-02-06 | AP54: 13.679 | AR54: 2000-03-15 | AS54: 49.468 | AU54: 2000-03-15 | AV54: 3.5075 | AX54: 2000-03-15 | AY54: 23.70595 | BA54: 2000-03-15 | BB54: 13.64043 | BD54: 2000-03-15 | BE54: 35.3924 | BG54: 2003-03-14 | BH54: 12.172 | BJ54: 2000-05-25 | BK54: 61.664 | BM54: 2000-03-15 | BN54: 18.644 | BP54: 2000-03-15 | BQ54: 25.838 | BS54: 2000-03-15 | BT54: 37.808 | BV54: 2000-03-15 | BW54: 11.9 | BY54: 2000-03-15 | BZ54: 171.06 | CB54: 2001-02-14 | CC54: 21.7839 | CE54: 2000-03-15 | CF54: 41.3468 | CH54: 2000-03-15 | CI54: 2.7054 | CK54: 2000-03-15 | CL54: 93.4494 | CN54: 2000-03-15 | CO54: 13.115 | CQ54: 2008-03-13 | CR54: 78.79
E55: 1991-03-18 | F55: 1552.900024 | H55: 2000-03-16 | I55: 7.6038 | K55: 2000-03-16 | L55: 243.12 | N55: 2000-03-16 | O55: 18.455 | Q55: 2000-03-16 | R55: 34.931 | T55: 2000-03-16 | U55: 10.4763 | W55: 2000-03-16 | X55: 17.344 | Z55: 2000-03-16 | AA55: 334.6307 | AC55: 2000-03-16 | AD55: 16.84513 | AF55: 2000-03-16 | AG55: 32.198 | AI55: 2001-04-25 | AJ55: 276.553 | AL55: 2000-03-16 | AM55: 33.5389 | AO55: 2001-02-07 | AP55: 13.538 | AR55: 2000-03-16 | AS55: 50.863 | AU55: 2000-03-16 | AV55: 3.6018 | AX55: 2000-03-16 | AY55: 23.97265 | BA55: 2000-03-16 | BB55: 14.12754 | BD55: 2000-03-16 | BE55: 37.0012 | BG55: 2003-03-17 | BH55: 12.544 | BJ55: 2000-05-26 | BK55: 61.119 | BM55: 2000-03-16 | BN55: 19.608 | BP55: 2000-03-16 | BQ55: 27.797 | BS55: 2000-03-16 | BT55: 40.58 | BV55: 2000-03-16 | BW55: 11.892 | BY55: 2000-03-16 | BZ55: 179.11 | CB55: 2001-02-16 | CC55: 22.1968 | CE55: 2000-03-16 | CF55: 37.6968 | CH55: 2000-03-16 | CI55: 2.8478 | CK55: 2000-03-16 | CL55: 93.0891 | CN55: 2000-03-16 | CO55: 14.699 | CQ55: 2008-03-14 | CR55: 78.95
E56: 1991-03-19 | F56: 1546.5 | H56: 2000-03-17 | I56: 7.3384 | K56: 2000-03-17 | L56: 249.28 | N56: 2000-03-17 | O56: 18.874 | Q56: 2000-03-17 | R56: 35.551 | T56: 2000-03-17 | U56: 10.6514 | W56: 2000-03-17 | X56: 16.383 | Z56: 2000-03-17 | AA56: 334.1636 | AC56: 2000-03-17 | AD56: 17.06978 | AF56: 2000-03-17 | AG56: 31.825 | AI56: 2001-04-26 | AJ56: 276.158 | AL56: 2000-03-17 | AM56: 34.1579 | AO56: 2001-02-08 | AP56: 13.271 | AR56: 2000-03-17 | AS56: 52.252 | AU56: 2000-03-17 | AV56: 3.5038 | AX56: 2000-03-17 | AY56: 24.81717 | BA56: 2000-03-17 | BB56: 15.54845 | BD56: 2000-03-17 | BE56: 37.3229 | BG56: 2003-03-18 | BH56: 13.403 | BJ56: 2000-05-29 | BK56: 62.771 | BM56: 2000-03-17 | BN56: 19.87 | BP56: 2000-03-17 | BQ56: 28.239 | BS56: 2000-03-17 | BT56: 41.299 | BV56: 2000-03-17 | BW56: 12.051 | BY56: 2000-03-17 | BZ56: 178.81 | CB56: 2001-02-19 | CC56: 22.2069 | CE56: 2000-03-17 | CF56: 40.2697 | CH56: 2000-03-17 | CI56: 2.8168 | CK56: 2000-03-17 | CL56: 97.6611 | CN56: 2000-03-17 | CO56: 14.213 | CQ56: 2008-03-17 | CR56: 79.74
E57: 1991-03-20 | F57: 1517.900024 | H57: 2000-03-20 | I57: 7.2503 | K57: 2000-03-20 | L57: 250.6 | N57: 2000-03-20 | O57: 18.647 | Q57: 2000-03-20 | R57: 35.334 | T57: 2000-03-20 | U57: 10.6431 | W57: 2000-03-20 | X57: 16.771 | Z57: 2000-03-20 | AA57: 336.1874 | AC57: 2000-03-20 | AD57: 16.26114 | AF57: 2000-03-20 | AG57: 31.184 | AI57: 2001-04-27 | AJ57: 279.26 | AL57: 2000-03-20 | AM57: 33.1263 | AO57: 2001-02-09 | AP57: 13.351 | AR57: 2000-03-20 | AS57: 55.152 | AU57: 2000-03-20 | AV57: 3.4748 | AX57: 2000-03-20 | AY57: 24.43189 | BA57: 2000-03-20 | BB57: 15.71082 | BD57: 2000-03-20 | BE57: 38.996 | BG57: 2003-03-19 | BH57: 13.145 | BJ57: 2000-05-30 | BK57: 62.522 | BM57: 2000-03-20 | BN57: 19.185 | BP57: 2000-03-20 | BQ57: 28.012 | BS57: 2000-03-20 | BT57: 41.047 | BV57: 2000-03-20 | BW57: 11.991 | BY57: 2000-03-20 | BZ57: 177.63 | CB57: 2001-02-20 | CC57: 21.7789 | CE57: 2000-03-20 | CF57: 44.6797 | CH57: 2000-03-20 | CI57: 2.9076 | CK57: 2000-03-20 | CL57: 106.9702 | CN57: 2000-03-20 | CO57: 14.207 | CQ57: 2008-03-18 | CR57: 85.53
E58: 1991-03-21 | F58: 1519.599976 | H58: 2000-03-21 | I58: 7.4064 | K58: 2000-03-21 | L58: 249.52 | N58: 2000-03-21 | O58: 18.383 | Q58: 2000-03-21 | R58: 35.047 | T58: 2000-03-21 | U58: 10.7582 | W58: 2000-03-21 | X58: 18.082 | Z58: 2000-03-21 | AA58: 341.4012 | AC58: 2000-03-21 | AD58: 16.53065 | AF58: 2000-03-21 | AG58: 31.369 | AI58: 2001-04-30 | AJ58: 280.424 | AL58: 2000-03-21 | AM58: 32.8374 | AO58: 2001-02-12 | AP58: 13.328 | AR58: 2000-03-21 | AS58: 53.756 | AU58: 2000-03-21 | AV58: 3.6599 | AX58: 2000-03-21 | AY58: 23.70595 | BA58: 2000-03-21 | BB58: 16.15737 | BD58: 2000-03-21 | BE58: 41.2161 | BG58: 2003-03-20 | BH58: 13.61 | BJ58: 2000-05-31 | BK58: 63.445 | BM58: 2000-03-21 | BN58: 19.447 | BP58: 2000-03-21 | BQ58: 28.871 | BS58: 2000-03-21 | BT58: 40.715 | BV58: 2000-03-21 | BW58: 11.991 | BY58: 2000-03-21 | BZ58: 181.67 | CB58: 2001-02-21 | CC58: 21.799 | CE58: 2000-03-21 | CF58: 42.0589 | CH58: 2000-03-21 | CI58: 2.8808 | CK58: 2000-03-21 | CL58: 103.7714 | CN58: 2000-03-21 | CO58: 14.426 | CQ58: 2008-03-19 | CR58: 86.93
E59: 1991-03-22 | F59: 1520.300049 | H59: 2000-03-22 | I59: 7.2423 | K59: 2000-03-22 | L59: 255.13 | N59: 2000-03-22 | O59: 18.553 | Q59: 2000-03-22 | R59: 34.815 | T59: 2000-03-22 | U59: 10.8099 | W59: 2000-03-22 | X59: 18.819 | Z59: 2000-03-22 | AA59: 344.7476 | AC59: 2000-03-22 | AD59: 17.24945 | AF59: 2000-03-22 | AG59: 31.761 | AI59: 2001-05-02 | AJ59: 286.63 | AL59: 2000-03-22 | AM59: 32.9383 | AO59: 2001-02-13 | AP59: 13.368 | AR59: 2000-03-22 | AS59: 52.434 | AU59: 2000-03-22 | AV59: 3.5438 | AX59: 2000-03-22 | AY59: 23.39775 | BA59: 2000-03-22 | BB59: 15.51593 | BD59: 2000-03-22 | BE59: 42.3421 | BG59: 2003-03-21 | BH59: 13.632 | BJ59: 2000-06-01 | BK59: 64.414 | BM59: 2000-03-22 | BN59: 19.862 | BP59: 2000-03-22 | BQ59: 27.797 | BS59: 2000-03-22 | BT59: 40.445 | BV59: 2000-03-22 | BW59: 12.487 | BY59: 2000-03-22 | BZ59: 193.74 | CB59: 2001-02-22 | CC59: 21.3861 | CE59: 2000-03-22 | CF59: 42.8122 | CH59: 2000-03-22 | CI59: 2.889 | CK59: 2000-03-22 | CL59: 96.6293 | CN59: 2000-03-22 | CO59: 14.186 | CQ59: 2008-03-20 | CR59: 86.83
E60: 1991-03-25 | F60: 1515.5 | H60: 2000-03-23 | I60: 7.2036 | K60: 2000-03-23 | L60: 251.13 | N60: 2000-03-23 | O60: 18.534 | Q60: 2000-03-23 | R60: 34.079 | T60: 2000-03-23 | U60: 10.7182 | W60: 2000-03-23 | X60: 18.246 | Z60: 2000-03-23 | AA60: 334.6307 | AC60: 2000-03-23 | AD60: 17.06978 | AF60: 2000-03-23 | AG60: 31.489 | AI60: 2001-05-03 | AJ60: 294.775 | AL60: 2000-03-23 | AM60: 32.2322 | AO60: 2001-02-14 | AP60: 13.215 | AR60: 2000-03-23 | AS60: 51.346 | AU60: 2000-03-23 | AV60: 3.5002 | AX60: 2000-03-23 | AY60: 23.64666 | BA60: 2000-03-23 | BB60: 15.18308 | BD60: 2000-03-23 | BE60: 40.8621 | BG60: 2003-03-24 | BH60: 13.474 | BJ60: 2000-06-02 | BK60: 69.581 | BM60: 2000-03-23 | BN60: 19.896 | BP60: 2000-03-23 | BQ60: 27.108 | BS60: 2000-03-23 | BT60: 39.59 | BV60: 2000-03-23 | BW60: 12.764 | BY60: 2000-03-23 | BZ60: 195.5 | CB60: 2001-02-23 | CC60: 20.9732 | CE60: 2000-03-23 | CF60: 40.3835 | CH60: 2000-03-23 | CI60: 2.8478 | CK60: 2000-03-23 | CL60: 96.6053 | CN60: 2000-03-23 | CO60: 13.934 | CQ60: 2008-03-25 | CR60: 89.01
E61: 1991-03-26 | F61: 1498.400024 | H61: 2000-03-24 | I61: 7.1103 | K61: 2000-03-24 | L61: 257.59 | N61: 2000-03-24 | O61: 18.798 | Q61: 2000-03-24 | R61: 34.079 | T61: 2000-03-24 | U61: 11.3438 | W61: 2000-03-24 | X61: 18.464 | Z61: 2000-03-24 | AA61: 334.6307 | AC61: 2000-03-24 | AD61: 16.57562 | AF61: 2000-03-24 | AG61: 32.36 | AI61: 2001-05-04 | AJ61: 302.144 | AL61: 2000-03-24 | AM61: 33.2501 | AO61: 2001-02-16 | AP61: 13.198 | AR61: 2000-03-24 | AS61: 54.004 | AU61: 2000-03-24 | AV61: 3.6781 | AX61: 2000-03-24 | AY61: 22.96508 | BA61: 2000-03-24 | BB61: 15.62964 | BD61: 2000-03-24 | BE61: 40.7334 | BG61: 2003-03-25 | BH61: 13.26 | BJ61: 2000-06-05 | BK61: 71.058 | BM61: 2000-03-24 | BN61: 19.287 | BP61: 2000-03-24 | BQ61: 27.411 | BS61: 2000-03-24 | BT61: 39.59 | BV61: 2000-03-24 | BW61: 12.843 | BY61: 2000-03-24 | BZ61: 199.37 | CB61: 2001-02-26 | CC61: 20.948 | CE61: 2000-03-24 | CF61: 40.6886 | CH61: 2000-03-24 | CI61: 2.8787 | CK61: 2000-03-24 | CL61: 100.9027 | CN61: 2000-03-24 | CO61: 14.142 | CQ61: 2008-03-26 | CR61: 90.43
E62: 1991-03-27 | F62: 1508.800049 | H62: 2000-03-27 | I62: 7.3917 | K62: 2000-03-27 | L62: 257.65 | N62: 2000-03-27 | O62: 18.591 | Q62: 2000-03-27 | R62: 34.551 | T62: 2000-03-27 | U62: 11.8776 | W62: 2000-03-27 | X62: 17.781 | Z62: 2000-03-27 | AA62: 335.798 | AC62: 2000-03-27 | AD62: 17.09672 | AF62: 2000-03-27 | AG62: 32.291 | AI62: 2001-05-08 | AJ62: 301.679 | AL62: 2000-03-27 | AM62: 32.6449 | AO62: 2001-02-19 | AP62: 13.09 | AR62: 2000-03-27 | AS62: 53.158 | AU62: 2000-03-27 | AV62: 3.7217 | AX62: 2000-03-27 | AY62: 22.3725 | BA62: 2000-03-27 | BB62: 15.83264 | BD62: 2000-03-27 | BE62: 40.8621 | BG62: 2003-03-26 | BH62: 13.56 | BJ62: 2000-06-06 | BK62: 70.449 | BM62: 2000-03-27 | BN62: 19.701 | BP62: 2000-03-27 | BQ62: 29.376 | BS62: 2000-03-27 | BT62: 40.139 | BV62: 2000-03-27 | BW62: 12.697 | BY62: 2000-03-27 | BZ62: 198.9 | CB62: 2001-02-27 | CC62: 20.7768 | CE62: 2000-03-27 | CF62: 41.8853 | CH62: 2000-03-27 | CI62: 2.8787 | CK62: 2000-03-27 | CL62: 97.6674 | CN62: 2000-03-27 | CO62: 13.978 | CQ62: 2008-03-27 | CR62: 90.06
E63: 1991-03-28 | F63: 1522.800049 | H63: 2000-03-28 | I63: 7.3437 | K63: 2000-03-28 | L63: 263.44 | N63: 2000-03-28 | O63: 18.496 | Q63: 2000-03-28 | R63: 35.512 | T63: 2000-03-28 | U63: 12.0127 | W63: 2000-03-28 | X63: 18.109 | Z63: 2000-03-28 | AA63: 336.0311 | AC63: 2000-03-28 | AD63: 16.93497 | AF63: 2000-03-28 | AG63: 31.364 | AI63: 2001-05-09 | AJ63: 307.567 | AL63: 2000-03-28 | AM63: 33.2409 | AO63: 2001-02-20 | AP63: 13.056 | AR63: 2000-03-28 | AS63: 55.333 | AU63: 2000-03-28 | AV63: 3.7696 | AX63: 2000-03-28 | AY63: 22.66879 | BA63: 2000-03-28 | BB63: 15.34545 | BD63: 2000-03-28 | BE63: 40.4824 | BG63: 2003-03-27 | BH63: 13.732 | BJ63: 2000-06-07 | BK63: 74.565 | BM63: 2000-03-28 | BN63: 19.617 | BP63: 2000-03-28 | BQ63: 29.06 | BS63: 2000-03-28 | BT63: 41.254 | BV63: 2000-03-28 | BW63: 12.764 | BY63: 2000-03-28 | BZ63: 193.41 | CB63: 2001-02-28 | CC63: 20.8574 | CE63: 2000-03-28 | CF63: 42.1845 | CH63: 2000-03-28 | CI63: 2.8663 | CK63: 2000-03-28 | CL63: 95.7751 | CN63: 2000-03-28 | CO63: 14.481 | CQ63: 2008-03-28 | CR63: 88.97
E64: 1991-04-02 | F64: 1538.599976 | H64: 2000-03-29 | I64: 7.5638 | K64: 2000-03-29 | L64: 266.14 | N64: 2000-03-29 | O64: 18.761 | Q64: 2000-03-29 | R64: 36.341 | T64: 2000-03-29 | U64: 12.0611 | W64: 2000-03-29 | X64: 18.792 | Z64: 2000-03-29 | AA64: 329.4169 | AC64: 2000-03-29 | AD64: 16.84513 | AF64: 2000-03-29 | AG64: 31.35 | AI64: 2001-05-11 | AJ64: 312.617 | AL64: 2000-03-29 | AM64: 32.8512 | AO64: 2001-02-21 | AP64: 13.13 | AR64: 2000-03-29 | AS64: 54.065 | AU64: 2000-03-29 | AV64: 3.7652 | AX64: 2000-03-29 | AY64: 23.29107 | BA64: 2000-03-29 | BB64: 15.75138 | BD64: 2000-03-29 | BE64: 37.709 | BG64: 2003-03-28 | BH64: 13.453 | BJ64: 2000-06-08 | BK64: 78.441 | BM64: 2000-03-29 | BN64: 19.997 | BP64: 2000-03-29 | BQ64: 28.965 | BS64: 2000-03-29 | BT64: 42.217 | BV64: 2000-03-29 | BW64: 12.685 | BY64: 2000-03-29 | BZ64: 201.46 | CB64: 2001-03-01 | CC64: 20.7768 | CE64: 2000-03-29 | CF64: 38.5943 | CH64: 2000-03-29 | CI64: 2.8478 | CK64: 2000-03-29 | CL64: 94.1574 | CN64: 2000-03-29 | CO64: 14.677 | CQ64: 2008-03-31 | CR64: 88.29
E65: 1991-04-03 | F65: 1577.5 | H65: 2000-03-30 | I65: 7.8173 | K65: 2000-03-30 | L65: 266.82 | N65: 2000-03-30 | O65: 18.617 | Q65: 2000-03-30 | R65: 36.248 | T65: 2000-03-30 | U65: 12.011 | W65: 2000-03-30 | X65: 18.535 | Z65: 2000-03-30 | AA65: 311.673 | AC65: 2000-03-30 | AD65: 17.06978 | AF65: 2000-03-30 | AG65: 31.438 | AI65: 2001-05-14 | AJ65: 312.927 | AL65: 2000-03-30 | AM65: 32.191 | AO65: 2001-02-22 | AP65: 13.589 | AR65: 2000-03-30 | AS65: 50.319 | AU65: 2000-03-30 | AV65: 3.7776 | AX65: 2000-03-30 | AY65: 23.55776 | BA65: 2000-03-30 | BB65: 15.02071 | BD65: 2000-03-30 | BE65: 37.9663 | BG65: 2003-03-31 | BH65: 13.439 | BJ65: 2000-06-09 | BK65: 77.435 | BM65: 2000-03-30 | BN65: 19.617 | BP65: 2000-03-30 | BQ65: 28.296 | BS65: 2000-03-30 | BT65: 42.109 | BV65: 2000-03-30 | BW65: 13.2 | BY65: 2000-03-30 | BZ65: 198.78 | CB65: 2001-03-02 | CC65: 20.7466 | CE65: 2000-03-30 | CF65: 36.0214 | CH65: 2000-03-30 | CI65: 2.8663 | CK65: 2000-03-30 | CL65: 90.6475 | CN65: 2000-03-30 | CO65: 14.453 | CQ65: 2008-04-01 | CR65: 87.06
E66: 1991-04-04 | F66: 1572 | H66: 2000-03-31 | I66: 7.7372 | K66: 2000-03-31 | L66: 263.13 | N66: 2000-03-31 | O66: 18.704 | Q66: 2000-03-31 | R66: 36.232 | T66: 2000-03-31 | U66: 12.6783 | W66: 2000-03-31 | X66: 18.109 | Z66: 2000-03-31 | AA66: 307.3934 | AC66: 2000-03-31 | AD66: 17.06978 | AF66: 2000-03-31 | AG66: 31.355 | AI66: 2001-05-15 | AJ66: 302.532 | AL66: 2000-03-31 | AM66: 31.7279 | AO66: 2001-02-23 | AP66: 13.311 | AR66: 2000-03-31 | AS66: 50.742 | AU66: 2000-03-31 | AV66: 3.8669 | AX66: 2000-03-31 | AY66: 23.08367 | BA66: 2000-03-31 | BB66: 14.81772 | BD66: 2000-03-31 | BE66: 37.8956 | BG66: 2003-04-01 | BH66: 13.56 | BJ66: 2000-06-12 | BK66: 77.795 | BM66: 2000-03-31 | BN66: 20.293 | BP66: 2000-03-31 | BQ66: 28.555 | BS66: 2000-03-31 | BT66: 42.091 | BV66: 2000-03-31 | BW66: 13.24 | BY66: 2000-03-31 | BZ66: 193.71 | CB66: 2001-03-05 | CC66: 20.6962 | CE66: 2000-03-31 | CF66: 35.3034 | CH66: 2000-03-31 | CI66: 2.8374 | CK66: 2000-03-31 | CL66: 91.5571 | CN66: 2000-03-31 | CO66: 14.071 | CQ66: 2008-04-02 | CR66: 85.53
E67: 1991-04-05 | F67: 1586.900024 | H67: 2000-04-03 | I67: 7.6038 | K67: 2000-04-03 | L67: 256.33 | N67: 2000-04-03 | O67: 18.421 | Q67: 2000-04-03 | R67: 36.364 | T67: 2000-04-03 | U67: 11.6774 | W67: 2000-04-03 | X67: 18.109 | Z67: 2000-04-03 | AA67: 308.1712 | AC67: 2000-04-03 | AD67: 16.26114 | AF67: 2000-04-03 | AG67: 32.129 | AI67: 2001-05-16 | AJ67: 307.962 | AL67: 2000-04-03 | AM67: 33.9149 | AO67: 2001-02-26 | AP67: 13.113 | AR67: 2000-04-03 | AS67: 45.577 | AU67: 2000-04-03 | AV67: 3.8778 | AX67: 2000-04-03 | AY67: 22.80214 | BA67: 2000-04-03 | BB67: 14.04635 | BD67: 2000-04-03 | BE67: 37.4515 | BG67: 2003-04-02 | BH67: 14.011 | BJ67: 2000-06-13 | BK67: 75.672 | BM67: 2000-04-03 | BN67: 20.699 | BP67: 2000-04-03 | BQ67: 28.239 | BS67: 2000-04-03 | BT67: 42.244 | BV67: 2000-04-03 | BW67: 12.487 | BY67: 2000-04-03 | BZ67: 198.48 | CB67: 2001-03-06 | CC67: 20.4696 | CE67: 2000-04-03 | CF67: 31.8927 | CH67: 2000-04-03 | CI67: 2.8684 | CK67: 2000-04-03 | CL67: 86.6796 | CN67: 2000-04-03 | CO67: 13.907 | CQ67: 2008-04-03 | CR67: 86.58
E68: 1991-04-08 | F68: 1580 | H68: 2000-04-04 | I68: 7.6639 | K68: 2000-04-04 | L68: 271.54 | N68: 2000-04-04 | O68: 19.13 | Q68: 2000-04-04 | R68: 36.79 | T68: 2000-04-04 | U68: 11.7108 | W68: 2000-04-04 | X68: 18.53 | Z68: 2000-04-04 | AA68: 309.8832 | AC68: 2000-04-04 | AD68: 16.80026 | AF68: 2000-04-04 | AG68: 32.498 | AI68: 2001-05-17 | AJ68: 299.429 | AL68: 2000-04-04 | AM68: 35.2216 | AO68: 2001-02-27 | AP68: 13.141 | AR68: 2000-04-04 | AS68: 44.701 | AU68: 2000-04-04 | AV68: 3.8139 | AX68: 2000-04-04 | AY68: 22.78729 | BA68: 2000-04-04 | BB68: 14.45235 | BD68: 2000-04-04 | BE68: 36.808 | BG68: 2003-04-03 | BH68: 13.961 | BJ68: 2000-06-14 | BK68: 75.691 | BM68: 2000-04-04 | BN68: 20.843 | BP68: 2000-04-04 | BQ68: 28.302 | BS68: 2000-04-04 | BT68: 42.739 | BV68: 2000-04-04 | BW68: 13.081 | BY68: 2000-04-04 | BZ68: 209.68 | CB68: 2001-03-07 | CC68: 20.4948 | CE68: 2000-04-04 | CF68: 31.2943 | CH68: 2000-04-04 | CI68: 2.856 | CK68: 2000-04-04 | CL68: 83.9633 | CN68: 2000-04-04 | CO68: 14.399 | CQ68: 2008-04-04 | CR68: 88.5
E69: 1991-04-09 | F69: 1582.099976 | H69: 2000-04-05 | I69: 7.5505 | K69: 2000-04-05 | L69: 233.89 | N69: 2000-04-05 | O69: 18.666 | Q69: 2000-04-05 | R69: 35.241 | T69: 2000-04-05 | U69: 11.5122 | W69: 2000-04-05 | X69: 18.136 | Z69: 2000-04-05 | AA69: 305.0588 | AC69: 2000-04-05 | AD69: 16.57562 | AF69: 2000-04-05 | AG69: 32.613 | AI69: 2001-05-18 | AJ69: 300.36 | AL69: 2000-04-05 | AM69: 36.6842 | AO69: 2001-02-28 | AP69: 13.254 | AR69: 2000-04-05 | AS69: 45.306 | AU69: 2000-04-05 | AV69: 3.7914 | AX69: 2000-04-05 | AY69: 22.65394 | BA69: 2000-04-05 | BB69: 14.4929 | BD69: 2000-04-05 | BE69: 37.3229 | BG69: 2003-04-04 | BH69: 14.455 | BJ69: 2000-06-15 | BK69: 73.365 | BM69: 2000-04-05 | BN69: 20.843 | BP69: 2000-04-05 | BQ69: 28.271 | BS69: 2000-04-05 | BT69: 40.94 | BV69: 2000-04-05 | BW69: 13.081 | BY69: 2000-04-05 | BZ69: 193.71 | CB69: 2001-03-08 | CC69: 20.0769 | CE69: 2000-04-05 | CF69: 31.414 | CH69: 2000-04-05 | CI69: 2.8663 | CK69: 2000-04-05 | CL69: 81.4852 | CN69: 2000-04-05 | CO69: 13.606 | CQ69: 2008-04-07 | CR69: 88.5
E70: 1991-04-10 | F70: 1561.900024 | H70: 2000-04-06 | I70: 7.6439 | K70: 2000-04-06 | L70: 244.85 | N70: 2000-04-06 | O70: 18.119 | Q70: 2000-04-06 | R70: 34.311 | T70: 2000-04-06 | U70: 11.6774 | W70: 2000-04-06 | X70: 17.59 | Z70: 2000-04-06 | AA70: 305.6813 | AC70: 2000-04-06 | AD70: 16.8901 | AF70: 2000-04-06 | AG70: 32.272 | AI70: 2001-05-21 | AJ70: 302.532 | AL70: 2000-04-06 | AM70: 35.5334 | AO70: 2001-03-01 | AP70: 13.028 | AR70: 2000-04-06 | AS70: 47.438 | AU70: 2000-04-06 | AV70: 3.6672 | AX70: 2000-04-06 | AY70: 22.07611 | BA70: 2000-04-06 | BB70: 14.28998 | BD70: 2000-04-06 | BE70: 37.3229 | BG70: 2003-04-07 | BH70: 14.011 | BJ70: 2000-06-16 | BK70: 75.672 | BM70: 2000-04-06 | BN70: 20.369 | BP70: 2000-04-06 | BQ70: 27.512 | BS70: 2000-04-06 | BT70: 39.86 | BV70: 2000-04-06 | BW70: 13.279 | BY70: 2000-04-06 | BZ70: 192.53 | CB70: 2001-03-09 | CC70: 20.2229 | CE70: 2000-04-06 | CF70: 35.0042 | CH70: 2000-04-06 | CI70: 2.8643 | CK70: 2000-04-06 | CL70: 88.5416 | CN70: 2000-04-06 | CO70: 13.169 | CQ70: 2008-04-08 | CR70: 88.64
E71: 1991-04-11 | F71: 1565.400024 | H71: 2000-04-07 | I71: 7.5038 | K71: 2000-04-07 | L71: 250.76 | N71: 2000-04-07 | O71: 17.93 | Q71: 2000-04-07 | R71: 34.009 | T71: 2000-04-07 | U71: 11.6107 | W71: 2000-04-07 | X71: 17.126 | Z71: 2000-04-07 | AA71: 315.1757 | AC71: 2000-04-07 | AD71: 17.56384 | AF71: 2000-04-07 | AG71: 32.037 | AI71: 2001-05-22 | AJ71: 304.084 | AL71: 2000-04-07 | AM71: 35.8085 | AO71: 2001-03-02 | AP71: 12.835 | AR71: 2000-04-07 | AS71: 47.722 | AU71: 2000-04-07 | AV71: 3.7616 | AX71: 2000-04-07 | AY71: 21.92801 | BA71: 2000-04-07 | BB71: 14.28998 | BD71: 2000-04-07 | BE71: 37.3229 | BG71: 2003-04-08 | BH71: 13.825 | BJ71: 2000-06-19 | BK71: 77.056 | BM71: 2000-04-07 | BN71: 21.054 | BP71: 2000-04-07 | BQ71: 27.102 | BS71: 2000-04-07 | BT71: 39.509 | BV71: 2000-04-07 | BW71: 13.319 | BY71: 2000-04-07 | BZ71: 201.46 | CB71: 2001-03-12 | CC71: 20.1927 | CE71: 2000-04-07 | CF71: 35.4829 | CH71: 2000-04-07 | CI71: 2.8478 | CK71: 2000-04-07 | CL71: 91.5628 | CN71: 2000-04-07 | CO71: 13.115 | CQ71: 2008-04-09 | CR71: 89.47
E72: 1991-04-12 | F72: 1583.099976 | H72: 2000-04-10 | I72: 7.6532 | K72: 2000-04-10 | L72: 244.11 | N72: 2000-04-10 | O72: 17.798 | Q72: 2000-04-10 | R72: 34.931 | T72: 2000-04-10 | U72: 12.1945 | W72: 2000-04-10 | X72: 17.754 | Z72: 2000-04-10 | AA72: 313.2297 | AC72: 2000-04-10 | AD72: 17.78848 | AF72: 2000-04-10 | AG72: 32.129 | AI72: 2001-05-23 | AJ72: 299.429 | AL72: 2000-04-10 | AM72: 35.2125 | AO72: 2001-03-05 | AP72: 12.83 | AR72: 2000-04-10 | AS72: 48.567 | AU72: 2000-04-10 | AV72: 3.7761 | AX72: 2000-04-10 | AY72: 21.70577 | BA72: 2000-04-10 | BB72: 14.12754 | BD72: 2000-04-10 | BE72: 37.3872 | BG72: 2003-04-09 | BH72: 13.775 | BJ72: 2000-06-20 | BK72: 79.363 | BM72: 2000-04-10 | BN72: 20.614 | BP72: 2000-04-10 | BQ72: 26.982 | BS72: 2000-04-10 | BT72: 40.58 | BV72: 2000-04-10 | BW72: 12.685 | BY72: 2000-04-10 | BZ72: 208.97 | CB72: 2001-03-13 | CC72: 19.528 | CE72: 2000-04-10 | CF72: 32.8501 | CH72: 2000-04-10 | CI72: 2.8849 | CK72: 2000-04-10 | CL72: 93.3335 | CN72: 2000-04-10 | CO72: 13.388 | CQ72: 2008-04-10 | CR72: 89.55
E73: 1991-04-15 | F73: 1601.400024 | H73: 2000-04-11 | I73: 7.6772 | K73: 2000-04-11 | L73: 251.97 | N73: 2000-04-11 | O73: 17.99 | Q73: 2000-04-11 | R73: 34.389 | T73: 2000-04-11 | U73: 11.4439 | W73: 2000-04-11 | X73: 17.727 | Z73: 2000-04-11 | AA73: 311.2069 | AC73: 2000-04-11 | AD73: 18.09395 | AF73: 2000-04-11 | AG73: 32.106 | AI73: 2001-05-24 | AJ73: 299.429 | AL73: 2000-04-11 | AM73: 35.5334 | AO73: 2001-03-06 | AP73: 12.626 | AR73: 2000-04-11 | AS73: 46.212 | AU73: 2000-04-11 | AV73: 3.9504 | AX73: 2000-04-11 | AY73: 21.48352 | BA73: 2000-04-11 | BB73: 14.20872 | BD73: 2000-04-11 | BE73: 36.8402 | BG73: 2003-04-10 | BH73: 13.911 | BJ73: 2000-06-21 | BK73: 81.209 | BM73: 2000-04-11 | BN73: 20.437 | BP73: 2000-04-11 | BQ73: 27.993 | BS73: 2000-04-11 | BT73: 39.95 | BV73: 2000-04-11 | BW73: 12.645 | BY73: 2000-04-11 | BZ73: 205.81 | CB73: 2001-03-15 | CC73: 19.7294 | CE73: 2000-04-11 | CF73: 30.5763 | CH73: 2000-04-11 | CI73: 2.8271 | CK73: 2000-04-11 | CL73: 88.5964 | CN73: 2000-04-11 | CO73: 13.251 | CQ73: 2008-04-11 | CR73: 88.92
E74: 1991-04-16 | F74: 1603.400024 | H74: 2000-04-12 | I74: 8.0974 | K74: 2000-04-12 | L74: 255.28 | N74: 2000-04-12 | O74: 18.606 | Q74: 2000-04-12 | R74: 34.675 | T74: 2000-04-12 | U74: 11.6774 | W74: 2000-04-12 | X74: 17.754 | Z74: 2000-04-12 | AA74: 315.0971 | AC74: 2000-04-12 | AD74: 18.18379 | AF74: 2000-04-12 | AG74: 32.36 | AI74: 2001-05-25 | AJ74: 304.084 | AL74: 2000-04-12 | AM74: 35.648 | AO74: 2001-03-07 | AP74: 12.66 | AR74: 2000-04-12 | AS74: 44.218 | AU74: 2000-04-12 | AV74: 4.0013 | AX74: 2000-04-12 | AY74: 21.63163 | BA74: 2000-04-12 | BB74: 14.45235 | BD74: 2000-04-12 | BE74: 37.2907 | BG74: 2003-04-11 | BH74: 13.761 | BJ74: 2000-06-22 | BK74: 82.058 | BM74: 2000-04-12 | BN74: 20.766 | BP74: 2000-04-12 | BQ74: 27.639 | BS74: 2000-04-12 | BT74: 40.283 | BV74: 2000-04-12 | BW74: 12.685 | BY74: 2000-04-12 | BZ74: 213.02 | CB74: 2001-03-16 | CC74: 18.6468 | CE74: 2000-04-12 | CF74: 31.055 | CH74: 2000-04-12 | CI74: 2.9406 | CK74: 2000-04-12 | CL74: 86.4049 | CN74: 2000-04-12 | CO74: 13.109 | CQ74: 2008-04-14 | CR74: 88.25
E75: 1991-04-17 | F75: 1623.800049 | H75: 2000-04-13 | I75: 8.5977 | K75: 2000-04-13 | L75: 258.51 | N75: 2000-04-13 | O75: 18.761 | Q75: 2000-04-13 | R75: 34.505 | T75: 2000-04-13 | U75: 11.4689 | W75: 2000-04-13 | X75: 17.535 | Z75: 2000-04-13 | AA75: 322.9572 | AC75: 2000-04-13 | AD75: 17.96816 | AF75: 2000-04-13 | AG75: 32.268 | AI75: 2001-05-28 | AJ75: 308.738 | AL75: 2000-04-13 | AM75: 35.327 | AO75: 2001-03-08 | AP75: 12.886 | AR75: 2000-04-13 | AS75: 45.082 | AU75: 2000-04-13 | AV75: 3.9577 | AX75: 2000-04-13 | AY75: 22.2836 | BA75: 2000-04-13 | BB75: 14.20872 | BD75: 2000-04-13 | BE75: 37.4194 | BG75: 2003-04-14 | BH75: 13.94 | BJ75: 2000-06-23 | BK75: 83.055 | BM75: 2000-04-13 | BN75: 20.716 | BP75: 2000-04-13 | BQ75: 27.171 | BS75: 2000-04-13 | BT75: 40.085 | BV75: 2000-04-13 | BW75: 12.808 | BY75: 2000-04-13 | BZ75: 212.25 | CB75: 2001-03-19 | CC75: 18.9338 | CE75: 2000-04-13 | CF75: 29.0505 | CH75: 2000-04-13 | CI75: 2.8478 | CK75: 2000-04-13 | CL75: 87.7479 | CN75: 2000-04-13 | CO75: 12.951 | CQ75: 2008-04-15 | CR75: 88
E76: 1991-04-18 | F76: 1613.800049 | H76: 2000-04-14 | I76: 8.2041 | K76: 2000-04-14 | L76: 251.74 | N76: 2000-04-14 | O76: 18.36 | Q76: 2000-04-14 | R76: 34.327 | T76: 2000-04-14 | U76: 11.1769 | W76: 2000-04-14 | X76: 16.88 | Z76: 2000-04-14 | AA76: 326.8483 | AC76: 2000-04-14 | AD76: 17.59979 | AF76: 2000-04-14 | AG76: 31.825 | AI76: 2001-05-29 | AJ76: 300.981 | AL76: 2000-04-14 | AM76: 35.4188 | AO76: 2001-03-09 | AP76: 12.982 | AR76: 2000-04-14 | AS76: 42.291 | AU76: 2000-04-14 | AV76: 3.8488 | AX76: 2000-04-14 | AY76: 22.2243 | BA76: 2000-04-14 | BB76: 14.12754 | BD76: 2000-04-14 | BE76: 40.4696 | BG76: 2003-04-15 | BH76: 13.596 | BJ76: 2000-06-26 | BK76: 80.425 | BM76: 2000-04-14 | BN76: 20.716 | BP76: 2000-04-14 | BQ76: 27.146 | BS76: 2000-04-14 | BT76: 39.878 | BV76: 2000-04-14 | BW76: 12.705 | BY76: 2000-04-14 | BZ76: 212.25 | CB76: 2001-03-20 | CC76: 18.7676 | CE76: 2000-04-14 | CF76: 29.0505 | CH76: 2000-04-14 | CI76: 2.8374 | CK76: 2000-04-14 | CL76: 82.2234 | CN76: 2000-04-14 | CO76: 12.054 | CQ76: 2008-04-16 | CR76: 88.65
E77: 1991-04-19 | F77: 1599.400024 | H77: 2000-04-17 | I77: 8.5443 | K77: 2000-04-17 | L77: 245.59 | N77: 2000-04-17 | O77: 18.251 | Q77: 2000-04-17 | R77: 33.808 | T77: 2000-04-17 | U77: 11.3438 | W77: 2000-04-17 | X77: 17.153 | Z77: 2000-04-17 | AA77: 314.7863 | AC77: 2000-04-17 | AD77: 17.38416 | AF77: 2000-04-17 | AG77: 31.553 | AI77: 2001-05-30 | AJ77: 303.696 | AL77: 2000-04-17 | AM77: 33.8828 | AO77: 2001-03-12 | AP77: 12.875 | AR77: 2000-04-17 | AS77: 42.889 | AU77: 2000-04-17 | AV77: 3.8814 | AX77: 2000-04-17 | AY77: 22.3132 | BA77: 2000-04-17 | BB77: 13.47799 | BD77: 2000-04-17 | BE77: 40.0256 | BG77: 2003-04-16 | BH77: 13.546 | BJ77: 2000-06-27 | BK77: 85.177 | BM77: 2000-04-17 | BN77: 19.532 | BP77: 2000-04-17 | BQ77: 26.975 | BS77: 2000-04-17 | BT77: 39.275 | BV77: 2000-04-17 | BW77: 12.645 | BY77: 2000-04-17 | BZ77: 194.31 | CB77: 2001-03-21 | CC77: 18.3044 | CE77: 2000-04-17 | CF77: 29.9181 | CH77: 2000-04-17 | CI77: 2.757 | CK77: 2000-04-17 | CL77: 86.3803 | CN77: 2000-04-17 | CO77: 12.508 | CQ77: 2008-04-17 | CR77: 89.09
E78: 1991-04-22 | F78: 1571.900024 | H78: 2000-04-18 | I78: 8.5243 | K78: 2000-04-18 | L78: 246.19 | N78: 2000-04-18 | O78: 17.858 | Q78: 2000-04-18 | R78: 33.653 | T78: 2000-04-18 | U78: 11.3771 | W78: 2000-04-18 | X78: 16.443 | Z78: 2000-04-18 | AA78: 323.736 | AC78: 2000-04-18 | AD78: 17.6088 | AF78: 2000-04-18 | AG78: 31.673 | AI78: 2001-05-31 | AJ78: 311.453 | AL78: 2000-04-18 | AM78: 33.6535 | AO78: 2001-03-13 | AP78: 12.915 | AR78: 2000-04-18 | AS78: 43.856 | AU78: 2000-04-18 | AV78: 3.9497 | AX78: 2000-04-18 | AY78: 22.01691 | BA78: 2000-04-18 | BB78: 13.47799 | BD78: 2000-04-18 | BE78: 40.0256 | BG78: 2003-04-17 | BH78: 13.875 | BJ78: 2000-06-28 | BK78: 81.209 | BM78: 2000-04-18 | BN78: 19.735 | BP78: 2000-04-18 | BQ78: 27.291 | BS78: 2000-04-18 | BT78: 39.095 | BV78: 2000-04-18 | BW78: 12.09 | BY78: 2000-04-18 | BZ78: 188.94 | CB78: 2001-03-22 | CC78: 17.967 | CE78: 2000-04-18 | CF78: 30.0677 | CH78: 2000-04-18 | CI78: 2.7508 | CK78: 2000-04-18 | CL78: 89.0909 | CN78: 2000-04-18 | CO78: 12.732 | CQ78: 2008-04-18 | CR78: 88.9
E79: 1991-04-23 | F79: 1597.099976 | H79: 2000-04-19 | I79: 8.3375 | K79: 2000-04-19 | L79: 246.48 | N79: 2000-04-19 | O79: 17.175 | Q79: 2000-04-19 | R79: 33.111 | T79: 2000-04-19 | U79: 11.6607 | W79: 2000-04-19 | X79: 16.388 | Z79: 2000-04-19 | AA79: 339.2998 | AC79: 2000-04-19 | AD79: 17.38416 | AF79: 2000-04-19 | AG79: 31.207 | AI79: 2001-06-01 | AJ79: 30.703 | AL79: 2000-04-19 | AM79: 33.7223 | AO79: 2001-03-15 | AP79: 12.745 | AR79: 2000-04-19 | AS79: 42.883 | AU79: 2000-04-19 | AV79: 3.9352 | AX79: 2000-04-19 | AY79: 21.85387 | BA79: 2000-04-19 | BB79: 13.96517 | BD79: 2000-04-19 | BE79: 41.1453 | BG79: 2003-04-18 | BH79: 13.875 | BJ79: 2000-06-29 | BK79: 77.389 | BM79: 2000-04-19 | BN79: 19.87 | BP79: 2000-04-19 | BQ79: 27.74 | BS79: 2000-04-19 | BT79: 38.465 | BV79: 2000-04-19 | BW79: 12.07 | BY79: 2000-04-19 | BZ79: 184.17 | CB79: 2001-03-23 | CC79: 18.9489 | CE79: 2000-04-19 | CF79: 31.9764 | CH79: 2000-04-19 | CI79: 2.9509 | CK79: 2000-04-19 | CL79: 89.0909 | CN79: 2000-04-19 | CO79: 12.677 | CQ79: 2008-04-21 | CR79: 89.26
E80: 1991-04-24 | F80: 1603.699951 | H80: 2000-04-20 | I80: 8.3375 | K80: 2000-04-20 | L80: 245.9 | N80: 2000-04-20 | O80: 17.368 | Q80: 2000-04-20 | R80: 32.956 | T80: 2000-04-20 | U80: 11.3438 | W80: 2000-04-20 | X80: 16.394 | Z80: 2000-04-20 | AA80: 327.6272 | AC80: 2000-04-20 | AD80: 17.38416 | AF80: 2000-04-20 | AG80: 30.647 | AI80: 2001-06-04 | AJ80: 31.029 | AL80: 2000-04-20 | AM80: 33.5619 | AO80: 2001-03-16 | AP80: 9.131 | AR80: 2000-04-20 | AS80: 44.279 | AU80: 2000-04-20 | AV80: 3.872 | AX80: 2000-04-20 | AY80: 21.72052 | BA80: 2000-04-20 | BB80: 13.88398 | BD80: 2000-04-20 | BE80: 40.8621 | BG80: 2003-04-21 | BH80: 13.875 | BJ80: 2000-06-30 | BK80: 76.41 | BM80: 2000-04-20 | BN80: 19.447 | BP80: 2000-04-20 | BQ80: 27.039 | BS80: 2000-04-20 | BT80: 38.285 | BV80: 2000-04-20 | BW80: 12.169 | BY80: 2000-04-20 | BZ80: 178.81 | CB80: 2001-03-26 | CC80: 19.1553 | CE80: 2000-04-20 | CF80: 29.8254 | CH80: 2000-04-20 | CI80: 2.8581 | CK80: 2000-04-20 | CL80: 91.4714 | CN80: 2000-04-20 | CO80: 12.514 | CQ80: 2008-04-22 | CR80: 90.85
E81: 1991-04-25 | F81: 1620.5 | H81: 2000-04-21 | I81: 8.3375 | K81: 2000-04-21 | L81: 245.9 | N81: 2000-04-21 | O81: 17.368 | Q81: 2000-04-21 | R81: 32.956 | T81: 2000-04-21 | U81: 11.3438 | W81: 2000-04-21 | X81: 16.394 | Z81: 2000-04-21 | AA81: 327.6272 | AC81: 2000-04-21 | AD81: 17.38416 | AF81: 2000-04-21 | AG81: 30.647 | AI81: 2001-06-05 | AJ81: 32.2 | AL81: 2000-04-21 | AM81: 33.5619 | AO81: 2001-03-19 | AP81: 12.399 | AR81: 2000-04-21 | AS81: 44.279 | AU81: 2000-04-21 | AV81: 3.872 | AX81: 2000-04-21 | AY81: 21.72052 | BA81: 2000-04-21 | BB81: 13.88398 | BD81: 2000-04-21 | BE81: 40.8621 | BG81: 2003-04-22 | BH81: 13.904 | BJ81: 2000-07-03 | BK81: 70.892 | BM81: 2000-04-21 | BN81: 19.447 | BP81: 2000-04-21 | BQ81: 27.039 | BS81: 2000-04-21 | BT81: 38.285 | BV81: 2000-04-21 | BW81: 12.169 | BY81: 2000-04-21 | BZ81: 178.81 | CB81: 2001-03-27 | CC81: 19.7747 | CE81: 2000-04-21 | CF81: 29.8254 | CH81: 2000-04-21 | CI81: 2.8581 | CK81: 2000-04-21 | CL81: 91.4714 | CN81: 2000-04-21 | CO81: 12.514 | CQ81: 2008-04-23 | CR81: 88.5
E82: 1991-04-26 | F82: 1623.800049 | H82: 2000-04-24 | I82: 8.3375 | K82: 2000-04-24 | L82: 245.9 | N82: 2000-04-24 | O82: 17.368 | Q82: 2000-04-24 | R82: 32.956 | T82: 2000-04-24 | U82: 11.3438 | W82: 2000-04-24 | X82: 16.394 | Z82: 2000-04-24 | AA82: 327.6272 | AC82: 2000-04-24 | AD82: 17.38416 | AF82: 2000-04-24 | AG82: 30.647 | AI82: 2001-06-06 | AJ82: 31.843 | AL82: 2000-04-24 | AM82: 33.5619 | AO82: 2001-03-20 | AP82: 11.782 | AR82: 2000-04-24 | AS82: 44.279 | AU82: 2000-04-24 | AV82: 3.872 | AX82: 2000-04-24 | AY82: 21.72052 | BA82: 2000-04-24 | BB82: 13.88398 | BD82: 2000-04-24 | BE82: 40.8621 | BG82: 2003-04-23 | BH82: 14.312 | BJ82: 2000-07-04 | BK82: 72.442 | BM82: 2000-04-24 | BN82: 19.447 | BP82: 2000-04-24 | BQ82: 27.039 | BS82: 2000-04-24 | BT82: 38.285 | BV82: 2000-04-24 | BW82: 12.169 | BY82: 2000-04-24 | BZ82: 178.81 | CB82: 2001-03-28 | CC82: 20.4444 | CE82: 2000-04-24 | CF82: 29.8254 | CH82: 2000-04-24 | CI82: 2.8581 | CK82: 2000-04-24 | CL82: 91.4714 | CN82: 2000-04-24 | CO82: 12.514 | CQ82: 2008-04-24 | CR82: 86.67
E83: 1991-04-29 | F83: 1620.300049 | H83: 2000-04-25 | I83: 8.7377 | K83: 2000-04-25 | L83: 255.13 | N83: 2000-04-25 | O83: 18.024 | Q83: 2000-04-25 | R83: 33.986 | T83: 2000-04-25 | U83: 11.3104 | W83: 2000-04-25 | X83: 16.771 | Z83: 2000-04-25 | AA83: 332.2962 | AC83: 2000-04-25 | AD83: 17.87832 | AF83: 2000-04-25 | AG83: 31.59 | AI83: 2001-06-07 | AJ83: 33.286 | AL83: 2000-04-25 | AM83: 34.0662 | AO83: 2001-03-21 | AP83: 11.3 | AR83: 2000-04-25 | AS83: 43.336 | AU83: 2000-04-25 | AV83: 3.8996 | AX83: 2000-04-25 | AY83: 22.68364 | BA83: 2000-04-25 | BB83: 14.89079 | BD83: 2000-04-25 | BE83: 40.9265 | BG83: 2003-04-24 | BH83: 14.161 | BJ83: 2000-07-05 | BK83: 70.135 | BM83: 2000-04-25 | BN83: 19.87 | BP83: 2000-04-25 | BQ83: 26.975 | BS83: 2000-04-25 | BT83: 39.482 | BV83: 2000-04-25 | BW83: 12.209 | BY83: 2000-04-25 | BZ83: 189.24 | CB83: 2001-03-29 | CC83: 20.6207 | CE83: 2000-04-25 | CF83: 29.9181 | CH83: 2000-04-25 | CI83: 2.889 | CK83: 2000-04-25 | CL83: 92.5398 | CN83: 2000-04-25 | CO83: 12.732 | CQ83: 2008-04-25 | CR83: 87.76
E84: 1991-04-30 | F84: 1605.800049 | H84: 2000-04-26 | I84: 9.2967 | K84: 2000-04-26 | L84: 256.66 | N84: 2000-04-26 | O84: 18.421 | Q84: 2000-04-26 | R84: 34.544 | T84: 2000-04-26 | U84: 11.4772 | W84: 2000-04-26 | X84: 16.661 | Z84: 2000-04-26 | AA84: 329.1829 | AC84: 2000-04-26 | AD84: 18.10287 | AF84: 2000-04-26 | AG84: 31.663 | AI84: 2001-06-08 | AJ84: 32.968 | AL84: 2000-04-26 | AM84: 33.7223 | AO84: 2001-03-22 | AP84: 10.932 | AR84: 2000-04-26 | AS84: 44.822 | AU84: 2000-04-26 | AV84: 3.8851 | AX84: 2000-04-26 | AY84: 23.17257 | BA84: 2000-04-26 | BB84: 14.98009 | BD84: 2000-04-26 | BE84: 41.5378 | BG84: 2003-04-25 | BH84: 13.904 | BJ84: 2000-07-06 | BK84: 70.689 | BM84: 2000-04-26 | BN84: 19.946 | BP84: 2000-04-26 | BQ84: 26.596 | BS84: 2000-04-26 | BT84: 40.13 | BV84: 2000-04-26 | BW84: 12.883 | BY84: 2000-04-26 | BZ84: 191.92 | CB84: 2001-03-30 | CC84: 20.4948 | CE84: 2000-04-26 | CF84: 30.696 | CH84: 2000-04-26 | CI84: 2.9055 | CK84: 2000-04-26 | CL84: 95.2258 | CN84: 2000-04-26 | CO84: 12.732 | CQ84: 2008-04-28 | CR84: 88.58
E85: 1991-05-02 | F85: 1630 | H85: 2000-04-27 | I85: 9.338 | K85: 2000-04-27 | L85: 250.34 | N85: 2000-04-27 | O85: 18.496 | Q85: 2000-04-27 | R85: 34.203 | T85: 2000-04-27 | U85: 11.5106 | W85: 2000-04-27 | X85: 16.498 | Z85: 2000-04-27 | AA85: 319.066 | AC85: 2000-04-27 | AD85: 17.68963 | AF85: 2000-04-27 | AG85: 30.812 | AI85: 2001-06-11 | AJ85: 33.154 | AL85: 2000-04-27 | AM85: 33.5206 | AO85: 2001-03-23 | AP85: 10.83 | AR85: 2000-04-27 | AS85: 42.285 | AU85: 2000-04-27 | AV85: 3.9068 | AX85: 2000-04-27 | AY85: 23.26147 | BA85: 2000-04-27 | BB85: 15.02071 | BD85: 2000-04-27 | BE85: 41.4413 | BG85: 2003-04-28 | BH85: 14.104 | BJ85: 2000-07-07 | BK85: 70.689 | BM85: 2000-04-27 | BN85: 19.278 | BP85: 2000-04-27 | BQ85: 26.255 | BS85: 2000-04-27 | BT85: 39.734 | BV85: 2000-04-27 | BW85: 12.209 | BY85: 2000-04-27 | BZ85: 186.26 | CB85: 2001-04-02 | CC85: 21.0638 | CE85: 2000-04-27 | CF85: 29.9205 | CH85: 2000-04-27 | CI85: 2.889 | CK85: 2000-04-27 | CL85: 92.5398 | CN85: 2000-04-27 | CO85: 12.432 | CQ85: 2008-04-29 | CR85: 90.16
E86: 1991-05-03 | F86: 1631.800049 | H86: 2000-04-28 | I86: 9.3981 | K86: 2000-04-28 | L86: 260.54 | N86: 2000-04-28 | O86: 18.153 | Q86: 2000-04-28 | R86: 35.496 | T86: 2000-04-28 | U86: 11.961 | W86: 2000-04-28 | X86: 16.17 | Z86: 2000-04-28 | AA86: 323.8914 | AC86: 2000-04-28 | AD86: 18.09395 | AF86: 2000-04-28 | AG86: 31.034 | AI86: 2001-06-12 | AJ86: 32.193 | AL86: 2000-04-28 | AM86: 33.8828 | AO86: 2001-03-26 | AP86: 11.283 | AR86: 2000-04-28 | AS86: 43.125 | AU86: 2000-04-28 | AV86: 4.0085 | AX86: 2000-04-28 | AY86: 24.52079 | BA86: 2000-04-28 | BB86: 15.1019 | BD86: 2000-04-28 | BE86: 41.6343 | BG86: 2003-04-29 | BH86: 13.832 | BJ86: 2000-07-10 | BK86: 71.889 | BM86: 2000-04-28 | BN86: 19.321 | BP86: 2000-04-28 | BQ86: 27.279 | BS86: 2000-04-28 | BT86: 41.236 | BV86: 2000-04-28 | BW86: 12.526 | BY86: 2000-04-28 | BZ86: 192.22 | CB86: 2001-04-03 | CC86: 20.6409 | CE86: 2000-04-28 | CF86: 30.8157 | CH86: 2000-04-28 | CI86: 3.0314 | CK86: 2000-04-28 | CL86: 99.4986 | CN86: 2000-04-28 | CO86: 12.623 | CQ86: 2008-04-30 | CR86: 91.14
E87: 1991-05-06 | F87: 1624 | H87: 2000-05-01 | I87: 9.3981 | K87: 2000-05-01 | L87: 260.54 | N87: 2000-05-01 | O87: 18.153 | Q87: 2000-05-01 | R87: 35.496 | T87: 2000-05-01 | U87: 11.961 | W87: 2000-05-01 | X87: 16.17 | Z87: 2000-05-01 | AA87: 323.8914 | AC87: 2000-05-01 | AD87: 18.09395 | AF87: 2000-05-01 | AG87: 31.034 | AI87: 2001-06-13 | AJ87: 32.27 | AL87: 2000-05-01 | AM87: 33.8828 | AO87: 2001-03-27 | AP87: 11.159 | AR87: 2000-05-01 | AS87: 43.125 | AU87: 2000-05-01 | AV87: 4.0085 | AX87: 2000-05-01 | AY87: 24.52079 | BA87: 2000-05-01 | BB87: 15.1019 | BD87: 2000-05-01 | BE87: 41.6343 | BG87: 2003-04-30 | BH87: 13.875 | BJ87: 2000-07-11 | BK87: 70.892 | BM87: 2000-05-01 | BN87: 19.321 | BP87: 2000-05-01 | BQ87: 27.279 | BS87: 2000-05-01 | BT87: 41.236 | BV87: 2000-05-01 | BW87: 12.526 | BY87: 2000-05-01 | BZ87: 192.22 | CB87: 2001-04-04 | CC87: 20.5703 | CE87: 2000-05-01 | CF87: 30.8157 | CH87: 2000-05-01 | CI87: 3.0314 | CK87: 2000-05-01 | CL87: 99.4986 | CN87: 2000-05-01 | CO87: 12.623 | CQ87: 2008-05-02 | CR87: 92.07
E88: 1991-05-07 | F88: 1627.5 | H88: 2000-05-02 | I88: 9.338 | K88: 2000-05-02 | L88: 266.27 | N88: 2000-05-02 | O88: 17.987 | Q88: 2000-05-02 | R88: 34.389 | T88: 2000-05-02 | U88: 11.8275 | W88: 2000-05-02 | X88: 17.208 | Z88: 2000-05-02 | AA88: 322.0239 | AC88: 2000-05-02 | AD88: 17.81542 | AF88: 2000-05-02 | AG88: 31.228 | AI88: 2001-06-14 | AJ88: 32.386 | AL88: 2000-05-02 | AM88: 34.1808 | AO88: 2001-03-28 | AP88: 11.329 | AR88: 2000-05-02 | AS88: 45.306 | AU88: 2000-05-02 | AV88: 3.9904 | AX88: 2000-05-02 | AY88: 24.32823 | BA88: 2000-05-02 | BB88: 15.01984 | BD88: 2000-05-02 | BE88: 43.1144 | BG88: 2003-05-01 | BH88: 13.875 | BJ88: 2000-07-12 | BK88: 73.088 | BM88: 2000-05-02 | BN88: 19.667 | BP88: 2000-05-02 | BQ88: 26.9 | BS88: 2000-05-02 | BT88: 39.95 | BV88: 2000-05-02 | BW88: 13.081 | BY88: 2000-05-02 | BZ88: 194.9 | CB88: 2001-04-05 | CC88: 21.1192 | CE88: 2000-05-02 | CF88: 31.1148 | CH88: 2000-05-02 | CI88: 3.116 | CK88: 2000-05-02 | CL88: 103.4665 | CN88: 2000-05-02 | CO88: 12.841 | CQ88: 2008-05-05 | CR88: 91.53
E89: 1991-05-08 | F89: 1607.300049 | H89: 2000-05-03 | I89: 9.2046 | K89: 2000-05-03 | L89: 260.05 | N89: 2000-05-03 | O89: 17.949 | Q89: 2000-05-03 | R89: 34.141 | T89: 2000-05-03 | U89: 11.8442 | W89: 2000-05-03 | X89: 16.798 | Z89: 2000-05-03 | AA89: 321.0121 | AC89: 2000-05-03 | AD89: 17.92319 | AF89: 2000-05-03 | AG89: 31.203 | AI89: 2001-06-18 | AJ89: 32.58 | AL89: 2000-05-03 | AM89: 33.9424 | AO89: 2001-03-29 | AP89: 11.425 | AR89: 2000-05-03 | AS89: 42.164 | AU89: 2000-05-03 | AV89: 3.986 | AX89: 2000-05-03 | AY89: 24.72827 | BA89: 2000-05-03 | BB89: 15.66617 | BD89: 2000-05-03 | BE89: 43.7579 | BG89: 2003-05-02 | BH89: 13.875 | BJ89: 2000-07-13 | BK89: 73.088 | BM89: 2000-05-03 | BN89: 19.447 | BP89: 2000-05-03 | BQ89: 27.626 | BS89: 2000-05-03 | BT89: 39.662 | BV89: 2000-05-03 | BW89: 12.962 | BY89: 2000-05-03 | BZ89: 188.94 | CB89: 2001-04-06 | CC89: 21.0034 | CE89: 2000-05-03 | CF89: 30.9891 | CH89: 2000-05-03 | CI89: 3.1986 | CK89: 2000-05-03 | CL89: 99.5597 | CN89: 2000-05-03 | CO89: 12.847 | CQ89: 2008-05-06 | CR89: 89.97
E90: 1991-05-10 | F90: 1620.599976 | H90: 2000-05-04 | I90: 8.8711 | K90: 2000-05-04 | L90: 259.13 | N90: 2000-05-04 | O90: 18.308 | Q90: 2000-05-04 | R90: 34.66 | T90: 2000-05-04 | U90: 12.0945 | W90: 2000-05-04 | X90: 17.208 | Z90: 2000-05-04 | AA90: 323.0358 | AC90: 2000-05-04 | AD90: 18.58802 | AF90: 2000-05-04 | AG90: 31.324 | AI90: 2001-06-19 | AJ90: 32.58 | AL90: 2000-05-04 | AM90: 34.7265 | AO90: 2001-03-30 | AP90: 10.989 | AR90: 2000-05-04 | AS90: 40.31 | AU90: 2000-05-04 | AV90: 3.9911 | AX90: 2000-05-04 | AY90: 24.81717 | BA90: 2000-05-04 | BB90: 15.67027 | BD90: 2000-05-04 | BE90: 43.0243 | BG90: 2003-05-05 | BH90: 14.276 | BJ90: 2000-07-14 | BK90: 78.441 | BM90: 2000-05-04 | BN90: 19.667 | BP90: 2000-05-04 | BQ90: 27.702 | BS90: 2000-05-04 | BT90: 40.265 | BV90: 2000-05-04 | BW90: 13.081 | BY90: 2000-05-04 | BZ90: 189.42 | CB90: 2001-04-09 | CC90: 21.6681 | CE90: 2000-05-04 | CF90: 30.7558 | CH90: 2000-05-04 | CI90: 3.2914 | CK90: 2000-05-04 | CL90: 100.0781 | CN90: 2000-05-04 | CO90: 12.891 | CQ90: 2008-05-07 | CR90: 88.95
E91: 1991-05-13 | F91: 1610.900024 | H91: 2000-05-05 | I91: 9.3647 | K91: 2000-05-05 | L91: 260.23 | N91: 2000-05-05 | O91: 18.44 | Q91: 2000-05-05 | R91: 34.311 | T91: 2000-05-05 | U91: 12.5115 | W91: 2000-05-05 | X91: 17.967 | Z91: 2000-05-05 | AA91: 333.3858 | AC91: 2000-05-05 | AD91: 18.73183 | AF91: 2000-05-05 | AG91: 31.349 | AI91: 2001-06-20 | AJ91: 32.58 | AL91: 2000-05-05 | AM91: 34.8456 | AO91: 2001-04-02 | AP91: 10.853 | AR91: 2000-05-05 | AS91: 42.225 | AU91: 2000-05-05 | AV91: 4.0245 | AX91: 2000-05-05 | AY91: 25.03941 | BA91: 2000-05-05 | BB91: 15.18308 | BD91: 2000-05-05 | BE91: 43.5969 | BG91: 2003-05-06 | BH91: 13.618 | BJ91: 2000-07-17 | BK91: 81.855 | BM91: 2000-05-05 | BN91: 20.716 | BP91: 2000-05-05 | BQ91: 28.428 | BS91: 2000-05-05 | BT91: 39.86 | BV91: 2000-05-05 | BW91: 13.478 | BY91: 2000-05-05 | BZ91: 189.24 | CB91: 2001-04-10 | CC91: 21.6429 | CE91: 2000-05-05 | CF91: 31.1119 | CH91: 2000-05-05 | CI91: 3.2584 | CK91: 2000-05-05 | CL91: 103.7714 | CN91: 2000-05-05 | CO91: 13.115 | CQ91: 2008-05-08 | CR91: 89.79
E92: 1991-05-14 | F92: 1598.5 | H92: 2000-05-08 | I92: 9.27 | K92: 2000-05-08 | L92: 251.74 | N92: 2000-05-08 | O92: 18.496 | Q92: 2000-05-08 | R92: 34.025 | T92: 2000-05-08 | U92: 12.7617 | W92: 2000-05-08 | X92: 18.164 | Z92: 2000-05-08 | AA92: 329.9617 | AC92: 2000-05-08 | AD92: 18.65091 | AF92: 2000-05-08 | AG92: 31.005 | AI92: 2001-06-21 | AJ92: 32.58 | AL92: 2000-05-08 | AM92: 34.8456 | AO92: 2001-04-03 | AP92: 10.705 | AR92: 2000-05-08 | AS92: 40.473 | AU92: 2000-05-08 | AV92: 4.023 | AX92: 2000-05-08 | AY92: 24.98012 | BA92: 2000-05-08 | BB92: 15.22364 | BD92: 2000-05-08 | BE92: 43.1144 | BG92: 2003-05-07 | BH92: 13.796 | BJ92: 2000-07-18 | BK92: 78.358 | BM92: 2000-05-08 | BN92: 20.927 | BP92: 2000-05-08 | BQ92: 28.53 | BS92: 2000-05-08 | BT92: 39.527 | BV92: 2000-05-08 | BW92: 13.2 | BY92: 2000-05-08 | BZ92: 186.23 | CB92: 2001-04-11 | CC92: 21.4516 | CE92: 2000-05-08 | CF92: 30.8157 | CH92: 2000-05-08 | CI92: 3.1986 | CK92: 2000-05-08 | CL92: 103.7714 | CN92: 2000-05-08 | CO92: 13.415 | CQ92: 2008-05-09 | CR92: 89.21
E93: 1991-05-15 | F93: 1590.400024 | H93: 2000-05-09 | I93: 9.27 | K93: 2000-05-09 | L93: 251.74 | N93: 2000-05-09 | O93: 18.496 | Q93: 2000-05-09 | R93: 34.025 | T93: 2000-05-09 | U93: 12.7617 | W93: 2000-05-09 | X93: 18.164 | Z93: 2000-05-09 | AA93: 329.9617 | AC93: 2000-05-09 | AD93: 18.65091 | AF93: 2000-05-09 | AG93: 31.005 | AI93: 2001-06-22 | AJ93: 32.58 | AL93: 2000-05-09 | AM93: 34.8456 | AO93: 2001-04-04 | AP93: 10.201 | AR93: 2000-05-09 | AS93: 40.473 | AU93: 2000-05-09 | AV93: 4.023 | AX93: 2000-05-09 | AY93: 24.98012 | BA93: 2000-05-09 | BB93: 15.22364 | BD93: 2000-05-09 | BE93: 43.1144 | BG93: 2003-05-08 | BH93: 13.396 | BJ93: 2000-07-19 | BK93: 76.669 | BM93: 2000-05-09 | BN93: 20.927 | BP93: 2000-05-09 | BQ93: 28.53 | BS93: 2000-05-09 | BT93: 39.527 | BV93: 2000-05-09 | BW93: 13.2 | BY93: 2000-05-09 | BZ93: 186.23 | CB93: 2001-04-12 | CC93: 21.5019 | CE93: 2000-05-09 | CF93: 30.8157 | CH93: 2000-05-09 | CI93: 3.1986 | CK93: 2000-05-09 | CL93: 103.7714 | CN93: 2000-05-09 | CO93: 13.415 | CQ93: 2008-05-12 | CR93: 89.13
E94: 1991-05-16 | F94: 1598.099976 | H94: 2000-05-10 | I94: 8.9045 | K94: 2000-05-10 | L94: 244.66 | N94: 2000-05-10 | O94: 18.459 | Q94: 2000-05-10 | R94: 33.692 | T94: 2000-05-10 | U94: 12.7367 | W94: 2000-05-10 | X94: 18.355 | Z94: 2000-05-10 | AA94: 315.9536 | AC94: 2000-05-10 | AD94: 18.67786 | AF94: 2000-05-10 | AG94: 29.704 | AI94: 2001-06-25 | AJ94: 32.386 | AL94: 2000-05-10 | AM94: 35.6939 | AO94: 2001-04-05 | AP94: 10.156 | AR94: 2000-05-10 | AS94: 36.734 | AU94: 2000-05-10 | AV94: 4.1022 | AX94: 2000-05-10 | AY94: 23.14288 | BA94: 2000-05-10 | BB94: 14.77709 | BD94: 2000-05-10 | BE94: 41.1838 | BG94: 2003-05-09 | BH94: 13.754 | BJ94: 2000-07-20 | BK94: 78.348 | BM94: 2000-05-10 | BN94: 21.773 | BP94: 2000-05-10 | BQ94: 28.428 | BS94: 2000-05-10 | BT94: 39.14 | BV94: 2000-05-10 | BW94: 13.2 | BY94: 2000-05-10 | BZ94: 180.6 | CB94: 2001-04-17 | CC94: 21.5775 | CE94: 2000-05-10 | CF94: 29.6189 | CH94: 2000-05-10 | CI94: 3.3781 | CK94: 2000-05-10 | CL94: 103.7714 | CN94: 2000-05-10 | CO94: 13.661 | CQ94: 2008-05-13 | CR94: 89.07
E95: 1991-05-17 | F95: 1598.900024 | H95: 2000-05-11 | I95: 9.0712 | K95: 2000-05-11 | L95: 247.92 | N95: 2000-05-11 | O95: 18.5 | Q95: 2000-05-11 | R95: 33.73 | T95: 2000-05-11 | U95: 12.2079 | W95: 2000-05-11 | X95: 18.573 | Z95: 2000-05-11 | AA95: 322.9572 | AC95: 2000-05-11 | AD95: 17.78848 | AF95: 2000-05-11 | AG95: 29.317 | AI95: 2001-06-26 | AJ95: 33.046 | AL95: 2000-05-11 | AM95: 36.5375 | AO95: 2001-04-06 | AP95: 10.468 | AR95: 2000-05-11 | AS95: 39.386 | AU95: 2000-05-11 | AV95: 4.1414 | AX95: 2000-05-11 | AY95: 23.64666 | BA95: 2000-05-11 | BB95: 15.00442 | BD95: 2000-05-11 | BE95: 38.6098 | BG95: 2003-05-12 | BH95: 13.46 | BJ95: 2000-07-21 | BK95: 76.023 | BM95: 2000-05-11 | BN95: 21.984 | BP95: 2000-05-11 | BQ95: 29.376 | BS95: 2000-05-11 | BT95: 39.185 | BV95: 2000-05-11 | BW95: 13.478 | BY95: 2000-05-11 | BZ95: 185.63 | CB95: 2001-04-18 | CC95: 21.8544 | CE95: 2000-05-11 | CF95: 29.3197 | CH95: 2000-05-11 | CI95: 3.3017 | CK95: 2000-05-11 | CL95: 93.6995 | CN95: 2000-05-11 | CO95: 13.661 | CQ95: 2008-05-14 | CR95: 90.05
E96: 1991-05-21 | F96: 1617.400024 | H96: 2000-05-12 | I96: 10.6728 | K96: 2000-05-12 | L96: 249.25 | N96: 2000-05-12 | O96: 18.508 | Q96: 2000-05-12 | R96: 33.56 | T96: 2000-05-12 | U96: 12.8118 | W96: 2000-05-12 | X96: 18.027 | Z96: 2000-05-12 | AA96: 319.9225 | AC96: 2000-05-12 | AD96: 17.43805 | AF96: 2000-05-12 | AG96: 29.742 | AI96: 2001-06-27 | AJ96: 33.038 | AL96: 2000-05-12 | AM96: 36.4 | AO96: 2001-04-09 | AP96: 10.858 | AR96: 2000-05-12 | AS96: 39.325 | AU96: 2000-05-12 | AV96: 4.1399 | AX96: 2000-05-12 | AY96: 23.40957 | BA96: 2000-05-12 | BB96: 15.01984 | BD96: 2000-05-12 | BE96: 40.5403 | BG96: 2003-05-13 | BH96: 13.238 | BJ96: 2000-07-24 | BK96: 75.681 | BM96: 2000-05-12 | BN96: 22.339 | BP96: 2000-05-12 | BQ96: 29.597 | BS96: 2000-05-12 | BT96: 38.987 | BV96: 2000-05-12 | BW96: 12.883 | BY96: 2000-05-12 | BZ96: 185.66 | CB96: 2001-04-19 | CC96: 21.653 | CE96: 2000-05-12 | CF96: 29.9181 | CH96: 2000-05-12 | CI96: 3.2708 | CK96: 2000-05-12 | CL96: 94.3099 | CN96: 2000-05-12 | CO96: 13.688 | CQ96: 2008-05-15 | CR96: 88.34
E97: 1991-05-22 | F97: 1647.699951 | H97: 2000-05-15 | I97: 10.609 | K97: 2000-05-15 | L97: 247.12 | N97: 2000-05-15 | O97: 18.092 | Q97: 2000-05-15 | R97: 33.111 | T97: 2000-05-15 | U97: 12.8434 | W97: 2000-05-15 | X97: 17.803 | Z97: 2000-05-15 | AA97: 324.5138 | AC97: 2000-05-15 | AD97: 17.96816 | AF97: 2000-05-15 | AG97: 29.752 | AI97: 2001-06-28 | AJ97: 32.464 | AL97: 2000-05-15 | AM97: 36.4275 | AO97: 2001-04-10 | AP97: 10.762 | AR97: 2000-05-15 | AS97: 37.459 | AU97: 2000-05-15 | AV97: 4.0521 | AX97: 2000-05-15 | AY97: 23.9874 | BA97: 2000-05-15 | BB97: 15.00442 | BD97: 2000-05-15 | BE97: 42.1491 | BG97: 2003-05-14 | BH97: 13.131 | BJ97: 2000-07-25 | BK97: 74.749 | BM97: 2000-05-15 | BN97: 22.407 | BP97: 2000-05-15 | BQ97: 29.881 | BS97: 2000-05-15 | BT97: 38.465 | BV97: 2000-05-15 | BW97: 12.883 | BY97: 2000-05-15 | BZ97: 184.47 | CB97: 2001-04-20 | CC97: 21.5724 | CE97: 2000-05-15 | CF97: 29.7386 | CH97: 2000-05-15 | CI97: 3.2708 | CK97: 2000-05-15 | CL97: 93.9804 | CN97: 2000-05-15 | CO97: 13.814 | CQ97: 2008-05-16 | CR97: 88.67
E98: 1991-05-23 | F98: 1652.699951 | H98: 2000-05-16 | I98: 10.4625 | K98: 2000-05-16 | L98: 254.18 | N98: 2000-05-16 | O98: 18.508 | Q98: 2000-05-16 | R98: 33.614 | T98: 2000-05-16 | U98: 12.8451 | W98: 2000-05-16 | X98: 18.3 | Z98: 2000-05-16 | AA98: 326.8483 | AC98: 2000-05-16 | AD98: 17.78848 | AF98: 2000-05-16 | AG98: 30.023 | AI98: 2001-06-29 | AJ98: 32.154 | AL98: 2000-05-16 | AM98: 37.7341 | AO98: 2001-04-11 | AP98: 10.485 | AR98: 2000-05-16 | AS98: 39.959 | AU98: 2000-05-16 | AV98: 4.1029 | AX98: 2000-05-16 | AY98: 23.85406 | BA98: 2000-05-16 | BB98: 15.16686 | BD98: 2000-05-16 | BE98: 43.0822 | BG98: 2003-05-15 | BH98: 13.181 | BJ98: 2000-07-26 | BK98: 74.749 | BM98: 2000-05-16 | BN98: 22.238 | BP98: 2000-05-16 | BQ98: 29.692 | BS98: 2000-05-16 | BT98: 39.05 | BV98: 2000-05-16 | BW98: 12.883 | BY98: 2000-05-16 | BZ98: 188.35 | CB98: 2001-04-23 | CC98: 21.9803 | CE98: 2000-05-16 | CF98: 30.7259 | CH98: 2000-05-16 | CI98: 3.2997 | CK98: 2000-05-16 | CL98: 96.7943 | CN98: 2000-05-16 | CO98: 13.814 | CQ98: 2008-05-19 | CR98: 91.75
E99: 1991-05-24 | F99: 1671.900024 | H99: 2000-05-17 | I99: 10.5014 | K99: 2000-05-17 | L99: 251.37 | N99: 2000-05-17 | O99: 18.194 | Q99: 2000-05-17 | R99: 33.188 | T99: 2000-05-17 | U99: 13.2788 | W99: 2000-05-17 | X99: 17.57 | Z99: 2000-05-17 | AA99: 321.0121 | AC99: 2000-05-17 | AD99: 17.474 | AF99: 2000-05-17 | AG99: 29.636 | AI99: 2001-07-02 | AJ99: 31.262 | AL99: 2000-05-17 | AM99: 37.78 | AO99: 2001-04-12 | AP99: 10.479 | AR99: 2000-05-17 | AS99: 37.573 | AU99: 2000-05-17 | AV99: 4.1392 | AX99: 2000-05-17 | AY99: 24.81717 | BA99: 2000-05-17 | BB99: 14.77709 | BD99: 2000-05-17 | BE99: 41.319 | BG99: 2003-05-16 | BH99: 12.923 | BJ99: 2000-07-27 | BK99: 69.212 | BM99: 2000-05-17 | BN99: 21.781 | BP99: 2000-05-17 | BQ99: 29.509 | BS99: 2000-05-17 | BT99: 38.555 | BV99: 2000-05-17 | BW99: 12.328 | BY99: 2000-05-17 | BZ99: 184.47 | CB99: 2001-04-24 | CC99: 22.0256 | CE99: 2000-05-17 | CF99: 29.6189 | CH99: 2000-05-17 | CI99: 3.2832 | CK99: 2000-05-17 | CL99: 92.839 | CN99: 2000-05-17 | CO99: 13.442 | CQ99: 2008-05-20 | CR99: 88.86
E100: 1991-05-27 | F100: 1681.5 | H100: 2000-05-18 | I100: 10.0808 | K100: 2000-05-18 | L100: 257.16 | N100: 2000-05-18 | O100: 18.289 | Q100: 2000-05-18 | R100: 33.057 | T100: 2000-05-18 | U100: 14.1463 | W100: 2000-05-18 | X100: 17.001 | Z100: 2000-05-18 | AA100: 318.9883 | AC100: 2000-05-18 | AD100: 17.92319 | AF100: 2000-05-18 | AG100: 29.544 | AI100: 2001-07-03 | AJ100: 30.641 | AL100: 2000-05-18 | AM100: 38.0047 | AO100: 2001-04-17 | AP100: 10.4 | AR100: 2000-05-18 | AS100: 36.583 | AU100: 2000-05-18 | AV100: 4.1421 | AX100: 2000-05-18 | AY100: 24.89122 | BA100: 2000-05-18 | BB100: 14.85827 | BD100: 2000-05-18 | BE100: 43.1079 | BG100: 2003-05-19 | BH100: 12.694 | BJ100: 2000-07-28 | BK100: 66.435 | BM100: 2000-05-18 | BN100: 22.026 | BP100: 2000-05-18 | BQ100: 28.586 | BS100: 2000-05-18 | BT100: 38.402 | BV100: 2000-05-18 | BW100: 13.279 | BY100: 2000-05-18 | BZ100: 184.17 | CB100: 2001-04-25 | CC100: 21.8393 | CE100: 2000-05-18 | CF100: 28.4222 | CH100: 2000-05-18 | CI100: 3.4049 | CK100: 2000-05-18 | CL100: 91.4897 | CN100: 2000-05-18 | CO100: 13.328 | CQ100: 2008-05-21 | CR100: 87.93
E101: 1991-05-28 | F101: 1682.099976 | H101: 2000-05-19 | I101: 10.2366 | K101: 2000-05-19 | L101: 251.13 | N101: 2000-05-19 | O101: 17.93 | Q101: 2000-05-19 | R101: 32.956 | T101: 2000-05-19 | U101: 13.8461 | W101: 2000-05-19 | X101: 16.863 | Z101: 2000-05-19 | AA101: 311.1292 | AC101: 2000-05-19 | AD101: 17.92319 | AF101: 2000-05-19 | AG101: 29.172 | AI101: 2001-07-04 | AJ101: 30.564 | AL101: 2000-05-19 | AM101: 37.184 | AO101: 2001-04-18 | AP101: 10.445 | AR101: 2000-05-19 | AS101: 33.707 | AU101: 2000-05-19 | AV101: 4.1603 | AX101: 2000-05-19 | AY101: 24.69858 | BA101: 2000-05-19 | BB101: 14.53353 | BD101: 2000-05-19 | BE101: 42.7926 | BG101: 2003-05-20 | BH101: 12.945 | BJ101: 2000-07-31 | BK101: 66.545 | BM101: 2000-05-19 | BN101: 22.441 | BP101: 2000-05-19 | BQ101: 28.018 | BS101: 2000-05-19 | BT101: 38.285 | BV101: 2000-05-19 | BW101: 13.279 | BY101: 2000-05-19 | BZ101: 179.41 | CB101: 2001-04-26 | CC101: 21.8544 | CE101: 2000-05-19 | CF101: 27.1656 | CH101: 2000-05-19 | CI101: 3.3059 | CK101: 2000-05-19 | CL101: 90.0371 | CN101: 2000-05-19 | CO101: 12.787 | CQ101: 2008-05-22 | CR101: 87.19
E102: 1991-05-29 | F102: 1681.5 | H102: 2000-05-22 | I102: 9.7676 | K102: 2000-05-22 | L102: 247.74 | N102: 2000-05-22 | O102: 17.809 | Q102: 2000-05-22 | R102: 32.917 | T102: 2000-05-22 | U102: 14.3465 | W102: 2000-05-22 | X102: 16.807 | Z102: 2000-05-22 | AA102: 302.6466 | AC102: 2000-05-22 | AD102: 17.29432 | AF102: 2000-05-22 | AG102: 29.467 | AI102: 2001-07-05 | AJ102: 31.184 | AL102: 2000-05-22 | AM102: 36.9089 | AO102: 2001-04-19 | AP102: 10.649 | AR102: 2000-05-22 | AS102: 33.919 | AU102: 2000-05-22 | AV102: 4.1465 | AX102: 2000-05-22 | AY102: 25.00972 | BA102: 2000-05-22 | BB102: 14.6959 | BD102: 2000-05-22 | BE102: 43.3717 | BG102: 2003-05-21 | BH102: 12.737 | BJ102: 2000-08-01 | BK102: 67.274 | BM102: 2000-05-22 | BN102: 22.238 | BP102: 2000-05-22 | BQ102: 28.245 | BS102: 2000-05-22 | BT102: 38.24 | BV102: 2000-05-22 | BW102: 13.438 | BY102: 2000-05-22 | BZ102: 177.8 | CB102: 2001-04-27 | CC102: 22.0055 | CE102: 2000-05-22 | CF102: 26.687 | CH102: 2000-05-22 | CI102: 3.3678 | CK102: 2000-05-22 | CL102: 86.7407 | CN102: 2000-05-22 | CO102: 12.907 | CQ102: 2008-05-23 | CR102: 85.48
E103: 1991-05-31 | F103: 1704.099976 | H103: 2000-05-23 | I103: 9.5822 | K103: 2000-05-23 | L103: 230.36 | N103: 2000-05-23 | O103: 17.911 | Q103: 2000-05-23 | R103: 33.335 | T103: 2000-05-23 | U103: 14.4299 | W103: 2000-05-23 | X103: 16.973 | Z103: 2000-05-23 | AA103: 296.1092 | AC103: 2000-05-23 | AD103: 17.51897 | AF103: 2000-05-23 | AG103: 29.472 | AI103: 2001-07-06 | AJ103: 29.594 | AL103: 2000-05-23 | AM103: 37.3674 | AO103: 2001-04-20 | AP103: 10.581 | AR103: 2000-05-23 | AS103: 35.459 | AU103: 2000-05-23 | AV103: 4.1567 | AX103: 2000-05-23 | AY103: 25.4839 | BA103: 2000-05-23 | BB103: 14.67968 | BD103: 2000-05-23 | BE103: 43.6935 | BG103: 2003-05-22 | BH103: 12.938 | BJ103: 2000-08-02 | BK103: 65.521 | BM103: 2000-05-23 | BN103: 22.288 | BP103: 2000-05-23 | BQ103: 28.744 | BS103: 2000-05-23 | BT103: 38.726 | BV103: 2000-05-23 | BW103: 13.26 | BY103: 2000-05-23 | BZ103: 169.87 | CB103: 2001-04-30 | CC103: 22.1968 | CE103: 2000-05-23 | CF103: 28.12 | CH103: 2000-05-23 | CI103: 3.4152 | CK103: 2000-05-23 | CL103: 89.5489 | CN103: 2000-05-23 | CO103: 12.541 | CQ103: 2008-05-26 | CR103: 84.1
E104: 1991-06-03 | F104: 1694.099976 | H104: 2000-05-24 | I104: 9.5822 | K104: 2000-05-24 | L104: 223.43 | N104: 2000-05-24 | O104: 17.787 | Q104: 2000-05-24 | R104: 33.452 | T104: 2000-05-24 | U104: 14.5968 | W104: 2000-05-24 | X104: 17.775 | Z104: 2000-05-24 | AA104: 303.5022 | AC104: 2000-05-24 | AD104: 17.27639 | AF104: 2000-05-24 | AG104: 29.414 | AI104: 2001-07-09 | AJ104: 28.779 | AL104: 2000-05-24 | AM104: 37.0693 | AO104: 2001-04-23 | AP104: 10.405 | AR104: 2000-05-24 | AS104: 34.191 | AU104: 2000-05-24 | AV104: 4.2104 | AX104: 2000-05-24 | AY104: 26.04688 | BA104: 2000-05-24 | BB104: 14.81772 | BD104: 2000-05-24 | BE104: 41.2483 | BG104: 2003-05-23 | BH104: 12.787 | BJ104: 2000-08-03 | BK104: 63.214 | BM104: 2000-05-24 | BN104: 22.66 | BP104: 2000-05-24 | BQ104: 28.302 | BS104: 2000-05-24 | BT104: 38.861 | BV104: 2000-05-24 | BW104: 13.319 | BY104: 2000-05-24 | BZ104: 166.29 | CB104: 2001-05-02 | CC104: 21.8343 | CE104: 2000-05-24 | CF104: 26.9263 | CH104: 2000-05-24 | CI104: 3.3327 | CK104: 2000-05-24 | CL104: 88.5108 | CN104: 2000-05-24 | CO104: 10.519 | CQ104: 2008-05-27 | CR104: 84.49
E105: 1991-06-04 | F105: 1685.400024 | H105: 2000-05-25 | I105: 9.8143 | K105: 2000-05-25 | L105: 228.97 | N105: 2000-05-25 | O105: 17.364 | Q105: 2000-05-25 | R105: 32.677 | T105: 2000-05-25 | U105: 14.1797 | W105: 2000-05-25 | X105: 18.079 | Z105: 2000-05-25 | AA105: 306.6155 | AC105: 2000-05-25 | AD105: 17.50996 | AF105: 2000-05-25 | AG105: 29.375 | AI105: 2001-07-10 | AJ105: 29.4 | AL105: 2000-05-25 | AM105: 36.863 | AO105: 2001-04-24 | AP105: 10.439 | AR105: 2000-05-25 | AS105: 36.848 | AU105: 2000-05-25 | AV105: 4.2118 | AX105: 2000-05-25 | AY105: 24.65413 | BA105: 2000-05-25 | BB105: 14.8989 | BD105: 2000-05-25 | BE105: 41.8274 | BG105: 2003-05-26 | BH105: 12.745 | BJ105: 2000-08-04 | BK105: 60.464 | BM105: 2000-05-25 | BN105: 21.976 | BP105: 2000-05-25 | BQ105: 28.005 | BS105: 2000-05-25 | BT105: 37.961 | BV105: 2000-05-25 | BW105: 13.359 | BY105: 2000-05-25 | BZ105: 176.43 | CB105: 2001-05-03 | CC105: 21.4365 | CE105: 2000-05-25 | CF105: 28.1828 | CH105: 2000-05-25 | CI105: 3.3637 | CK105: 2000-05-25 | CL105: 90.7999 | CN105: 2000-05-25 | CO105: 10.617 | CQ105: 2008-05-28 | CR105: 84.7
E106: 1991-06-05 | F106: 1712.800049 | H106: 2000-05-26 | I106: 9.8922 | K106: 2000-05-26 | L106: 232.66 | N106: 2000-05-26 | O106: 16.986 | Q106: 2000-05-26 | R106: 32.22 | T106: 2000-05-26 | U106: 13.3289 | W106: 2000-05-26 | X106: 17.852 | Z106: 2000-05-26 | AA106: 297.2765 | AC106: 2000-05-26 | AD106: 17.51897 | AF106: 2000-05-26 | AG106: 28.838 | AI106: 2001-07-11 | AJ106: 29.245 | AL106: 2000-05-26 | AM106: 35.4142 | AO106: 2001-04-25 | AP106: 10.536 | AR106: 2000-05-26 | AS106: 37.543 | AU106: 2000-05-26 | AV106: 4.4565 | AX106: 2000-05-26 | AY106: 24.95051 | BA106: 2000-05-26 | BB106: 14.6959 | BD106: 2000-05-26 | BE106: 39.8968 | BG106: 2003-05-27 | BH106: 12.845 | BJ106: 2000-08-07 | BK106: 61.184 | BM106: 2000-05-26 | BN106: 21.561 | BP106: 2000-05-26 | BQ106: 27.607 | BS106: 2000-05-26 | BT106: 37.43 | BV106: 2000-05-26 | BW106: 13.517 | BY106: 2000-05-26 | BZ106: 178.06 | CB106: 2001-05-04 | CC106: 21.0185 | CE106: 2000-05-26 | CF106: 25.4603 | CH106: 2000-05-26 | CI106: 3.2997 | CK106: 2000-05-26 | CL106: 91.685 | CN106: 2000-05-26 | CO106: 10 | CQ106: 2008-05-29 | CR106: 83.93
E107: 1991-06-06 | F107: 1704.199951 | H107: 2000-05-29 | I107: 9.8174 | K107: 2000-05-29 | L107: 236.05 | N107: 2000-05-29 | O107: 17.156 | Q107: 2000-05-29 | R107: 32.662 | T107: 2000-05-29 | U107: 13.3473 | W107: 2000-05-29 | X107: 17.941 | Z107: 2000-05-29 | AA107: 303.8027 | AC107: 2000-05-29 | AD107: 17.29432 | AF107: 2000-05-29 | AG107: 28.959 | AI107: 2001-07-12 | AJ107: 29.671 | AL107: 2000-05-29 | AM107: 35.4142 | AO107: 2001-04-26 | AP107: 10.536 | AR107: 2000-05-29 | AS107: 37.706 | AU107: 2000-05-29 | AV107: 4.4979 | AX107: 2000-05-29 | AY107: 24.95051 | BA107: 2000-05-29 | BB107: 15.66939 | BD107: 2000-05-29 | BE107: 41.6986 | BG107: 2003-05-28 | BH107: 12.601 | BJ107: 2000-08-08 | BK107: 62.623 | BM107: 2000-05-29 | BN107: 21.46 | BP107: 2000-05-29 | BQ107: 27.506 | BS107: 2000-05-29 | BT107: 37.943 | BV107: 2000-05-29 | BW107: 13.478 | BY107: 2000-05-29 | BZ107: 180.36 | CB107: 2001-05-08 | CC107: 21.2954 | CE107: 2000-05-29 | CF107: 25.9749 | CH107: 2000-05-29 | CI107: 3.1986 | CK107: 2000-05-29 | CL107: 95.2258 | CN107: 2000-05-29 | CO107: 10.546 | CQ107: 2008-05-30 | CR107: 83.81
E108: 1991-06-07 | F108: 1709.599976 | H108: 2000-05-30 | I108: 9.7224 | K108: 2000-05-30 | L108: 242.26 | N108: 2000-05-30 | O108: 17.085 | Q108: 2000-05-30 | R108: 32.747 | T108: 2000-05-30 | U108: 13.7626 | W108: 2000-05-30 | X108: 17.886 | Z108: 2000-05-30 | AA108: 309.6598 | AC108: 2000-05-30 | AD108: 17.51897 | AF108: 2000-05-30 | AG108: 28.978 | AI108: 2001-07-16 | AJ108: 29.943 | AL108: 2000-05-30 | AM108: 36.6797 | AO108: 2001-04-27 | AP108: 10.688 | AR108: 2000-05-30 | AS108: 39.265 | AU108: 2000-05-30 | AV108: 4.4979 | AX108: 2000-05-30 | AY108: 26.52097 | BA108: 2000-05-30 | BB108: 16.15737 | BD108: 2000-05-30 | BE108: 41.5056 | BG108: 2003-05-29 | BH108: 12.566 | BJ108: 2000-08-09 | BK108: 66.868 | BM108: 2000-05-30 | BN108: 21.553 | BP108: 2000-05-30 | BQ108: 27.79 | BS108: 2000-05-30 | BT108: 38.042 | BV108: 2000-05-30 | BW108: 13.676 | BY108: 2000-05-30 | BZ108: 184.89 | CB108: 2001-05-09 | CC108: 20.7969 | CE108: 2000-05-30 | CF108: 25.8792 | CH108: 2000-05-30 | CI108: 3.2997 | CK108: 2000-05-30 | CL108: 94.9568 | CN108: 2000-05-30 | CO108: 10.218 | CQ108: 2008-06-02 | CR108: 81.93
E109: 1991-06-10 | F109: 1704.900024 | H109: 2000-05-31 | I109: 9.8003 | K109: 2000-05-31 | L109: 236.11 | N109: 2000-05-31 | O109: 16.552 | Q109: 2000-05-31 | R109: 32.065 | T109: 2000-05-31 | U109: 13.5958 | W109: 2000-05-31 | X109: 18.024 | Z109: 2000-05-31 | AA109: 307.7077 | AC109: 2000-05-31 | AD109: 17.78848 | AF109: 2000-05-31 | AG109: 28.204 | AI109: 2001-07-17 | AJ109: 29.943 | AL109: 2000-05-31 | AM109: 37.8946 | AO109: 2001-04-30 | AP109: 10.892 | AR109: 2000-05-31 | AS109: 40.171 | AU109: 2000-05-31 | AV109: 4.3148 | AX109: 2000-05-31 | AY109: 26.62472 | BA109: 2000-05-31 | BB109: 16.56337 | BD109: 2000-05-31 | BE109: 40.5403 | BG109: 2003-05-30 | BH109: 13.188 | BJ109: 2000-08-10 | BK109: 66.305 | BM109: 2000-05-31 | BN109: 21.908 | BP109: 2000-05-31 | BQ109: 27.298 | BS109: 2000-05-31 | BT109: 37.25 | BV109: 2000-05-31 | BW109: 13.18 | BY109: 2000-05-31 | BZ109: 185.43 | CB109: 2001-05-11 | CC109: 21.5069 | CE109: 2000-05-31 | CF109: 25.1432 | CH109: 2000-05-31 | CI109: 3.2811 | CK109: 2000-05-31 | CL109: 95.9641 | CN109: 2000-05-31 | CO109: 10 | CQ109: 2008-06-03 | CR109: 81.41
E110: 1991-06-11 | F110: 1715.199951 | H110: 2000-06-01 | I110: 10.0886 | K110: 2000-06-01 | L110: 239.12 | N110: 2000-06-01 | O110: 16.684 | Q110: 2000-06-01 | R110: 32.375 | T110: 2000-06-01 | U110: 14.1797 | W110: 2000-06-01 | X110: 18.317 | Z110: 2000-06-01 | AA110: 313.174 | AC110: 2000-06-01 | AD110: 17.87832 | AF110: 2000-06-01 | AG110: 28.19 | AI110: 2001-07-18 | AJ110: 29.485 | AL110: 2000-06-01 | AM110: 38.7428 | AO110: 2001-05-02 | AP110: 10.32 | AR110: 2000-06-01 | AS110: 41.379 | AU110: 2000-06-01 | AV110: 4.4342 | AX110: 2000-06-01 | AY110: 27.13143 | BA110: 2000-06-01 | BB110: 16.48211 | BD110: 2000-06-01 | BE110: 39.9612 | BG110: 2003-06-02 | BH110: 12.916 | BJ110: 2000-08-11 | BK110: 65.659 | BM110: 2000-06-01 | BN110: 22.322 | BP110: 2000-06-01 | BQ110: 28.068 | BS110: 2000-06-01 | BT110: 37.61 | BV110: 2000-06-01 | BW110: 14.013 | BY110: 2000-06-01 | BZ110: 188.94 | CB110: 2001-05-14 | CC110: 21.2803 | CE110: 2000-06-01 | CF110: 27.7341 | CH110: 2000-06-01 | CI110: 3.2914 | CK110: 2000-06-01 | CL110: 100.109 | CN110: 2000-06-01 | CO110: 10.082 | CQ110: 2008-06-04 | CR110: 80.5
E111: 1991-06-12 | F111: 1700.800049 | H111: 2000-06-02 | I111: 10.2833 | K111: 2000-06-02 | L111: 238.51 | N111: 2000-06-02 | O111: 17.387 | Q111: 2000-06-02 | R111: 32.453 | T111: 2000-06-02 | U111: 13.429 | W111: 2000-06-02 | X111: 18.665 | Z111: 2000-06-02 | AA111: 311.222 | AC111: 2000-06-02 | AD111: 17.69864 | AF111: 2000-06-02 | AG111: 28.02 | AI111: 2001-07-19 | AJ111: 29.439 | AL111: 2000-06-02 | AM111: 39.6369 | AO111: 2001-05-03 | AP111: 10.218 | AR111: 2000-06-02 | AS111: 43.886 | AU111: 2000-06-02 | AV111: 4.482 | AX111: 2000-06-02 | AY111: 26.79655 | BA111: 2000-06-02 | BB111: 16.64456 | BD111: 2000-06-02 | BE111: 40.1736 | BG111: 2003-06-03 | BH111: 12.859 | BJ111: 2000-08-14 | BK111: 65.77 | BM111: 2000-06-02 | BN111: 22.204 | BP111: 2000-06-02 | BQ111: 27.683 | BS111: 2000-06-02 | BT111: 37.7 | BV111: 2000-06-02 | BW111: 13.398 | BY111: 2000-06-02 | BZ111: 195.03 | CB111: 2001-05-15 | CC111: 21.1192 | CE111: 2000-06-02 | CF111: 28.4222 | CH111: 2000-06-02 | CI111: 3.343 | CK111: 2000-06-02 | CL111: 103.161 | CN111: 2000-06-02 | CO111: 9.836 | CQ111: 2008-06-05 | CR111: 80.22
E112: 1991-06-13 | F112: 1692.599976 | H112: 2000-06-05 | I112: 10.2833 | K112: 2000-06-05 | L112: 236.94 | N112: 2000-06-05 | O112: 17.617 | Q112: 2000-06-05 | R112: 32.762 | T112: 2000-06-05 | U112: 14.3215 | W112: 2000-06-05 | X112: 18.333 | Z112: 2000-06-05 | AA112: 306.5353 | AC112: 2000-06-05 | AD112: 17.85138 | AF112: 2000-06-05 | AG112: 28.688 | AI112: 2001-07-20 | AJ112: 29.477 | AL112: 2000-06-05 | AM112: 39.4627 | AO112: 2001-05-04 | AP112: 10.196 | AR112: 2000-06-05 | AS112: 43.366 | AU112: 2000-06-05 | AV112: 4.4302 | AX112: 2000-06-05 | AY112: 26.81736 | BA112: 2000-06-05 | BB112: 16.401 | BD112: 2000-06-05 | BE112: 39.8325 | BG112: 2003-06-04 | BH112: 12.859 | BJ112: 2000-08-15 | BK112: 67.837 | BM112: 2000-06-05 | BN112: 22.398 | BP112: 2000-06-05 | BQ112: 28.334 | BS112: 2000-06-05 | BT112: 38.06 | BV112: 2000-06-05 | BW112: 14.013 | BY112: 2000-06-05 | BZ112: 193.71 | CB112: 2001-05-16 | CC112: 20.8725 | CE112: 2000-06-05 | CF112: 29.9151 | CH112: 2000-06-05 | CI112: 3.3121 | CK112: 2000-06-05 | CL112: 101.9402 | CN112: 2000-06-05 | CO112: 10.055 | CQ112: 2008-06-06 | CR112: 80.1
E113: 1991-06-14 | F113: 1699.800049 | H113: 2000-06-06 | I113: 10.4391 | K113: 2000-06-06 | L113: 229.89 | N113: 2000-06-06 | O113: 16.798 | Q113: 2000-06-06 | R113: 32.135 | T113: 2000-06-06 | U113: 14.5133 | W113: 2000-06-06 | X113: 18.245 | Z113: 2000-06-06 | AA113: 307.7077 | AC113: 2000-06-06 | AD113: 17.69864 | AF113: 2000-06-06 | AG113: 29.075 | AI113: 2001-07-23 | AJ113: 29.633 | AL113: 2000-06-06 | AM113: 39.536 | AO113: 2001-05-08 | AP113: 10.196 | AR113: 2000-06-06 | AS113: 42.95 | AU113: 2000-06-06 | AV113: 4.4255 | AX113: 2000-06-06 | AY113: 26.62472 | BA113: 2000-06-06 | BB113: 15.75138 | BD113: 2000-06-06 | BE113: 38.6098 | BG113: 2003-06-05 | BH113: 12.974 | BJ113: 2000-08-16 | BK113: 68.354 | BM113: 2000-06-06 | BN113: 22.491 | BP113: 2000-06-06 | BQ113: 28.397 | BS113: 2000-06-06 | BT113: 37.331 | BV113: 2000-06-06 | BW113: 13.834 | BY113: 2000-06-06 | BZ113: 192.31 | CB113: 2001-05-17 | CC113: 20.5452 | CE113: 2000-06-06 | CF113: 28.9547 | CH113: 2000-06-06 | CI113: 3.1594 | CK113: 2000-06-06 | CL113: 100.8473 | CN113: 2000-06-06 | CO113: 9.732 | CQ113: 2008-06-09 | CR113: 81.02
E114: 1991-06-17 | F114: 1701.099976 | H114: 2000-06-07 | I114: 10.2444 | K114: 2000-06-07 | L114: 228.43 | N114: 2000-06-07 | O114: 17.251 | Q114: 2000-06-07 | R114: 32.538 | T114: 2000-06-07 | U114: 14.1797 | W114: 2000-06-07 | X114: 17.72 | Z114: 2000-06-07 | AA114: 307.0041 | AC114: 2000-06-07 | AD114: 17.6088 | AF114: 2000-06-07 | AG114: 29.365 | AI114: 2001-07-24 | AJ114: 29.477 | AL114: 2000-06-07 | AM114: 39.5223 | AO114: 2001-05-09 | AP114: 9.997 | AR114: 2000-06-07 | AS114: 40.986 | AU114: 2000-06-07 | AV114: 4.3602 | AX114: 2000-06-07 | AY114: 25.78019 | BA114: 2000-06-07 | BB114: 15.34545 | BD114: 2000-06-07 | BE114: 38.6098 | BG114: 2003-06-06 | BH114: 13.245 | BJ114: 2000-08-17 | BK114: 68.751 | BM114: 2000-06-07 | BN114: 22.018 | BP114: 2000-06-07 | BQ114: 27.784 | BS114: 2000-06-07 | BT114: 37.799 | BV114: 2000-06-07 | BW114: 13.077 | BY114: 2000-06-07 | BZ114: 194.29 | CB114: 2001-05-18 | CC114: 20.7063 | CE114: 2000-06-07 | CF114: 28.518 | CH114: 2000-06-07 | CI114: 3.244 | CK114: 2000-06-07 | CL114: 99.8035 | CN114: 2000-06-07 | CO114: 9.891 | CQ114: 2008-06-10 | CR114: 81.11
E115: 1991-06-18 | F115: 1695.400024 | H115: 2000-06-08 | I115: 10.1665 | K115: 2000-06-08 | L115: 225.89 | N115: 2000-06-08 | O115: 16.93 | Q115: 2000-06-08 | R115: 32.073 | T115: 2000-06-08 | U115: 14.3131 | W115: 2000-06-08 | X115: 17.25 | Z115: 2000-06-08 | AA115: 305.9107 | AC115: 2000-06-08 | AD115: 17.24945 | AF115: 2000-06-08 | AG115: 29.186 | AI115: 2001-07-25 | AJ115: 29.105 | AL115: 2000-06-08 | AM115: 39.6507 | AO115: 2001-05-11 | AP115: 10.4 | AR115: 2000-06-08 | AS115: 40.805 | AU115: 2000-06-08 | AV115: 4.205 | AX115: 2000-06-08 | AY115: 24.88233 | BA115: 2000-06-08 | BB115: 15.58901 | BD115: 2000-06-08 | BE115: 37.902 | BG115: 2003-06-09 | BH115: 13.238 | BJ115: 2000-08-18 | BK115: 69.24 | BM115: 2000-06-08 | BN115: 21.705 | BP115: 2000-06-08 | BQ115: 27.797 | BS115: 2000-06-08 | BT115: 37.259 | BV115: 2000-06-08 | BW115: 13.161 | BY115: 2000-06-08 | BZ115: 188.35 | CB115: 2001-05-21 | CC115: 21.0185 | CE115: 2000-06-08 | CF115: 29.7386 | CH115: 2000-06-08 | CI115: 3.2605 | CK115: 2000-06-08 | CL115: 100.9758 | CN115: 2000-06-08 | CO115: 9.787 | CQ115: 2008-06-11 | CR115: 79.16
E116: 1991-06-19 | F116: 1683 | H116: 2000-06-09 | I116: 9.9499 | K116: 2000-06-09 | L116: 228.35 | N116: 2000-06-09 | O116: 16.986 | Q116: 2000-06-09 | R116: 32.84 | T116: 2000-06-09 | U116: 14.4799 | W116: 2000-06-09 | X116: 18.018 | Z116: 2000-06-09 | AA116: 306.9261 | AC116: 2000-06-09 | AD116: 17.6088 | AF116: 2000-06-09 | AG116: 29.026 | AI116: 2001-07-26 | AJ116: 29.633 | AL116: 2000-06-09 | AM116: 40.0267 | AO116: 2001-05-14 | AP116: 10.417 | AR116: 2000-06-09 | AS116: 39.863 | AU116: 2000-06-09 | AV116: 4.2631 | AX116: 2000-06-09 | AY116: 24.59493 | BA116: 2000-06-09 | BB116: 15.67027 | BD116: 2000-06-09 | BE116: 37.9342 | BG116: 2003-06-10 | BH116: 13.403 | BJ116: 2000-08-21 | BK116: 68.659 | BM116: 2000-06-09 | BN116: 21.688 | BP116: 2000-06-09 | BQ116: 27.917 | BS116: 2000-06-09 | BT116: 38.15 | BV116: 2000-06-09 | BW116: 13.26 | BY116: 2000-06-09 | BZ116: 187.15 | CB116: 2001-05-22 | CC116: 20.9228 | CE116: 2000-06-09 | CF116: 29.5806 | CH116: 2000-06-09 | CI116: 3.2914 | CK116: 2000-06-09 | CL116: 101.3298 | CN116: 2000-06-09 | CO116: 10.191 | CQ116: 2008-06-12 | CR116: 79.5
E117: 1991-06-20 | F117: 1687 | H117: 2000-06-12 | I117: 9.9094 | K117: 2000-06-12 | L117: 229.27 | N117: 2000-06-12 | O117: 16.9 | Q117: 2000-06-12 | R117: 32.886 | T117: 2000-06-12 | U117: 14.7636 | W117: 2000-06-12 | X117: 18.284 | Z117: 2000-06-12 | AA117: 306.3015 | AC117: 2000-06-12 | AD117: 17.68062 | AF117: 2000-06-12 | AG117: 29.026 | AI117: 2001-07-27 | AJ117: 30.253 | AL117: 2000-06-12 | AM117: 40.5157 | AO117: 2001-05-15 | AP117: 10.541 | AR117: 2000-06-12 | AS117: 40.141 | AU117: 2000-06-12 | AV117: 4.2503 | AX117: 2000-06-12 | AY117: 25.0275 | BA117: 2000-06-12 | BB117: 15.67027 | BD117: 2000-06-12 | BE117: 37.9663 | BG117: 2003-06-11 | BH117: 13.539 | BJ117: 2000-08-22 | BK117: 69.766 | BM117: 2000-06-12 | BN117: 21.392 | BP117: 2000-06-12 | BQ117: 27.923 | BS117: 2000-06-12 | BT117: 38.204 | BV117: 2000-06-12 | BW117: 13.319 | BY117: 2000-06-12 | BZ117: 191.68 | CB117: 2001-05-23 | CC117: 20.7718 | CE117: 2000-06-12 | CF117: 28.7513 | CH117: 2000-06-12 | CI117: 3.3017 | CK117: 2000-06-12 | CL117: 98.7358 | CN117: 2000-06-12 | CO117: 10.164 | CQ117: 2008-06-13 | CR117: 79.54
E118: 1991-06-21 | F118: 1711.900024 | H118: 2000-06-13 | I118: 9.7084 | K118: 2000-06-13 | L118: 234.51 | N118: 2000-06-13 | O118: 16.7 | Q118: 2000-06-13 | R118: 32.693 | T118: 2000-06-13 | U118: 14.9304 | W118: 2000-06-13 | X118: 18.897 | Z118: 2000-06-13 | AA118: 312.5493 | AC118: 2000-06-13 | AD118: 17.42913 | AF118: 2000-06-13 | AG118: 28.765 | AI118: 2001-07-30 | AJ118: 30.214 | AL118: 2000-06-13 | AM118: 40.9604 | AO118: 2001-05-16 | AP118: 10.649 | AR118: 2000-06-13 | AS118: 40.098 | AU118: 2000-06-13 | AV118: 4.2416 | AX118: 2000-06-13 | AY118: 24.75494 | BA118: 2000-06-13 | BB118: 15.58901 | BD118: 2000-06-13 | BE118: 36.808 | BG118: 2003-06-12 | BH118: 13.224 | BJ118: 2000-08-23 | BK118: 67.579 | BM118: 2000-06-13 | BN118: 21.764 | BP118: 2000-06-13 | BQ118: 28.043 | BS118: 2000-06-13 | BT118: 37.979 | BV118: 2000-06-13 | BW118: 13.121 | BY118: 2000-06-13 | BZ118: 197.59 | CB118: 2001-05-24 | CC118: 21.3257 | CE118: 2000-06-13 | CF118: 28.2121 | CH118: 2000-06-13 | CI118: 3.147 | CK118: 2000-06-13 | CL118: 100.4139 | CN118: 2000-06-13 | CO118: 10.355 | CQ118: 2008-06-16 | CR118: 79.27
E119: 1991-06-24 | F119: 1691.599976 | H119: 2000-06-14 | I119: 9.7847 | K119: 2000-06-14 | L119: 234.21 | N119: 2000-06-14 | O119: 16.19 | Q119: 2000-06-14 | R119: 32.514 | T119: 2000-06-14 | U119: 14.3465 | W119: 2000-06-14 | X119: 18.958 | Z119: 2000-06-14 | AA119: 315.5169 | AC119: 2000-06-14 | AD119: 17.38416 | AF119: 2000-06-14 | AG119: 28.543 | AI119: 2001-07-31 | AJ119: 30.137 | AL119: 2000-06-14 | AM119: 42.0839 | AO119: 2001-05-17 | AP119: 10.586 | AR119: 2000-06-14 | AS119: 41.198 | AU119: 2000-06-14 | AV119: 4.2726 | AX119: 2000-06-14 | AY119: 24.89122 | BA119: 2000-06-14 | BB119: 15.02071 | BD119: 2000-06-14 | BE119: 36.0359 | BG119: 2003-06-13 | BH119: 13.274 | BJ119: 2000-08-24 | BK119: 70.43 | BM119: 2000-06-14 | BN119: 20.885 | BP119: 2000-06-14 | BQ119: 27.797 | BS119: 2000-06-14 | BT119: 37.772 | BV119: 2000-06-14 | BW119: 13.2 | BY119: 2000-06-14 | BZ119: 197.33 | CB119: 2001-05-25 | CC119: 21.4516 | CE119: 2000-06-14 | CF119: 29.0983 | CH119: 2000-06-14 | CI119: 3.1387 | CK119: 2000-06-14 | CL119: 100.1701 | CN119: 2000-06-14 | CO119: 10.328 | CQ119: 2008-06-17 | CR119: 81.91
E120: 1991-06-25 | F120: 1691.5 | H120: 2000-06-15 | I120: 9.8159 | K120: 2000-06-15 | L120: 236.35 | N120: 2000-06-15 | O120: 15.771 | Q120: 2000-06-15 | R120: 31.601 | T120: 2000-06-15 | U120: 14.2631 | W120: 2000-06-15 | X120: 19.063 | Z120: 2000-06-15 | AA120: 310.8312 | AC120: 2000-06-15 | AD120: 17.51897 | AF120: 2000-06-15 | AG120: 28.011 | AI120: 2001-08-01 | AJ120: 29.563 | AL120: 2000-06-15 | AM120: 41.5268 | AO120: 2001-05-18 | AP120: 10.473 | AR120: 2000-06-15 | AS120: 40.793 | AU120: 2000-06-15 | AV120: 4.4501 | AX120: 2000-06-15 | AY120: 24.45562 | BA120: 2000-06-15 | BB120: 14.92323 | BD120: 2000-06-15 | BE120: 37.2263 | BG120: 2003-06-16 | BH120: 13.403 | BJ120: 2000-08-25 | BK120: 70.966 | BM120: 2000-06-15 | BN120: 20.606 | BP120: 2000-06-15 | BQ120: 27.639 | BS120: 2000-06-15 | BT120: 36.711 | BV120: 2000-06-15 | BW120: 12.982 | BY120: 2000-06-15 | BZ120: 200.56 | CB120: 2001-05-28 | CC120: 21.7084 | CE120: 2000-06-15 | CF120: 29.6787 | CH120: 2000-06-15 | CI120: 3.2316 | CK120: 2000-06-15 | CL120: 98.8208 | CN120: 2000-06-15 | CO120: 10.279 | CQ120: 2008-06-18 | CR120: 82.65
E121: 1991-06-26 | F121: 1672.099976 | H121: 2000-06-16 | I121: 9.2893 | K121: 2000-06-16 | L121: 234.7 | N121: 2000-06-16 | O121: 13.589 | Q121: 2000-06-16 | R121: 24.01 | T121: 2000-06-16 | U121: 14.7802 | W121: 2000-06-16 | X121: 18.555 | Z121: 2000-06-16 | AA121: 273.3439 | AC121: 2000-06-16 | AD121: 17.14159 | AF121: 2000-06-16 | AG121: 26.366 | AI121: 2001-08-02 | AJ121: 30.408 | AL121: 2000-06-16 | AM121: 37.4496 | AO121: 2001-05-21 | AP121: 10.649 | AR121: 2000-06-16 | AS121: 41.681 | AU121: 2000-06-16 | AV121: 4.7845 | AX121: 2000-06-16 | AY121: 21.03904 | BA121: 2000-06-16 | BB121: 15.26427 | BD121: 2000-06-16 | BE121: 37.5803 | BG121: 2003-06-17 | BH121: 13.503 | BJ121: 2000-08-28 | BK121: 71.492 | BM121: 2000-06-16 | BN121: 19.54 | BP121: 2000-06-16 | BQ121: 25.901 | BS121: 2000-06-16 | BT121: 27.893 | BV121: 2000-06-16 | BW121: 13.299 | BY121: 2000-06-16 | BZ121: 196.7 | CB121: 2001-05-29 | CC121: 22.3076 | CE121: 2000-06-16 | CF121: 30.7498 | CH121: 2000-06-16 | CI121: 3.1367 | CK121: 2000-06-16 | CL121: 91.8683 | CN121: 2000-06-16 | CO121: 9.399 | CQ121: 2008-06-19 | CR121: 83.63
E122: 1991-06-27 | F122: 1666.099976 | H122: 2000-06-19 | I122: 9.551 | K122: 2000-06-19 | L122: 236.51 | N122: 2000-06-19 | O122: 15.854 | Q122: 2000-06-19 | R122: 30.903 | T122: 2000-06-19 | U122: 14.7469 | W122: 2000-06-19 | X122: 18.356 | Z122: 2000-06-19 | AA122: 318.4064 | AC122: 2000-06-19 | AD122: 17.26738 | AF122: 2000-06-19 | AG122: 27.851 | AI122: 2001-08-03 | AJ122: 31.184 | AL122: 2000-06-19 | AM122: 40.5859 | AO122: 2001-05-22 | AP122: 10.649 | AR122: 2000-06-19 | AS122: 39.639 | AU122: 2000-06-19 | AV122: 3.9805 | AX122: 2000-06-19 | AY122: 24.01709 | BA122: 2000-06-19 | BB122: 15.30483 | BD122: 2000-06-19 | BE122: 38.0307 | BG122: 2003-06-18 | BH122: 13.567 | BJ122: 2000-08-29 | BK122: 70.597 | BM122: 2000-06-19 | BN122: 20.716 | BP122: 2000-06-19 | BQ122: 27.418 | BS122: 2000-06-19 | BT122: 35.901 | BV122: 2000-06-19 | BW122: 12.843 | BY122: 2000-06-19 | BZ122: 198.48 | CB122: 2001-05-30 | CC122: 22.3076 | CE122: 2000-06-19 | CF122: 30.3968 | CH122: 2000-06-19 | CI122: 3.0974 | CK122: 2000-06-19 | CL122: 97.2094 | CN122: 2000-06-19 | CO122: 9.836 | CQ122: 2008-06-20 | CR122: 82.56
E123: 1991-06-28 | F123: 1622.199951 | H123: 2000-06-20 | I123: 9.5978 | K123: 2000-06-20 | L123: 238.51 | N123: 2000-06-20 | O123: 15.503 | Q123: 2000-06-20 | R123: 30.826 | T123: 2000-06-20 | U123: 14.7852 | W123: 2000-06-20 | X123: 18.206 | Z123: 2000-06-20 | AA123: 310.1285 | AC123: 2000-06-20 | AD123: 17.55492 | AF123: 2000-06-20 | AG123: 27.565 | AI123: 2001-08-06 | AJ123: 30.478 | AL123: 2000-06-20 | AM123: 39.8369 | AO123: 2001-05-23 | AP123: 10.575 | AR123: 2000-06-20 | AS123: 39.778 | AU123: 2000-06-20 | AV123: 4.5377 | AX123: 2000-06-20 | AY123: 23.96669 | BA123: 2000-06-20 | BB123: 15.42664 | BD123: 2000-06-20 | BE123: 37.6253 | BG123: 2003-06-19 | BH123: 13.696 | BJ123: 2000-08-30 | BK123: 68.843 | BM123: 2000-06-20 | BN123: 21.612 | BP123: 2000-06-20 | BQ123: 27.159 | BS123: 2000-06-20 | BT123: 35.811 | BV123: 2000-06-20 | BW123: 12.312 | BY123: 2000-06-20 | BZ123: 195.5 | CB123: 2001-05-31 | CC123: 22.2573 | CE123: 2000-06-20 | CF123: 31.8328 | CH123: 2000-06-20 | CI123: 3.147 | CK123: 2000-06-20 | CL123: 99.3581 | CN123: 2000-06-20 | CO123: 9.481 | CQ123: 2008-06-23 | CR123: 81.79
E124: 1991-07-01 | F124: 1625.199951 | H124: 2000-06-21 | I124: 9.3485 | K124: 2000-06-21 | L124: 235.86 | N124: 2000-06-21 | O124: 15.099 | Q124: 2000-06-21 | R124: 30.323 | T124: 2000-06-21 | U124: 16.3905 | W124: 2000-06-21 | X124: 17.991 | Z124: 2000-06-21 | AA124: 302.7872 | AC124: 2000-06-21 | AD124: 17.07869 | AF124: 2000-06-21 | AG124: 27.091 | AI124: 2001-08-07 | AJ124: 30.16 | AL124: 2000-06-21 | AM124: 39.0224 | AO124: 2001-05-24 | AP124: 10.451 | AR124: 2000-06-21 | AS124: 38.359 | AU124: 2000-06-21 | AV124: 4.3984 | AX124: 2000-06-21 | AY124: 24.0467 | BA124: 2000-06-21 | BB124: 14.98009 | BD124: 2000-06-21 | BE124: 37.0012 | BG124: 2003-06-20 | BH124: 13.546 | BJ124: 2000-08-31 | BK124: 69.092 | BM124: 2000-06-21 | BN124: 20.716 | BP124: 2000-06-21 | BQ124: 27.133 | BS124: 2000-06-21 | BT124: 35.226 | BV124: 2000-06-21 | BW124: 12.685 | BY124: 2000-06-21 | BZ124: 193.11 | CB124: 2001-06-01 | CC124: 22.6853 | CE124: 2000-06-21 | CF124: 31.414 | CH124: 2000-06-21 | CI124: 3.0954 | CK124: 2000-06-21 | CL124: 97.7587 | CN124: 2000-06-21 | CO124: 9.388 | CQ124: 2008-06-24 | CR124: 79.97
E125: 1991-07-02 | F125: 1610.5 | H125: 2000-06-22 | I125: 9.5043 | K125: 2000-06-22 | L125: 235.6 | N125: 2000-06-22 | O125: 15.091 | Q125: 2000-06-22 | R125: 29.974 | T125: 2000-06-22 | U125: 15.7866 | W125: 2000-06-22 | X125: 17.808 | Z125: 2000-06-22 | AA125: 299.4289 | AC125: 2000-06-22 | AD125: 17.11465 | AF125: 2000-06-22 | AG125: 26.777 | AI125: 2001-08-08 | AJ125: 29.966 | AL125: 2000-06-22 | AM125: 39.1581 | AO125: 2001-05-25 | AP125: 10.451 | AR125: 2000-06-22 | AS125: 38.782 | AU125: 2000-06-22 | AV125: 4.3705 | AX125: 2000-06-22 | AY125: 25.18751 | BA125: 2000-06-22 | BB125: 14.77709 | BD125: 2000-06-22 | BE125: 37.0012 | BG125: 2003-06-23 | BH125: 13.109 | BJ125: 2000-09-01 | BK125: 69.12 | BM125: 2000-06-22 | BN125: 20.149 | BP125: 2000-06-22 | BQ125: 26.407 | BS125: 2000-06-22 | BT125: 34.821 | BV125: 2000-06-22 | BW125: 12.348 | BY125: 2000-06-22 | BZ125: 188.35 | CB125: 2001-06-04 | CC125: 22.64 | CE125: 2000-06-22 | CF125: 31.2345 | CH125: 2000-06-22 | CI125: 3.0974 | CK125: 2000-06-22 | CL125: 96.5077 | CN125: 2000-06-22 | CO125: 9.426 | CQ125: 2008-06-25 | CR125: 81.53
E126: 1991-07-03 | F126: 1614.400024 | H126: 2000-06-23 | I126: 9.0244 | K126: 2000-06-23 | L126: 230.2 | N126: 2000-06-23 | O126: 14.835 | Q126: 2000-06-23 | R126: 29.858 | T126: 2000-06-23 | U126: 16.2162 | W126: 2000-06-23 | X126: 17.499 | Z126: 2000-06-23 | AA126: 294.4304 | AC126: 2000-06-23 | AD126: 16.1713 | AF126: 2000-06-23 | AG126: 27.212 | AI126: 2001-08-09 | AJ126: 29.927 | AL126: 2000-06-23 | AM126: 39.0411 | AO126: 2001-05-28 | AP126: 10.485 | AR126: 2000-06-23 | AS126: 38.359 | AU126: 2000-06-23 | AV126: 4.3785 | AX126: 2000-06-23 | AY126: 24.29854 | BA126: 2000-06-23 | BB126: 14.28998 | BD126: 2000-06-23 | BE126: 37.9663 | BG126: 2003-06-24 | BH126: 13.181 | BJ126: 2000-09-04 | BK126: 69.212 | BM126: 2000-06-23 | BN126: 22.069 | BP126: 2000-06-23 | BQ126: 25.996 | BS126: 2000-06-23 | BT126: 34.686 | BV126: 2000-06-23 | BW126: 12.606 | BY126: 2000-06-23 | BZ126: 179.29 | CB126: 2001-06-05 | CC126: 23.5363 | CE126: 2000-06-23 | CF126: 30.7857 | CH126: 2000-06-23 | CI126: 3.1367 | CK126: 2000-06-23 | CL126: 97.3619 | CN126: 2000-06-23 | CO126: 9.235 | CQ126: 2008-06-26 | CR126: 79.25
E127: 1991-07-04 | F127: 1616.099976 | H127: 2000-06-26 | I127: 9.255 | K127: 2000-06-26 | L127: 230.81 | N127: 2000-06-26 | O127: 15.288 | Q127: 2000-06-26 | R127: 30.075 | T127: 2000-06-26 | U127: 15.8729 | W127: 2000-06-26 | X127: 17.421 | Z127: 2000-06-26 | AA127: 301.8497 | AC127: 2000-06-26 | AD127: 16.18932 | AF127: 2000-06-26 | AG127: 27.135 | AI127: 2001-08-10 | AJ127: 30.253 | AL127: 2000-06-26 | AM127: 39.4905 | AO127: 2001-05-29 | AP127: 10.201 | AR127: 2000-06-26 | AS127: 38.389 | AU127: 2000-06-26 | AV127: 4.2591 | AX127: 2000-06-26 | AY127: 24.74303 | BA127: 2000-06-26 | BB127: 14.53353 | BD127: 2000-06-26 | BE127: 38.6098 | BG127: 2003-06-25 | BH127: 12.974 | BJ127: 2000-09-05 | BK127: 68.566 | BM127: 2000-06-26 | BN127: 20.31 | BP127: 2000-06-26 | BQ127: 26.533 | BS127: 2000-06-26 | BT127: 34.938 | BV127: 2000-06-26 | BW127: 12.586 | BY127: 2000-06-26 | BZ127: 188.88 | CB127: 2001-06-06 | CC127: 23.1385 | CE127: 2000-06-26 | CF127: 31.2076 | CH127: 2000-06-26 | CI127: 3.2811 | CK127: 2000-06-26 | CL127: 97.6674 | CN127: 2000-06-26 | CO127: 9.18 | CQ127: 2008-06-27 | CR127: 78.85
E128: 1991-07-05 | F128: 1618.900024 | H128: 2000-06-27 | I128: 8.881 | K128: 2000-06-27 | L128: 231.43 | N128: 2000-06-27 | O128: 15.476 | Q128: 2000-06-27 | R128: 30.121 | T128: 2000-06-27 | U128: 15.8038 | W128: 2000-06-27 | X128: 17.222 | Z128: 2000-06-27 | AA128: 299.8976 | AC128: 2000-06-27 | AD128: 16.12643 | AF128: 2000-06-27 | AG128: 27.474 | AI128: 2001-08-13 | AJ128: 30.408 | AL128: 2000-06-27 | AM128: 39.8369 | AO128: 2001-05-30 | AP128: 10.247 | AR128: 2000-06-27 | AS128: 38.359 | AU128: 2000-06-27 | AV128: 4.0362 | AX128: 2000-06-27 | AY128: 24.59493 | BA128: 2000-06-27 | BB128: 14.85827 | BD128: 2000-06-27 | BE128: 40.2186 | BG128: 2003-06-26 | BH128: 12.966 | BJ128: 2000-09-06 | BK128: 64.727 | BM128: 2000-06-27 | BN128: 20.487 | BP128: 2000-06-27 | BQ128: 26.217 | BS128: 2000-06-27 | BT128: 34.992 | BV128: 2000-06-27 | BW128: 12.685 | BY128: 2000-06-27 | BZ128: 193.29 | CB128: 2001-06-07 | CC128: 23.768 | CE128: 2000-06-27 | CF128: 31.3063 | CH128: 2000-06-27 | CI128: 3.2811 | CK128: 2000-06-27 | CL128: 96.8435 | CN128: 2000-06-27 | CO128: 9.208 | CQ128: 2008-06-30 | CR128: 79.14
E129: 1991-07-08 | F129: 1605 | H129: 2000-06-28 | I129: 9.1132 | K129: 2000-06-28 | L129: 231.37 | N129: 2000-06-28 | O129: 15.903 | Q129: 2000-06-28 | R129: 30.903 | T129: 2000-06-28 | U129: 15.269 | W129: 2000-06-28 | X129: 17.394 | Z129: 2000-06-28 | AA129: 296.7732 | AC129: 2000-06-28 | AD129: 15.85691 | AF129: 2000-06-28 | AG129: 27.232 | AI129: 2001-08-14 | AJ129: 30.253 | AL129: 2000-06-28 | AM129: 41.0072 | AO129: 2001-05-31 | AP129: 10.303 | AR129: 2000-06-28 | AS129: 38.407 | AU129: 2000-06-28 | AV129: 4.1158 | AX129: 2000-06-28 | AY129: 24.32823 | BA129: 2000-06-28 | BB129: 14.53353 | BD129: 2000-06-28 | BE129: 41.1324 | BG129: 2003-06-27 | BH129: 12.974 | BJ129: 2000-09-07 | BK129: 65.456 | BM129: 2000-06-28 | BN129: 21.096 | BP129: 2000-06-28 | BQ129: 26.994 | BS129: 2000-06-28 | BT129: 35.901 | BV129: 2000-06-28 | BW129: 12.883 | BY129: 2000-06-28 | BZ129: 197.11 | CB129: 2001-06-08 | CC129: 22.9018 | CE129: 2000-06-28 | CF129: 29.9779 | CH129: 2000-06-28 | CI129: 3.3017 | CK129: 2000-06-28 | CL129: 95.8362 | CN129: 2000-06-28 | CO129: 8.989 | CQ129: 2008-07-01 | CR129: 78.86
E130: 1991-07-09 | F130: 1627.599976 | H130: 2000-06-29 | I130: 8.9979 | K130: 2000-06-29 | L130: 229.03 | N130: 2000-06-29 | O130: 15.688 | Q130: 2000-06-29 | R130: 30.454 | T130: 2000-06-29 | U130: 15.2259 | W130: 2000-06-29 | X130: 18.179 | Z130: 2000-06-29 | AA130: 287.4798 | AC130: 2000-06-29 | AD130: 15.7221 | AF130: 2000-06-29 | AG130: 26.68 | AI130: 2001-08-15 | AJ130: 30.47 | AL130: 2000-06-29 | AM130: 41.0447 | AO130: 2001-06-01 | AP130: 10.207 | AR130: 2000-06-29 | AS130: 35.399 | AU130: 2000-06-29 | AV130: 3.9884 | AX130: 2000-06-29 | AY130: 23.33552 | BA130: 2000-06-29 | BB130: 13.81091 | BD130: 2000-06-29 | BE130: 41.1838 | BG130: 2003-06-30 | BH130: 12.88 | BJ130: 2000-09-08 | BK130: 63.491 | BM130: 2000-06-29 | BN130: 20.462 | BP130: 2000-06-29 | BQ130: 26.533 | BS130: 2000-06-29 | BT130: 35.379 | BV130: 2000-06-29 | BW130: 13.085 | BY130: 2000-06-29 | BZ130: 198.78 | CB130: 2001-06-11 | CC130: 22.7659 | CE130: 2000-06-29 | CF130: 28.0033 | CH130: 2000-06-29 | CI130: 3.2398 | CK130: 2000-06-29 | CL130: 94.383 | CN130: 2000-06-29 | CO130: 8.88 | CQ130: 2008-07-02 | CR130: 78.43
E131: 1991-07-10 | F131: 1634.699951 | H131: 2000-06-30 | I131: 9.0275 | K131: 2000-06-30 | L131: 227.77 | N131: 2000-06-30 | O131: 15.975 | Q131: 2000-06-30 | R131: 31.794 | T131: 2000-06-30 | U131: 15.5278 | W131: 2000-06-30 | X131: 17.471 | Z131: 2000-06-30 | AA131: 293.5718 | AC131: 2000-06-30 | AD131: 15.81194 | AF131: 2000-06-30 | AG131: 26.424 | AI131: 2001-08-16 | AJ131: 30.928 | AL131: 2000-06-30 | AM131: 40.1319 | AO131: 2001-06-04 | AP131: 10.366 | AR131: 2000-06-30 | AS131: 36.48 | AU131: 2000-06-30 | AV131: 3.9614 | AX131: 2000-06-30 | AY131: 24.77272 | BA131: 2000-06-30 | BB131: 14.0058 | BD131: 2000-06-30 | BE131: 41.5056 | BG131: 2003-07-01 | BH131: 12.895 | BJ131: 2000-09-11 | BK131: 62.872 | BM131: 2000-06-30 | BN131: 20.377 | BP131: 2000-06-30 | BQ131: 26.596 | BS131: 2000-06-30 | BT131: 36.936 | BV131: 2000-06-30 | BW131: 12.685 | BY131: 2000-06-30 | BZ131: 193.95 | CB131: 2001-06-12 | CC131: 22.781 | CE131: 2000-06-30 | CF131: 28.0033 | CH131: 2000-06-30 | CI131: 3.2914 | CK131: 2000-06-30 | CL131: 96.9039 | CN131: 2000-06-30 | CO131: 9.355 | CQ131: 2008-07-03 | CR131: 77.91
E132: 1991-07-11 | F132: 1637.900024 | H132: 2000-07-03 | I132: 9.1303 | K132: 2000-07-03 | L132: 232.97 | N132: 2000-07-03 | O132: 16.194 | Q132: 2000-07-03 | R132: 32.042 | T132: 2000-07-03 | U132: 16.3559 | W132: 2000-07-03 | X132: 17.847 | Z132: 2000-07-03 | AA132: 284.981 | AC132: 2000-07-03 | AD132: 15.94675 | AF132: 2000-07-03 | AG132: 26.85 | AI132: 2001-08-17 | AJ132: 31.029 | AL132: 2000-07-03 | AM132: 41.6158 | AO132: 2001-06-05 | AP132: 10.643 | AR132: 2000-07-03 | AS132: 35.338 | AU132: 2000-07-03 | AV132: 4.1357 | AX132: 2000-07-03 | AY132: 25.00972 | BA132: 2000-07-03 | BB132: 13.64043 | BD132: 2000-07-03 | BE132: 39.7038 | BG132: 2003-07-02 | BH132: 12.702 | BJ132: 2000-09-12 | BK132: 61.95 | BM132: 2000-07-03 | BN132: 21.138 | BP132: 2000-07-03 | BQ132: 27.329 | BS132: 2000-07-03 | BT132: 37.223 | BV132: 2000-07-03 | BW132: 13.141 | BY132: 2000-07-03 | BZ132: 201.46 | CB132: 2001-06-13 | CC132: 23.2342 | CE132: 2000-07-03 | CF132: 28.6406 | CH132: 2000-07-03 | CI132: 3.2852 | CK132: 2000-07-03 | CL132: 99.6145 | CN132: 2000-07-03 | CO132: 9.546 | CQ132: 2008-07-04 | CR132: 76.74
E133: 1991-07-12 | F133: 1644.800049 | H133: 2000-07-04 | I133: 8.9948 | K133: 2000-07-04 | L133: 223.18 | N133: 2000-07-04 | O133: 16.382 | Q133: 2000-07-04 | R133: 32.53 | T133: 2000-07-04 | U133: 17.0806 | W133: 2000-07-04 | X133: 18.438 | Z133: 2000-07-04 | AA133: 292.0875 | AC133: 2000-07-04 | AD133: 15.77599 | AF133: 2000-07-04 | AG133: 27.401 | AI133: 2001-08-20 | AJ133: 30.874 | AL133: 2000-07-04 | AM133: 41.3162 | AO133: 2001-06-06 | AP133: 10.762 | AR133: 2000-07-04 | AS133: 33.828 | AU133: 2000-07-04 | AV133: 4.1596 | AX133: 2000-07-04 | AY133: 26.11205 | BA133: 2000-07-04 | BB133: 13.8028 | BD133: 2000-07-04 | BE133: 39.8968 | BG133: 2003-07-03 | BH133: 12.523 | BJ133: 2000-09-13 | BK133: 61.95 | BM133: 2000-07-04 | BN133: 21.206 | BP133: 2000-07-04 | BQ133: 28.315 | BS133: 2000-07-04 | BT133: 37.79 | BV133: 2000-07-04 | BW133: 13.161 | BY133: 2000-07-04 | BZ133: 190.25 | CB133: 2001-06-14 | CC133: 23.0881 | CE133: 2000-07-04 | CF133: 28.7214 | CH133: 2000-07-04 | CI133: 3.3327 | CK133: 2000-07-04 | CL133: 102.5506 | CN133: 2000-07-04 | CO133: 9.552 | CQ133: 2008-07-07 | CR133: 76.45
E134: 1991-07-15 | F134: 1646.599976 | H134: 2000-07-05 | I134: 9.0836 | K134: 2000-07-05 | L134: 226.51 | N134: 2000-07-05 | O134: 16.194 | Q134: 2000-07-05 | R134: 32.53 | T134: 2000-07-05 | U134: 16.563 | W134: 2000-07-05 | X134: 18.521 | Z134: 2000-07-05 | AA134: 300.9131 | AC134: 2000-07-05 | AD134: 15.94675 | AF134: 2000-07-05 | AG134: 27.237 | AI134: 2001-08-21 | AJ134: 30.99 | AL134: 2000-07-05 | AM134: 42.0277 | AO134: 2001-06-07 | AP134: 10.739 | AR134: 2000-07-05 | AS134: 34.722 | AU134: 2000-07-05 | AV134: 4.1628 | AX134: 2000-07-05 | AY134: 25.58755 | BA134: 2000-07-05 | BB134: 13.92461 | BD134: 2000-07-05 | BE134: 39.2533 | BG134: 2003-07-04 | BH134: 12.558 | BJ134: 2000-09-14 | BK134: 58.332 | BM134: 2000-07-05 | BN134: 21.773 | BP134: 2000-07-05 | BQ134: 27.171 | BS134: 2000-07-05 | BT134: 37.79 | BV134: 2000-07-05 | BW134: 13.379 | BY134: 2000-07-05 | BZ134: 193.65 | CB134: 2001-06-15 | CC134: 23.0881 | CE134: 2000-07-05 | CF134: 27.9136 | CH134: 2000-07-05 | CI134: 3.3224 | CK134: 2000-07-05 | CL134: 102.2451 | CN134: 2000-07-05 | CO134: 9.53 | CQ134: 2008-07-08 | CR134: 75.24
E135: 1991-07-16 | F135: 1643.900024 | H135: 2000-07-06 | I135: 9.0836 | K135: 2000-07-06 | L135: 226.51 | N135: 2000-07-06 | O135: 15.933 | Q135: 2000-07-06 | R135: 31.949 | T135: 2000-07-06 | U135: 16.2179 | W135: 2000-07-06 | X135: 20.009 | Z135: 2000-07-06 | AA135: 297.9446 | AC135: 2000-07-06 | AD135: 16.00964 | AF135: 2000-07-06 | AG135: 26.85 | AI135: 2001-08-22 | AJ135: 30.331 | AL135: 2000-07-06 | AM135: 41.2787 | AO135: 2001-06-08 | AP135: 10.513 | AR135: 2000-07-06 | AS135: 35.308 | AU135: 2000-07-06 | AV135: 4.2113 | AX135: 2000-07-06 | AY135: 26.51804 | BA135: 2000-07-06 | BB135: 13.96517 | BD135: 2000-07-06 | BE135: 39.2533 | BG135: 2003-07-07 | BH135: 12.716 | BJ135: 2000-09-15 | BK135: 54.447 | BM135: 2000-07-06 | BN135: 22.491 | BP135: 2000-07-06 | BQ135: 27.354 | BS135: 2000-07-06 | BT135: 37.115 | BV135: 2000-07-06 | BW135: 13.62 | BY135: 2000-07-06 | BZ135: 190.13 | CB135: 2001-06-18 | CC135: 22.8364 | CE135: 2000-07-06 | CF135: 27.2853 | CH135: 2000-07-06 | CI135: 3.3224 | CK135: 2000-07-06 | CL135: 99.2851 | CN135: 2000-07-06 | CO135: 9.377 | CQ135: 2008-07-09 | CR135: 75.47
E136: 1991-07-17 | F136: 1625.5 | H136: 2000-07-07 | I136: 9.0836 | K136: 2000-07-07 | L136: 226.51 | N136: 2000-07-07 | O136: 15.933 | Q136: 2000-07-07 | R136: 31.949 | T136: 2000-07-07 | U136: 16.2179 | W136: 2000-07-07 | X136: 20.009 | Z136: 2000-07-07 | AA136: 297.9446 | AC136: 2000-07-07 | AD136: 16.00964 | AF136: 2000-07-07 | AG136: 26.85 | AI136: 2001-08-23 | AJ136: 30.532 | AL136: 2000-07-07 | AM136: 41.2787 | AO136: 2001-06-11 | AP136: 10.371 | AR136: 2000-07-07 | AS136: 35.308 | AU136: 2000-07-07 | AV136: 4.2113 | AX136: 2000-07-07 | AY136: 26.51804 | BA136: 2000-07-07 | BB136: 13.96517 | BD136: 2000-07-07 | BE136: 39.2533 | BG136: 2003-07-08 | BH136: 12.702 | BJ136: 2000-09-18 | BK136: 55.462 | BM136: 2000-07-07 | BN136: 22.491 | BP136: 2000-07-07 | BQ136: 27.803 | BS136: 2000-07-07 | BT136: 37.115 | BV136: 2000-07-07 | BW136: 13.62 | BY136: 2000-07-07 | BZ136: 190.13 | CB136: 2001-06-19 | CC136: 22.9472 | CE136: 2000-07-07 | CF136: 27.2853 | CH136: 2000-07-07 | CI136: 3.3224 | CK136: 2000-07-07 | CL136: 99.2851 | CN136: 2000-07-07 | CO136: 9.377 | CQ136: 2008-07-10 | CR136: 73.44
E137: 1991-07-18 | F137: 1618.300049 | H137: 2000-07-10 | I137: 8.9901 | K137: 2000-07-10 | L137: 222.94 | N137: 2000-07-10 | O137: 15.873 | Q137: 2000-07-10 | R137: 32.561 | T137: 2000-07-10 | U137: 17.0806 | W137: 2000-07-10 | X137: 19.074 | Z137: 2000-07-10 | AA137: 304.5833 | AC137: 2000-07-10 | AD137: 16.86316 | AF137: 2000-07-10 | AG137: 28.122 | AI137: 2001-08-24 | AJ137: 30.874 | AL137: 2000-07-10 | AM137: 42.8984 | AO137: 2001-06-12 | AP137: 10.326 | AR137: 2000-07-10 | AS137: 37.03 | AU137: 2000-07-10 | AV137: 4.3785 | AX137: 2000-07-10 | AY137: 27.22628 | BA137: 2000-07-10 | BB137: 14.11131 | BD137: 2000-07-10 | BE137: 40.5403 | BG137: 2003-07-09 | BH137: 12.594 | BJ137: 2000-09-19 | BK137: 56.431 | BM137: 2000-07-10 | BN137: 22.753 | BP137: 2000-07-10 | BQ137: 27.923 | BS137: 2000-07-10 | BT137: 37.826 | BV137: 2000-07-10 | BW137: 13.161 | BY137: 2000-07-10 | BZ137: 183.63 | CB137: 2001-06-20 | CC137: 23.0881 | CE137: 2000-07-10 | CF137: 27.6623 | CH137: 2000-07-10 | CI137: 3.3533 | CK137: 2000-07-10 | CL137: 102.2451 | CN137: 2000-07-10 | CO137: 9.3 | CQ137: 2008-07-11 | CR137: 72.92
E138: 1991-07-19 | F138: 1624 | H138: 2000-07-11 | I138: 8.6941 | K138: 2000-07-11 | L138: 221.49 | N138: 2000-07-11 | O138: 15.85 | Q138: 2000-07-11 | R138: 32.414 | T138: 2000-07-11 | U138: 16.563 | W138: 2000-07-11 | X138: 19.937 | Z138: 2000-07-11 | AA138: 299.5068 | AC138: 2000-07-11 | AD138: 16.71042 | AF138: 2000-07-11 | AG138: 27.841 | AI138: 2001-08-27 | AJ138: 30.866 | AL138: 2000-07-11 | AM138: 42.7627 | AO138: 2001-06-13 | AP138: 10.264 | AR138: 2000-07-11 | AS138: 36.148 | AU138: 2000-07-11 | AV138: 4.3626 | AX138: 2000-07-11 | AY138: 26.96546 | BA138: 2000-07-11 | BB138: 14.61472 | BD138: 2000-07-11 | BE138: 40.3409 | BG138: 2003-07-10 | BH138: 12.759 | BJ138: 2000-09-20 | BK138: 55.61 | BM138: 2000-07-11 | BN138: 22.525 | BP138: 2000-07-11 | BQ138: 28.239 | BS138: 2000-07-11 | BT138: 37.655 | BV138: 2000-07-11 | BW138: 13.418 | BY138: 2000-07-11 | BZ138: 183.29 | CB138: 2001-06-21 | CC138: 23.1637 | CE138: 2000-07-11 | CF138: 27.7341 | CH138: 2000-07-11 | CI138: 3.2914 | CK138: 2000-07-11 | CL138: 101.3909 | CN138: 2000-07-11 | CO138: 9.071 | CQ138: 2008-07-14 | CR138: 73.16
E139: 1991-07-22 | F139: 1623 | H139: 2000-07-12 | I139: 8.881 | K139: 2000-07-12 | L139: 223.39 | N139: 2000-07-12 | O139: 16.439 | Q139: 2000-07-12 | R139: 33.638 | T139: 2000-07-12 | U139: 16.8218 | W139: 2000-07-12 | X139: 20.794 | Z139: 2000-07-12 | AA139: 292.0875 | AC139: 2000-07-12 | AD139: 16.57562 | AF139: 2000-07-12 | AG139: 27.865 | AI139: 2001-08-28 | AJ139: 30.719 | AL139: 2000-07-12 | AM139: 41.7094 | AO139: 2001-06-14 | AP139: 10.128 | AR139: 2000-07-12 | AS139: 35.024 | AU139: 2000-07-12 | AV139: 4.3236 | AX139: 2000-07-12 | AY139: 26.55066 | BA139: 2000-07-12 | BB139: 14.93946 | BD139: 2000-07-12 | BE139: 40.5403 | BG139: 2003-07-11 | BH139: 12.745 | BJ139: 2000-09-21 | BK139: 54.161 | BM139: 2000-07-12 | BN139: 22.745 | BP139: 2000-07-12 | BQ139: 28.946 | BS139: 2000-07-12 | BT139: 39.077 | BV139: 2000-07-12 | BW139: 13.775 | BY139: 2000-07-12 | BZ139: 182.39 | CB139: 2001-06-22 | CC139: 23.2392 | CE139: 2000-07-12 | CF139: 29.2366 | CH139: 2000-07-12 | CI139: 3.2584 | CK139: 2000-07-12 | CL139: 106.683 | CN139: 2000-07-12 | CO139: 9.038 | CQ139: 2008-07-15 | CR139: 73.73
E140: 1991-07-23 | F140: 1632.900024 | H140: 2000-07-13 | I140: 8.881 | K140: 2000-07-13 | L140: 224.16 | N140: 2000-07-13 | O140: 16.439 | Q140: 2000-07-13 | R140: 33.638 | T140: 2000-07-13 | U140: 16.8218 | W140: 2000-07-13 | X140: 20.794 | Z140: 2000-07-13 | AA140: 292.0875 | AC140: 2000-07-13 | AD140: 16.57562 | AF140: 2000-07-13 | AG140: 27.865 | AI140: 2001-08-29 | AJ140: 31.021 | AL140: 2000-07-13 | AM140: 41.7094 | AO140: 2001-06-18 | AP140: 10.156 | AR140: 2000-07-13 | AS140: 35.024 | AU140: 2000-07-13 | AV140: 4.3236 | AX140: 2000-07-13 | AY140: 26.55066 | BA140: 2000-07-13 | BB140: 14.93946 | BD140: 2000-07-13 | BE140: 40.5403 | BG140: 2003-07-14 | BH140: 12.652 | BJ140: 2000-09-22 | BK140: 51.162 | BM140: 2000-07-13 | BN140: 22.745 | BP140: 2000-07-13 | BQ140: 29.692 | BS140: 2000-07-13 | BT140: 39.077 | BV140: 2000-07-13 | BW140: 13.775 | BY140: 2000-07-13 | BZ140: 182.39 | CB140: 2001-06-25 | CC140: 23.4356 | CE140: 2000-07-13 | CF140: 29.2366 | CH140: 2000-07-13 | CI140: 3.2584 | CK140: 2000-07-13 | CL140: 106.683 | CN140: 2000-07-13 | CO140: 9.038 | CQ140: 2008-07-16 | CR140: 78.9
E141: 1991-07-24 | F141: 1621.699951 | H141: 2000-07-14 | I141: 8.5694 | K141: 2000-07-14 | L141: 242.42 | N141: 2000-07-14 | O141: 16.477 | Q141: 2000-07-14 | R141: 32.909 | T141: 2000-07-14 | U141: 16.8235 | W141: 2000-07-14 | X141: 20.147 | Z141: 2000-07-14 | AA141: 300.0536 | AC141: 2000-07-14 | AD141: 16.8901 | AF141: 2000-07-14 | AG141: 27.459 | AI141: 2001-08-30 | AJ141: 30.276 | AL141: 2000-07-14 | AM141: 43.7457 | AO141: 2001-06-19 | AP141: 10.326 | AR141: 2000-07-14 | AS141: 36.063 | AU141: 2000-07-14 | AV141: 4.4987 | AX141: 2000-07-14 | AY141: 26.9507 | BA141: 2000-07-14 | BB141: 15.15057 | BD141: 2000-07-14 | BE141: 41.5571 | BG141: 2003-07-15 | BH141: 12.616 | BJ141: 2000-09-25 | BK141: 51.309 | BM141: 2000-07-14 | BN141: 22.923 | BP141: 2000-07-14 | BQ141: 30.261 | BS141: 2000-07-14 | BT141: 38.231 | BV141: 2000-07-14 | BW141: 13.418 | BY141: 2000-07-14 | BZ141: 199.31 | CB141: 2001-06-26 | CC141: 23.3802 | CE141: 2000-07-14 | CF141: 31.6833 | CH141: 2000-07-14 | CI141: 3.2811 | CK141: 2000-07-14 | CL141: 109.7539 | CN141: 2000-07-14 | CO141: 8.907 | CQ141: 2008-07-17 | CR141: 80.02
E142: 1991-07-25 | F142: 1615.400024 | H142: 2000-07-17 | I142: 8.6084 | K142: 2000-07-17 | L142: 249.52 | N142: 2000-07-17 | O142: 16.567 | Q142: 2000-07-17 | R142: 33.421 | T142: 2000-07-17 | U142: 17.1237 | W142: 2000-07-17 | X142: 19.81 | Z142: 2000-07-17 | AA142: 292.0875 | AC142: 2000-07-17 | AD142: 17.29432 | AF142: 2000-07-17 | AG142: 27.309 | AI142: 2001-08-31 | AJ142: 30.719 | AL142: 2000-07-17 | AM142: 45.4637 | AO142: 2001-06-20 | AP142: 10.366 | AR142: 2000-07-17 | AS142: 36.661 | AU142: 2000-07-17 | AV142: 4.4971 | AX142: 2000-07-17 | AY142: 26.00537 | BA142: 2000-07-17 | BB142: 14.83394 | BD142: 2000-07-17 | BE142: 40.5081 | BG142: 2003-07-16 | BH142: 12.823 | BJ142: 2000-09-26 | BK142: 50.894 | BM142: 2000-07-17 | BN142: 23.016 | BP142: 2000-07-17 | BQ142: 29.951 | BS142: 2000-07-17 | BT142: 38.825 | BV142: 2000-07-17 | BW142: 13.359 | BY142: 2000-07-17 | BZ142: 197.23 | CB142: 2001-06-27 | CC142: 23.3147 | CE142: 2000-07-17 | CF142: 33.026 | CH142: 2000-07-17 | CI142: 3.3017 | CK142: 2000-07-17 | CL142: 110.7914 | CN142: 2000-07-17 | CO142: 9.12 | CQ142: 2008-07-18 | CR142: 81.69
E143: 1991-07-26 | F143: 1605.599976 | H143: 2000-07-18 | I143: 9.0119 | K143: 2000-07-18 | L143: 249.52 | N143: 2000-07-18 | O143: 16.703 | Q143: 2000-07-18 | R143: 33.188 | T143: 2000-07-18 | U143: 17.5119 | W143: 2000-07-18 | X143: 20.18 | Z143: 2000-07-18 | AA143: 284.5902 | AC143: 2000-07-18 | AD143: 17.69864 | AF143: 2000-07-18 | AG143: 27.89 | AI143: 2001-09-03 | AJ143: 30.796 | AL143: 2000-07-18 | AM143: 45.6884 | AO143: 2001-06-21 | AP143: 10.383 | AR143: 2000-07-18 | AS143: 36.848 | AU143: 2000-07-18 | AV143: 4.5759 | AX143: 2000-07-18 | AY143: 26.22175 | BA143: 2000-07-18 | BB143: 14.6959 | BD143: 2000-07-18 | BE143: 40.7141 | BG143: 2003-07-17 | BH143: 13.31 | BJ143: 2000-09-27 | BK143: 51.679 | BM143: 2000-07-18 | BN143: 22.66 | BP143: 2000-07-18 | BQ143: 29.806 | BS143: 2000-07-18 | BT143: 38.555 | BV143: 2000-07-18 | BW143: 13.458 | BY143: 2000-07-18 | BZ143: 195.5 | CB143: 2001-06-28 | CC143: 23.5413 | CE143: 2000-07-18 | CF143: 32.0172 | CH143: 2000-07-18 | CI143: 3.3017 | CK143: 2000-07-18 | CL143: 109.8754 | CN143: 2000-07-18 | CO143: 9.371 | CQ143: 2008-07-21 | CR143: 82.85
E144: 1991-07-29 | F144: 1605.599976 | H144: 2000-07-19 | I144: 9.1148 | K144: 2000-07-19 | L144: 249.21 | N144: 2000-07-19 | O144: 16.42 | Q144: 2000-07-19 | R144: 33.281 | T144: 2000-07-19 | U144: 17.4083 | W144: 2000-07-19 | X144: 19.793 | Z144: 2000-07-19 | AA144: 288.0265 | AC144: 2000-07-19 | AD144: 18.01303 | AF144: 2000-07-19 | AG144: 28.988 | AI144: 2001-09-04 | AJ144: 30.765 | AL144: 2000-07-19 | AM144: 44.9301 | AO144: 2001-06-22 | AP144: 10.23 | AR144: 2000-07-19 | AS144: 36.462 | AU144: 2000-07-19 | AV144: 4.5855 | AX144: 2000-07-19 | AY144: 25.95799 | BA144: 2000-07-19 | BB144: 14.28998 | BD144: 2000-07-19 | BE144: 41.5056 | BG144: 2003-07-18 | BH144: 13.124 | BJ144: 2000-09-28 | BK144: 50.94 | BM144: 2000-07-19 | BN144: 22.618 | BP144: 2000-07-19 | BQ144: 30.065 | BS144: 2000-07-19 | BT144: 38.663 | BV144: 2000-07-19 | BW144: 13.557 | BY144: 2000-07-19 | BZ144: 196.69 | CB144: 2001-06-29 | CC144: 23.919 | CE144: 2000-07-19 | CF144: 31.1447 | CH144: 2000-07-19 | CI144: 3.2708 | CK144: 2000-07-19 | CL144: 107.4338 | CN144: 2000-07-19 | CO144: 9.371 | CQ144: 2008-07-22 | CR144: 83.97
E145: 1991-07-30 | F145: 1614.900024 | H145: 2000-07-20 | I145: 9.1085 | K145: 2000-07-20 | L145: 253.65 | N145: 2000-07-20 | O145: 16.609 | Q145: 2000-07-20 | R145: 33.816 | T145: 2000-07-20 | U145: 17.1237 | W145: 2000-07-20 | X145: 20.871 | Z145: 2000-07-20 | AA145: 294.1965 | AC145: 2000-07-20 | AD145: 18.1928 | AF145: 2000-07-20 | AG145: 29.21 | AI145: 2001-09-05 | AJ145: 30.37 | AL145: 2000-07-20 | AM145: 45.782 | AO145: 2001-06-25 | AP145: 10.366 | AR145: 2000-07-20 | AS145: 34.523 | AU145: 2000-07-20 | AV145: 4.5377 | AX145: 2000-07-20 | AY145: 25.4839 | BA145: 2000-07-20 | BB145: 14.33053 | BD145: 2000-07-20 | BE145: 42.2134 | BG145: 2003-07-21 | BH145: 13.21 | BJ145: 2000-09-29 | BK145: 50.479 | BM145: 2000-07-20 | BN145: 23.168 | BP145: 2000-07-20 | BQ145: 30.406 | BS145: 2000-07-20 | BT145: 39.284 | BV145: 2000-07-20 | BW145: 13.279 | BY145: 2000-07-20 | BZ145: 201.99 | CB145: 2001-07-02 | CC145: 23.5464 | CE145: 2000-07-20 | CF145: 35.3273 | CH145: 2000-07-20 | CI145: 3.2398 | CK145: 2000-07-20 | CL145: 108.9602 | CN145: 2000-07-20 | CO145: 9.388 | CQ145: 2008-07-23 | CR145: 87.63
E146: 1991-07-31 | F146: 1622.300049 | H146: 2000-07-21 | I146: 8.9667 | K146: 2000-07-21 | L146: 250.14 | N146: 2000-07-21 | O146: 16.571 | Q146: 2000-07-21 | R146: 33.576 | T146: 2000-07-21 | U146: 16.7355 | W146: 2000-07-21 | X146: 20.456 | Z146: 2000-07-21 | AA146: 293.6498 | AC146: 2000-07-21 | AD146: 18.1928 | AF146: 2000-07-21 | AG146: 28.639 | AI146: 2001-09-06 | AJ146: 29.322 | AL146: 2000-07-21 | AM146: 45.7118 | AO146: 2001-06-26 | AP146: 10.394 | AR146: 2000-07-21 | AS146: 33.387 | AU146: 2000-07-21 | AV146: 4.474 | AX146: 2000-07-21 | AY146: 26.19508 | BA146: 2000-07-21 | BB146: 14.12754 | BD146: 2000-07-21 | BE146: 39.8968 | BG146: 2003-07-22 | BH146: 13.188 | BJ146: 2000-10-02 | BK146: 51.679 | BM146: 2000-07-21 | BN146: 22.914 | BP146: 2000-07-21 | BQ146: 30.425 | BS146: 2000-07-21 | BT146: 39.005 | BV146: 2000-07-21 | BW146: 13.125 | BY146: 2000-07-21 | BZ146: 195.64 | CB146: 2001-07-03 | CC146: 23.4658 | CE146: 2000-07-21 | CF146: 34.3041 | CH146: 2000-07-21 | CI146: 3.2378 | CK146: 2000-07-21 | CL146: 106.8178 | CN146: 2000-07-21 | CO146: 9.371 | CQ146: 2008-07-24 | CR146: 84.29
E147: 1991-08-01 | F147: 1622.599976 | H147: 2000-07-24 | I147: 9.255 | K147: 2000-07-24 | L147: 255.08 | N147: 2000-07-24 | O147: 16.892 | Q147: 2000-07-24 | R147: 33.955 | T147: 2000-07-24 | U147: 16.9943 | W147: 2000-07-24 | X147: 20.749 | Z147: 2000-07-24 | AA147: 293.6498 | AC147: 2000-07-24 | AD147: 18.1928 | AF147: 2000-07-24 | AG147: 28.219 | AI147: 2001-09-07 | AJ147: 28.353 | AL147: 2000-07-24 | AM147: 46.3906 | AO147: 2001-06-27 | AP147: 10.756 | AR147: 2000-07-24 | AS147: 29.569 | AU147: 2000-07-24 | AV147: 4.6062 | AX147: 2000-07-24 | AY147: 26.52097 | BA147: 2000-07-24 | BB147: 13.8028 | BD147: 2000-07-24 | BE147: 39.8968 | BG147: 2003-07-23 | BH147: 12.823 | BJ147: 2000-10-03 | BK147: 51.679 | BM147: 2000-07-24 | BN147: 22.914 | BP147: 2000-07-24 | BQ147: 30.64 | BS147: 2000-07-24 | BT147: 39.446 | BV147: 2000-07-24 | BW147: 13.359 | BY147: 2000-07-24 | BZ147: 200.82 | CB147: 2001-07-04 | CC147: 23.6168 | CE147: 2000-07-24 | CF147: 34.8247 | CH147: 2000-07-24 | CI147: 3.2502 | CK147: 2000-07-24 | CL147: 110.4676 | CN147: 2000-07-24 | CO147: 9.388 | CQ147: 2008-07-25 | CR147: 84.96
E148: 1991-08-02 | F148: 1615.400024 | H148: 2000-07-25 | I148: 9.082 | K148: 2000-07-25 | L148: 256.32 | N148: 2000-07-25 | O148: 16.873 | Q148: 2000-07-25 | R148: 34.854 | T148: 2000-07-25 | U148: 16.908 | W148: 2000-07-25 | X148: 20.324 | Z148: 2000-07-25 | AA148: 292.0875 | AC148: 2000-07-25 | AD148: 17.68963 | AF148: 2000-07-25 | AG148: 27.285 | AI148: 2001-09-10 | AJ148: 27.926 | AL148: 2000-07-25 | AM148: 46.7042 | AO148: 2001-06-28 | AP148: 10.83 | AR148: 2000-07-25 | AS148: 30.143 | AU148: 2000-07-25 | AV148: 4.482 | AX148: 2000-07-25 | AY148: 26.19508 | BA148: 2000-07-25 | BB148: 14.20872 | BD148: 2000-07-25 | BE148: 40.5403 | BG148: 2003-07-24 | BH148: 13.253 | BJ148: 2000-10-04 | BK148: 50.83 | BM148: 2000-07-25 | BN148: 22.982 | BP148: 2000-07-25 | BQ148: 30.987 | BS148: 2000-07-25 | BT148: 40.49 | BV148: 2000-07-25 | BW148: 13.676 | BY148: 2000-07-25 | BZ148: 208.26 | CB148: 2001-07-05 | CC148: 23.7176 | CE148: 2000-07-25 | CF148: 35.4978 | CH148: 2000-07-25 | CI148: 3.2914 | CK148: 2000-07-25 | CL148: 109.0213 | CN148: 2000-07-25 | CO148: 9.891 | CQ148: 2008-07-28 | CR148: 85.09
E149: 1991-08-05 | F149: 1622 | H149: 2000-07-26 | I149: 9.1148 | K149: 2000-07-26 | L149: 253.85 | N149: 2000-07-26 | O149: 16.964 | Q149: 2000-07-26 | R149: 34.815 | T149: 2000-07-26 | U149: 17.0806 | W149: 2000-07-26 | X149: 20.512 | Z149: 2000-07-26 | AA149: 290.8381 | AC149: 2000-07-26 | AD149: 18.04899 | AF149: 2000-07-26 | AG149: 27.817 | AI149: 2001-09-11 | AJ149: 26.382 | AL149: 2000-07-26 | AM149: 45.8757 | AO149: 2001-06-29 | AP149: 10.916 | AR149: 2000-07-26 | AS149: 31.11 | AU149: 2000-07-26 | AV149: 4.6571 | AX149: 2000-07-26 | AY149: 26.57138 | BA149: 2000-07-26 | BB149: 14.12754 | BD149: 2000-07-26 | BE149: 40.6047 | BG149: 2003-07-25 | BH149: 13.181 | BJ149: 2000-10-05 | BK149: 52.048 | BM149: 2000-07-26 | BN149: 22.813 | BP149: 2000-07-26 | BQ149: 30.671 | BS149: 2000-07-26 | BT149: 40.445 | BV149: 2000-07-26 | BW149: 13.478 | BY149: 2000-07-26 | BZ149: 210.59 | CB149: 2001-07-06 | CC149: 24.0248 | CE149: 2000-07-26 | CF149: 36.0812 | CH149: 2000-07-26 | CI149: 3.3017 | CK149: 2000-07-26 | CL149: 106.1948 | CN149: 2000-07-26 | CO149: 10.06 | CQ149: 2008-08-18 | CR149: 89.11
E150: 1991-08-06 | F150: 1611.900024 | H150: 2000-07-27 | I150: 8.9589 | K150: 2000-07-27 | L150: 251.87 | N150: 2000-07-27 | O150: 16.741 | Q150: 2000-07-27 | R150: 33.963 | T150: 2000-07-27 | U150: 17.5809 | W150: 2000-07-27 | X150: 20.396 | Z150: 2000-07-27 | AA150: 292.0875 | AC150: 2000-07-27 | AD150: 17.96816 | AF150: 2000-07-27 | AG150: 27.256 | AI150: 2001-09-12 | AJ150: 26.685 | AL150: 2000-07-27 | AM150: 45.5246 | AO150: 2001-07-02 | AP150: 10.922 | AR150: 2000-07-27 | AS150: 29.871 | AU150: 2000-07-27 | AV150: 4.4724 | AX150: 2000-07-27 | AY150: 26.32842 | BA150: 2000-07-27 | BB150: 13.72161 | BD150: 2000-07-27 | BE150: 41.8274 | BG150: 2003-07-28 | BH150: 13.188 | BJ150: 2000-10-06 | BK150: 48.975 | BM150: 2000-07-27 | BN150: 22.83 | BP150: 2000-07-27 | BQ150: 29.477 | BS150: 2000-07-27 | BT150: 39.455 | BV150: 2000-07-27 | BW150: 13.279 | BY150: 2000-07-27 | BZ150: 210.06 | CB150: 2001-07-09 | CC150: 24.5485 | CE150: 2000-07-27 | CF150: 34.0348 | CH150: 2000-07-27 | CI150: 3.3224 | CK150: 2000-07-27 | CL150: 102.5506 | CN150: 2000-07-27 | CO150: 9.841 | CQ150: 2008-08-19 | CR150: 88.53
E151: 1991-08-07 | F151: 1631.400024 | H151: 2000-07-28 | I151: 9.0353 | K151: 2000-07-28 | L151: 250.14 | N151: 2000-07-28 | O151: 16.775 | Q151: 2000-07-28 | R151: 35.047 | T151: 2000-07-28 | U151: 17.3394 | W151: 2000-07-28 | X151: 20.125 | Z151: 2000-07-28 | AA151: 296.7732 | AC151: 2000-07-28 | AD151: 18.15685 | AF151: 2000-07-28 | AG151: 27.517 | AI151: 2001-09-13 | AJ151: 26.607 | AL151: 2000-07-28 | AM151: 44.9394 | AO151: 2001-07-03 | AP151: 11.269 | AR151: 2000-07-28 | AS151: 28.524 | AU151: 2000-07-28 | AV151: 4.6969 | AX151: 2000-07-28 | AY151: 26.31358 | BA151: 2000-07-28 | BB151: 13.64043 | BD151: 2000-07-28 | BE151: 42.0204 | BG151: 2003-07-29 | BH151: 13.138 | BJ151: 2000-10-09 | BK151: 48.947 | BM151: 2000-07-28 | BN151: 22.83 | BP151: 2000-07-28 | BQ151: 29.547 | BS151: 2000-07-28 | BT151: 40.715 | BV151: 2000-07-28 | BW151: 13.279 | BY151: 2000-07-28 | BZ151: 210.41 | CB151: 2001-07-10 | CC151: 23.9291 | CE151: 2000-07-28 | CF151: 33.0296 | CH151: 2000-07-28 | CI151: 3.3224 | CK151: 2000-07-28 | CL151: 99.1692 | CN151: 2000-07-28 | CO151: 9.983 | CQ151: 2008-08-20 | CR151: 88.58
E152: 1991-08-08 | F152: 1630.199951 | H152: 2000-07-31 | I152: 8.9169 | K152: 2000-07-31 | L152: 245.82 | N152: 2000-07-31 | O152: 16.703 | Q152: 2000-07-31 | R152: 34.892 | T152: 2000-07-31 | U152: 19.1509 | W152: 2000-07-31 | X152: 20.291 | Z152: 2000-07-31 | AA152: 304.5833 | AC152: 2000-07-31 | AD152: 18.28255 | AF152: 2000-07-31 | AG152: 27.382 | AI152: 2001-09-14 | AJ152: 25.374 | AL152: 2000-07-31 | AM152: 44.9862 | AO152: 2001-07-04 | AP152: 11.211 | AR152: 2000-07-31 | AS152: 28.089 | AU152: 2000-07-31 | AV152: 4.6969 | AX152: 2000-07-31 | AY152: 30.22505 | BA152: 2000-07-31 | BB152: 13.94894 | BD152: 2000-07-31 | BE152: 41.9561 | BG152: 2003-07-30 | BH152: 13.167 | BJ152: 2000-10-10 | BK152: 46.142 | BM152: 2000-07-31 | BN152: 22.449 | BP152: 2000-07-31 | BQ152: 29.945 | BS152: 2000-07-31 | BT152: 40.535 | BV152: 2000-07-31 | BW152: 13.24 | BY152: 2000-07-31 | BZ152: 213.4 | CB152: 2001-07-11 | CC152: 24.3772 | CE152: 2000-07-31 | CF152: 34.8247 | CH152: 2000-07-31 | CI152: 3.3822 | CK152: 2000-07-31 | CL152: 101.0243 | CN152: 2000-07-31 | CO152: 10.06 | CQ152: 2008-08-21 | CR152: 88.04
E153: 1991-08-09 | F153: 1632.199951 | H153: 2000-08-01 | I153: 9.0369 | K153: 2000-08-01 | L153: 243.01 | N153: 2000-08-01 | O153: 16.873 | Q153: 2000-08-01 | R153: 34.9 | T153: 2000-08-01 | U153: 18.9784 | W153: 2000-08-01 | X153: 20.058 | Z153: 2000-08-01 | AA153: 296.7732 | AC153: 2000-08-01 | AD153: 18.1928 | AF153: 2000-08-01 | AG153: 27.43 | AI153: 2001-09-17 | AJ153: 25.599 | AL153: 2000-08-01 | AM153: 44.05 | AO153: 2001-07-05 | AP153: 11.124 | AR153: 2000-08-01 | AS153: 28.21 | AU153: 2000-08-01 | AV153: 4.7089 | AX153: 2000-08-01 | AY153: 26.30175 | BA153: 2000-08-01 | BB153: 14.61472 | BD153: 2000-08-01 | BE153: 43.3717 | BG153: 2003-07-31 | BH153: 13.346 | BJ153: 2000-10-11 | BK153: 44.397 | BM153: 2000-08-01 | BN153: 22.483 | BP153: 2000-08-01 | BQ153: 29.25 | BS153: 2000-08-01 | BT153: 40.544 | BV153: 2000-08-01 | BW153: 13.482 | BY153: 2000-08-01 | BZ153: 201.92 | CB153: 2001-07-12 | CC153: 24.4729 | CE153: 2000-08-01 | CF153: 36.2123 | CH153: 2000-08-01 | CI153: 3.3471 | CK153: 2000-08-01 | CL153: 102.7031 | CN153: 2000-08-01 | CO153: 10.027 | CQ153: 2008-08-22 | CR153: 89.19
E154: 1991-08-12 | F154: 1626.099976 | H154: 2000-08-02 | I154: 8.8655 | K154: 2000-08-02 | L154: 241.31 | N154: 2000-08-02 | O154: 16.703 | Q154: 2000-08-02 | R154: 34.931 | T154: 2000-08-02 | U154: 18.0467 | W154: 2000-08-02 | X154: 19.13 | Z154: 2000-08-02 | AA154: 303.8806 | AC154: 2000-08-02 | AD154: 17.97717 | AF154: 2000-08-02 | AG154: 28.025 | AI154: 2001-09-18 | AJ154: 25.987 | AL154: 2000-08-02 | AM154: 45.8523 | AO154: 2001-07-06 | AP154: 11.147 | AR154: 2000-08-02 | AS154: 27.485 | AU154: 2000-08-02 | AV154: 4.7773 | AX154: 2000-08-02 | AY154: 26.00839 | BA154: 2000-08-02 | BB154: 14.89079 | BD154: 2000-08-02 | BE154: 43.3331 | BG154: 2003-08-01 | BH154: 13.338 | BJ154: 2000-10-12 | BK154: 44.065 | BM154: 2000-08-02 | BN154: 22.441 | BP154: 2000-08-02 | BQ154: 29.42 | BS154: 2000-08-02 | BT154: 40.58 | BV154: 2000-08-02 | BW154: 14.033 | BY154: 2000-08-02 | BZ154: 194.63 | CB154: 2001-07-13 | CC154: 24.4729 | CE154: 2000-08-02 | CF154: 35.9017 | CH154: 2000-08-02 | CI154: 3.374 | CK154: 2000-08-02 | CL154: 101.3178 | CN154: 2000-08-02 | CO154: 10.038 | CQ154: 2008-08-25 | CR154: 88.95
E155: 1991-08-13 | F155: 1644.699951 | H155: 2000-08-03 | I155: 8.881 | K155: 2000-08-03 | L155: 242.42 | N155: 2000-08-03 | O155: 16.896 | Q155: 2000-08-03 | R155: 34.931 | T155: 2000-08-03 | U155: 18.9784 | W155: 2000-08-03 | X155: 20.069 | Z155: 2000-08-03 | AA155: 299.116 | AC155: 2000-08-03 | AD155: 17.87832 | AF155: 2000-08-03 | AG155: 27.643 | AI155: 2001-09-19 | AJ155: 26.01 | AL155: 2000-08-03 | AM155: 44.8833 | AO155: 2001-07-09 | AP155: 10.801 | AR155: 2000-08-03 | AS155: 27.419 | AU155: 2000-08-03 | AV155: 4.7606 | AX155: 2000-08-03 | AY155: 27.26184 | BA155: 2000-08-03 | BB155: 14.98009 | BD155: 2000-08-03 | BE155: 44.6587 | BG155: 2003-08-04 | BH155: 13.174 | BJ155: 2000-10-13 | BK155: 44.065 | BM155: 2000-08-03 | BN155: 22.711 | BP155: 2000-08-03 | BQ155: 29.629 | BS155: 2000-08-03 | BT155: 40.58 | BV155: 2000-08-03 | BW155: 14.706 | BY155: 2000-08-03 | BZ155: 196.06 | CB155: 2001-07-16 | CC155: 24.775 | CE155: 2000-08-03 | CF155: 33.8661 | CH155: 2000-08-03 | CI155: 3.4029 | CK155: 2000-08-03 | CL155: 97.057 | CN155: 2000-08-03 | CO155: 10.164 | CQ155: 2008-08-26 | CR155: 89.65
E156: 1991-08-14 | F156: 1650.199951 | H156: 2000-08-04 | I156: 8.5616 | K156: 2000-08-04 | L156: 236 | N156: 2000-08-04 | O156: 16.93 | Q156: 2000-08-04 | R156: 34.737 | T156: 2000-08-04 | U156: 20.0998 | W156: 2000-08-04 | X156: 20.042 | Z156: 2000-08-04 | AA156: 297.5548 | AC156: 2000-08-04 | AD156: 17.96816 | AF156: 2000-08-04 | AG156: 27.624 | AI156: 2001-09-20 | AJ156: 25.599 | AL156: 2000-08-04 | AM156: 44.1717 | AO156: 2001-07-10 | AP156: 11.165 | AR156: 2000-08-04 | AS156: 27.473 | AU156: 2000-08-04 | AV156: 4.7375 | AX156: 2000-08-04 | AY156: 26.89434 | BA156: 2000-08-04 | BB156: 14.79331 | BD156: 2000-08-04 | BE156: 44.337 | BG156: 2003-08-05 | BH156: 13.231 | BJ156: 2000-10-16 | BK156: 44.065 | BM156: 2000-08-04 | BN156: 23.041 | BP156: 2000-08-04 | BQ156: 29.262 | BS156: 2000-08-04 | BT156: 40.355 | BV156: 2000-08-04 | BW156: 14.746 | BY156: 2000-08-04 | BZ156: 195.82 | CB156: 2001-07-17 | CC156: 25.0268 | CE156: 2000-08-04 | CF156: 34.1246 | CH156: 2000-08-04 | CI156: 3.4771 | CK156: 2000-08-04 | CL156: 95.7442 | CN156: 2000-08-04 | CO156: 9.852 | CQ156: 2008-08-27 | CR156: 89.04
E157: 1991-08-15 | F157: 1654.300049 | H157: 2000-08-07 | I157: 8.4152 | K157: 2000-08-07 | L157: 237.17 | N157: 2000-08-07 | O157: 17.005 | Q157: 2000-08-07 | R157: 35.117 | T157: 2000-08-07 | U157: 19.703 | W157: 2000-08-07 | X157: 20.252 | Z157: 2000-08-07 | AA157: 301.4598 | AC157: 2000-08-07 | AD157: 18.14784 | AF157: 2000-08-07 | AG157: 28.083 | AI157: 2001-09-21 | AJ157: 25.374 | AL157: 2000-08-07 | AM157: 45.562 | AO157: 2001-07-11 | AP157: 11.09 | AR157: 2000-08-07 | AS157: 28.029 | AU157: 2000-08-07 | AV157: 4.7128 | AX157: 2000-08-07 | AY157: 26.69877 | BA157: 2000-08-07 | BB157: 15.48349 | BD157: 2000-08-07 | BE157: 43.2494 | BG157: 2003-08-06 | BH157: 13.088 | BJ157: 2000-10-17 | BK157: 44.065 | BM157: 2000-08-07 | BN157: 23.126 | BP157: 2000-08-07 | BQ157: 29.629 | BS157: 2000-08-07 | BT157: 40.796 | BV157: 2000-08-07 | BW157: 14.588 | BY157: 2000-08-07 | BZ157: 193.31 | CB157: 2001-07-18 | CC157: 24.8153 | CE157: 2000-08-07 | CF157: 35.0042 | CH157: 2000-08-07 | CI157: 3.57 | CK157: 2000-08-07 | CL157: 98.7049 | CN157: 2000-08-07 | CO157: 10.109 | CQ157: 2008-08-28 | CR157: 90.13
E158: 1991-08-16 | F158: 1653.300049 | H158: 2000-08-08 | I158: 8.5694 | K158: 2000-08-08 | L158: 236.81 | N158: 2000-08-08 | O158: 15.967 | Q158: 2000-08-08 | R158: 34.776 | T158: 2000-08-08 | U158: 18.3745 | W158: 2000-08-08 | X158: 20.318 | Z158: 2000-08-08 | AA158: 307.7077 | AC158: 2000-08-08 | AD158: 18.06701 | AF158: 2000-08-08 | AG158: 28.446 | AI158: 2001-09-25 | AJ158: 29.128 | AL158: 2000-08-08 | AM158: 45.8757 | AO158: 2001-07-12 | AP158: 10.864 | AR158: 2000-08-08 | AS158: 27.002 | AU158: 2000-08-08 | AV158: 4.6969 | AX158: 2000-08-08 | AY158: 27.32105 | BA158: 2000-08-08 | BB158: 15.75138 | BD158: 2000-08-08 | BE158: 41.1903 | BG158: 2003-08-07 | BH158: 13.074 | BJ158: 2000-10-18 | BK158: 44.065 | BM158: 2000-08-08 | BN158: 21.773 | BP158: 2000-08-08 | BQ158: 29.054 | BS158: 2000-08-08 | BT158: 40.4 | BV158: 2000-08-08 | BW158: 14.944 | BY158: 2000-08-08 | BZ158: 198.99 | CB158: 2001-07-19 | CC158: 24.8908 | CE158: 2000-08-08 | CF158: 35.3273 | CH158: 2000-08-08 | CI158: 3.6113 | CK158: 2000-08-08 | CL158: 101.3361 | CN158: 2000-08-08 | CO158: 10 | CQ158: 2008-08-29 | CR158: 90.55
E159: 1991-08-19 | F159: 1497.900024 | H159: 2000-08-09 | I159: 8.6473 | K159: 2000-08-09 | L159: 235.97 | N159: 2000-08-09 | O159: 15.82 | Q159: 2000-08-09 | R159: 34.567 | T159: 2000-08-09 | U159: 18.6333 | W159: 2000-08-09 | X159: 20.678 | Z159: 2000-08-09 | AA159: 308.8791 | AC159: 2000-08-09 | AD159: 17.88733 | AF159: 2000-08-09 | AG159: 29.612 | AI159: 2001-09-26 | AJ159: 28.989 | AL159: 2000-08-09 | AM159: 45.5386 | AO159: 2001-07-16 | AP159: 10.968 | AR159: 2000-08-09 | AS159: 28.132 | AU159: 2000-08-09 | AV159: 4.6691 | AX159: 2000-08-09 | AY159: 27.85443 | BA159: 2000-08-09 | BB159: 15.83264 | BD159: 2000-08-09 | BE159: 43.3653 | BG159: 2003-08-08 | BH159: 13.059 | BJ159: 2000-10-19 | BK159: 44.065 | BM159: 2000-08-09 | BN159: 21.62 | BP159: 2000-08-09 | BQ159: 29.401 | BS159: 2000-08-09 | BT159: 40.157 | BV159: 2000-08-09 | BW159: 15.975 | BY159: 2000-08-09 | BZ159: 197.32 | CB159: 2001-07-20 | CC159: 24.629 | CE159: 2000-08-09 | CF159: 36.5318 | CH159: 2000-08-09 | CI159: 3.6505 | CK159: 2000-08-09 | CL159: 103.4665 | CN159: 2000-08-09 | CO159: 10.082 | CQ159: 2008-09-01 | CR159: 91.23
E160: 1991-08-20 | F160: 1526.900024 | H160: 2000-08-10 | I160: 8.5133 | K160: 2000-08-10 | L160: 238.1 | N160: 2000-08-10 | O160: 15.873 | Q160: 2000-08-10 | R160: 34.737 | T160: 2000-08-10 | U160: 18.1157 | W160: 2000-08-10 | X160: 20.705 | Z160: 2000-08-10 | AA160: 309.6598 | AC160: 2000-08-10 | AD160: 17.91427 | AF160: 2000-08-10 | AG160: 30.236 | AI160: 2001-09-27 | AJ160: 28.399 | AL160: 2000-08-10 | AM160: 46.1098 | AO160: 2001-07-17 | AP160: 10.974 | AR160: 2000-08-10 | AS160: 29.328 | AU160: 2000-08-10 | AV160: 4.6699 | AX160: 2000-08-10 | AY160: 28.26931 | BA160: 2000-08-10 | BB160: 16.36037 | BD160: 2000-08-10 | BE160: 43.05 | BG160: 2003-08-11 | BH160: 13.074 | BJ160: 2000-10-20 | BK160: 44.065 | BM160: 2000-08-10 | BN160: 22.052 | BP160: 2000-08-10 | BQ160: 29.206 | BS160: 2000-08-10 | BT160: 40.355 | BV160: 2000-08-10 | BW160: 15.261 | BY160: 2000-08-10 | BZ160: 202.46 | CB160: 2001-07-23 | CC160: 25.1527 | CE160: 2000-08-10 | CF160: 37.9661 | CH160: 2000-08-10 | CI160: 3.6133 | CK160: 2000-08-10 | CL160: 103.161 | CN160: 2000-08-10 | CO160: 10.153 | CQ160: 2008-09-02 | CR160: 91.63
E161: 1991-08-21 | F161: 1570.800049 | H161: 2000-08-11 | I161: 8.5757 | K161: 2000-08-11 | L161: 241.18 | N161: 2000-08-11 | O161: 15.805 | Q161: 2000-08-11 | R161: 35.318 | T161: 2000-08-11 | U161: 18.9784 | W161: 2000-08-11 | X161: 20.738 | Z161: 2000-08-11 | AA161: 302.6313 | AC161: 2000-08-11 | AD161: 17.91427 | AF161: 2000-08-11 | AG161: 30.115 | AI161: 2001-09-28 | AJ161: 29.222 | AL161: 2000-08-11 | AM161: 45.5948 | AO161: 2001-07-18 | AP161: 10.997 | AR161: 2000-08-11 | AS161: 29.207 | AU161: 2000-08-11 | AV161: 4.6006 | AX161: 2000-08-11 | AY161: 28.07374 | BA161: 2000-08-11 | BB161: 16.88811 | BD161: 2000-08-11 | BE161: 43.7579 | BG161: 2003-08-12 | BH161: 13.231 | BJ161: 2000-10-23 | BK161: 45.043 | BM161: 2000-08-11 | BN161: 21.468 | BP161: 2000-08-11 | BQ161: 29.224 | BS161: 2000-08-11 | BT161: 41.029 | BV161: 2000-08-11 | BW161: 15.658 | BY161: 2000-08-11 | BZ161: 206.22 | CB161: 2001-07-24 | CC161: 24.8506 | CE161: 2000-08-11 | CF161: 39.1329 | CH161: 2000-08-11 | CI161: 3.6195 | CK161: 2000-08-11 | CL161: 99.8035 | CN161: 2000-08-11 | CO161: 10.164 | CQ161: 2008-09-03 | CR161: 90.32
E162: 1991-08-22 | F162: 1630.800049 | H162: 2000-08-14 | I162: 8.5694 | K162: 2000-08-14 | L162: 240.26 | N162: 2000-08-14 | O162: 15.945 | Q162: 2000-08-14 | R162: 35.667 | T162: 2000-08-14 | U162: 18.1157 | W162: 2000-08-14 | X162: 20.456 | Z162: 2000-08-14 | AA162: 303.7247 | AC162: 2000-08-14 | AD162: 17.82444 | AF162: 2000-08-14 | AG162: 30.139 | AI162: 2001-10-01 | AJ162: 29.865 | AL162: 2000-08-14 | AM162: 45.4309 | AO162: 2001-07-19 | AP162: 10.83 | AR162: 2000-08-14 | AS162: 29.986 | AU162: 2000-08-14 | AV162: 4.6412 | AX162: 2000-08-14 | AY162: 28.07667 | BA162: 2000-08-14 | BB162: 17.04237 | BD162: 2000-08-14 | BE162: 41.8274 | BG162: 2003-08-13 | BH162: 13.417 | BJ162: 2000-10-24 | BK162: 45.043 | BM162: 2000-08-14 | BN162: 21.739 | BP162: 2000-08-14 | BQ162: 28.965 | BS162: 2000-08-14 | BT162: 41.434 | BV162: 2000-08-14 | BW162: 15.143 | BY162: 2000-08-14 | BZ162: 200.31 | CB162: 2001-07-25 | CC162: 24.2715 | CE162: 2000-08-14 | CF162: 38.6302 | CH162: 2000-08-14 | CI162: 3.6422 | CK162: 2000-08-14 | CL162: 101.1163 | CN162: 2000-08-14 | CO162: 10.109 | CQ162: 2008-09-04 | CR162: 89.03
E163: 1991-08-23 | F163: 1627.199951 | H163: 2000-08-15 | I163: 8.5461 | K163: 2000-08-15 | L163: 238.37 | N163: 2000-08-15 | O163: 15.967 | Q163: 2000-08-15 | R163: 36.116 | T163: 2000-08-15 | U163: 19.6685 | W163: 2000-08-15 | X163: 20.235 | Z163: 2000-08-15 | AA163: 300.5223 | AC163: 2000-08-15 | AD163: 17.9951 | AF163: 2000-08-15 | AG163: 29.728 | AI163: 2001-10-02 | AJ163: 29.477 | AL163: 2000-08-15 | AM163: 46.2267 | AO163: 2001-07-20 | AP163: 10.755 | AR163: 2000-08-15 | AS163: 29.298 | AU163: 2000-08-15 | AV163: 4.6611 | AX163: 2000-08-15 | AY163: 28.8916 | BA163: 2000-08-15 | BB163: 17.04237 | BD163: 2000-08-15 | BE163: 42.1491 | BG163: 2003-08-14 | BH163: 13.489 | BJ163: 2000-10-25 | BK163: 45.957 | BM163: 2000-08-15 | BN163: 22.153 | BP163: 2000-08-15 | BQ163: 28.934 | BS163: 2000-08-15 | BT163: 41.956 | BV163: 2000-08-15 | BW163: 15.281 | BY163: 2000-08-15 | BZ163: 198.45 | CB163: 2001-07-26 | CC163: 24.3722 | CE163: 2000-08-15 | CF163: 38.6823 | CH163: 2000-08-15 | CI163: 3.6113 | CK163: 2000-08-15 | CL163: 100.9638 | CN163: 2000-08-15 | CO163: 10.027 | CQ163: 2008-09-05 | CR163: 88.75
E164: 1991-08-26 | F164: 1654.199951 | H164: 2000-08-16 | I164: 8.6489 | K164: 2000-08-16 | L164: 238.71 | N164: 2000-08-16 | O164: 15.809 | Q164: 2000-08-16 | R164: 36.248 | T164: 2000-08-16 | U164: 18.2883 | W164: 2000-08-16 | X164: 20.678 | Z164: 2000-08-16 | AA164: 292.8682 | AC164: 2000-08-16 | AD164: 17.89625 | AF164: 2000-08-16 | AG164: 29.704 | AI164: 2001-10-04 | AJ164: 29.183 | AL164: 2000-08-16 | AM164: 47.9869 | AO164: 2001-07-23 | AP164: 10.685 | AR164: 2000-08-16 | AS164: 28.331 | AU164: 2000-08-16 | AV164: 4.7073 | AX164: 2000-08-16 | AY164: 28.74341 | BA164: 2000-08-16 | BB164: 17.35907 | BD164: 2000-08-16 | BE164: 41.2289 | BG164: 2003-08-15 | BH164: 13.761 | BJ164: 2000-10-26 | BK164: 44.065 | BM164: 2000-08-16 | BN164: 21.57 | BP164: 2000-08-16 | BQ164: 28.523 | BS164: 2000-08-16 | BT164: 42.109 | BV164: 2000-08-16 | BW164: 14.667 | BY164: 2000-08-16 | BZ164: 201.13 | CB164: 2001-07-27 | CC164: 24.1204 | CE164: 2000-08-16 | CF164: 39.1329 | CH164: 2000-08-16 | CI164: 3.601 | CK164: 2000-08-16 | CL164: 100.7194 | CN164: 2000-08-16 | CO164: 9.563 | CQ164: 2008-09-08 | CR164: 90.51
E165: 1991-08-27 | F165: 1647.099976 | H165: 2000-08-17 | I165: 8.6006 | K165: 2000-08-17 | L165: 237.69 | N165: 2000-08-17 | O165: 15.627 | Q165: 2000-08-17 | R165: 35.659 | T165: 2000-08-17 | U165: 16.8908 | W165: 2000-08-17 | X165: 20.733 | Z165: 2000-08-17 | AA165: 296.7732 | AC165: 2000-08-17 | AD165: 17.75253 | AF165: 2000-08-17 | AG165: 29.534 | AI165: 2001-10-05 | AJ165: 29.121 | AL165: 2000-08-17 | AM165: 46.7885 | AO165: 2001-07-24 | AP165: 10.454 | AR165: 2000-08-17 | AS165: 28.488 | AU165: 2000-08-17 | AV165: 4.568 | AX165: 2000-08-17 | AY165: 28.32861 | BA165: 2000-08-17 | BB165: 17.21285 | BD165: 2000-08-17 | BE165: 40.8621 | BG165: 2003-08-18 | BH165: 13.954 | BJ165: 2000-10-27 | BK165: 44.527 | BM165: 2000-08-17 | BN165: 21.747 | BP165: 2000-08-17 | BQ165: 28.302 | BS165: 2000-08-17 | BT165: 41.425 | BV165: 2000-08-17 | BW165: 14.667 | BY165: 2000-08-17 | BZ165: 196.87 | CB165: 2001-07-30 | CC165: 24.2967 | CE165: 2000-08-17 | CF165: 38.8636 | CH165: 2000-08-17 | CI165: 3.601 | CK165: 2000-08-17 | CL165: 101.2687 | CN165: 2000-08-17 | CO165: 9.393 | CQ165: 2008-09-09 | CR165: 89
E166: 1991-08-28 | F166: 1647.5 | H166: 2000-08-18 | I166: 8.5694 | K166: 2000-08-18 | L166: 233.99 | N166: 2000-08-18 | O166: 15.703 | Q166: 2000-08-18 | R166: 36.023 | T166: 2000-08-18 | U166: 17.5119 | W166: 2000-08-18 | X166: 20.069 | Z166: 2000-08-18 | AA166: 296.6952 | AC166: 2000-08-18 | AD166: 17.78848 | AF166: 2000-08-18 | AG166: 29.026 | AI166: 2001-10-08 | AJ166: 28.702 | AL166: 2000-08-18 | AM166: 45.6744 | AO166: 2001-07-25 | AP166: 10.298 | AR166: 2000-08-18 | AS166: 27.805 | AU166: 2000-08-18 | AV166: 4.5457 | AX166: 2000-08-18 | AY166: 28.18042 | BA166: 2000-08-18 | BB166: 16.50572 | BD166: 2000-08-18 | BE166: 39.8968 | BG166: 2003-08-19 | BH166: 13.66 | BJ166: 2000-10-30 | BK166: 44.056 | BM166: 2000-08-18 | BN166: 21.654 | BP166: 2000-08-18 | BQ166: 28.043 | BS166: 2000-08-18 | BT166: 41.848 | BV166: 2000-08-18 | BW166: 14.865 | BY166: 2000-08-18 | BZ166: 193.98 | CB166: 2001-07-31 | CC166: 24.5233 | CE166: 2000-08-18 | CF166: 38.8098 | CH166: 2000-08-18 | CI166: 3.5494 | CK166: 2000-08-18 | CL166: 103.4665 | CN166: 2000-08-18 | CO166: 9.18 | CQ166: 2008-09-10 | CR166: 88.49
E167: 1991-08-29 | F167: 1655.5 | H167: 2000-08-21 | I167: 8.5305 | K167: 2000-08-21 | L167: 233.34 | N167: 2000-08-21 | O167: 15.786 | Q167: 2000-08-21 | R167: 36.325 | T167: 2000-08-21 | U167: 17.6844 | W167: 2000-08-21 | X167: 20.058 | Z167: 2000-08-21 | AA167: 295.212 | AC167: 2000-08-21 | AD167: 17.83336 | AF167: 2000-08-21 | AG167: 29.051 | AI167: 2001-10-09 | AJ167: 28.857 | AL167: 2000-08-21 | AM167: 45.2203 | AO167: 2001-07-26 | AP167: 10.217 | AR167: 2000-08-21 | AS167: 26.38 | AU167: 2000-08-21 | AV167: 4.5839 | AX167: 2000-08-21 | AY167: 28.66935 | BA167: 2000-08-21 | BB167: 17.05048 | BD167: 2000-08-21 | BE167: 38.9316 | BG167: 2003-08-20 | BH167: 13.875 | BJ167: 2000-10-31 | BK167: 44.056 | BM167: 2000-08-21 | BN167: 21.705 | BP167: 2000-08-21 | BQ167: 27.904 | BS167: 2000-08-21 | BT167: 42.199 | BV167: 2000-08-21 | BW167: 15.539 | BY167: 2000-08-21 | BZ167: 193.07 | CB167: 2001-08-01 | CC167: 24.5434 | CE167: 2000-08-21 | CF167: 38.6841 | CH167: 2000-08-21 | CI167: 3.5287 | CK167: 2000-08-21 | CL167: 106.305 | CN167: 2000-08-21 | CO167: 9.175 | CQ167: 2008-09-11 | CR167: 89.23
E168: 1991-08-30 | F168: 1650.5 | H168: 2000-08-22 | I168: 8.5694 | K168: 2000-08-22 | L168: 239.7 | N168: 2000-08-22 | O168: 16.039 | Q168: 2000-08-22 | R168: 36.65 | T168: 2000-08-22 | U168: 17.9432 | W168: 2000-08-22 | X168: 20.434 | Z168: 2000-08-22 | AA168: 296.3054 | AC168: 2000-08-22 | AD168: 17.74352 | AF168: 2000-08-22 | AG168: 29.438 | AI168: 2001-10-10 | AJ168: 29.33 | AL168: 2000-08-22 | AM168: 45.8523 | AO168: 2001-07-27 | AP168: 10.235 | AR168: 2000-08-22 | AS168: 25.371 | AU168: 2000-08-22 | AV168: 4.5608 | AX168: 2000-08-22 | AY168: 28.74341 | BA168: 2000-08-22 | BB168: 17.07489 | BD168: 2000-08-22 | BE168: 39.5751 | BG168: 2003-08-21 | BH168: 14.004 | BJ168: 2000-11-01 | BK168: 45.126 | BM168: 2000-08-22 | BN168: 21.984 | BP168: 2000-08-22 | BQ168: 28.428 | BS168: 2000-08-22 | BT168: 42.577 | BV168: 2000-08-22 | BW168: 15.301 | BY168: 2000-08-22 | BZ168: 195.81 | CB168: 2001-08-02 | CC168: 23.919 | CE168: 2000-08-22 | CF168: 38.4148 | CH168: 2000-08-22 | CI168: 3.5081 | CK168: 2000-08-22 | CL168: 106.7012 | CN168: 2000-08-22 | CO168: 9.268 | CQ168: 2008-09-12 | CR168: 90.28
E169: 1991-09-02 | F169: 1650.5 | H169: 2000-08-23 | I169: 8.5461 | K169: 2000-08-23 | L169: 240.25 | N169: 2000-08-23 | O169: 15.922 | Q169: 2000-08-23 | R169: 36.728 | T169: 2000-08-23 | U169: 18.1157 | W169: 2000-08-23 | X169: 20.401 | Z169: 2000-08-23 | AA169: 295.3679 | AC169: 2000-08-23 | AD169: 18.01303 | AF169: 2000-08-23 | AG169: 29.583 | AI169: 2001-10-11 | AJ169: 29.827 | AL169: 2000-08-23 | AM169: 47.4907 | AO169: 2001-07-30 | AP169: 10.125 | AR169: 2000-08-23 | AS169: 25.649 | AU169: 2000-08-23 | AV169: 4.6611 | AX169: 2000-08-23 | AY169: 28.7138 | BA169: 2000-08-23 | BB169: 17.13174 | BD169: 2000-08-23 | BE169: 39.2533 | BG169: 2003-08-22 | BH169: 13.968 | BJ169: 2000-11-02 | BK169: 46.972 | BM169: 2000-08-23 | BN169: 21.215 | BP169: 2000-08-23 | BQ169: 28.169 | BS169: 2000-08-23 | BT169: 42.667 | BV169: 2000-08-23 | BW169: 15.261 | BY169: 2000-08-23 | BZ169: 193.67 | CB169: 2001-08-03 | CC169: 23.8888 | CE169: 2000-08-23 | CF169: 38.3969 | CH169: 2000-08-23 | CI169: 3.57 | CK169: 2000-08-23 | CL169: 105.9692 | CN169: 2000-08-23 | CO169: 9.18 | CQ169: 2008-09-15 | CR169: 84.71
E170: 1991-09-03 | F170: 1655.599976 | H170: 2000-08-24 | I170: 8.5258 | K170: 2000-08-24 | L170: 235.02 | N170: 2000-08-24 | O170: 15.846 | Q170: 2000-08-24 | R170: 36.612 | T170: 2000-08-24 | U170: 17.5982 | W170: 2000-08-24 | X170: 20.595 | Z170: 2000-08-24 | AA170: 295.212 | AC170: 2000-08-24 | AD170: 18.16577 | AF170: 2000-08-24 | AG170: 29.244 | AI170: 2001-10-12 | AJ170: 30.447 | AL170: 2000-08-24 | AM170: 46.8119 | AO170: 2001-07-31 | AP170: 10.316 | AR170: 2000-08-24 | AS170: 26.096 | AU170: 2000-08-24 | AV170: 4.5735 | AX170: 2000-08-24 | AY170: 28.81754 | BA170: 2000-08-24 | BB170: 16.80693 | BD170: 2000-08-24 | BE170: 39.5751 | BG170: 2003-08-25 | BH170: 13.839 | BJ170: 2000-11-03 | BK170: 49.085 | BM170: 2000-08-24 | BN170: 21.054 | BP170: 2000-08-24 | BQ170: 29.155 | BS170: 2000-08-24 | BT170: 42.532 | BV170: 2000-08-24 | BW170: 14.687 | BY170: 2000-08-24 | BZ170: 190.44 | CB170: 2001-08-06 | CC170: 23.9391 | CE170: 2000-08-24 | CF170: 38.3251 | CH170: 2000-08-24 | CI170: 3.57 | CK170: 2000-08-24 | CL170: 109.8754 | CN170: 2000-08-24 | CO170: 9.311 | CQ170: 2008-09-16 | CR170: 87.33
E171: 1991-09-04 | F171: 1647.900024 | H171: 2000-08-25 | I171: 8.5351 | K171: 2000-08-25 | L171: 237.73 | N171: 2000-08-25 | O171: 15.911 | Q171: 2000-08-25 | R171: 37.673 | T171: 2000-08-25 | U171: 18.8059 | W171: 2000-08-25 | X171: 20.65 | Z171: 2000-08-25 | AA171: 292.7122 | AC171: 2000-08-25 | AD171: 18.1928 | AF171: 2000-08-25 | AG171: 29.317 | AI171: 2001-10-15 | AJ171: 30.377 | AL171: 2000-08-25 | AM171: 46.517 | AO171: 2001-08-01 | AP171: 10.523 | AR171: 2000-08-25 | AS171: 26.73 | AU171: 2000-08-25 | AV171: 4.5489 | AX171: 2000-08-25 | AY171: 28.44711 | BA171: 2000-08-25 | BB171: 16.64456 | BD171: 2000-08-25 | BE171: 39.839 | BG171: 2003-08-26 | BH171: 13.868 | BJ171: 2000-11-06 | BK171: 50.34 | BM171: 2000-08-25 | BN171: 20.969 | BP171: 2000-08-25 | BQ171: 29.237 | BS171: 2000-08-25 | BT171: 43.765 | BV171: 2000-08-25 | BW171: 14.806 | BY171: 2000-08-25 | BZ171: 190.08 | CB171: 2001-08-07 | CC171: 24.2715 | CE171: 2000-08-25 | CF171: 39.1688 | CH171: 2000-08-25 | CI171: 3.5411 | CK171: 2000-08-25 | CL171: 107.2934 | CN171: 2000-08-25 | CO171: 9.366 | CQ171: 2008-09-17 | CR171: 92.23
E172: 1991-09-05 | F172: 1647.199951 | H172: 2000-08-28 | I172: 8.7284 | K172: 2000-08-28 | L172: 240.26 | N172: 2000-08-28 | O172: 16.167 | Q172: 2000-08-28 | R172: 37.409 | T172: 2000-08-28 | U172: 18.8059 | W172: 2000-08-28 | X172: 20.849 | Z172: 2000-08-28 | AA172: 286.6212 | AC172: 2000-08-28 | AD172: 18.50719 | AF172: 2000-08-28 | AG172: 29.51 | AI172: 2001-10-17 | AJ172: 31.339 | AL172: 2000-08-28 | AM172: 46.2267 | AO172: 2001-08-02 | AP172: 10.408 | AR172: 2000-08-28 | AS172: 27.093 | AU172: 2000-08-28 | AV172: 4.5107 | AX172: 2000-08-28 | AY172: 28.62197 | BA172: 2000-08-28 | BB172: 16.36037 | BD172: 2000-08-28 | BE172: 39.5751 | BG172: 2003-08-27 | BH172: 13.796 | BJ172: 2000-11-07 | BK172: 47.415 | BM172: 2000-08-28 | BN172: 21.451 | BP172: 2000-08-28 | BQ172: 29.604 | BS172: 2000-08-28 | BT172: 43.459 | BV172: 2000-08-28 | BW172: 15.063 | BY172: 2000-08-28 | BZ172: 193.67 | CB172: 2001-08-08 | CC172: 24.3219 | CE172: 2000-08-28 | CF172: 39.4919 | CH172: 2000-08-28 | CI172: 3.5886 | CK172: 2000-08-28 | CL172: 108.5022 | CN172: 2000-08-28 | CO172: 9.399 | CQ172: 2008-09-18 | CR172: 89.25
E173: 1991-09-06 | F173: 1646.199951 | H173: 2000-08-29 | I173: 8.9901 | K173: 2000-08-29 | L173: 239.64 | N173: 2000-08-29 | O173: 16.08 | Q173: 2000-08-29 | R173: 37.162 | T173: 2000-08-29 | U173: 18.4608 | W173: 2000-08-29 | X173: 21.009 | Z173: 2000-08-29 | AA173: 284.6682 | AC173: 2000-08-29 | AD173: 18.50719 | AF173: 2000-08-29 | AG173: 28.978 | AI173: 2001-10-18 | AJ173: 30.641 | AL173: 2000-08-29 | AM173: 46.3859 | AO173: 2001-08-03 | AP173: 10.373 | AR173: 2000-08-29 | AS173: 27.056 | AU173: 2000-08-29 | AV173: 4.4541 | AX173: 2000-08-29 | AY173: 28.44711 | BA173: 2000-08-29 | BB173: 15.89511 | BD173: 2000-08-29 | BE173: 38.996 | BG173: 2003-08-28 | BH173: 13.711 | BJ173: 2000-11-08 | BK173: 44.573 | BM173: 2000-08-29 | BN173: 21.35 | BP173: 2000-08-29 | BQ173: 30.355 | BS173: 2000-08-29 | BT173: 43.171 | BV173: 2000-08-29 | BW173: 15.004 | BY173: 2000-08-29 | BZ173: 190.71 | CB173: 2001-08-09 | CC173: 23.9442 | CE173: 2000-08-29 | CF173: 39.2926 | CH173: 2000-08-29 | CI173: 3.5494 | CK173: 2000-08-29 | CL173: 109.3261 | CN173: 2000-08-29 | CO173: 9.355 | CQ173: 2008-09-19 | CR173: 85.99
E174: 1991-09-09 | F174: 1633.099976 | H174: 2000-08-30 | I174: 9.1537 | K174: 2000-08-30 | L174: 236.49 | N174: 2000-08-30 | O174: 15.948 | Q174: 2000-08-30 | R174: 37.022 | T174: 2000-08-30 | U174: 18.5471 | W174: 2000-08-30 | X174: 20.042 | Z174: 2000-08-30 | AA174: 284.6682 | AC174: 2000-08-30 | AD174: 18.34544 | AF174: 2000-08-30 | AG174: 28.451 | AI174: 2001-10-19 | AJ174: 30.253 | AL174: 2000-08-30 | AM174: 45.5667 | AO174: 2001-08-06 | AP174: 10.24 | AR174: 2000-08-30 | AS174: 26.156 | AU174: 2000-08-30 | AV174: 4.4183 | AX174: 2000-08-30 | AY174: 28.63975 | BA174: 2000-08-30 | BB174: 16.01934 | BD174: 2000-08-30 | BE174: 39.5751 | BG174: 2003-08-29 | BH174: 13.761 | BJ174: 2000-11-09 | BK174: 43.373 | BM174: 2000-08-30 | BN174: 21.079 | BP174: 2000-08-30 | BQ174: 30.134 | BS174: 2000-08-30 | BT174: 43.009 | BV174: 2000-08-30 | BW174: 14.905 | BY174: 2000-08-30 | BZ174: 187.69 | CB174: 2001-08-10 | CC174: 23.6723 | CE174: 2000-08-30 | CF174: 39.3106 | CH174: 2000-08-30 | CI174: 3.5803 | CK174: 2000-08-30 | CL174: 107.4464 | CN174: 2000-08-30 | CO174: 9.273 | CQ174: 2008-09-22 | CR174: 82.68
E175: 1991-09-10 | F175: 1629.099976 | H175: 2000-08-31 | I175: 9.442 | K175: 2000-08-31 | L175: 233.83 | N175: 2000-08-31 | O175: 15.756 | Q175: 2000-08-31 | R175: 36.612 | T175: 2000-08-31 | U175: 17.4256 | W175: 2000-08-31 | X175: 20.208 | Z175: 2000-08-31 | AA175: 283.9656 | AC175: 2000-08-31 | AD175: 18.3814 | AF175: 2000-08-31 | AG175: 28.011 | AI175: 2001-10-22 | AJ175: 31.285 | AL175: 2000-08-31 | AM175: 45.8523 | AO175: 2001-08-07 | AP175: 10.396 | AR175: 2000-08-31 | AS175: 25.818 | AU175: 2000-08-31 | AV175: 4.2631 | AX175: 2000-08-31 | AY175: 28.87675 | BA175: 2000-08-31 | BB175: 15.83264 | BD175: 2000-08-31 | BE175: 38.6098 | BG175: 2003-09-01 | BH175: 14.004 | BJ175: 2000-11-10 | BK175: 40.374 | BM175: 2000-08-31 | BN175: 21.088 | BP175: 2000-08-31 | BQ175: 29.945 | BS175: 2000-08-31 | BT175: 42.532 | BV175: 2000-08-31 | BW175: 12.606 | BY175: 2000-08-31 | BZ175: 183.51 | CB175: 2001-08-13 | CC175: 24.0248 | CE175: 2000-08-31 | CF175: 39.4021 | CH175: 2000-08-31 | CI175: 3.5391 | CK175: 2000-08-31 | CL175: 110.181 | CN175: 2000-08-31 | CO175: 9.333 | CQ175: 2008-09-23 | CR175: 82.98
E176: 1991-09-11 | F176: 1628.199951 | H176: 2000-09-01 | I176: 9.8938 | K176: 2000-09-01 | L176: 237.79 | N176: 2000-09-01 | O176: 15.895 | Q176: 2000-09-01 | R176: 36.131 | T176: 2000-09-01 | U176: 17.7707 | W176: 2000-09-01 | X176: 20.125 | Z176: 2000-09-01 | AA176: 274.9061 | AC176: 2000-09-01 | AD176: 18.42636 | AF176: 2000-09-01 | AG176: 28.059 | AI176: 2001-10-23 | AJ176: 31.789 | AL176: 2000-09-01 | AM176: 46.1565 | AO176: 2001-08-08 | AP176: 10.483 | AR176: 2000-09-01 | AS176: 28.017 | AU176: 2000-09-01 | AV176: 4.3761 | AX176: 2000-09-01 | AY176: 29.10495 | BA176: 2000-09-01 | BB176: 16.23856 | BD176: 2000-09-01 | BE176: 39.5751 | BG176: 2003-09-02 | BH176: 13.961 | BJ176: 2000-11-13 | BK176: 40.245 | BM176: 2000-09-01 | BN176: 21.071 | BP176: 2000-09-01 | BQ176: 30.197 | BS176: 2000-09-01 | BT176: 41.974 | BV176: 2000-09-01 | BW176: 14.667 | BY176: 2000-09-01 | BZ176: 187.16 | CB176: 2001-08-14 | CC176: 24.2463 | CE176: 2000-09-01 | CF176: 41.646 | CH176: 2000-09-01 | CI176: 3.5494 | CK176: 2000-09-01 | CL176: 113.1719 | CN176: 2000-09-01 | CO176: 9.317 | CQ176: 2008-09-24 | CR176: 80.4
E177: 1991-09-12 | F177: 1631.300049 | H177: 2000-09-04 | I177: 9.8704 | K177: 2000-09-04 | L177: 237.6 | N177: 2000-09-04 | O177: 16.137 | Q177: 2000-09-04 | R177: 36.124 | T177: 2000-09-04 | U177: 19.3234 | W177: 2000-09-04 | X177: 20.456 | Z177: 2000-09-04 | AA177: 266.7062 | AC177: 2000-09-04 | AD177: 18.37248 | AF177: 2000-09-04 | AG177: 28.277 | AI177: 2001-10-24 | AJ177: 32.363 | AL177: 2000-09-04 | AM177: 45.782 | AO177: 2001-08-09 | AP177: 10.443 | AR177: 2000-09-04 | AS177: 29.606 | AU177: 2000-09-04 | AV177: 4.3873 | AX177: 2000-09-04 | AY177: 29.15829 | BA177: 2000-09-04 | BB177: 16.20611 | BD177: 2000-09-04 | BE177: 39.7038 | BG177: 2003-09-03 | BH177: 14.14 | BJ177: 2000-11-14 | BK177: 40.245 | BM177: 2000-09-04 | BN177: 20.183 | BP177: 2000-09-04 | BQ177: 30.576 | BS177: 2000-09-04 | BT177: 41.965 | BV177: 2000-09-04 | BW177: 14.508 | BY177: 2000-09-04 | BZ177: 187.57 | CB177: 2001-08-15 | CC177: 23.9089 | CE177: 2000-09-04 | CF177: 43.4052 | CH177: 2000-09-04 | CI177: 3.5391 | CK177: 2000-09-04 | CL177: 115.4913 | CN177: 2000-09-04 | CO177: 9.322 | CQ177: 2008-09-25 | CR177: 80.75
E178: 1991-09-13 | F178: 1637.599976 | H178: 2000-09-05 | I178: 9.7754 | K178: 2000-09-05 | L178: 234.64 | N178: 2000-09-05 | O178: 16.522 | Q178: 2000-09-05 | R178: 36.341 | T178: 2000-09-05 | U178: 18.9784 | W178: 2000-09-05 | X178: 20.606 | Z178: 2000-09-05 | AA178: 265.5338 | AC178: 2000-09-05 | AD178: 18.43528 | AF178: 2000-09-05 | AG178: 28.161 | AI178: 2001-10-25 | AJ178: 31.029 | AL178: 2000-09-05 | AM178: 46.0114 | AO178: 2001-08-10 | AP178: 10.379 | AR178: 2000-09-05 | AS178: 28.44 | AU178: 2000-09-05 | AV178: 4.3546 | AX178: 2000-09-05 | AY178: 29.74207 | BA178: 2000-09-05 | BB178: 15.99501 | BD178: 2000-09-05 | BE178: 39.5429 | BG178: 2003-09-04 | BH178: 14.24 | BJ178: 2000-11-15 | BK178: 44.757 | BM178: 2000-09-05 | BN178: 19.87 | BP178: 2000-09-05 | BQ178: 30.324 | BS178: 2000-09-05 | BT178: 42.217 | BV178: 2000-09-05 | BW178: 14.35 | BY178: 2000-09-05 | BZ178: 185.9 | CB178: 2001-08-16 | CC178: 24.4981 | CE178: 2000-09-05 | CF178: 43.0821 | CH178: 2000-09-05 | CI178: 3.5349 | CK178: 2000-09-05 | CL178: 114.7593 | CN178: 2000-09-05 | CO178: 9.344 | CQ178: 2008-09-26 | CR178: 76.49
E179: 1991-09-16 | F179: 1629.800049 | H179: 2000-09-06 | I179: 9.738 | K179: 2000-09-06 | L179: 239.78 | N179: 2000-09-06 | O179: 16.545 | Q179: 2000-09-06 | R179: 36.348 | T179: 2000-09-06 | U179: 19.4097 | W179: 2000-09-06 | X179: 20.285 | Z179: 2000-09-06 | AA179: 268.3454 | AC179: 2000-09-06 | AD179: 18.56108 | AF179: 2000-09-06 | AG179: 28.335 | AI179: 2001-10-26 | AJ179: 30.37 | AL179: 2000-09-06 | AM179: 45.0799 | AO179: 2001-08-13 | AP179: 10.396 | AR179: 2000-09-06 | AS179: 27.981 | AU179: 2000-09-06 | AV179: 4.2591 | AX179: 2000-09-06 | AY179: 29.03979 | BA179: 2000-09-06 | BB179: 15.87319 | BD179: 2000-09-06 | BE179: 39.6395 | BG179: 2003-09-05 | BH179: 14.283 | BJ179: 2000-11-16 | BK179: 42.22 | BM179: 2000-09-06 | BN179: 20.284 | BP179: 2000-09-06 | BQ179: 29.894 | BS179: 2000-09-06 | BT179: 42.226 | BV179: 2000-09-06 | BW179: 14.072 | BY179: 2000-09-06 | BZ179: 193.58 | CB179: 2001-08-17 | CC179: 24.1708 | CE179: 2000-09-06 | CF179: 41.628 | CH179: 2000-09-06 | CI179: 3.5803 | CK179: 2000-09-06 | CL179: 111.7066 | CN179: 2000-09-06 | CO179: 9.29 | CQ179: 2008-09-29 | CR179: 72.11
E180: 1991-09-17 | F180: 1634.599976 | H180: 2000-09-07 | I180: 9.8751 | K180: 2000-09-07 | L180: 243.35 | N180: 2000-09-07 | O180: 16.08 | Q180: 2000-09-07 | R180: 35.512 | T180: 2000-09-07 | U180: 19.0646 | W180: 2000-09-07 | X180: 21.009 | Z180: 2000-09-07 | AA180: 266.1594 | AC180: 2000-09-07 | AD180: 18.66894 | AF180: 2000-09-07 | AG180: 28.025 | AI180: 2001-10-29 | AJ180: 29.904 | AL180: 2000-09-07 | AM180: 45.2671 | AO180: 2001-08-14 | AP180: 10.344 | AR180: 2000-09-07 | AS180: 27.576 | AU180: 2000-09-07 | AV180: 4.4255 | AX180: 2000-09-07 | AY180: 28.92716 | BA180: 2000-09-07 | BB180: 15.75138 | BD180: 2000-09-07 | BE180: 39.1246 | BG180: 2003-09-08 | BH180: 14.254 | BJ180: 2000-11-17 | BK180: 40.881 | BM180: 2000-09-07 | BN180: 19.498 | BP180: 2000-09-07 | BQ180: 30.311 | BS180: 2000-09-07 | BT180: 41.254 | BV180: 2000-09-07 | BW180: 14.469 | BY180: 2000-09-07 | BZ180: 196.78 | CB180: 2001-08-20 | CC180: 24.2463 | CE180: 2000-09-07 | CF180: 41.7716 | CH180: 2000-09-07 | CI180: 3.5803 | CK180: 2000-09-07 | CL180: 112.7996 | CN180: 2000-09-07 | CO180: 9.453 | CQ180: 2008-09-30 | CR180: 75.7
E181: 1991-09-18 | F181: 1628.099976 | H181: 2000-09-08 | I181: 9.9561 | K181: 2000-09-08 | L181: 240.88 | N181: 2000-09-08 | O181: 15.805 | Q181: 2000-09-08 | R181: 34.466 | T181: 2000-09-08 | U181: 18.9784 | W181: 2000-09-08 | X181: 21.192 | Z181: 2000-09-08 | AA181: 263.3478 | AC181: 2000-09-08 | AD181: 18.82167 | AF181: 2000-09-08 | AG181: 27.982 | AI181: 2001-10-30 | AJ181: 29.865 | AL181: 2000-09-08 | AM181: 45.1735 | AO181: 2001-08-15 | AP181: 10.258 | AR181: 2000-09-08 | AS181: 26.881 | AU181: 2000-09-08 | AV181: 4.4199 | AX181: 2000-09-08 | AY181: 28.81754 | BA181: 2000-09-08 | BB181: 15.67027 | BD181: 2000-09-08 | BE181: 39.2855 | BG181: 2003-09-09 | BH181: 14.24 | BJ181: 2000-11-20 | BK181: 41.703 | BM181: 2000-09-08 | BN181: 19.65 | BP181: 2000-09-08 | BQ181: 30.292 | BS181: 2000-09-08 | BT181: 40.04 | BV181: 2000-09-08 | BW181: 14.588 | BY181: 2000-09-08 | BZ181: 194.27 | CB181: 2001-08-21 | CC181: 23.7428 | CE181: 2000-09-08 | CF181: 41.1075 | CH181: 2000-09-08 | CI181: 3.5287 | CK181: 2000-09-08 | CL181: 108.0442 | CN181: 2000-09-08 | CO181: 9.481 | CQ181: 2008-10-01 | CR181: 73.34
E182: 1991-09-19 | F182: 1620.699951 | H182: 2000-09-11 | I182: 10.087 | K182: 2000-09-11 | L182: 235.44 | N182: 2000-09-11 | O182: 15.865 | Q182: 2000-09-11 | R182: 34.35 | T182: 2000-09-11 | U182: 18.3745 | W182: 2000-09-11 | X182: 20.827 | Z182: 2000-09-11 | AA182: 261.005 | AC182: 2000-09-11 | AD182: 18.46232 | AF182: 2000-09-11 | AG182: 28.156 | AI182: 2001-10-31 | AJ182: 29.796 | AL182: 2000-09-11 | AM182: 46.0161 | AO182: 2001-08-16 | AP182: 10.292 | AR182: 2000-09-11 | AS182: 25.975 | AU182: 2000-09-11 | AV182: 4.4207 | AX182: 2000-09-11 | AY182: 28.74643 | BA182: 2000-09-11 | BB182: 15.81634 | BD182: 2000-09-11 | BE182: 38.6098 | BG182: 2003-09-10 | BH182: 13.997 | BJ182: 2000-11-21 | BK182: 42.404 | BM182: 2000-09-11 | BN182: 19.718 | BP182: 2000-09-11 | BQ182: 30.261 | BS182: 2000-09-11 | BT182: 39.905 | BV182: 2000-09-11 | BW182: 14.314 | BY182: 2000-09-11 | BZ182: 191.1 | CB182: 2001-08-22 | CC182: 23.8082 | CE182: 2000-09-11 | CF182: 40.0304 | CH182: 2000-09-11 | CI182: 3.5494 | CK182: 2000-09-11 | CL182: 110.3334 | CN182: 2000-09-11 | CO182: 9.492 | CQ182: 2008-10-02 | CR182: 70.94
E183: 1991-09-20 | F183: 1616.099976 | H183: 2000-09-12 | I183: 9.9717 | K183: 2000-09-12 | L183: 236.31 | N183: 2000-09-12 | O183: 15.661 | Q183: 2000-09-12 | R183: 34.304 | T183: 2000-09-12 | U183: 18.4608 | W183: 2000-09-12 | X183: 21.114 | Z183: 2000-09-12 | AA183: 257.8026 | AC183: 2000-09-12 | AD183: 18.41735 | AF183: 2000-09-12 | AG183: 27.498 | AI183: 2001-11-01 | AJ183: 29.71 | AL183: 2000-09-12 | AM183: 44.373 | AO183: 2001-08-17 | AP183: 10.223 | AR183: 2000-09-12 | AS183: 25.371 | AU183: 2000-09-12 | AV183: 4.5138 | AX183: 2000-09-12 | AY183: 30.07393 | BA183: 2000-09-12 | BB183: 15.73516 | BD183: 2000-09-12 | BE183: 37.6446 | BG183: 2003-09-11 | BH183: 14.169 | BJ183: 2000-11-22 | BK183: 40.337 | BM183: 2000-09-12 | BN183: 19.811 | BP183: 2000-09-12 | BQ183: 30.039 | BS183: 2000-09-12 | BT183: 39.851 | BV183: 2000-09-12 | BW183: 14.469 | BY183: 2000-09-12 | BZ183: 185.91 | CB183: 2001-08-23 | CC183: 23.7377 | CE183: 2000-09-12 | CF183: 38.8636 | CH183: 2000-09-12 | CI183: 3.5391 | CK183: 2000-09-12 | CL183: 109.5523 | CN183: 2000-09-12 | CO183: 9.453 | CQ183: 2008-10-03 | CR183: 72.19
E184: 1991-09-23 | F184: 1614.199951 | H184: 2000-09-13 | I184: 9.9717 | K184: 2000-09-13 | L184: 236.31 | N184: 2000-09-13 | O184: 15.661 | Q184: 2000-09-13 | R184: 34.304 | T184: 2000-09-13 | U184: 18.4608 | W184: 2000-09-13 | X184: 21.114 | Z184: 2000-09-13 | AA184: 257.8026 | AC184: 2000-09-13 | AD184: 18.41735 | AF184: 2000-09-13 | AG184: 27.498 | AI184: 2001-11-02 | AJ184: 29.788 | AL184: 2000-09-13 | AM184: 44.373 | AO184: 2001-08-20 | AP184: 10.113 | AR184: 2000-09-13 | AS184: 25.371 | AU184: 2000-09-13 | AV184: 4.5138 | AX184: 2000-09-13 | AY184: 30.07393 | BA184: 2000-09-13 | BB184: 15.73516 | BD184: 2000-09-13 | BE184: 37.6446 | BG184: 2003-09-12 | BH184: 14.219 | BJ184: 2000-11-23 | BK184: 42.45 | BM184: 2000-09-13 | BN184: 19.811 | BP184: 2000-09-13 | BQ184: 29.161 | BS184: 2000-09-13 | BT184: 39.851 | BV184: 2000-09-13 | BW184: 14.469 | BY184: 2000-09-13 | BZ184: 185.91 | CB184: 2001-08-24 | CC184: 23.8183 | CE184: 2000-09-13 | CF184: 38.8636 | CH184: 2000-09-13 | CI184: 3.5391 | CK184: 2000-09-13 | CL184: 109.5523 | CN184: 2000-09-13 | CO184: 9.453 | CQ184: 2008-10-06 | CR184: 68.91
E185: 1991-09-24 | F185: 1626.599976 | H185: 2000-09-14 | I185: 9.5339 | K185: 2000-09-14 | L185: 231.67 | N185: 2000-09-14 | O185: 15.665 | Q185: 2000-09-14 | R185: 34.404 | T185: 2000-09-14 | U185: 19.4097 | W185: 2000-09-14 | X185: 20.539 | Z185: 2000-09-14 | AA185: 254.6002 | AC185: 2000-09-14 | AD185: 18.1928 | AF185: 2000-09-14 | AG185: 27.12 | AI185: 2001-11-05 | AJ185: 29.594 | AL185: 2000-09-14 | AM185: 44.7522 | AO185: 2001-08-21 | AP185: 9.819 | AR185: 2000-09-14 | AS185: 26.096 | AU185: 2000-09-14 | AV185: 4.3785 | AX185: 2000-09-14 | AY185: 30.28435 | BA185: 2000-09-14 | BB185: 15.46727 | BD185: 2000-09-14 | BE185: 36.6793 | BG185: 2003-09-15 | BH185: 14.068 | BJ185: 2000-11-24 | BK185: 45.496 | BM185: 2000-09-14 | BN185: 20.251 | BP185: 2000-09-14 | BQ185: 29.408 | BS185: 2000-09-14 | BT185: 39.968 | BV185: 2000-09-14 | BW185: 14.469 | BY185: 2000-09-14 | BZ185: 186.5 | CB185: 2001-08-27 | CC185: 23.7176 | CE185: 2000-09-14 | CF185: 39.1508 | CH185: 2000-09-14 | CI185: 3.5494 | CK185: 2000-09-14 | CL185: 108.6912 | CN185: 2000-09-14 | CO185: 9.257 | CQ185: 2008-10-07 | CR185: 68.19
E186: 1991-09-25 | F186: 1625.400024 | H186: 2000-09-15 | I186: 9.4342 | K186: 2000-09-15 | L186: 227.29 | N186: 2000-09-15 | O186: 15.737 | Q186: 2000-09-15 | R186: 34.273 | T186: 2000-09-15 | U186: 18.1157 | W186: 2000-09-15 | X186: 19.904 | Z186: 2000-09-15 | AA186: 247.3368 | AC186: 2000-09-15 | AD186: 18.07593 | AF186: 2000-09-15 | AG186: 26.221 | AI186: 2001-11-06 | AJ186: 29.943 | AL186: 2000-09-15 | AM186: 45.6463 | AO186: 2001-08-22 | AP186: 10.165 | AR186: 2000-09-15 | AS186: 26.277 | AU186: 2000-09-15 | AV186: 4.2989 | AX186: 2000-09-15 | AY186: 29.92574 | BA186: 2000-09-15 | BB186: 15.66778 | BD186: 2000-09-15 | BE186: 36.3576 | BG186: 2003-09-16 | BH186: 14.111 | BJ186: 2000-11-27 | BK186: 47.434 | BM186: 2000-09-15 | BN186: 20.758 | BP186: 2000-09-15 | BQ186: 29.073 | BS186: 2000-09-15 | BT186: 39.815 | BV186: 2000-09-15 | BW186: 15.42 | BY186: 2000-09-15 | BZ186: 182.97 | CB186: 2001-08-28 | CC186: 23.2845 | CE186: 2000-09-15 | CF186: 37.9122 | CH186: 2000-09-15 | CI186: 3.5102 | CK186: 2000-09-15 | CL186: 109.9365 | CN186: 2000-09-15 | CO186: 8.836 | CQ186: 2008-10-08 | CR186: 64.93
E187: 1991-09-26 | F187: 1620 | H187: 2000-09-18 | I187: 9.738 | K187: 2000-09-18 | L187: 224.82 | N187: 2000-09-18 | O187: 15.424 | Q187: 2000-09-18 | R187: 33.661 | T187: 2000-09-18 | U187: 18.1175 | W187: 2000-09-18 | X187: 20.219 | Z187: 2000-09-18 | AA187: 254.913 | AC187: 2000-09-18 | AD187: 18.26462 | AF187: 2000-09-18 | AG187: 26.337 | AI187: 2001-11-07 | AJ187: 30.99 | AL187: 2000-09-18 | AM187: 44.8598 | AO187: 2001-08-23 | AP187: 10.165 | AR187: 2000-09-18 | AS187: 25.377 | AU187: 2000-09-18 | AV187: 4.1874 | AX187: 2000-09-18 | AY187: 29.23234 | BA187: 2000-09-18 | BB187: 15.83264 | BD187: 2000-09-18 | BE187: 37.561 | BG187: 2003-09-17 | BH187: 14.19 | BJ187: 2000-11-28 | BK187: 44.111 | BM187: 2000-09-18 | BN187: 20.039 | BP187: 2000-09-18 | BQ187: 29.155 | BS187: 2000-09-18 | BT187: 39.104 | BV187: 2000-09-18 | BW187: 14.27 | BY187: 2000-09-18 | BZ187: 184.94 | CB187: 2001-08-29 | CC187: 23.3903 | CE187: 2000-09-18 | CF187: 35.3632 | CH187: 2000-09-18 | CI187: 3.5349 | CK187: 2000-09-18 | CL187: 106.848 | CN187: 2000-09-18 | CO187: 8.88 | CQ187: 2008-10-09 | CR187: 61.06
E188: 1991-09-27 | F188: 1608.099976 | H188: 2000-09-19 | I188: 9.2893 | K188: 2000-09-19 | L188: 228.21 | N188: 2000-09-19 | O188: 15.571 | Q188: 2000-09-19 | R188: 34.002 | T188: 2000-09-19 | U188: 18.9784 | W188: 2000-09-19 | X188: 21.031 | Z188: 2000-09-19 | AA188: 253.8196 | AC188: 2000-09-19 | AD188: 16.97994 | AF188: 2000-09-19 | AG188: 26.027 | AI188: 2001-11-08 | AJ188: 31.805 | AL188: 2000-09-19 | AM188: 45.3373 | AO188: 2001-08-24 | AP188: 10.119 | AR188: 2000-09-19 | AS188: 25.462 | AU188: 2000-09-19 | AV188: 4.4215 | AX188: 2000-09-19 | AY188: 28.9212 | BA188: 2000-09-19 | BB188: 16.07619 | BD188: 2000-09-19 | BE188: 37.3872 | BG188: 2003-09-18 | BH188: 14.433 | BJ188: 2000-11-29 | BK188: 43.65 | BM188: 2000-09-19 | BN188: 19.997 | BP188: 2000-09-19 | BQ188: 29.155 | BS188: 2000-09-19 | BT188: 39.5 | BV188: 2000-09-19 | BW188: 14.211 | BY188: 2000-09-19 | BZ188: 193.19 | CB188: 2001-08-30 | CC188: 23.1738 | CE188: 2000-09-19 | CF188: 36.4941 | CH188: 2000-09-19 | CI188: 3.5391 | CK188: 2000-09-19 | CL188: 105.0533 | CN188: 2000-09-19 | CO188: 8.869 | CQ188: 2008-10-10 | CR188: 66.39
E189: 1991-09-30 | F189: 1607 | H189: 2000-09-20 | I189: 9.2036 | K189: 2000-09-20 | L189: 224.51 | N189: 2000-09-20 | O189: 15.175 | Q189: 2000-09-20 | R189: 32.545 | T189: 2000-09-20 | U189: 18.9784 | W189: 2000-09-20 | X189: 19.987 | Z189: 2000-09-20 | AA189: 248.6651 | AC189: 2000-09-20 | AD189: 16.8901 | AF189: 2000-09-20 | AG189: 25.582 | AI189: 2001-11-09 | AJ189: 30.874 | AL189: 2000-09-20 | AM189: 44.5181 | AO189: 2001-08-27 | AP189: 9.963 | AR189: 2000-09-20 | AS189: 24.078 | AU189: 2000-09-20 | AV189: 4.3626 | AX189: 2000-09-20 | AY189: 29.43982 | BA189: 2000-09-20 | BB189: 16.48211 | BD189: 2000-09-20 | BE189: 37.3229 | BG189: 2003-09-19 | BH189: 14.433 | BJ189: 2000-11-30 | BK189: 40.983 | BM189: 2000-09-20 | BN189: 20.005 | BP189: 2000-09-20 | BQ189: 28.833 | BS189: 2000-09-20 | BT189: 37.808 | BV189: 2000-09-20 | BW189: 14.072 | BY189: 2000-09-20 | BZ189: 187.4 | CB189: 2001-08-31 | CC189: 23.3147 | CE189: 2000-09-20 | CF189: 35.9017 | CH189: 2000-09-20 | CI189: 3.5184 | CK189: 2000-09-20 | CL189: 101.1465 | CN189: 2000-09-20 | CO189: 8.579 | CQ189: 2008-10-13 | CR189: 67.07
E190: 1991-10-01 | F190: 1609.599976 | H190: 2000-09-21 | I190: 9.0135 | K190: 2000-09-21 | L190: 218.92 | N190: 2000-09-21 | O190: 14.94 | Q190: 2000-09-21 | R190: 32.011 | T190: 2000-09-21 | U190: 18.0899 | W190: 2000-09-21 | X190: 20.783 | Z190: 2000-09-21 | AA190: 252.3353 | AC190: 2000-09-21 | AD190: 16.80026 | AF190: 2000-09-21 | AG190: 25.147 | AI190: 2001-11-12 | AJ190: 31.107 | AL190: 2000-09-21 | AM190: 44.9394 | AO190: 2001-08-28 | AP190: 10.05 | AR190: 2000-09-21 | AS190: 23.758 | AU190: 2000-09-21 | AV190: 4.3268 | AX190: 2000-09-21 | AY190: 29.81017 | BA190: 2000-09-21 | BB190: 16.401 | BD190: 2000-09-21 | BE190: 36.6793 | BG190: 2003-09-22 | BH190: 14.304 | BJ190: 2000-12-01 | BK190: 41.804 | BM190: 2000-09-21 | BN190: 18.162 | BP190: 2000-09-21 | BQ190: 28.763 | BS190: 2000-09-21 | BT190: 37.187 | BV190: 2000-09-21 | BW190: 14.27 | BY190: 2000-09-21 | BZ190: 187.4 | CB190: 2001-09-03 | CC190: 23.2392 | CE190: 2000-09-21 | CF190: 36.0812 | CH190: 2000-09-21 | CI190: 3.5184 | CK190: 2000-09-21 | CL190: 96.9348 | CN190: 2000-09-21 | CO190: 8.415 | CQ190: 2008-10-14 | CR190: 68.24
E191: 1991-10-02 | F191: 1607.300049 | H191: 2000-09-22 | I191: 8.881 | K191: 2000-09-22 | L191: 225.44 | N191: 2000-09-22 | O191: 15.341 | Q191: 2000-09-22 | R191: 33.847 | T191: 2000-09-22 | U191: 18.1675 | W191: 2000-09-22 | X191: 20.678 | Z191: 2000-09-22 | AA191: 257.7246 | AC191: 2000-09-22 | AD191: 16.1713 | AF191: 2000-09-22 | AG191: 25.684 | AI191: 2001-11-13 | AJ191: 31.378 | AL191: 2000-09-22 | AM191: 44.1156 | AO191: 2001-08-29 | AP191: 9.79 | AR191: 2000-09-22 | AS191: 23.438 | AU191: 2000-09-22 | AV191: 4.474 | AX191: 2000-09-22 | AY191: 30.66954 | BA191: 2000-09-22 | BB191: 16.60393 | BD191: 2000-09-22 | BE191: 38.2045 | BG191: 2003-09-23 | BH191: 14.247 | BJ191: 2000-12-04 | BK191: 41.168 | BM191: 2000-09-22 | BN191: 19.532 | BP191: 2000-09-22 | BQ191: 29.098 | BS191: 2000-09-22 | BT191: 39.32 | BV191: 2000-09-22 | BW191: 14.397 | BY191: 2000-09-22 | BZ191: 196.96 | CB191: 2001-09-04 | CC191: 23.7529 | CE191: 2000-09-22 | CF191: 35.724 | CH191: 2000-09-22 | CI191: 3.4751 | CK191: 2000-09-22 | CL191: 91.9905 | CN191: 2000-09-22 | CO191: 8.749 | CQ191: 2008-10-15 | CR191: 72.28
E192: 1991-10-04 | F192: 1601.699951 | H192: 2000-09-25 | I192: 8.8795 | K192: 2000-09-25 | L192: 223.03 | N192: 2000-09-25 | O192: 15.288 | Q192: 2000-09-25 | R192: 33.421 | T192: 2000-09-25 | U192: 18.1157 | W192: 2000-09-25 | X192: 20.633 | Z192: 2000-09-25 | AA192: 254.7571 | AC192: 2000-09-25 | AD192: 16.08146 | AF192: 2000-09-25 | AG192: 24.837 | AI192: 2001-11-14 | AJ192: 31.727 | AL192: 2000-09-25 | AM192: 43.418 | AO192: 2001-08-30 | AP192: 9.588 | AR192: 2000-09-25 | AS192: 24.278 | AU192: 2000-09-25 | AV192: 4.4581 | AX192: 2000-09-25 | AY192: 30.61913 | BA192: 2000-09-25 | BB192: 16.97741 | BD192: 2000-09-25 | BE192: 37.2521 | BG192: 2003-09-24 | BH192: 13.818 | BJ192: 2000-12-05 | BK192: 45.542 | BM192: 2000-09-25 | BN192: 19.354 | BP192: 2000-09-25 | BQ192: 28.612 | BS192: 2000-09-25 | BT192: 38.825 | BV192: 2000-09-25 | BW192: 14.469 | BY192: 2000-09-25 | BZ192: 193.79 | CB192: 2001-09-05 | CC192: 23.3651 | CE192: 2000-09-25 | CF192: 37.5173 | CH192: 2000-09-25 | CI192: 3.4668 | CK192: 2000-09-25 | CL192: 96.6664 | CN192: 2000-09-25 | CO192: 8.415 | CQ192: 2008-10-16 | CR192: 68.23
E193: 1991-10-07 | F193: 1588.699951 | H193: 2000-09-26 | I193: 9.2456 | K193: 2000-09-26 | L193: 224.94 | N193: 2000-09-26 | O193: 15.288 | Q193: 2000-09-26 | R193: 32.685 | T193: 2000-09-26 | U193: 18.3573 | W193: 2000-09-26 | X193: 20.761 | Z193: 2000-09-26 | AA193: 261.1609 | AC193: 2000-09-26 | AD193: 16.3061 | AF193: 2000-09-26 | AG193: 24.885 | AI193: 2001-11-15 | AJ193: 31.572 | AL193: 2000-09-26 | AM193: 44.2747 | AO193: 2001-08-31 | AP193: 9.42 | AR193: 2000-09-26 | AS193: 23.227 | AU193: 2000-09-26 | AV193: 4.6054 | AX193: 2000-09-26 | AY193: 31.41032 | BA193: 2000-09-26 | BB193: 17.21285 | BD193: 2000-09-26 | BE193: 36.8724 | BG193: 2003-09-25 | BH193: 13.968 | BJ193: 2000-12-06 | BK193: 46.557 | BM193: 2000-09-26 | BN193: 19.354 | BP193: 2000-09-26 | BQ193: 29.149 | BS193: 2000-09-26 | BT193: 37.97 | BV193: 2000-09-26 | BW193: 14.31 | BY193: 2000-09-26 | BZ193: 197.86 | CB193: 2001-09-06 | CC193: 23.1284 | CE193: 2000-09-26 | CF193: 37.336 | CH193: 2000-09-26 | CI193: 3.4668 | CK193: 2000-09-26 | CL193: 95.4696 | CN193: 2000-09-26 | CO193: 8.311 | CQ193: 2008-10-17 | CR193: 66.17
E194: 1991-10-08 | F194: 1578.699951 | H194: 2000-09-27 | I194: 9.255 | K194: 2000-09-27 | L194: 229.91 | N194: 2000-09-27 | O194: 15.137 | Q194: 2000-09-27 | R194: 32.638 | T194: 2000-09-27 | U194: 18.2883 | W194: 2000-09-27 | X194: 20.374 | Z194: 2000-09-27 | AA194: 262.4103 | AC194: 2000-09-27 | AD194: 17.42913 | AF194: 2000-09-27 | AG194: 25.519 | AI194: 2001-11-16 | AJ194: 31.417 | AL194: 2000-09-27 | AM194: 45.0565 | AO194: 2001-09-03 | AP194: 9.212 | AR194: 2000-09-27 | AS194: 23.384 | AU194: 2000-09-27 | AV194: 4.6332 | AX194: 2000-09-27 | AY194: 30.55104 | BA194: 2000-09-27 | BB194: 17.41585 | BD194: 2000-09-27 | BE194: 36.6793 | BG194: 2003-09-26 | BH194: 14.219 | BJ194: 2000-12-07 | BK194: 45.588 | BM194: 2000-09-27 | BN194: 19.168 | BP194: 2000-09-27 | BQ194: 29.06 | BS194: 2000-09-27 | BT194: 37.916 | BV194: 2000-09-27 | BW194: 14.667 | BY194: 2000-09-27 | BZ194: 195.88 | CB194: 2001-09-07 | CC194: 22.3277 | CE194: 2000-09-27 | CF194: 39.2226 | CH194: 2000-09-27 | CI194: 3.4214 | CK194: 2000-09-27 | CL194: 93.5162 | CN194: 2000-09-27 | CO194: 8.524 | CQ194: 2008-10-20 | CR194: 62.86
E195: 1991-10-09 | F195: 1567.199951 | H195: 2000-09-28 | I195: 9.6445 | K195: 2000-09-28 | L195: 231.49 | N195: 2000-09-28 | O195: 15.276 | Q195: 2000-09-28 | R195: 32.878 | T195: 2000-09-28 | U195: 18.4849 | W195: 2000-09-28 | X195: 20.943 | Z195: 2000-09-28 | AA195: 263.1909 | AC195: 2000-09-28 | AD195: 17.6088 | AF195: 2000-09-28 | AG195: 24.276 | AI195: 2001-11-19 | AJ195: 32.193 | AL195: 2000-09-28 | AM195: 45.3139 | AO195: 2001-09-04 | AP195: 9.386 | AR195: 2000-09-28 | AS195: 23.807 | AU195: 2000-09-28 | AV195: 4.693 | AX195: 2000-09-28 | AY195: 30.52135 | BA195: 2000-09-28 | BB195: 17.45648 | BD195: 2000-09-28 | BE195: 36.3255 | BG195: 2003-09-29 | BH195: 14.19 | BJ195: 2000-12-08 | BK195: 47.987 | BM195: 2000-09-28 | BN195: 19.701 | BP195: 2000-09-28 | BQ195: 28.763 | BS195: 2000-09-28 | BT195: 38.195 | BV195: 2000-09-28 | BW195: 15.38 | BY195: 2000-09-28 | BZ195: 196.06 | CB195: 2001-09-10 | CC195: 21.3056 | CE195: 2000-09-28 | CF195: 40.0125 | CH195: 2000-09-28 | CI195: 3.4049 | CK195: 2000-09-28 | CL195: 92.2954 | CN195: 2000-09-28 | CO195: 8.399 | CQ195: 2008-10-21 | CR195: 60.21
E196: 1991-10-10 | F196: 1568 | H196: 2000-09-29 | I196: 9.6788 | K196: 2000-09-29 | L196: 230.05 | N196: 2000-09-29 | O196: 15.137 | Q196: 2000-09-29 | R196: 32.445 | T196: 2000-09-29 | U196: 18.4608 | W196: 2000-09-29 | X196: 21.452 | Z196: 2000-09-29 | AA196: 263.5817 | AC196: 2000-09-29 | AD196: 17.87832 | AF196: 2000-09-29 | AG196: 24.406 | AI196: 2001-11-20 | AJ196: 31.611 | AL196: 2000-09-29 | AM196: 44.0266 | AO196: 2001-09-05 | AP196: 9.016 | AR196: 2000-09-29 | AS196: 23.535 | AU196: 2000-09-29 | AV196: 4.6651 | AX196: 2000-09-29 | AY196: 30.31395 | BA196: 2000-09-29 | BB196: 17.57822 | BD196: 2000-09-29 | BE196: 36.1002 | BG196: 2003-09-30 | BH196: 14.011 | BJ196: 2000-12-11 | BK196: 47.987 | BM196: 2000-09-29 | BN196: 19.65 | BP196: 2000-09-29 | BQ196: 28.637 | BS196: 2000-09-29 | BT196: 37.691 | BV196: 2000-09-29 | BW196: 15.222 | BY196: 2000-09-29 | BZ196: 202.04 | CB196: 2001-09-11 | CC196: 20.4444 | CE196: 2000-09-29 | CF196: 40.2099 | CH196: 2000-09-29 | CI196: 3.4276 | CK196: 2000-09-29 | CL196: 89.1212 | CN196: 2000-09-29 | CO196: 8.371 | CQ196: 2008-10-22 | CR196: 55.49
E197: 1991-10-11 | F197: 1568.400024 | H197: 2000-10-02 | I197: 9.6601 | K197: 2000-10-02 | L197: 233.77 | N197: 2000-10-02 | O197: 15.307 | Q197: 2000-10-02 | R197: 33.521 | T197: 2000-10-02 | U197: 18.8059 | W197: 2000-10-02 | X197: 21.938 | Z197: 2000-10-02 | AA197: 260.6921 | AC197: 2000-10-02 | AD197: 18.10287 | AF197: 2000-10-02 | AG197: 24.76 | AI197: 2001-11-21 | AJ197: 32.224 | AL197: 2000-10-02 | AM197: 44.1436 | AO197: 2001-09-06 | AP197: 8.6 | AR197: 2000-10-02 | AS197: 23.952 | AU197: 2000-10-02 | AV197: 4.5616 | AX197: 2000-10-02 | AY197: 29.72429 | BA197: 2000-10-02 | BB197: 17.78122 | BD197: 2000-10-02 | BE197: 36.6793 | BG197: 2003-10-01 | BH197: 13.975 | BJ197: 2000-12-12 | BK197: 48.725 | BM197: 2000-10-02 | BN197: 20.166 | BP197: 2000-10-02 | BQ197: 28.864 | BS197: 2000-10-02 | BT197: 38.942 | BV197: 2000-10-02 | BW197: 16.451 | BY197: 2000-10-02 | BZ197: 204.73 | CB197: 2001-09-12 | CC197: 21.4264 | CE197: 2000-10-02 | CF197: 40.6228 | CH197: 2000-10-02 | CI197: 3.5184 | CK197: 2000-10-02 | CL197: 89.3656 | CN197: 2000-10-02 | CO197: 8.47 | CQ197: 2008-10-23 | CR197: 45.77
E198: 1991-10-14 | F198: 1571 | H198: 2000-10-03 | I198: 9.6601 | K198: 2000-10-03 | L198: 233.77 | N198: 2000-10-03 | O198: 15.307 | Q198: 2000-10-03 | R198: 33.521 | T198: 2000-10-03 | U198: 18.8059 | W198: 2000-10-03 | X198: 21.938 | Z198: 2000-10-03 | AA198: 260.6921 | AC198: 2000-10-03 | AD198: 18.10287 | AF198: 2000-10-03 | AG198: 24.76 | AI198: 2001-11-22 | AJ198: 32.425 | AL198: 2000-10-03 | AM198: 44.1436 | AO198: 2001-09-07 | AP198: 8.45 | AR198: 2000-10-03 | AS198: 23.952 | AU198: 2000-10-03 | AV198: 4.5616 | AX198: 2000-10-03 | AY198: 29.72429 | BA198: 2000-10-03 | BB198: 17.78122 | BD198: 2000-10-03 | BE198: 36.6793 | BG198: 2003-10-02 | BH198: 13.782 | BJ198: 2000-12-13 | BK198: 46.88 | BM198: 2000-10-03 | BN198: 20.166 | BP198: 2000-10-03 | BQ198: 29.041 | BS198: 2000-10-03 | BT198: 38.942 | BV198: 2000-10-03 | BW198: 16.451 | BY198: 2000-10-03 | BZ198: 204.73 | CB198: 2001-09-13 | CC198: 21.8544 | CE198: 2000-10-03 | CF198: 40.6228 | CH198: 2000-10-03 | CI198: 3.5184 | CK198: 2000-10-03 | CL198: 89.3656 | CN198: 2000-10-03 | CO198: 8.47 | CQ198: 2008-10-24 | CR198: 38.04
E199: 1991-10-15 | F199: 1585 | H199: 2000-10-04 | I199: 9.5354 | K199: 2000-10-04 | L199: 231.92 | N199: 2000-10-04 | O199: 15.809 | Q199: 2000-10-04 | R199: 34.195 | T199: 2000-10-04 | U199: 18.3055 | W199: 2000-10-04 | X199: 22.585 | Z199: 2000-10-04 | AA199: 257.8026 | AC199: 2000-10-04 | AD199: 18.058 | AF199: 2000-10-04 | AG199: 24.29 | AI199: 2001-11-23 | AJ199: 32.13 | AL199: 2000-10-04 | AM199: 45.4309 | AO199: 2001-09-10 | AP199: 8.404 | AR199: 2000-10-04 | AS199: 24.26 | AU199: 2000-10-04 | AV199: 4.6086 | AX199: 2000-10-04 | AY199: 29.69167 | BA199: 2000-10-04 | BB199: 18.02484 | BD199: 2000-10-04 | BE199: 36.2933 | BG199: 2003-10-03 | BH199: 13.889 | BJ199: 2000-12-14 | BK199: 43.65 | BM199: 2000-10-04 | BN199: 19.617 | BP199: 2000-10-04 | BQ199: 29.471 | BS199: 2000-10-04 | BT199: 39.725 | BV199: 2000-10-04 | BW199: 16.807 | BY199: 2000-10-04 | BZ199: 203.38 | CB199: 2001-09-14 | CC199: 20.7315 | CE199: 2000-10-04 | CF199: 37.4275 | CH199: 2000-10-04 | CI199: 3.4668 | CK199: 2000-10-04 | CL199: 85.0682 | CN199: 2000-10-04 | CO199: 8.306 | CQ199: 2008-10-27 | CR199: 32.58
E200: 1991-10-16 | F200: 1570.099976 | H200: 2000-10-05 | I200: 9.3874 | K200: 2000-10-05 | L200: 232.76 | N200: 2000-10-05 | O200: 16.118 | Q200: 2000-10-05 | R200: 35.001 | T200: 2000-10-05 | U200: 18.8059 | W200: 2000-10-05 | X200: 23 | Z200: 2000-10-05 | AA200: 263.5038 | AC200: 2000-10-05 | AD200: 17.474 | AF200: 2000-10-05 | AG200: 24.663 | AI200: 2001-11-26 | AJ200: 32.425 | AL200: 2000-10-05 | AM200: 46.2033 | AO200: 2001-09-11 | AP200: 7.682 | AR200: 2000-10-05 | AS200: 24.163 | AU200: 2000-10-05 | AV200: 4.7208 | AX200: 2000-10-05 | AY200: 29.11677 | BA200: 2000-10-05 | BB200: 18.22865 | BD200: 2000-10-05 | BE200: 36.6793 | BG200: 2003-10-06 | BH200: 13.489 | BJ200: 2000-12-15 | BK200: 38.99 | BM200: 2000-10-05 | BN200: 19.574 | BP200: 2000-10-05 | BQ200: 30.355 | BS200: 2000-10-05 | BT200: 40.661 | BV200: 2000-10-05 | BW200: 16.058 | BY200: 2000-10-05 | BZ200: 205.63 | CB200: 2001-09-17 | CC200: 20.9228 | CE200: 2000-10-05 | CF200: 36.2607 | CH200: 2000-10-05 | CI200: 3.471 | CK200: 2000-10-05 | CL200: 89.61 | CN200: 2000-10-05 | CO200: 8.197 | CQ200: 2008-10-28 | CR200: 39
... 925 more rows
